Workbook

Sheet 首页
B8: 华创证券化工产品价格数据周报（更新时间：2019年09月21日)
B12: 产品价格涨幅排行榜（前十）
B13: 排名 | C13: 一周 | E13: 两周 | G13: 一月 | I13: 三月 | K13: 一年
C14: 品种 | D14: 涨跌幅(%) | E14: 品种 | F14: 涨跌幅(%) | G14: 品种 | H14: 涨跌幅(%) | I14: 品种 | J14: 涨跌幅(%) | K14: 品种 | L14: 涨跌幅(%)
B15: 1 | C15: 环氧氯丙烷 | D15: 17.19 | E15: 烧碱32%离子膜 | F15: 26.03 | G15: 丁酮 | H15: 44.91 | I15: 丙酮 | J15: 61.29 | K15: 国内石脑油 | L15: 46.10
B16: 2 | C16: 丙酮 | D16: 16.96 | E16: 丙酮 | F16: 22.70 | G16: 丙酮 | H16: 32.45 | I16: 丁酮 | J16: 56.10 | K16: 环氧氯丙烷 | L16: 33.33
B17: 3 | C17: 液化气 | D17: 14.52 | E17: 苯胺 | F17: 22.22 | G17: 烧碱32%离子膜 | H17: 28.67 | I17: 丁二烯（华东） | J17: 37.21 | K17: 黄磷 | L17: 26.17
B18: 4 | C18: 烧碱32%离子膜 | D18: 14.29 | E18: 液化气 | F18: 17.75 | G18: 黄磷 | H18: 26.17 | I18: 醋酸 | J18: 27.78 | K18: 氯化铵（农湿） | L18: 24.00
B19: 5 | C19: 苯胺 | D19: 11.59 | E19: 国际汽油 | F19: 17.38 | G19: 环氧氯丙烷 | H19: 25.00 | I19: 甲基环硅氧烷 | J19: 27.78 | K19: 丁酮 | L19: 14.63
B20: 6 | C20: 丁二烯（华东） | D20: 11.32 | E20: 环氧氯丙烷 | F20: 17.19 | G20: 液化气 | H20: 24.78 | I20: 苯胺 | J20: 27.27 | K20: 萤石粉 | L20: 10.89
B21: 7 | C21: 甲醛 | D21: 10.71 | E21: 丁酮 | F21: 17.07 | G21: 苯胺 | H21: 24.19 | I21: 烧碱32%离子膜 | J21: 26.37 | K21: 磷酸（工业85%） | L21: 9.30
B22: 8 | C22: 双酚A | D22: 10.64 | E22: 苯酐 | F22: 15.71 | G22: 苯酐 | H22: 18.10 | I22: 黄磷 | J22: 26.17 | K22: 三聚磷酸钠 | L22: 8.33
B23: 9 | C23: 国际汽油 | D23: 7.93 | E23: 双酚A | F23: 12.43 | G23: 苯酚 | H23: 16.67 | I23: 二甲苯 | J23: 25.79 | K23: 硝酸 | L23: 6.25
B24: 10 | C24: 顺丁橡胶 | D24: 7.52 | E24: 国际石脑油 | F24: 12.29 | G24: 双酚A | H24: 16.20 | I24: 甲苯 | J24: 25.00 | K24: 原盐 | L24: 6.01
B25: 产品价格跌幅排行榜（前十）
B26: 排名 | C26: 一周 | E26: 两周 | G26: 一月 | I26: 三月 | K26: 一年
C27: 品种 | D27: 涨跌幅(%) | E27: 品种 | F27: 涨跌幅(%) | G27: 品种 | H27: 涨跌幅(%) | I27: 品种 | J27: 涨跌幅(%) | K27: 品种 | L27: 涨跌幅(%)
B28: 1 | C28: EDC(二氯乙烷：制氯乙烯) | D28: -14.29 | E28: 国际硫磺 | F28: -16.67 | G28: 国际硫磺 | H28: -28.57 | I28: 国际硫磺 | J28: -44.44 | K28: 国际硫磺 | L28: -56.52
B29: 2 | C29: 国际硫磺 | D29: -9.09 | E29: EDC(二氯乙烷：制氯乙烯) | F29: -14.29 | G29: EDC(二氯乙烷：制氯乙烯) | H29: -20.00 | I29: 硫酸（98%） | J29: -39.53 | K29: 硫酸（98%） | L29: -55.93
B30: 3 | C30: 国内尿素 | D30: -8.16 | E30: 国内硫磺 | F30: -8.82 | G30: 醋酸酐 | H30: -14.29 | I30: EDC(二氯乙烷：制氯乙烯) | J30: -38.46 | K30: 国内硫磺 | L30: -53.73
B31: 4 | C31: 国内硫磺 | D31: -4.62 | E31: R22 | F31: -6.90 | G31: 国内硫磺 | H31: -13.89 | I31: 国内硫磺 | J31: -35.42 | K31: TDI | L31: -49.29
B32: 5 | C32: 二氯甲烷 | D32: -3.39 | E32: 萤石粉 | F32: -6.67 | G32: R22 | H32: -12.90 | I32: 炭黑 | J32: -24.32 | K32: PA66 | L32: -43.90
B33: 6 | C33: 磷酸一铵（55%） | D33: -2.38 | E33: 工业级碳酸锂 | F33: -3.74 | G33: 二氯甲烷 | H33: -11.21 | I33: 工业级碳酸锂 | J33: -22.56 | K33: PX（CFR中国） | L33: -42.95
B34: 7 | C34: 纯MDI（华东） | D34: -2.22 | E34: 炭黑 | F34: -3.45 | G34: 无水氢氟酸 | H34: -10.95 | I34: R22 | J34: -21.51 | K34: R22 | L34: -38.64
B35: 8 | C35: 聚合MDI（华东） | D35: -1.94 | E35: 聚合MDI（华东） | F35: -3.44 | G35: 焦炭 | H35: -10.39 | I35: 电池级碳酸锂 | J35: -20.00 | K35: 二氯甲烷 | L35: -37.36
B36: 9 | C36: 萤石粉 | D36: -1.75 | E36: 二氯甲烷 | F36: -3.39 | G36: 木浆（国际） | H36: -10.26 | I36: 木浆（国际） | J36: -15.66 | K36: 二乙二醇 | L36: -36.45
B37: 10 | C37: 丙烯酸 | D37: -1.71 | E37: 国际丁二烯 | F37: -3.15 | G37: 丙烯酸丁酯 | H37: -10.00 | I37: 二氯甲烷 | J37: -15.56 | K37: 丙烯腈 | L37: -36.37

Sheet 投资策略
A1: 返回目录
A4: 投资策略：
A6: 一周投资策略
A16: 行业跟踪
A17: 国际燃料油 华南市场：原油止涨回落，市场盘整为主 华南市场，沥青料市场估价3380-4480元/吨，主流价格相较上周持平；继周一原油价格宽幅上行后，收盘紧接下滑，消息面利好支撑瞬间消散，而下游船运维持低迷，且无其他利好出现下，市场推涨情绪也随之淡薄，业者报盘多观望盘整为主，重交沥青方面，受赶工等利好带动，炼厂出货尚可，价格维持坚挺；短期，消息面利好的迅速消散，使得市场失去有力支撑，市场行情或逐渐弱势。 非标油市场，本周华南非标油市场稳定为主，原油宽幅回落，不过新一轮成品油将于19日24时上调，空好交织下，市场盘整为主，后期随利空逐渐弥漫，价格不乏会有高位回落可能。 华东市场：原油涨后大跌，燃料油依旧上涨 沥青料市场，华东主流沥青料的成交价在3530-3580元/吨，价格较上周上涨200元，地炼出货较为顺畅。在周边地炼纷纷报涨之后，华东地炼也顺势大幅上调报价，据悉，宁波某大型炼厂的优质200#沥青报涨200元至3550元/吨，本周放量2万吨。重交沥青方面，重交沥青的价格走势比较稳定，油气泰州开始出货，重交沥青挂牌价在3850元/吨。 非标油市场，同比重油资源的波动情况，非标油近日涨势也比较迅猛，不过，因其节前已经有较大幅度的上涨，节后又每日上调，调整幅度多在百元左右。外盘原油自暴涨后又宽幅下挫，关于短期走势的观望情绪也越发浓厚，料非标油市场自经过近段时间的大涨后已经缺乏继续上涨的动力，短期内或将逐渐转稳。 上海市场，低金属船用180CST（密度0.98左右，硫含量0.5以内）自提成交估价在4370-4470元/吨，宁波市场，低金属船用180CST（密度0.98左右，硫含量0.5以内）自提成交估价在4400-4490元/吨，南通市场，低金属船用180CST（密度0.98左右，硫含量0.5以内）自提成交估价在4380-4480元/吨，价格均较上周持平。 山东市场：原油收盘大跌，市场守稳为主 马瑞原油（含重质油票）成交估价3740-3840元/吨，相较前一周价格持平，稀释沥青（沥青票 密度0.98）主流成交价3280-3380元/吨，相较前一周价格持平。 焦化料市场，周三山东地区优质焦化料（沥青票，密度1.0左右，硫含量1.0左右）市场估价在3250-3350元/吨，渣油票市场估价为3350-3450元/吨，较前一周价格持平。今日个别炼厂报价涨跌互现，但调整幅度都不大，昨天预估的涨势并未出现。商家多观望下游接货情况，焦化料有价无市，交投清淡，预计短期之内山东焦化料市场将维持观望。 油浆市场，周三山东地区高密油浆市场成交估价2800-2900元/吨，低密油浆成交估价2900-3000元/吨，较前一工作日价格持平。本周炼厂报价守稳为主，有个别炼厂小幅调整报价。原油收盘深跌令市场形成的热情逐渐转淡，且无其他利好出现，商家多转为观望，预计短期之内山东油浆市场维持观望为主。 后市预测： 沙特阿拉伯能源部长表示，该国已完全恢复了石油生产，外盘原油自前一交易日大涨后又跌去多半涨幅。国内燃料油市场上的报涨情绪依旧浓厚，地炼补涨很是积极。另外，下游的船供油市场也经过几日的集体大调后也有选择观望的态势。日前燃料油市场的涨势或将因原油的大跌戛然而止，但出货预计会在短期内保持顺畅。 丙酮 市场综述： 本周（09.13-09.19）丙酮国内市场快速推涨，市场价格重心走高，中石化华东累计两次上调开单价共计350元/吨执行4550元/吨，中石化华北开单价上调200元/吨执行4500元/吨，因沙特油田遇袭事件，周初国际原油价格暴涨，利好提振化工行业，丙酮市场炒涨气氛浓厚，工厂趁势补涨，市场低价难寻，价格宽幅走高，周中原油价格逐渐回调，但贸易商挺涨情绪不减报盘继续上行，随着下游追涨放缓回归理性，丙酮涨势放缓。截止到周末主流市场报价为5000元/吨，本周末市场价格较上周变化250-750元/吨。周初丙酮国内市场宽幅推高，原油价格暴涨提振市场，工厂调涨，双原料纯苯丙烯价格上涨，北方限产现货偏紧，贸易商报盘宽幅向上，低价难寻，实单成交重心至高位。周中丙酮国内市场延续挺涨走势，虽原油价格下跌，但贸易商推涨情绪仍较浓，市场现货偏紧，贸易商继续挺价推涨报盘，下游买盘逐渐谨慎，跟进放缓。周末丙酮市场氛围减淡，原油价格继续回调，下游追高放缓，买盘谨慎询盘，贸易商报盘整理，实单商谈为主。截止到本周末国内丙酮市场价格参考：华东市场5000-5050元/吨，华北市场4550-4600元/吨，华南市场5200元/吨。 原料面：本周双原料纯苯和丙烯价格大幅上涨，成本面利好支撑丙酮市场。本周国内丙烯市场价格大幅走高，。截止本周四，山东丙烯市场主流成交价格上调至7900-7950元/吨左右，环比上周上调250元/吨。本周国内纯苯市场行情走势上涨后震荡回调。本周华东主流市场均价为5879.29元/吨，涨幅2.48%。 供需面：北方限产，燕山石化30万吨/年酚酮装置降负生产 ，市场现货偏紧，供应面利好支撑，下游跟进尚可，成交重心至高位，整体需求延续刚需为主。 国际市场：本周丙酮欧美亚国际市场价格稳中上涨。亚洲丙酮市场价格继续上涨，丙酮CFR中国涨80至540美元/吨；CFR东南亚涨25至500美元/吨。美国丙酮市场价格继续收稳，FOB美国海湾稳507美元/吨。欧洲丙酮价格继续上涨，FD西北欧涨10至480欧元/吨。 装置情况：本周燕山石化30万吨/年酚酮装置降负生产中，国内其他装置正常生产。 利润情况：截止到本周末丙酮国内市场毛利较上周宽幅提高590元/吨，本周毛利为-927元/吨。 后市预测：本周丙酮国内市场快速推涨，市场价格重心至高位。下周来看，原料价格居高，成本面仍继续支撑，华北限产，北方现货资源仍呈现偏紧态势，山东利华益维远二期12万吨/年双酚A装置未如期投产，仍需继续跟进，临近国庆假期，下周需关注下游节前备货情况，丙酮市场经过快速推涨，需时间消化涨幅，贸易商对后市对看好下，低出情绪有限，综合来看预计下周丙酮国内市场区间震荡为主，关注消息面变化情况。预计价格变化空间在100-200元/吨之间。 硫酸 本周（9.13-9.19），中国硫酸市场行情稳中下行。市场向下运行主要体现在华东、华中及华南部分地区，幅度10-50元/吨。当前硫酸市场行情偏弱的主要原因有以下几点：一、中秋小长假过后，高速公路禁行解除，各硫酸企业库存小有上升；二、原料方面：沙特油田遇袭对硫磺的直接影响有限，加之中国港口库存依然处于高位态势，硫磺价格推涨受挫，市场观望心态加剧，预计后期将逐步恢复横盘态势，无法对硫酸市场提供有力支撑；三、下游磷肥市场行情持续疲软，新单成交缓慢，对硫酸需求无明显变化，钛白市场因国庆临近，受环保等因素影响，产量有所下滑，下游磷肥、钛白行情均属利空；四、生产方面：各区域冶炼酸主厂装置生产正常，本周个别中小酸企有检修或计划检修安排（可详见“装置动态表”）；五、政策方面：近日，生态环境部发布了《京津冀及周边地区2019-2020 年秋冬季大气污染综合治理攻坚行动方案(征求意见稿)》，对“2+26”城市秋冬期间（2019年10月1日-2020年3月31日）大气污染治理提出指导建议，避免“一刀切”现象，具体如何整治，各地区限产与否还要等待明确的行动方案出台。 华北地区：本周华北市场明稳暗降。河北地区硫酸主流报价未有变化，实则明稳暗降，中秋小长假的短暂禁行，以及即将到来的国庆禁行给河北地区硫酸企业的库存带来不小的压力，加之河北距离北京较近，适逢国庆70周年阅兵，下游企业多有限产、停产计划，对硫酸采购减缓，硫酸企业难以挺价维持，只能顺应市场趋势。山西地区硫酸主流价格下行，幅度30元/吨。内蒙古地区表现平稳，各企业交投正常。河北98%出厂参考180-280元/吨；山西98%冶炼酸省内出厂成交参考110-150元/吨；内蒙古98%冶炼酸出厂成交参考80-150元/吨。 东北地区：本周东北地区市场行情淡稳。辽宁地区表现平平，下游企业开工率一般，各硫酸企业挺价意愿明显，目前走货淡稳，库存压力不大。生产方面，海城诚信9月17日开始停车检修，预计国庆之后重启。辽宁98%酸出厂成交参考110-270元/吨。 华东地区：华东硫酸市场迎来一轮下行，幅度20-50元/吨。继“中秋节”前江西、浙江局部市场下行后，节后安徽、江苏、浙江跟行。目前各区域大厂开工稳定，硫酸货源充足，但“建国70年大庆”对于实体工厂生产所带来的负面在地方愈发显现。生产各环节的检查更加密集，市场内不乏存在化工厂趁此期间进行名义上停车检修，以规避各项“麻烦”。硫酸层面的装置计划性检修则安排在10月以后（详见“装置动态表”），与需求面提前减少形成不对等局面。10月以后华东地区安徽铜陵、江西贵溪两套冶炼酸系统检修计划敲定预计硫酸日供应量减少7000吨左右，市场有望反弹。浙江江铜富冶和鼎铜业硫酸年产能40万吨的装置是否检修待定。本周江苏98%硫磺酸出厂成交参考价80-200元/吨；浙江98%冶炼酸出厂成交参考价110-250元/吨；安徽98%酸出厂成交参考价50-110元/吨；江西98%酸出厂成交参考价50-180元/吨。 山东地区：本周山东地区市场行情平稳。山东地区硫酸价格维持稳定。据反馈，中秋过后走货情况略有好转，但并未给山东地区硫酸市场带来明显改变，各企业仍在艰难维持运行。多数业内人士看空后市，认为硫酸价格持稳已是极限，但仍有部分业者持积极心态，硫酸市场的具体走势只有等待“国庆”长假过后方能揭晓。山东98%冶炼酸出厂成交参考价-20-40元/吨。 华中地区：华中硫酸市场无利好，局部范围走降。河南市场硫酸流通速度普遍放缓，部分大厂给予可解决库存能力的万吨以上大户适当优惠，国庆节前积极出货放量。湖北市场表现一般，来自于外围市场的硫酸货源源源不断输入至此，与当地硫酸供应形成竞争，同下游大户的合作采取随行就市态度，价格操作十分灵活。10月除国庆以外，18-27日在武汉举行第七届世界军人运动将。为做好安保工作，省内对化工企业的各项排查再次严格。湖南硫酸市场行情暂稳，交投氛围一般。河南98%冶炼酸出厂成交参考价50-160元/吨；湖北98%冶炼酸出厂成交参考价80-130元/吨；湖南98%冶炼酸出厂成交参考价80-130元/吨。 华南地区：本周华南地区市场稳中下行。价格下行主要表现在广东云浮地区，受中秋短暂禁行影响，云浮地区硫酸企业库存上升，加之本身储存能力有限，且即将到来的十一长假高速禁行时间更长，各企业纷纷下调价格，以避免库存堆积。广西地区行情无明显变化，部分厂家反馈走货情况略有好转，但依旧看空后市。广西地区报价对外守稳，实则一单一议的情况仍在继续。广东98%矿石酸出厂成交参考价210-270元/吨；广西98%冶炼酸出厂成交参考价40-180元/吨。 西南地区：西南地区市场弱稳运行。重庆市场行情平稳，暂无明显波动，重庆新华、秀山德宏装置检修中，重启时间均在国庆之后。四川地区交投尚可，各企业走货淡稳，库存压力不大。贵州、云南地区市场表现平平，走货一般，大方润丰装置检修仍在继续。重庆98%酸出厂成交参考价450-500元/吨；四川98%酸出厂成交参考价340-410元/吨；贵州98%酸送到福泉参考价280-350元/吨；云南98%冶炼酸出厂成交参考价260-340元/吨。 西北地区：西北地区市场行情清淡。陕西、甘肃地区均呈现淡稳走势，硫酸价格未有变化，各企业交投情况一般，库存尚可，预计“国庆”假期来临前，硫酸市场将持续稳弱运行。本周陕西98%冶炼酸出厂成交参考价50-80元/吨；甘肃98%冶炼酸出厂成交参考价20-150元/吨。 后市预测：本周硫酸市场呈现稳中下行态势。近期硫酸市场暂无利好消息，各企业持续相互观望，上游硫磺市场贸易氛围清淡，港口出货量维持低位；下游肥料市场行情持续疲软，看空心态较重，短线硫酸市场仍以淡稳为主，局部地区调整运行。预计“国庆”假期来临前，各地硫酸主流价格将维持稳定。
A18: 调研纪要与点评回顾
A23: ※普利特调研纪要20190919 公司定位于新材料的平台型公司，以汽车复合材料为主体，特种工程塑料和高性能精细化学品为两翼，搭建新材料平台型企业，并在公司层面和业务层面构建了两个层次的合伙人利益分享机制，形成独特的普利特股权激励架构，为公司长远发展植入了原动力。 公司汽车材料业务已经出现明显拐点，最坏时点已过，未来市场集中度会进一步提升，公司仍然是最具竞争力的高端汽车用改性塑料企业，核心客户涵盖宝马，奔驰，福特，大众等全球顶尖车企，未来全球化会进一步布局，包括美国和欧洲业务持续开拓。 LCP期待明显进展，公司进入LCP行业已经十二年，项目从实验室到产业化，经历了诸多磨难和波折，但公司始终没有放弃，不断投入研发，完善技术、产品品质和产品结构，未来有望在5G通信等高端领域放量。 帝盛公司在高分子抗老剂领域深耕多年，原本计划独立上市，但由于主基地盐城园区的问题公司生产时断时续，导致业绩下滑，所幸帝盛前瞻决策，拿下了福建南平370亩地，并建设15000吨产能，远超现在五六千吨的规模，实现产能转移和升级。福建工厂将在今年年底投产，并在2020年后不断释放产量，未来将成为普利特一个核心利润贡献点。 公司的其他新材料包括气凝胶，军用超高分子量聚乙烯，PPS，尼龙复合材料等，均发展良好，未来有望贡献可观的收入和盈利，非常值得期待。 ※新和成调研纪要20190826 巴斯夫VA停产整改可能延期至20Q1底，当前VA库存低，VA价格大概率继续上涨。 帝斯曼收购能特，促进VE市场有序发展，当前VE价格处于底部，未来仍有上涨空间。 山东试运营、置换新昌产能，黑龙江月底试车3-4个月，麦芽酚项目计划年底第2次试车。 ※扬农化工调研纪要20190828 上半年麦草畏出口下滑较多，菊酯及吡唑醚菌酯市场较好、在利润上有所弥补。 公司丰富产品布局，加强组合销售，不断向综合型（多品类）农药企业迈进。 农研院研发优势在创制药，可补充公司研发实力和项目储备。 管理团队优秀，未来仍将维持稳定；观察未来中化对公司管理层影响。 ※利尔化学调研纪要20190823 国内草铵膦、氯代吡啶类龙头企业，项目储备丰富。 公司目前有少量MDP产能，广安1.5wt项目计划明年投产。 短期面临草铵膦价格压力，当前市值处于底部，建议重点关注MDP调试和建设进展。 ※桐昆股份调研纪要20190820 新建项目稳步推进，行业龙头地位巩固。 聚酯企业库存低位，格局变化中稳步前行。 后续股权融资放缓，适当提高大股东股份。 ※光威复材调研纪要20190821 国内军品碳纤维、及VESTAS碳梁最大供应商，销售规模和利润水平将持续扩大。 T800认证后期，关注评审通过带来的增量。 碳梁产线从40条扩至50条，风电景气不减；包头建设大丝束项目，保障原材料供给。 ※万润股份调研纪要20190820 高端液晶单体预计维稳；OLED业务关注三月自主知识产权材料认证突破。 沸石价格及利润水平有望维持，受益国六标准推广沸石需求快速放量。 医药业务处于布局阶段，工业园一期原料药预计21年底前投产。 ※回天新材调研纪要20190809 胶粘剂行业龙头，宜城基地年底投产。 高端领域胶粘剂快速发展，公司长期成长可期。 ※阜丰集团会议纪要20190820 受益于味精价格大涨，业绩同期显著增加。 龙江二期顺利投产，行业龙头地位巩固。 矢志多元化扩大收益来源，提高盈利能力可持续发展。 ※凯龙股份业绩说明会纪要20190903 民爆龙头企业，产业链一体化发展。 工业炸药产品齐全，产能稳步提升。 硝基复合肥业务逐渐增长，产业链不断完善。

Sheet 价差变化总表
A1: 价差变化情况 | B1: 价差名称 | C1: 涨跌幅（%）
C2: 一周 | D2: 两周 | E2: 一月 | F2: 三月 | G2: 一年
B3: 扩大 | C3: =COUNTIF(C6:C48,">0") -> 17 | D3: =COUNTIF(D6:D48,">0") -> 18 | E3: 18 | F3: 16 | G3: 11
B4: 持平 | C4: =COUNTIF(C6:C48,"=0") -> 2 | D4: =COUNTIF(D6:D48,"=0") -> 1 | E4: 2 | F4: 0 | G4: 0
B5: 缩小 | C5: =COUNTIF(C6:C48,"<0") -> 24 | D5: =COUNTIF(D6:D48,"<0") -> 24 | E5: 23 | F5: 27 | G5: 32
A6: 1 | B6: 合成氨-无烟煤价差 | C6: 3.72 | D6: 3.72 | E6: 0.00 | F6: (2.11) | G6: (26.77)
A7: 2 | B7: 国内尿素-无烟煤价差 | C7: (15.84) | D7: 4.94 | E7: (1.16) | F7: (10.53) | G7: (20.56)
A8: 3 | B8: 三聚氰胺-尿素价差 | C8: (652.63) | D8: (22.79) | E8: 45.33 | F8: (566.67) | G8: (84.66)
A9: 4 | B9: 磷酸二铵-磷矿石-液氨-硫磺价差 | C9: 0.27 | D9: 2.39 | E9: 7.42 | F9: 9.92 | G9: 118.14
A10: 5 | B10: 工业磷酸-黄磷价差 | C10: (2.05) | D10: 83.29 | E10: (169.46) | F10: (214.98) | G10: (433.59)
A11: 6 | B11: 黄磷-磷矿石-焦炭价差 | C11: 4.44 | D11: 13.50 | E11: 56.33 | F11: 65.10 | G11: 81.32
A12: 7 | B12: 硝酸铵-液氨价差 | C12: (3.39) | D12: (3.39) | E12: 0.00 | F12: 2.15 | G12: 22.32
A13: 8 | B13: PVC-电石-盐酸价差 | C13: (3.78) | D13: (3.16) | E13: (1.74) | F13: (22.52) | G13: 49.86
A14: 9 | B14: 轻质纯碱-原盐-动力煤价差 | C14: (0.08) | D14: (0.25) | E14: 4.36 | F14: (4.51) | G14: (11.95)
A15: 10 | B15: PTA-PX价差 | C15: 1.09 | D15: (14.51) | E15: (7.60) | F15: (53.26) | G15: 76.52
A16: 11 | B16: 乙二醇-乙烯价差 | C16: 6.47 | D16: 21.01 | E16: 33.04 | F16: 5.95 | G16: (36.21)
A17: 12 | B17: PET-PTA-MEG价差 | C17: 13.76 | D17: 23.37 | E17: (6.87) | F17: 50.42 | G17: (17.69)
A18: 13 | B18: TDI-甲苯-硝酸价差 | C18: (0.72) | D18: (2.13) | E18: (12.00) | F18: (11.88) | G18: (63.46)
A19: 14 | B19: 聚合MDI-苯胺-甲醛价差 | C19: (12.68) | D19: (20.23) | E19: (21.03) | F19: (11.20) | G19: (31.78)
A20: 15 | B20: 纯MDI-苯胺-甲醛价差 | C20: (8.64) | D20: (12.07) | E20: (17.44) | F20: (9.96) | G20: (43.30)
A21: 16 | B21: BDO-电石-甲醛价差 | C21: (2.86) | D21: (2.86) | E21: (1.54) | F21: (1.43) | G21: (21.88)
A22: 17 | B22: DMF-甲醇-氨气价差 | C22: 2.85 | D22: 8.63 | E22: 16.90 | F22: 49.03 | G22: 13.05
A23: 18 | B23: 己二酸-纯苯-硝酸价差 | C23: 1.99 | D23: (3.16) | E23: (14.00) | F23: (7.89) | G23: (39.00)
A24: 19 | B24: 环氧乙烷-乙烯价差 | C24: (7.76) | D24: (4.15) | E24: (0.73) | F24: 2.53 | G24: (31.35)
A25: 20 | B25: 环氧丙烷-丙烯-液氯价差 | C25: (1.29) | D25: 4.20 | E25: (12.94) | F25: 37.36 | G25: (22.13)
A26: 21 | B26: 硬泡聚醚-环氧丙烷价差 | C26: 2.23 | D26: 2.62 | E26: 8.71 | F26: (6.63) | G26: 7.65
A27: 22 | B27: 氨纶-PTME-纯MDI-DMF价差 | C27: 0.41 | D27: 0.32 | E27: 3.89 | F27: (1.72) | G27: 12.37
A28: 23 | B28: 粘胶长丝-溶解浆价差 | C28: 0.00 | D28: 0.00 | E28: 0.71 | F28: 2.52 | G28: 6.63
A29: 24 | B29: 粘胶短纤-溶解浆价差 | C29: 7.30 | D29: 1.15 | E29: (2.86) | F29: 10.53 | G29: (32.81)
A30: 25 | B30: 涤纶短丝-PTA-乙二醇价差 | C30: 21.88 | D30: 37.58 | E30: 21.19 | F30: 15.40 | G30: (9.49)
A31: 26 | B31: 涤纶POY-PTA-乙二醇价差 | C31: 12.28 | D31: 7.32 | E31: 2.27 | F31: 25.83 | G31: (25.64)
A32: 27 | B32: 腈纶短纤-丙烯腈价差 | C32: (2.60) | D32: (8.84) | E32: (11.01) | F32: (17.08) | G32: 22.21
A33: 28 | B33: 尼龙6-己内酰胺价差 | C33: 29.06 | D33: 15.11 | E33: 24.94 | F33: 1.43 | G33: (26.44)
A34: 29 | B34: 尼龙66-己二酸价差 | C34: (0.48) | D34: (3.14) | E34: (5.38) | F34: (17.59) | G34: (48.03)
A35: 30 | B35: 双酚A-苯酚-丙酮价差 | C35: 22.50 | D35: 15.61 | E35: 2.93 | F35: (41.66) | G35: (60.19)
A36: 31 | B36: PVA-醋酸乙烯价差 | C36: (24.26) | D36: (32.46) | E36: (32.46) | F36: (13.81) | G36: (189.88)
A37: 32 | B37: 甲基环氧硅烷-金属硅-甲醇-盐酸价差 | C37: (1.91) | D37: (2.02) | E37: (3.05) | F37: 42.88 | G37: (35.27)
A38: 33 | B38: 金红石-钛精矿-浓硫酸价差 | C38: 0.00 | D38: (0.20) | E38: 3.20 | F38: 9.39 | G38: 0.81
A39: 34 | B39: 醋酸乙烯-电石-醋酸价差 | C39: 29.32 | D39: 60.39 | E39: 49.37 | F39: (51.45) | G39: (22.13)
A40: 35 | B40: 醋酸-甲醇价差 | C40: (3.26) | D40: (3.92) | E40: 4.65 | F40: 60.19 | G40: (14.45)
A41: 36 | B41: 季戊四醇-甲醛-烧碱价差 | C41: (7.18) | D41: (10.98) | E41: (14.18) | F41: (17.10) | G41: (14.88)
A42: 37 | B42: 国内汽油-阿曼原油 | C42: (1.70) | D42: (6.82) | E42: (7.52) | F42: (6.51) | G42: (13.78)
A43: 38 | B43: 国内柴油-阿曼原油 | C43: (2.21) | D43: (8.73) | E43: (9.75) | F43: (8.35) | G43: (15.99)
A44: 39 | B44: 国内航天煤油-阿曼原油 | C44: (4.39) | D44: (16.29) | E44: (17.09) | F44: (22.15) | G44: (8.83)
A45: 40 | B45: 乙烯-石脑油 | C45: (25.53) | D45: (3.05) | E45: 27.62 | F45: (26.27) | G45: (125.19)
A46: 41 | B46: PP-石脑油 | C46: (2.89) | D46: (6.00) | E46: (7.84) | F46: (34.17) | G46: (65.84)
A47: 42 | B47: LDPE-石脑油 | C47: (4.46) | D47: (9.09) | E47: (11.76) | F47: (36.71) | G47: (69.88)
A48: 43 | B48: HDPE-石脑油 | C48: 16.28 | D48: 17.65 | E48: 2.56 | F48: (35.90) | G48: (71.14)

Sheet 价格变化总表
D1: 返回首页
A2: 化工产品价格跟踪
A3: 分类 | B3: 产品名称 | C3: 最新价格(元/吨) | D3: 涨跌幅（%） | I3: 均价（元/吨） | R3: 更新日期
D4: 一周 | E4: 两周 | F4: 一月 | G4: 三月 | H4: 一年
A5: 涨跌情况统计 | B5: 上涨 | D5: =COUNTIF(D8:D169,">0") -> 65 | E5: =COUNTIF(E8:E169,">0") -> 69 | F5: 70 | G5: 74 | H5: 15
B6: 持平 | D6: =COUNTIF(D8:D169,"=0") -> 75 | E6: =COUNTIF(E8:E169,"=0") -> 64 | F6: 40 | G6: 25 | H6: 12
B7: 下跌 | D7: =COUNTIF(D8:D169,"<0") -> 22 | E7: =COUNTIF(E8:E169,"<0") -> 29 | F7: 52 | G7: 63 | H7: 135 | I7: 2007 | J7: 2008 | K7: 2009 | L7: 2010 | M7: 2011 | N7: 2012 | O7: 2013 | P7: 2014 | Q7: 2014-2013价差
A8: 石油化工 | B8: WTI原油 | C8: 58.13 | D8: 4.27 | E8: 3.25 | F8: 3.18 | G8: 1.22 | H8: (18.26)
B9: 布伦特原油 | C9: 64.40 | D9: 5.90 | E9: 5.66 | F9: 7.28 | G9: (1.23) | H9: (18.89)
B10: 阿曼原油 | C10: 63.65 | D10: 2.50 | E10: 10.87 | F10: 7.43 | G10: 1.31 | H10: (17.96)
B11: 国际汽油 | C11: 80.45 | D11: 7.93 | E11: 17.38 | F11: 15.64 | G11: 14.60 | H11: (10.70)
B12: 国内汽油 | C12: 7500.00 | D12: 0.00 | E12: 0.00 | F12: (1.25) | G12: (1.90) | H12: (14.33)
B13: 国际柴油 | C13: 79.13 | D13: 2.31 | E13: 5.65 | F13: 6.83 | G13: 3.24 | H13: (14.07)
B14: 国内柴油 | C14: 6515.00 | D14: 0.00 | E14: 0.00 | F14: (1.51) | G14: (2.18) | H14: (15.50)
B15: 国内航空油 | C15: 4892.00 | D15: 0.00 | E15: 0.00 | F15: (1.59) | G15: (5.80) | H15: (13.12)
B16: 国际石脑油 | C16: 56.72 | D16: 6.94 | E16: 12.29 | F16: 12.32 | G16: 3.24 | H16: (24.62)
B17: 国内石脑油 | C17: 6750.00 | D17: 1.05 | E17: 2.27 | F17: 3.05 | G17: 14.80 | H17: 46.10
B18: 液化气 | C18: 4180.00 | D18: 14.52 | E18: 17.75 | F18: 24.78 | G18: 10.58 | H18: (24.00)
B19: 国际乙烯 | C19: 840.00 | D19: 6.33 | E19: 3.70 | F19: 0.00 | G19: 20.00 | H19: (25.66)
B20: 国际丙烯 | C20: 930.00 | D20: 2.20 | E20: 1.64 | F20: 0.54 | G20: 6.90 | H20: (17.70)
B21: 国内丙烯 | C21: 8050.00 | D21: 3.87 | E21: 3.87 | F21: 7.33 | G21: 5.23 | H21: (16.15)
B22: 国际纯苯 | C22: 719.33 | D22: 2.86 | E22: 4.71 | F22: 8.77 | G22: 12.75 | H22: (14.50)
B23: 国内纯苯 | C23: 5915.00 | D23: 2.34 | E23: 5.25 | F23: 10.56 | G23: 22.21 | H23: (14.58)
B24: 甲苯 | C24: 6500.00 | D24: 4.00 | E24: 4.00 | F24: 16.07 | G24: 25.00 | H24: (7.54)
B25: 二甲苯 | C25: 6950.00 | D25: 3.89 | E25: 4.51 | F25: 16.12 | G25: 25.79 | H25: (1.42)
B26: FOB苯乙烯 | C26: 992.00 | D26: (1.54) | E26: (2.98) | F26: 1.69 | G26: (3.03) | H26: (29.14)
B27: CFR苯乙烯 | C27: 1032.00 | D27: (1.48) | E27: (2.87) | F27: 1.62 | G27: (2.92) | H27: (28.23)
A28: 化肥 农药 | B28: 天然气 | C28: 2.55 | D28: (0.24) | E28: 4.56 | F28: 14.79 | G28: 16.47 | H28: (13.19)
B29: 合成氨 | C29: 3200.00 | D29: 1.59 | E29: 1.59 | F29: 0.00 | G29: (0.93) | H29: (13.75)
B30: 国际尿素 | C30: 230.00 | D30: 0.00 | E30: (2.13) | F30: (4.96) | G30: (12.55) | H30: (16.36)
B31: 国内尿素 | C31: 1800.00 | D31: (8.16) | E31: 2.27 | F31: (0.55) | G31: (5.26) | H31: (10.89)
B32: 三聚氰胺 | C32: 6000.00 | D32: 0.00 | E32: 0.00 | F32: 1.69 | G32: 3.45 | H32: (33.33)
B33: 氯化铵（农湿） | C33: 620.00 | D33: (1.59) | E33: (1.59) | F33: (1.59) | G33: 6.90 | H33: 24.00
B34: 盐湖氯化钾（95%） | C34: 2250.00 | D34: 0.00 | E34: 0.00 | F34: 0.00 | G34: (4.26) | H34: (4.26)
B35: 罗布泊硫酸钾（50%） | C35: 3100.00 | D35: 0.00 | E35: 0.00 | F35: 0.00 | G35: 0.00 | H35: 3.33
B36: 国内磷矿石 | C36: 410.00 | D36: 0.00 | E36: 0.00 | F36: 0.00 | G36: (8.89) | H36: (8.89)
B37: 国际磷矿石 | C37: 125.00 | D37: 0.00 | E37: 0.00 | F37: 0.00 | G37: (8.76) | H37: (4.94)
B38: 磷酸一铵（55%） | C38: 2050.00 | D38: (2.38) | E38: (2.38) | F38: (2.38) | G38: (2.38) | H38: (6.82)
B39: 磷酸二铵（64%） | C39: 2425.00 | D39: 0.00 | E39: 0.00 | F39: 0.00 | G39: (6.73) | H39: (6.37)
B40: 国际磷酸二铵 | C40: 327.00 | D40: 0.00 | E40: 0.00 | F40: 0.00 | G40: (6.97) | H40: (25.34)
B41: 国际硫磺 | C41: 50.00 | D41: (9.09) | E41: (16.67) | F41: (28.57) | G41: (44.44) | H41: (56.52)
B42: 国内硫磺 | C42: 620.00 | D42: (4.62) | E42: (8.82) | F42: (13.89) | G42: (35.42) | H42: (53.73)
B43: 氯基复合肥（45%） | C43: 2000.00 | D43: 0.00 | E43: 0.00 | F43: (4.76) | G43: (4.76) | H43: (4.76)
B44: 硫基复合肥（45%） | C44: 2400.00 | D44: 0.00 | E44: 0.00 | F44: 0.00 | G44: 0.00 | H44: 0.00
B45: 硫酸（98%） | C45: 260.00 | D45: 0.00 | E45: 0.00 | F45: (7.14) | G45: (39.53) | H45: (55.93)
B46: 磷酸（工业85%） | C46: 4700.00 | D46: 3.30 | E46: 3.30 | F46: (4.08) | G46: 2.17 | H46: 9.30
B47: 磷酸（食品级） | C47: 4750.00 | D47: 3.26 | E47: 3.26 | F47: (5.00) | G47: 1.06 | H47: 1.06
B48: 黄磷 | C48: 18800.00 | D48: 2.73 | E48: 8.05 | F48: 26.17 | G48: 26.17 | H48: 26.17
B49: 五氧化二磷折纯 | C49: 1073.00 | D49: 0.00 | E49: 0.00 | F49: 0.00 | G49: (10.06) | H49: (13.65)
B50: 三聚磷酸钠 | C50: 6500.00 | D50: 0.00 | E50: 0.00 | F50: 0.00 | G50: 1.56 | H50: 8.33
B51: 纯吡啶 | C51: 19500.00 | D51: 0.00 | E51: 0.00 | F51: 0.00 | G51: 0.00 | H51: (9.30)
B52: 百草枯 | C52: 16500.00 | D52: 0.00 | E52: 0.00 | F52: 0.00 | G52: 0.00 | H52: (15.38)
B53: 草甘膦 | C53: 25000.00 | D53: 0.00 | E53: 0.00 | F53: 0.00 | G53: 4.17 | H53: (10.71)
A54: 氯碱 纯碱 民爆 | B54: 液氯 | C54: 150.50 | D54: 0.00 | E54: 0.00 | F54: 0.00 | G54: 0.00 | H54: 0.00
B55: 原盐 | C55: 203.00 | D55: 0.00 | E55: 0.00 | F55: 10.93 | G55: 16.00 | H55: 6.01
B56: 烧碱32%离子膜 | C56: 920.00 | D56: 14.29 | E56: 26.03 | F56: 28.67 | G56: 26.37 | H56: (9.80)
B57: 烧碱30%隔膜 | C57: 550.00 | D57: 0.00 | E57: 0.00 | F57: 0.00 | G57: 0.00 | H57: 0.00
B58: 电石 | C58: 3226.00 | D58: 2.45 | E58: 2.45 | F58: (0.80) | G58: 8.15 | H58: (11.35)
B59: PVC（CFR 东南亚） | C59: 870.00 | D59: (1.14) | E59: (1.14) | F59: (1.14) | G59: 0.00 | H59: (7.45)
B60: PVC（电石法） | C60: 6725.00 | D60: 0.90 | E60: 1.05 | F60: (0.99) | G60: (0.93) | H60: (2.00)
B61: PVC （乙烯法） | C61: 7100.00 | D61: 0.17 | E61: 0.17 | F61: 1.24 | G61: 2.90 | H61: (1.77)
B62: 盐酸（31%） | C62: 250.00 | D62: 0.00 | E62: 0.00 | F62: 0.00 | G62: 0.00 | H62: 0.00
B63: 轻质纯碱 | C63: 1675.00 | D63: 0.00 | E63: 0.00 | F63: 4.69 | G63: (1.47) | H63: (7.71)
B64: 重质纯碱 | C64: 1875.00 | D64: 0.00 | E64: 0.00 | F64: 4.17 | G64: (2.60) | H64: (2.60)
B65: 硝酸 | C65: 1700.00 | D65: 0.00 | E65: 0.00 | F65: 0.00 | G65: 0.00 | H65: 6.25
B66: 硝酸铵 | C66: 1850.00 | D66: 0.00 | E66: 0.00 | F66: 0.00 | G66: 0.00 | H66: (5.13)
A67: 聚氨酯 | B67: 苯胺 | C67: 7700.00 | D67: 11.59 | E67: 22.22 | F67: 24.19 | G67: 27.27 | H67: (11.49)
B68: TDI | C68: 12550.00 | D68: 0.80 | E68: 0.00 | F68: (3.09) | G68: (1.18) | H68: (49.29)
B69: 聚合MDI（华东） | C69: 12650.00 | D69: (1.94) | E69: (3.44) | F69: (3.44) | G69: 4.55 | H69: (22.87)
B70: 纯MDI（华东） | C70: 17600.00 | D70: (2.22) | E70: (2.22) | F70: (6.13) | G70: 0.57 | H70: (34.81)
B71: 万华聚合MDI（挂牌） | C71: 15500.00 | D71: 0.00 | E71: 0.00 | F71: 3.33 | G71: 6.90 | H71: (8.82)
B72: 万华纯MDI（挂牌） | C72: 21700.00 | D72: 0.00 | E72: 0.00 | F72: 4.83 | G72: (8.44) | H72: (30.00)
B73: 1,4-丁二醇（BDO) | C73: 8800.00 | D73: 0.00 | E73: 0.00 | F73: 0.00 | G73: 2.33 | H73: (18.14)
B74: DMF | C74: 5200.00 | D74: 2.46 | E74: 5.58 | F74: 8.90 | G74: 12.43 | H74: (16.47)
B75: PTMEG | C75: 15000.00 | D75: 0.00 | E75: 0.00 | F75: (3.23) | G75: (10.18) | H75: (25.00)
B76: 己二酸 | C76: 8450.00 | D76: 1.81 | E76: 1.81 | F76: 0.60 | G76: 7.99 | H76: (20.66)
B77: 丁酮 | C77: 9600.00 | D77: 3.78 | E77: 17.07 | F77: 44.91 | G77: 56.10 | H77: 14.63
B78: 环己酮 | C78: 9250.00 | D78: 5.71 | E78: 6.32 | F78: 9.47 | G78: 11.45 | H78: (31.48)
B79: 环氧乙烷 | C79: 8000.00 | D79: 0.00 | E79: 0.00 | F79: 0.00 | G79: 14.29 | H79: (26.61)
B80: 环氧丙烷 | C80: 10650.00 | D80: 1.91 | E80: 3.90 | F80: (0.93) | G80: 14.52 | H80: (18.08)
B81: 软泡聚醚 | C81: 11200.00 | D81: 4.19 | E81: 6.16 | F81: 2.28 | G81: 17.28 | H81: (16.42)
B82: 硬泡聚醚 | C82: 10200.00 | D82: 2.00 | E82: 3.55 | F82: 1.49 | G82: 7.94 | H82: (12.45)
A83: 聚酯 化纤 | B83: PX（CFR中国） | C83: 782.50 | D83: 0.11 | E83: 0.11 | F83: (1.70) | G83: (3.95) | H83: (42.95)
B84: PTA | C84: 5120.00 | D84: 0.00 | E84: (2.66) | F84: (2.10) | G84: (13.66) | H84: (35.19)
B85: 乙二醇 | C85: 5108.00 | D85: 6.24 | E85: 10.63 | F85: 13.33 | G85: 14.89 | H85: (29.74)
B86: PET切片 | C86: 6950.00 | D86: 2.96 | E86: 2.96 | F86: 0.72 | G86: (2.80) | H86: (32.20)
B87: 氨纶40D | C87: 30000.00 | D87: 0.00 | E87: 0.00 | F87: 0.00 | G87: (4.76) | H87: (11.76)
B88: 己内酰胺 | C88: 12800.00 | D88: 2.40 | E88: 4.92 | F88: 4.92 | G88: 8.02 | H88: (29.20)
B89: 丙烯腈 | C89: 12217.00 | D89: 0.83 | E89: 1.24 | F89: 2.09 | G89: (12.74) | H89: (36.37)
B90: 粘胶长丝 | C90: 37800.00 | D90: 0.00 | E90: 0.00 | F90: 0.00 | G90: 0.00 | H90: 0.00
B91: 粘胶短纤 | C91: 10900.00 | D91: 2.83 | E91: 0.46 | F91: (3.11) | G91: (3.11) | H91: (27.33)
B92: 涤纶短丝 | C92: 7800.00 | D92: 5.41 | E92: 6.85 | F92: 5.41 | G92: (3.11) | H92: (29.73)
B93: 涤纶POY | C93: 7950.00 | D93: 3.92 | E93: 2.19 | F93: 1.92 | G93: (1.24) | H93: (32.05)
B94: 涤纶FDY | C94: 7950.00 | D94: 2.58 | E94: 3.25 | F94: 1.27 | G94: (4.22) | H94: (32.05)
B95: 海利得涤纶工业丝（500D/96F） | C95: 11000.00 | D95: 0.00 | E95: 0.00 | F95: 0.00 | G95: 0.00 | H95: 0.00
B96: 古纤道涤纶工业丝（500D/97F） | C96: 11800.00 | D96: 0.00 | E96: 0.00 | F96: 0.00 | G96: 0.00 | H96: 0.00
B97: 海利得涤纶工业丝（1000D/192F） | C97: 10000.00 | D97: 0.00 | E97: 0.00 | F97: 0.00 | G97: 0.00 | H97: 0.00
B98: 锦纶POY | C98: 15250.00 | D98: 0.00 | E98: 0.00 | F98: (1.61) | G98: 0.00 | H98: (30.52)
B99: 锦纶DTY | C99: 18250.00 | D99: 0.55 | E99: 0.55 | F99: 0.00 | G99: 4.29 | H99: (27.00)
B100: 锦纶FDY | C100: 16750.00 | D100: 0.00 | E100: 0.00 | F100: (1.76) | G100: 3.08 | H100: (29.47)
B101: 腈纶短纤 | C101: 15000.00 | D101: 0.00 | E101: (1.32) | F101: (1.32) | G101: (13.79) | H101: (28.32)
B102: 腈纶毛条 | C102: 16600.00 | D102: 0.00 | E102: 0.00 | F102: 0.00 | G102: (10.27) | H102: (22.43)
B103: PA6 | C103: 14025.00 | D103: 4.08 | E103: 5.65 | F103: 6.25 | G103: 7.47 | H103: (28.99)
B104: PA66 | C104: 23000.00 | D104: 0.00 | E104: (2.13) | F104: (4.17) | G104: (13.21) | H104: (43.90)
B105: 棉花CCIndex(328) | C105: 13047.00 | D105: 0.15 | E105: 0.83 | F105: (3.77) | G105: (7.83) | H105: (20.16)
B106: 溶解浆 | C106: 5900.00 | D106: 0.00 | E106: 0.00 | F106: (3.28) | G106: (10.61) | H106: (23.08)
B107: 棉浆 | C107: 5700.00 | D107: 0.00 | E107: 0.00 | F107: (5.00) | G107: (10.94) | H107: (20.28)
B108: 木浆（国际） | C108: 700.00 | D108: 0.00 | E108: 0.00 | F108: (10.26) | G108: (15.66) | H108: (24.73)
A109: 塑膜 | B109: HDPE(高密度聚乙烯) | C109: 8750.00 | D109: 4.17 | E109: 5.42 | F109: 2.94 | G109: (2.78) | H109: (24.24)
B110: LDPE(低密度聚乙烯) | C110: 8250.00 | D110: 0.00 | E110: 0.00 | F110: 0.00 | G110: 0.00 | H110: (14.06)
B111: LLDPE(线性低密度聚乙烯) | C111: 7800.00 | D111: 5.41 | E111: 6.85 | F111: 3.31 | G111: 0.00 | H111: (18.75)
B112: VCM(氯乙烯) | C112: 750.00 | D112: 0.00 | E112: 0.00 | F112: 0.00 | G112: 2.74 | H112: 5.63
B113: EDC(二氯乙烷：制氯乙烯) | C113: 240.00 | D113: (14.29) | E113: (14.29) | F113: (20.00) | G113: (38.46) | H113: (33.33)
B114: PP(聚丙烯) | C114: 9100.00 | D114: 0.00 | E114: 0.00 | F114: 0.00 | G114: (3.70) | H114: (20.87)
B115: GPPS(通用级聚苯乙烯) | C115: 10400.00 | D115: 0.97 | E115: 4.52 | F115: 8.05 | G115: 3.48 | H115: (19.07)
B116: HIPS(耐冲击性聚苯乙烯) | C116: 11350.00 | D116: 2.25 | E116: 4.61 | F116: 5.58 | G116: (0.22) | H116: (15.77)
B117: ABS(丙烯腈-丁二烯-苯乙烯共聚物) | C117: 12750.00 | D117: 2.00 | E117: 5.15 | F117: 9.44 | G117: 3.95 | H117: (16.53)
B118: BOPP(双向拉伸聚丙烯薄膜) | C118: 11700.00 | D118: 0.00 | E118: 0.00 | F118: 0.00 | G118: 2.18 | H118: (8.59)
B119: BOPET(双向拉伸聚酯薄膜) | C119: 8700.00 | D119: 0.00 | E119: 0.00 | F119: 0.00 | G119: 0.00 | H119: 0.00
B120: CPP(流延聚丙烯薄膜) | C120: 12800.00 | D120: 0.00 | E120: 0.00 | F120: 0.00 | G120: 0.00 | H120: 0.00
A121: 橡胶 | B121: 国际丁二烯 | C121: 1230.00 | D121: (1.60) | E121: (3.15) | F121: 6.96 | G121: 12.84 | H121: (19.08)
B122: 丁二烯（华东） | C122: 11800.00 | D122: 11.32 | E122: 11.32 | F122: 15.69 | G122: 37.21 | H122: (7.09)
B123: 天然橡胶 | C123: 11100.00 | D123: 1.83 | E123: 1.83 | F123: 6.73 | G123: (3.48) | H123: 4.72
B124: 丁苯橡胶 | C124: 10925.00 | D124: 1.63 | E124: 1.63 | F124: 3.80 | G124: 4.05 | H124: (15.64)
B125: 丁基橡胶 | C125: 16750.00 | D125: 0.00 | E125: 2.45 | F125: 2.45 | G125: (1.47) | H125: (22.09)
B126: 顺丁橡胶 | C126: 12150.00 | D126: 7.52 | E126: 7.05 | F126: 13.55 | G126: 8.97 | H126: (17.35)
B127: 丁腈橡胶 | C127: 21500.00 | D127: 0.00 | E127: 0.00 | F127: 0.00 | G127: 0.00 | H127: (8.28)
B128: SBS干胶 | C128: 13100.00 | D128: 0.00 | E128: 0.00 | F128: 0.00 | G128: 0.00 | H128: (20.61)
B129: 乙丙橡胶 | C129: 22000.00 | D129: 0.00 | E129: 0.00 | F129: 0.00 | G129: 0.00 | H129: 0.00
A130: 氟硅 化工 | B130: 萤石粉 | C130: 2800.00 | D130: (1.75) | E130: (6.67) | F130: (8.20) | G130: (8.20) | H130: 10.89
B131: 无水氢氟酸 | C131: 9350.00 | D131: 0.00 | E131: 0.00 | F131: (10.95) | G131: (15.00) | H131: (6.03)
B132: 二氯甲烷 | C132: 2850.00 | D132: (3.39) | E132: (3.39) | F132: (11.21) | G132: (15.56) | H132: (37.36)
B133: 三氯乙烯 | C133: 4900.00 | D133: 0.00 | E133: 0.00 | F133: 1.03 | G133: 4.26 | H133: (10.91)
B134: R22 | C134: 13500.00 | D134: 0.00 | E134: (6.90) | F134: (12.90) | G134: (21.51) | H134: (38.64)
B135: R134a | C135: 24500.00 | D135: 0.00 | E135: (2.00) | F135: (3.92) | G135: (12.50) | H135: (18.33)
B136: 氟化铝 | C136: 10250.00 | D136: 0.00 | E136: (0.97) | F136: (2.84) | G136: 4.59 | H136: 0.00
B137: 冰晶石 | C137: 5900.00 | D137: 0.00 | E137: 0.00 | F137: (7.81) | G137: 7.27 | H137: 3.96
B138: 甲基环硅氧烷 | C138: 20700.00 | D138: (1.43) | E138: (1.43) | F138: (1.43) | G138: 27.78 | H138: (31.00)
B139: 金属硅 | C139: 12325.00 | D139: (0.80) | E139: (0.80) | F139: 4.23 | G139: (1.20) | H139: (3.33)
A140: 有机 原料 | B140: 丙烯酸 | C140: 7312.50 | D140: (1.71) | E140: (2.50) | F140: (2.50) | G140: 1.28 | H140: (19.64)
B141: 丙烯酸乙酯 | C141: 10050.00 | D141: 0.00 | E141: 0.00 | F141: (6.51) | G141: (3.83) | H141: (14.10)
B142: 丙烯酸丁酯 | C142: 9000.00 | D142: 0.00 | E142: 0.00 | F142: (10.00) | G142: 6.51 | H142: (17.05)
B143: 丙烯酸异辛酯 | C143: 10500.00 | D143: 5.53 | E143: 5.53 | F143: (1.87) | G143: 6.06 | H143: (14.63)
B144: 环氧氯丙烷 | C144: 15000.00 | D144: 17.19 | E144: 17.19 | F144: 25.00 | G144: 1.35 | H144: 33.33
B145: 苯酚 | C145: 8750.00 | D145: 7.36 | E145: 10.06 | F145: 16.67 | G145: 17.06 | H145: (21.52)
B146: 丙酮 | C146: 5000.00 | D146: 16.96 | E146: 22.70 | F146: 32.45 | G146: 61.29 | H146: (6.54)
B147: 双酚A | C147: 10400.00 | D147: 10.64 | E147: 12.43 | F147: 16.20 | G147: 5.05 | H147: (30.20)
B148: PVA(聚乙烯醇) | C148: 13550.00 | D148: 0.00 | E148: 0.00 | F148: 0.00 | G148: 0.00 | H148: (1.09)
B149: 甲醇 | C149: 2160.00 | D149: 2.37 | E149: 3.85 | F149: 4.35 | G149: (8.47) | H149: (36.28)
B150: 醋酸 | C150: 3450.00 | D150: (1.43) | E150: (1.43) | F150: 4.55 | G150: 27.78 | H150: (23.33)
B151: 醋酸酐 | C151: 6000.00 | D151: 0.00 | E151: (1.64) | F151: (14.29) | G151: 20.00 | H151: (18.92)
B152: 乙醇 | C152: 5300.00 | D152: (0.93) | E152: (1.85) | F152: (2.75) | G152: (2.75) | H152: (7.02)
B153: 二乙二醇 | C153: 4852.50 | D153: 4.29 | E153: 5.63 | F153: 9.07 | G153: 13.19 | H153: (36.45)
B154: 季戊四醇 | C154: 10000.00 | D154: 0.00 | E154: 0.00 | F154: (1.96) | G154: (4.76) | H154: (13.04)
B155: DOP(通用型增塑剂) | C155: 8416.67 | D155: 0.00 | E155: 0.00 | F155: 0.00 | G155: 0.00 | H155: (11.93)
B156: 正丁醇 | C156: 7006.25 | D156: (0.05) | E156: 0.81 | F156: 7.29 | G156: 15.61 | H156: (12.53)
B157: 辛醇 | C157: 7675.00 | D157: 1.05 | E157: 0.99 | F157: 4.56 | G157: 9.45 | H157: (17.91)
B158: 苯酐 | C158: 6850.00 | D158: 6.70 | E158: 15.71 | F158: 18.10 | G158: 21.02 | H158: (8.67)
A159: 精细 化工 | B159: 钛精矿 | C159: 1240.00 | D159: 0.00 | E159: 0.81 | F159: 0.81 | G159: 3.33 | H159: (0.80)
B160: 锐钛型 | C160: 12700.00 | D160: 0.00 | E160: 0.00 | F160: 0.00 | G160: 0.00 | H160: (7.64)
B161: 金红石 | C161: 15400.00 | D161: 0.00 | E161: 0.00 | F161: 1.99 | G161: 2.67 | H161: (7.51)
B162: 二甲醚 | C162: 3140.00 | D162: 0.00 | E162: 0.00 | F162: 3.29 | G162: 2.61 | H162: (31.29)
B163: 甲醛 | C163: 1550.00 | D163: 10.71 | E163: 10.71 | F163: 10.71 | G163: 10.71 | H163: (11.43)
B164: 醋酸乙烯 | C164: 6700.00 | D164: 3.08 | E164: 4.69 | F164: 4.69 | G164: 1.52 | H164: (17.28)
B165: 煤焦油 | C165: 2900.00 | D165: 5.45 | E165: 5.45 | F165: 1.75 | G165: (13.43) | H165: (18.31)
B166: 电池级碳酸锂 | C166: 60000.00 | D166: (0.83) | E166: (2.44) | F166: (6.25) | G166: (20.00) | H166: (27.71)
B167: 工业级碳酸锂 | C167: 51500.00 | D167: 0.00 | E167: (3.74) | F167: (9.65) | G167: (22.56) | H167: (29.93)
B168: 炭黑 | C168: 5600.00 | D168: 0.00 | E168: (3.45) | F168: (6.67) | G168: (24.32) | H168: (27.27)
B169: 焦炭 | C169: 1725.00 | D169: 0.00 | E169: 0.00 | F169: (10.39) | G169: (10.39) | H169: (25.00)

Sheet 价差总览
A1: 一周均差价 | B1: =AVERAGE(B$10:B$16) -> 6918.11 | E1: 返回首页 | I1: 单季价差均值 | J1: 2019-07-01 | K1: 2019-04-01 | L1: 2019-01-01 | M1: 2018-10-01 | N1: 2018-07-01 | O1: 2018-04-01 | P1: 2018-01-01 | Q1: 2017-10-01 | R1: 2017-07-01 | S1: 2017-04-01 | T1: 2017-01-01 | U1: 2016-10-01 | V1: 2016-07-01 | W1: 2016-04-01 | X1: 2016-01-01 | Y1: 2015-10-01 | Z1: 2015-07-01 | AA1: 2015-04-01 | AB1: 2015-01-01 | AC1: 2014-10-01 | AD1: 2014-07-01 | AE1: 2014-04-01 | AF1: 2014-01-01 | AG1: 2013-10-01 | AH1: 2013-07-01 | AI1: 2013-04-01 | AJ1: 2013-01-01 | AK1: 2012-10-01 | AL1: 2012-07-01 | AM1: 2012-04-01 | AN1: 2012-01-01 | AO1: 2011-10-01 | AP1: 2011-07-01 | AQ1: 2011-04-01 | AR1: 2011-01-01 | AS1: 2010-10-01 | AT1: 2010-07-01 | AU1: 2010-04-01 | AV1: 2010-01-01 | AW1: 2009-10-01 | AX1: 2009-07-01 | AY1: 2009-04-01 | AZ1: 2009-01-01 | BA1: 2008-10-01 | BB1: 2008-07-01 | BC1: 2008-04-01 | BD1: 2008-01-01 | BE1: 2007-10-01 | BF1: 2007-07-01 | BG1: 2007-04-01 | BH1: 2007-01-01 | BI1: 2006-10-01 | BJ1: 2006-07-01 | BK1: 2006-04-01 | BL1: 2006-01-01
A2: 一月均差价 | B2: =AVERAGE(B$10:B$29) -> 7069.19 | J2: 2019-09-30 | K2: 2019-06-30 | L2: 2019-03-31 | M2: 2018-12-31 | N2: 2018-09-30 | O2: 2018-06-30 | P2: 2018-03-31 | Q2: 2017-12-31 | R2: 2017-09-30 | S2: 2017-06-30 | T2: 2017-03-31 | U2: 2016-12-31 | V2: 2016-09-30 | W2: 2016-06-30 | X2: 2016-03-31 | Y2: 2015-12-31 | Z2: 2015-09-30 | AA2: 2015-06-30 | AB2: 2015-03-31 | AC2: 2014-12-31 | AD2: 2014-09-30 | AE2: 2014-06-30 | AF2: 2014-03-31 | AG2: 2013-12-31 | AH2: 2013-09-30 | AI2: 2013-06-30 | AJ2: 2013-03-31 | AK2: 2012-12-31 | AL2: 2012-09-30 | AM2: 2012-06-30 | AN2: 2012-03-31 | AO2: 2011-12-31 | AP2: 2011-09-30 | AQ2: 2011-06-30 | AR2: 2011-03-31 | AS2: 2010-12-31 | AT2: 2010-09-30 | AU2: 2010-06-30 | AV2: 2010-03-31 | AW2: 2009-12-31 | AX2: 2009-09-30 | AY2: 2009-06-30 | AZ2: 2009-03-31 | BA2: 2008-12-31 | BB2: 2008-09-30 | BC2: 2008-06-30 | BD2: 2008-03-31 | BE2: 2007-12-31 | BF2: 2007-09-30 | BG2: 2007-06-30 | BH2: 2007-03-31 | BI2: 2006-12-31 | BJ2: 2006-09-30 | BK2: 2006-06-30 | BL2: 2006-03-31
A3: 一周涨跌幅 | B3: =IF(B$10=0,(B$11-B$18)/B$18,(B$10-B$17)/B$17) -> -0.72% | I3: 产品 | J3: 2019Q3 | K3: 2019Q2 | L3: 2019Q1 | M3: 2018Q4 | N3: 2018Q3 | O3: 2018Q2 | P3: 2018Q1 | Q3: 2017Q4 | R3: 2017Q3 | S3: 2017Q2 | T3: 2017Q1 | U3: 2016Q4 | V3: 2016Q3 | W3: 2016Q2 | X3: 2016Q1 | Y3: 2015Q4 | Z3: 2015Q3 | AA3: 2015Q2 | AB3: 2015Q1 | AC3: 2014Q4 | AD3: 2014Q3 | AE3: 2014Q2 | AF3: 2014Q1 | AG3: 2013Q4 | AH3: 2013Q3 | AI3: 2013Q2 | AJ3: 2013Q1 | AK3: 2012Q4 | AL3: 2012Q3 | AM3: 2012Q2 | AN3: 2012Q1 | AO3: 2011Q4 | AP3: 2011Q3 | AQ3: 2011Q2 | AR3: 2011Q1 | AS3: 2010Q4 | AT3: 2010Q3 | AU3: 2010Q2 | AV3: 2010Q1 | AW3: 2009Q4 | AX3: 2009Q3 | AY3: 2009Q2 | AZ3: 2009Q1 | BA3: 2008Q4 | BB3: 2008Q3 | BC3: 2008Q2 | BD3: 2008Q1 | BE3: 2007Q4 | BF3: 2007Q3 | BG3: 2007Q2 | BH3: 2007Q1 | BI3: 2006Q4 | BJ3: 2006Q3 | BK3: 2006Q2 | BL3: 2006Q1
A4: 一月涨跌幅 | B4: =IF(B$10=0,(B$11-B$41)/B$41,(B$10-B$40)/B$40) -> -12.00% | I4: 合成氨-无烟煤价差 | J4: 1385.37 | K4: 1511.37 | L4: 1501.00 | M4: 1736.85 | N4: 1701.30 | O4: 1538.85 | P4: 1538.67 | Q4: 1413.59 | R4: 1018.59 | S4: 878.63 | T4: 1153.07 | U4: 840.74 | V4: 531.40 | W4: 482.74 | X4: 629.40 | Y4: 607.31 | Z4: 928.99 | AA4: 766.93 | AB4: 471.39 | AC4: 422.73 | AD4: 493.92 | AE4: -12.60 | AF4: 270.56 | AG4: 279.30 | AH4: 128.65 | AI4: 219.10 | AJ4: 228.33 | AK4: 122.61 | AL4: 354.89 | AM4: 622.53 | AN4: 750.00 | AO4: 578.26 | AP4: 646.74 | AQ4: 434.62 | AR4: 297.78 | AS4: 430.43 | AT4: 12.50 | AU4: -166.48 | AV4: -416.11 | AW4: -550.00 | AX4: -300.54 | AY4: 0.00 | AZ4: -187.78 | BA4: -119.02 | BB4: 735.87 | BC4: 495.60 | BD4: 54.40 | BE4: -264.13 | BF4: -240.76 | BG4: -276.92 | BH4: -429.44 | BI4: -509.24 | BJ4: -394.02 | BK4: -385.71 | BL4: -428.89
A5: 两月涨跌幅 | B5: =IF(B$10=0,(B$11-B$71)/B$71,(B$10-B$70)/B$70) -> -17.47% | I5: 国内尿素-无烟煤价差 | J5: 910.25 | K5: 1006.92 | L5: 963.11 | M5: 1129.46 | N5: 982.83 | O5: 997.47 | P5: 986.00 | Q5: 824.13 | R5: 603.04 | S5: 583.52 | T5: 746.22 | U5: 530.87 | V5: 350.87 | W5: 384.53 | X5: 413.70 | Y5: 521.97 | Z5: 664.46 | AA5: 690.02 | AB5: 603.66 | AC5: 489.56 | AD5: 445.22 | AE5: 209.89 | AF5: 372.33 | AG5: 383.48 | AH5: 403.37 | AI5: 559.45 | AJ5: 637.11 | AK5: 497.39 | AL5: 572.17 | AM5: 827.14 | AN5: 629.45 | AO5: 547.28 | AP5: 744.89 | AQ5: 573.52 | AR5: 479.44 | AS5: 446.20 | AT5: 153.37 | AU5: 97.58 | AV5: 256.44 | AW5: 145.98 | AX5: 20.65 | AY5: 235.49 | AZ5: 285.78 | BA5: 203.21 | BB5: 225.00 | BC5: 225.00 | BD5: 225.00 | BE5: 202.93 | BF5: 45.87 | BG5: 184.95 | BH5: 176.33 | BI5: 30.11 | BJ5: 44.08 | BK5: 415.05 | BL5: 420.00
A6: 三月涨跌幅 | B6: =IF(B$10=0,(B$11-B$101)/B$101,(B$10-B$100)/B$100) -> -11.88% | I6: 三聚氰胺-尿素价差 | J6: 197.43 | K6: 255.52 | L6: 869.36 | M6: 1718.90 | N6: 2629.98 | O6: 2134.26 | P6: 2771.73 | Q6: 3531.72 | R6: 3209.48 | S6: 2449.40 | T6: 3027.64 | U6: 4463.46 | V6: 2800.15 | W6: 2158.42 | X6: 2092.90 | Y6: 1588.23 | Z6: 1272.83 | AA6: 1133.01 | AB6: 1219.47 | AC6: 1642.43 | AD6: 1503.84 | AE6: 2127.00 | AF6: 2932.77 | AG6: 2890.07 | AH6: 2867.10 | AI6: 2396.38 | AJ6: 1599.40 | AK6: 2015.70 | AL6: 1913.76 | AM6: 1484.21 | AN6: 1898.70 | AO6: 2490.38 | AP6: 2479.97 | AQ6: 3741.33 | AR6: 3954.83 | AS6: 5095.05 | AT6: 4334.34 | AU6: 3888.15 | AV6: 3307.24 | AW6: 3328.99 | AX6: 3179.46 | AY6: 2838.65 | AZ6: 1850.76 | BA6: 3415.71 | BB6: 5780.76 | BC6: 5349.20 | BD6: 4674.48 | BE6: 5303.51 | BF6: 3405.63 | BG6: 2853.59 | BH6: 2934.48 | BI6: 3756.66 | BJ6: 3713.36 | BK6: 2446.30 | BL6: 2375.22
A7: 一年涨跌幅 | B7: =IF(B$11=0,(B$12-VLOOKUP(DATE(2015,1,1),A:B,2,FALSE))/VLOOKUP(DATE(2015,1,1),A:B,2,FALSE),(B$11-VLOOKUP(DATE(2015,1,1),A:B,2,FALSE))/VLOOKUP(DATE(2015,1,1),A:B,2,FALSE)) -> -8.84% | I7: 磷酸二铵-磷矿石-液氨-硫磺价差 | J7: 597.01 | K7: 559.34 | L7: 488.46 | M7: 329.11 | N7: 374.74 | O7: 338.91 | P7: 420.60 | Q7: 215.84 | R7: 516.23 | S7: 709.53 | T7: 1052.60 | U7: 817.14 | V7: 867.84 | W7: 1089.58 | X7: 1142.20 | Y7: 1029.97 | Z7: 937.54 | AA7: 1097.66 | AB7: 1232.33 | AC7: 1206.08 | AD7: 934.54 | AE7: 973.78 | AF7: 785.32 | AG7: 903.75 | AH7: 1110.56 | AI7: 1014.86 | AJ7: 988.05 | AK7: 957.35 | AL7: 877.04 | AM7: 719.04 | AN7: 806.29 | AO7: 810.63 | AP7: 840.90 | AQ7: 964.22 | AR7: 1046.62 | AS7: 979.58 | AT7: 1079.96 | AU7: 1109.42 | AV7: 1110.00 | AW7: 875.09 | AX7: 886.90 | AY7: 1072.79 | AZ7: 1303.32 | BA7: 2152.92 | BB7: 979.54 | BC7: 213.74 | BD7: 727.75 | BE7: 680.40 | BF7: 507.99 | BG7: 743.14 | BH7: 835.98 | BI7: 920.66 | BJ7: 951.56 | BK7: 946.25 | BL7: 866.87
A8: 13 | B8: =INDEX('化工产品价格总库（国内）'!1:1048576,1,$A$8+167) -> TDI-甲苯-硝酸价差 | I8: 工业磷酸-黄磷价差 | J8: 73.20 | K8: 407.39 | L8: 418.57 | M8: 168.65 | N8: 418.65 | O8: 725.81 | P8: 422.12 | Q8: 134.74 | R8: 614.59 | S8: 893.85 | T8: 661.67 | U8: 861.35 | V8: 1468.57 | W8: 1355.83 | X8: 1438.44 | Y8: 1452.80 | Z8: 1453.44 | AA8: 1183.15 | AB8: 1099.54 | AC8: 1288.80 | AD8: 1304.22 | AE8: 904.14 | AF8: 912.62 | AG8: 918.80 | AH8: 1114.24 | AI8: 837.64 | AJ8: 753.35 | AK8: 722.11 | AL8: 1030.19 | AM8: 952.71 | AN8: 445.42 | AO8: 465.38 | AP8: 398.96 | AQ8: 703.80 | AR8: 406.12 | AS8: 501.73 | AT8: 332.33 | AU8: 599.91 | AV8: 569.48 | AW8: 422.81 | AX8: 706.05 | AY8: 505.35 | AZ8: 478.74 | BA8: 929.33 | BB8: -713.58 | BC8: -5263.67 | BD8: -4410.12 | BE8: -3701.63 | BF8: -2909.33 | BG8: -2927.86 | BH8: -3038.85 | BI8: -3892.00 | BJ8: -3148.65 | BK8: -3332.95 | BL8: -4352.24
A9: 单位 | B9: =INDEX('化工产品价格总库（国内）'!1:1048576,2,$A$8+167) -> （元/吨） | I9: 黄磷-磷矿石-焦炭价差 | J9: 10383.67 | K9: 7177.83 | L9: 6834.72 | M9: 6428.48 | N9: 6010.25 | O9: 7130.47 | P9: 8091.44 | Q9: 10001.58 | R9: 8610.31 | S9: 8345.45 | T9: 8046.67 | U9: 7194.77 | V9: 6135.52 | W9: 7307.99 | X9: 6968.58 | Y9: 6799.59 | Z9: 6655.01 | AA9: 7511.27 | AB9: 8949.49 | AC9: 8407.08 | AD9: 8351.59 | AE9: 9694.26 | AF9: 9339.30 | AG9: 9154.98 | AH9: 8731.63 | AI9: 8891.90 | AJ9: 10598.89 | AK9: 10430.98 | AL9: 9669.02 | AM9: 10553.85 | AN9: 11767.58 | AO9: 12383.70 | AP9: 10941.85 | AQ9: 10980.77 | AR9: 11338.89 | AS9: 11785.33 | AT9: 10804.35 | AU9: 9852.75 | AV9: 12453.33 | AW9: 9632.61 | AX9: 7872.83 | AY9: 8536.26 | AZ9: 8713.33 | BA9: 10763.04 | BB9: 19239.57 | BC9: 15389.01 | BD9: 12463.74 | BE9: 9915.22 | BF9: 7065.22 | BG9: 7131.87 | BH9: 7533.33 | BI9: 10700.00 | BJ9: 8026.09 | BK9: 8689.01 | BL9: 12433.33
A10: =INDEX('化工产品价格总库（国内）'!A:A,ROW()-7) -> 2019-09-19 | B10: =IF(VLOOKUP($A10,'化工产品价格总库（国内）'!$A$1:$HB$66703,$A$8+167,0),VLOOKUP($A10,'化工产品价格总库（国内）'!$A$1:$HB$66703,$A$8+167,0),B11) -> 6896.54 | I10: 硝酸铵-液氨价差 | J10: 573.85 | K10: 526.75 | L10: 677.60 | M10: 574.57 | N10: 547.48 | O10: 642.13 | P10: 639.20 | Q10: 376.70 | R10: 470.57 | S10: 452.92 | T10: 297.73 | U10: 401.35 | V10: 486.33 | W10: 458.31 | X10: 445.93 | Y10: 472.17 | Z10: 374.59 | AA10: 390.48 | AB10: 513.04 | AC10: 515.47 | AD10: 458.55 | AE10: 628.48 | AF10: 594.76 | AG10: 643.70 | AH10: 676.52 | AI10: 620.20 | AJ10: 599.22 | AK10: 654.11 | AL10: 587.34 | AM10: 801.65 | AN10: 1004.51 | AO10: 1372.17 | AP10: 1368.70 | AQ10: 1059.23 | AR10: 1235.33 | AS10: 1024.78 | AT10: 835.43 | AU10: 1038.68 | AV10: 1048.11 | AW10: 736.52 | AX10: 721.52 | AY10: 960.55 | AZ10: 1074.00 | BA10: 1453.26 | BB10: 1470.00 | BC10: 1227.25 | BD10: 1043.63 | BE10: -1034.35 | BF10: -1043.70 | BG10: -1029.23 | BH10: -968.22 | BI10: -936.30 | BJ10: -982.39 | BK10: -985.71 | BL10: -968.44
A11: =INDEX('化工产品价格总库（国内）'!A:A,ROW()-7) -> 2019-09-18 | B11: =IF(VLOOKUP($A11,'化工产品价格总库（国内）'!$A$1:$HB$66703,$A$8+167,0),VLOOKUP($A11,'化工产品价格总库（国内）'!$A$1:$HB$66703,$A$8+167,0),B12) -> 6986.54 | I11: PVC-电石-盐酸价差 | J11: 1417.74 | K11: 1638.20 | L11: 1430.33 | M11: 1153.47 | N11: 1436.60 | O11: 1500.22 | P11: 1317.86 | Q11: 926.94 | R11: 2171.11 | S11: 1230.11 | T11: 1264.99 | U11: 2205.10 | V11: 1480.84 | W11: 1268.75 | X11: 1083.95 | Y11: 799.77 | Z11: 972.84 | AA11: 1143.23 | AB11: 1002.07 | AC11: 1262.53 | AD11: 968.07 | AE11: 827.39 | AF11: 911.12 | AG11: 1081.63 | AH11: 1431.93 | AI11: 1087.74 | AJ11: 634.40 | AK11: 844.08 | AL11: 676.32 | AM11: 575.48 | AN11: 540.79 | AO11: 537.92 | AP11: 787.53 | AQ11: 1213.43 | AR11: 1379.58 | AS11: 1081.49 | AT11: 1137.03 | AU11: 1360.01 | AV11: 1448.98 | AW11: 1305.67 | AX11: 1502.82 | AY11: 949.56 | AZ11: 826.08 | BA11: 628.81 | BB11: 758.48 | BC11: 1862.71 | BD11: 2418.21 | BE11: 2233.02 | BF11: 2781.13 | BG11: 2891.34 | BH11: 2256.17 | BI11: 2485.27 | BJ11: 3112.80 | BK11: 2512.15 | BL11: 2357.32
A12: =INDEX('化工产品价格总库（国内）'!A:A,ROW()-7) -> 2019-09-17 | B12: =IF(VLOOKUP($A12,'化工产品价格总库（国内）'!$A$1:$HB$66703,$A$8+167,0),VLOOKUP($A12,'化工产品价格总库（国内）'!$A$1:$HB$66703,$A$8+167,0),B13) -> 6841.54 | I12: 轻质纯碱-原盐-动力煤价差 | J12: 1108.55 | K12: 1326.49 | L12: 1346.88 | M12: 1471.49 | N12: 1296.51 | O12: 1489.63 | P12: 1196.00 | Q12: 1713.09 | R12: 1306.43 | S12: 1053.79 | T12: 1432.42 | U12: 1180.58 | V12: 909.70 | W12: 957.92 | X12: 1008.13 | Y12: 871.53 | Z12: 918.89 | AA12: 994.58 | AB12: 970.57 | AC12: 949.99 | AD12: 915.46 | AE12: 855.04 | AF12: 807.64 | AG12: 868.89 | AH12: 645.28 | AI12: 570.50 | AJ12: 559.73 | AK12: 544.20 | AL12: 568.46 | AM12: 632.25 | AN12: 747.59 | AO12: 984.81 | AP12: 1124.00 | AQ12: 1092.54 | AR12: 919.07 | AS12: 1299.61 | AT12: 652.75 | AU12: 684.12 | AV12: 804.61 | AW12: 578.90 | AX12: 471.41 | AY12: 519.78 | AZ12: 615.66 | BA12: 774.37 | BB12: 1194.79 | BC12: 1401.03 | BD12: 1297.56 | BE12: 995.44 | BF12: 1070.02 | BG12: 1067.04 | BH12: 994.16 | BI12: 966.86 | BJ12: 959.74 | BK12: 784.66 | BL12: 748.39
A13: =INDEX('化工产品价格总库（国内）'!A:A,ROW()-7) -> 2019-09-16 | B13: =IF(VLOOKUP($A13,'化工产品价格总库（国内）'!$A$1:$HB$66703,$A$8+167,0),VLOOKUP($A13,'化工产品价格总库（国内）'!$A$1:$HB$66703,$A$8+167,0),B14) -> 6916.54 | I13: PTA-PX价差 | J13: 1027.15 | K13: 1185.13 | L13: 714.06 | M13: 522.20 | N13: 1243.17 | O13: 681.05 | P13: 876.47 | Q13: 784.25 | R13: 838.22 | S13: 305.06 | T13: 1005.75 | U13: 1214.86 | V13: 1065.56 | W13: 1230.71 | X13: 1112.80 | Y13: 1220.51 | Z13: 1059.31 | AA13: 1233.92 | AB13: 1123.49 | AC13: 1423.45 | AD13: 1714.71 | AE13: 1449.76 | AF13: 1436.75 | AG13: 1706.15 | AH13: 1808.18 | AI13: 1933.31 | AJ13: 1852.65 | AK13: 1870.39 | AL13: 1948.67 | AM13: 2172.55 | AN13: 2238.02 | AO13: 2435.45 | AP13: 3104.12 | AQ13: 3487.46 | AR13: 4151.21 | AS13: 3630.85 | AT13: 3169.26 | AU13: 3227.56 | AV13: 3242.16 | AW13: 4293.57 | AX13: 7409.73 | AY13: 7192.91 | AZ13: 5933.17 | BA13: 5330.71 | BB13: 8475.82 | BC13: 8495.33 | BD13: 7547.69 | BE13: 7167.55 | BF13: 8142.61 | BG13: 8596.32 | BH13: 8132.78 | BI13: 8480.33 | BJ13: 10243.48 | BK13: 8511.26 | BL13: 8100.44
A14: =INDEX('化工产品价格总库（国内）'!A:A,ROW()-7) -> 2019-09-15 | B14: =IF(VLOOKUP($A14,'化工产品价格总库（国内）'!$A$1:$HB$66703,$A$8+167,0),VLOOKUP($A14,'化工产品价格总库（国内）'!$A$1:$HB$66703,$A$8+167,0),B15) -> 6928.54 | I14: 乙二醇-乙烯价差 | J14: 1983.16 | K14: 1914.82 | L14: 2221.64 | M14: 3556.26 | N14: 3718.09 | O14: 3865.60 | P14: 4105.16 | Q14: 3918.84 | R14: 4175.79 | S14: 3267.53 | T14: 4220.22 | U14: 3228.41 | V14: 2041.88 | W14: 1924.80 | X14: 2001.66 | Y14: 1867.50 | Z14: 3327.67 | AA14: 3326.57 | AB14: 3105.56 | AC14: 2591.85 | AD14: 3011.12 | AE14: 2802.63 | AF14: 2983.73 | AG14: 3614.53 | AH14: 4117.54 | AI14: 3684.00 | AJ14: 4455.02 | AK14: 4443.66 | AL14: 4208.84 | AM14: 3725.05 | AN14: 4548.35 | AO14: 5558.49 | AP14: 6280.39 | AQ14: 5136.11 | AR14: 5841.07 | AS14: 4909.01 | AT14: 3487.39 | AU14: 3409.21 | AV14: 4155.87 | AW14: 4291.70 | AX14: 5827.39 | AY14: 4478.74 | AZ14: 4149.44 | BA14: 4377.17 | BB14: 7586.79 | BC14: 9118.57 | BD14: 10407.69 | BE14: 13406.30 | BF14: 10151.96 | BG14: 8610.82 | BH14: 8182.56 | BI14: 8023.80 | BJ14: 8939.13 | BK14: 8275.55 | BL14: 8316.11
A15: =INDEX('化工产品价格总库（国内）'!A:A,ROW()-7) -> 2019-09-14 | B15: =IF(VLOOKUP($A15,'化工产品价格总库（国内）'!$A$1:$HB$66703,$A$8+167,0),VLOOKUP($A15,'化工产品价格总库（国内）'!$A$1:$HB$66703,$A$8+167,0),B16) -> 6928.54 | I15: PET-PTA-MEG价差 | J15: 720.27 | K15: 500.62 | L15: 460.86 | M15: 504.26 | N15: 356.35 | O15: 591.51 | P15: 438.80 | Q15: 560.31 | R15: 447.16 | S15: 458.88 | T15: 357.63 | U15: 479.78 | V15: 523.30 | W15: 408.11 | X15: 485.40 | Y15: 459.95 | Z15: 407.55 | AA15: 243.98 | AB15: 392.02 | AC15: 548.85 | AD15: 421.54 | AE15: 334.98 | AF15: 451.25 | AG15: 267.51 | AH15: 286.66 | AI15: 350.17 | AJ15: 409.63 | AK15: 288.15 | AL15: 395.31 | AM15: 466.94 | AN15: 552.38 | AO15: 579.56 | AP15: 859.64 | AQ15: 794.07 | AR15: 342.83 | AS15: 824.25 | AT15: 782.19 | AU15: 835.88 | AV15: 230.97 | AW15: 388.42 | AX15: 455.02 | AY15: 516.33 | AZ15: 166.67 | BA15: 601.81 | BB15: 698.41 | BC15: 635.57 | BD15: 704.65 | BE15: 503.52 | BF15: 347.87 | BG15: 564.43 | BH15: 373.66 | BI15: 787.96 | BJ15: 273.59 | BK15: 270.47 | BL15: 262.25
A16: =INDEX('化工产品价格总库（国内）'!A:A,ROW()-7) -> 2019-09-13 | B16: =IF(VLOOKUP($A16,'化工产品价格总库（国内）'!$A$1:$HB$66703,$A$8+167,0),VLOOKUP($A16,'化工产品价格总库（国内）'!$A$1:$HB$66703,$A$8+167,0),B17) -> 6928.54 | I16: TDI-甲苯-硝酸价差 | J16: 7897.17 | K16: 9322.20 | L16: 8573.61 | M16: 13119.26 | N16: 22492.44 | O16: 22390.20 | P16: 32639.27 | Q16: 31762.21 | R16: 29373.78 | S16: 21201.20 | T16: 24468.55 | U16: 27597.43 | V16: 12336.79 | W16: 8636.15 | X16: 6980.88 | Y16: 6898.76 | Z16: 7520.68 | AA16: 7751.59 | AB16: 7095.78 | AC16: 9066.47 | AD16: 10531.71 | AE16: 10814.92 | AF16: 12430.09 | AG16: 12694.96 | AH16: 13780.11 | AI16: 12872.19 | AJ16: 15294.51 | AK16: 16752.47 | AL16: 15312.50 | AM16: 14480.59 | AN16: 12178.16 | AO16: 10294.76 | AP16: 10890.73 | AQ16: 12380.19 | AR16: 13100.61 | AS16: 14540.42 | AT16: 14589.12 | AU16: 17119.68 | AV16: 19053.44 | AW16: 20821.40 | AX16: 19851.48 | AY16: 17095.26 | AZ16: 14437.39 | BA16: 18126.48 | BB16: 28359.02 | BC16: 35305.54 | BD16: 31387.96 | BE16: 41165.33 | BF16: 38985.21 | BG16: 28328.73 | BH16: 34325.88 | BI16: 28262.73 | BJ16: 20032.16 | BK16: 18860.71 | BL16: 20701.80
A17: =INDEX('化工产品价格总库（国内）'!A:A,ROW()-7) -> 2019-09-12 | B17: =IF(VLOOKUP($A17,'化工产品价格总库（国内）'!$A$1:$HB$66703,$A$8+167,0),VLOOKUP($A17,'化工产品价格总库（国内）'!$A$1:$HB$66703,$A$8+167,0),B18) -> 6946.54 | I17: 聚合MDI-苯胺-甲醛价差 | J17: 7724.98 | K17: 10370.30 | L17: 8684.49 | M17: 6441.62 | N17: 11368.99 | O17: 12776.41 | P17: 14304.37 | Q17: 20244.53 | R17: 22446.72 | S17: 15303.46 | T17: 17761.89 | U17: 13113.13 | V17: 8689.00 | W17: 7171.70 | X17: 5667.96 | Y17: 5608.10 | Z17: 4823.91 | AA17: 6613.79 | AB17: 8162.50 | AC17: 8830.82 | AD17: 6325.66 | AE17: 6463.04 | AF17: 7655.74 | AG17: 7243.35 | AH17: 7500.24 | AI17: 8975.03 | AJ17: 9049.69 | AK17: 10095.35 | AL17: 10609.23 | AM17: 9041.77 | AN17: 7367.70 | AO17: 5912.59 | AP17: 6976.38 | AQ17: 8966.03 | AR17: 8850.16 | AS17: 7320.32 | AT17: 6728.14 | AU17: 7614.05 | AV17: 6869.39 | AW17: 7331.76 | AX17: 8667.26 | AY17: 8490.63 | AZ17: 6620.17 | BA17: 8146.75 | BB17: 9816.87 | BC17: 12163.89 | BD17: 15174.06 | BE17: 17326.61 | BF17: 17833.52 | BG17: 17147.08 | BH17: 12826.46 | BI17: 11219.62 | BJ17: 14278.39 | BK17: 13258.28 | BL17: 11124.14
A18: =INDEX('化工产品价格总库（国内）'!A:A,ROW()-7) -> 2019-09-11 | B18: =IF(VLOOKUP($A18,'化工产品价格总库（国内）'!$A$1:$HB$66703,$A$8+167,0),VLOOKUP($A18,'化工产品价格总库（国内）'!$A$1:$HB$66703,$A$8+167,0),B19) -> 7076.54 | I18: 纯MDI-苯胺-甲醛价差 | J18: 13066.33 | K18: 16470.85 | L18: 16433.38 | M18: 16034.01 | N18: 21011.38 | O18: 19733.55 | P18: 22908.82 | Q18: 20699.97 | R18: 20877.15 | S18: 18793.02 | T18: 19783.56 | U18: 16865.84 | V18: 11140.63 | W18: 10831.04 | X18: 10080.59 | Y18: 9738.53 | Z18: 10365.76 | AA18: 11833.57 | AB18: 12786.82 | AC18: 12208.45 | AD18: 10881.10 | AE18: 10980.08 | AF18: 10477.41 | AG18: 10467.26 | AH18: 10516.00 | AI18: 11949.21 | AJ18: 11872.47 | AK18: 12412.20 | AL18: 13205.97 | AM18: 12318.14 | AN18: 9421.00 | AO18: 9151.72 | AP18: 9934.54 | AQ18: 11984.71 | AR18: 12192.93 | AS18: 11627.38 | AT18: 7559.12 | AU18: 8305.81 | AV18: 7942.17 | AW18: 8775.24 | AX18: 10040.63 | AY18: 11805.46 | AZ18: 11136.84 | BA18: 13648.11 | BB18: 12159.26 | BC18: 12991.64 | BD18: 16643.29 | BE18: 20513.02 | BF18: 23604.17 | BG18: 20033.35 | BH18: 12739.24 | BI18: 11972.88 | BJ18: 14158.29 | BK18: 13776.96 | BL18: 13909.14
A19: =INDEX('化工产品价格总库（国内）'!A:A,ROW()-7) -> 2019-09-10 | B19: =IF(VLOOKUP($A19,'化工产品价格总库（国内）'!$A$1:$HB$66703,$A$8+167,0),VLOOKUP($A19,'化工产品价格总库（国内）'!$A$1:$HB$66703,$A$8+167,0),B20) -> 7136.54 | I19: BDO-电石-甲醛价差 | J19: 5407.01 | K19: 5156.43 | L19: 5749.46 | M19: 6715.73 | N19: 7629.02 | O19: 8466.59 | P19: 7824.93 | Q19: 6858.06 | R19: 7589.72 | S19: 8328.22 | T19: 7806.64 | U19: 6089.17 | V19: 4908.12 | W19: 4555.33 | X19: 5095.76 | Y19: 5438.68 | Z19: 5569.89 | AA19: 5681.72 | AB19: 7009.01 | AC19: 7993.20 | AD19: 6577.94 | AE19: 8805.46 | AF19: 10138.35 | AG19: 10088.93 | AH19: 10388.67 | AI19: 11071.49 | AJ19: 11055.02 | AK19: 11940.37 | AL19: 12400.84 | AM19: 12968.17 | AN19: 13880.02 | AO19: 18487.33 | AP19: 19582.64 | AQ19: 19804.58 | AR19: 17557.17 | AS19: 17652.39 | AT19: 14683.68 | AU19: 15354.76 | AV19: 11011.46 | AW19: 9707.48 | AX19: 9333.87 | AY19: 9630.42 | AZ19: 6911.52 | BA19: 10203.29 | BB19: 12982.92 | BC19: 12086.95 | BD19: 13648.53 | BE19: 15120.52 | BF19: 15333.61 | BG19: 17111.58 | BH19: 17945.98 | BI19: 16260.42 | BJ19: 16778.04 | BK19: 15258.26 | BL19: 14067.28
A20: =INDEX('化工产品价格总库（国内）'!A:A,ROW()-7) -> 2019-09-09 | B20: =IF(VLOOKUP($A20,'化工产品价格总库（国内）'!$A$1:$HB$66703,$A$8+167,0),VLOOKUP($A20,'化工产品价格总库（国内）'!$A$1:$HB$66703,$A$8+167,0),B21) -> 7046.54 | I20: DMF-甲醇-氨气价差 | J20: 1887.01 | K20: 1742.57 | L20: 1663.39 | M20: 1875.71 | N20: 1762.34 | O20: 2184.41 | P20: 2569.99 | Q20: 2811.44 | R20: 2340.12 | S20: 2977.10 | T20: 2301.46 | U20: 2010.61 | V20: 1916.52 | W20: 2012.41 | X20: 1960.05 | Y20: 1422.36 | Z20: 1748.55 | AA20: 1835.04 | AB20: 2426.29 | AC20: 2091.34 | AD20: 1958.46 | AE20: 2186.25 | AF20: 1974.81 | AG20: 1605.53 | AH20: 2006.44 | AI20: 2481.05 | AJ20: 2204.26 | AK20: 2102.31 | AL20: 2133.13 | AM20: 2131.31 | AN20: 2191.06 | AO20: 2590.27 | AP20: 2619.84 | AQ20: 3213.39 | AR20: 3199.74 | AS20: 3032.39 | AT20: 2381.50 | AU20: 2599.94 | AV20: 2337.25 | AW20: 2802.08 | AX20: 2762.70 | AY20: 2798.69 | AZ20: 2928.73 | BA20: 3553.52 | BB20: 2986.88 | BC20: 2222.47 | BD20: 2115.42 | BE20: 2319.73 | BF20: 3358.08 | BG20: 4036.40 | BH20: 3419.99 | BI20: 3390.37 | BJ20: 4123.68 | BK20: 3694.09 | BL20: 3243.07
A21: =INDEX('化工产品价格总库（国内）'!A:A,ROW()-7) -> 2019-09-08 | B21: =IF(VLOOKUP($A21,'化工产品价格总库（国内）'!$A$1:$HB$66703,$A$8+167,0),VLOOKUP($A21,'化工产品价格总库（国内）'!$A$1:$HB$66703,$A$8+167,0),B22) -> 7046.54 | I21: 己二酸-纯苯-硝酸价差 | J21: 2642.55 | K21: 3010.77 | L21: 3222.97 | M21: 2703.35 | N21: 3505.08 | O21: 3526.36 | P21: 6209.40 | Q21: 3816.66 | R21: 3171.03 | S21: 2801.42 | T21: 4212.30 | U21: 3165.55 | V21: 2450.04 | W21: 2384.32 | X21: 1420.40 | Y21: 1211.27 | Z21: 1958.16 | AA21: 2312.76 | AB21: 2621.23 | AC21: 3479.33 | AD21: 2745.68 | AE21: 2952.90 | AF21: 3238.09 | AG21: 2749.85 | AH21: 2951.52 | AI21: 2930.58 | AJ21: 2262.08 | AK21: 1387.87 | AL21: 2146.80 | AM21: 2556.84 | AN21: 3835.95 | AO21: 4243.39 | AP21: 8905.77 | AQ21: 9774.54 | AR21: 13377.73 | AS21: 12967.90 | AT21: 10079.85 | AU21: 12347.19 | AV21: 10811.08 | AW21: 7537.25 | AX21: 7137.29 | AY21: 4507.74 | AZ21: 3545.60 | BA21: 4765.05 | BB21: 2283.46 | BC21: 3467.41 | BD21: 6055.10 | BE21: 8269.21 | BF21: 10364.88 | BG21: 11718.91 | BH21: 12397.10 | BI21: 13505.11 | BJ21: 18382.60 | BK21: 14068.74 | BL21: 7598.57
A22: =INDEX('化工产品价格总库（国内）'!A:A,ROW()-7) -> 2019-09-07 | B22: =IF(VLOOKUP($A22,'化工产品价格总库（国内）'!$A$1:$HB$66703,$A$8+167,0),VLOOKUP($A22,'化工产品价格总库（国内）'!$A$1:$HB$66703,$A$8+167,0),B23) -> 7046.54 | I22: 环氧乙烷-乙烯价差 | J22: 3301.10 | K22: 2973.56 | L22: 2878.98 | M22: 4743.97 | N22: 3637.78 | O22: 4270.07 | P22: 4232.39 | Q22: 3997.42 | R22: 3702.91 | S22: 3974.08 | T22: 4312.50 | U22: 3465.89 | V22: 3339.89 | W22: 2939.51 | X22: 2123.63 | Y22: 2123.22 | Z22: 2786.07 | AA22: 2274.47 | AB22: 2301.27 | AC22: 3920.37 | AD22: 3419.91 | AE22: 3387.76 | AF22: 3546.30 | AG22: 3408.15 | AH22: 3672.28 | AI22: 4514.50 | AJ22: 5251.53 | AK22: 6238.21 | AL22: 5267.83 | AM22: 5491.20 | AN22: 5205.15 | AO22: 6911.74 | AP22: 6246.24 | AQ22: 6381.11 | AR22: 6301.33 | AS22: 7501.63 | AT22: 5914.08 | AU22: 6731.88 | AV22: 5094.37 | AW22: 6153.96 | AX22: 10355.43 | AY22: 10289.01 | AZ22: 9968.89 | BA22: 12146.74 | BB22: 16969.57 | BC22: 17419.78 | BD22: 16565.38 | BE22: 16379.35 | BF22: 14358.70 | BG22: 13581.32 | BH22: 13645.78 | BI22: 13223.37 | BJ22: 13059.78 | BK22: 14148.35 | BL22: 14654.44
A23: =INDEX('化工产品价格总库（国内）'!A:A,ROW()-7) -> 2019-09-06 | B23: =IF(VLOOKUP($A23,'化工产品价格总库（国内）'!$A$1:$HB$66703,$A$8+167,0),VLOOKUP($A23,'化工产品价格总库（国内）'!$A$1:$HB$66703,$A$8+167,0),B24) -> 7046.54 | I23: 环氧丙烷-丙烯-液氯价差 | J23: 3373.79 | K23: 3669.96 | L23: 3818.41 | M23: 4110.07 | N23: 4616.48 | O23: 4611.22 | P23: 5403.97 | Q23: 5015.57 | R23: 4699.66 | S23: 3791.74 | T23: 3761.08 | U23: 4211.30 | V23: 3987.17 | W23: 2358.64 | X23: 2280.83 | Y23: 4747.00 | Z23: 3720.92 | AA23: 3798.61 | AB23: 4288.98 | AC23: 4355.93 | AD23: 3955.49 | AE23: 2735.25 | AF23: 4593.04 | AG23: 3383.15 | AH23: 2681.03 | AI23: 2641.34 | AJ23: 2905.74 | AK23: 2740.76 | AL23: 2592.01 | AM23: 2395.43 | AN23: 3644.63 | AO23: 5001.00 | AP23: 4538.71 | AQ23: 4720.26 | AR23: 3573.77 | AS23: 2122.45 | AT23: 1348.70 | AU23: 2364.58 | AV23: 2392.97 | AW23: 2606.77 | AX23: 3102.42 | AY23: 2259.84 | AZ23: 1294.17 | BA23: 2175.46 | BB23: 3138.42 | BC23: 2759.95 | BD23: 2605.98 | BE23: 2561.59 | BF23: 2185.11 | BG23: 1571.19 | BH23: 2098.88 | BI23: 2649.12 | BJ23: 13404.59 | BK23: 12532.31 | BL23: 12496.83
A24: =INDEX('化工产品价格总库（国内）'!A:A,ROW()-7) -> 2019-09-05 | B24: =IF(VLOOKUP($A24,'化工产品价格总库（国内）'!$A$1:$HB$66703,$A$8+167,0),VLOOKUP($A24,'化工产品价格总库（国内）'!$A$1:$HB$66703,$A$8+167,0),B25) -> 7046.54 | I24: 硬泡聚醚-环氧丙烷价差 | J24: 2703.02 | K24: 2987.17 | L24: 3147.94 | M24: 2999.54 | N24: 2566.36 | O24: 3114.67 | P24: 2987.44 | Q24: 3160.87 | R24: 2974.32 | S24: 2948.21 | T24: 3020.06 | U24: 2726.68 | V24: 2418.15 | W24: 2684.95 | X24: 2680.47 | Y24: 2623.29 | Z24: 2619.10 | AA24: 2706.10 | AB24: 3007.23 | AC24: 3320.36 | AD24: 3042.61 | AE24: 3254.78 | AF24: 3016.17 | AG24: 2925.16 | AH24: 3118.67 | AI24: 3083.85 | AJ24: 3109.22 | AK24: 3302.55 | AL24: 3228.86 | AM24: 3573.68 | AN24: 3909.56 | AO24: 4167.50 | AP24: 3651.30 | AQ24: 3799.01 | AR24: 3540.67 | AS24: 3646.03 | AT24: 3879.67 | AU24: 3730.44 | AV24: 2485.89 | AW24: 2233.75 | AX24: 2070.92 | AY24: 2448.74 | AZ24: 2032.50 | BA24: 3055.76 | BB24: 2861.20 | BC24: 1776.07 | BD24: 2851.73 | BE24: 2667.15 | BF24: 2396.03 | BG24: 3641.29 | BH24: 3846.06 | BI24: 2823.80 | BJ24: 2150.92 | BK24: 2236.54 | BL24: 2105.50
A25: =INDEX('化工产品价格总库（国内）'!A:A,ROW()-7) -> 2019-09-04 | B25: =IF(VLOOKUP($A25,'化工产品价格总库（国内）'!$A$1:$HB$66703,$A$8+167,0),VLOOKUP($A25,'化工产品价格总库（国内）'!$A$1:$HB$66703,$A$8+167,0),B26) -> 7106.54 | I25: 氨纶-PTME-纯MDI-DMF价差 | J25: 14420.78 | K25: 14948.70 | L25: 15396.78 | M25: 13770.95 | N25: 13350.59 | O25: 14354.99 | P25: 15112.05 | Q25: 17800.34 | R25: 14967.48 | S25: 17999.91 | T25: 14675.22 | U25: 13087.21 | V25: 14212.64 | W25: 15302.18 | X25: 19953.39 | Y25: 21561.36 | Z25: 21091.69 | AA25: 22254.95 | AB25: 24927.78 | AC25: 26409.05 | AD25: 26589.97 | AE25: 26424.91 | AF25: 28998.41 | AG25: 29863.92 | AH25: 26563.16 | AI25: 21911.97 | AJ25: 19904.61 | AK25: 19276.71 | AL25: 18354.30 | AM25: 18401.42 | AN25: 18273.81 | AO25: 17324.41 | AP25: 17391.85 | AQ25: 23888.77 | AR25: 36238.16 | AS25: 36465.04 | AT25: 32292.30 | AU25: 35431.15 | AV25: 31860.95 | AW25: 27178.79 | AX25: 26626.10 | AY25: 24186.89 | AZ25: 20988.93 | BA25: 18883.71 | BB25: 18323.80 | BC25: 25672.42 | BD25: 33906.10 | BE25: 45044.89 | BF25: 47732.55 | BG25: 59311.71 | BH25: 56825.12 | BI25: 32177.15 | BJ25: 30459.80 | BK25: 21129.85 | BL25: 19456.64
A26: =INDEX('化工产品价格总库（国内）'!A:A,ROW()-7) -> 2019-09-03 | B26: =IF(VLOOKUP($A26,'化工产品价格总库（国内）'!$A$1:$HB$66703,$A$8+167,0),VLOOKUP($A26,'化工产品价格总库（国内）'!$A$1:$HB$66703,$A$8+167,0),B27) -> 7226.54 | I26: 粘胶长丝-溶解浆价差 | J26: 31032.96 | K26: 30278.90 | L26: 29759.80 | M26: 29309.18 | N26: 29429.62 | O26: 29573.99 | P26: 29310.44 | Q26: 29825.24 | R26: 29409.62 | S26: 32846.88 | T26: 33761.27 | U26: 30301.42 | V26: 30388.07 | W26: 30784.48 | X26: 30534.19 | Y26: 30273.58 | Z26: 29638.30 | AA26: 28908.44 | AB26: 27873.16 | AC26: 27663.08 | AD26: 26474.68 | AE26: 25189.90 | AF26: 26536.98 | AG26: 26522.73 | AH26: 27439.77 | AI26: 30890.12 | AJ26: 31391.96 | AK26: 34428.04 | AL26: 35815.11 | AM26: 36427.97 | AN26: 35516.48 | AO26: 45277.93 | AP26: 46651.74 | AQ26: 50627.47 | AR26: 50511.11 | AS26: 46653.80 | AT26: 35367.72 | AU26: 35396.15 | AV26: 34250.56 | AW26: 33570.65 | AX26: 31560.87 | AY26: 30367.03 | AZ26: 29406.11 | BA26: 30599.46 | BB26: 32251.09 | BC26: 32769.23 | BD26: 33969.78 | BE26: 34586.52 | BF26: 34232.61 | BG26: 34373.63 | BH26: 32833.33 | BI26: 31502.17 | BJ26: 30202.17 | BK26: 29107.69 | BL26: 26674.44
A27: =INDEX('化工产品价格总库（国内）'!A:A,ROW()-7) -> 2019-09-02 | B27: =IF(VLOOKUP($A27,'化工产品价格总库（国内）'!$A$1:$HB$66703,$A$8+167,0),VLOOKUP($A27,'化工产品价格总库（国内）'!$A$1:$HB$66703,$A$8+167,0),B28) -> 7386.54 | I27: 粘胶短纤-溶解浆价差 | J27: 4592.84 | K27: 4426.15 | L27: 5123.69 | M27: 5926.03 | N27: 6331.58 | O27: 6204.21 | P27: 6131.56 | Q27: 7034.48 | R27: 7092.34 | S27: 6400.18 | T27: 9522.38 | U27: 8410.11 | V27: 8496.22 | W27: 6784.59 | X27: 6095.40 | Y27: 7206.95 | Z27: 6172.33 | AA27: 5039.76 | AB27: 4005.46 | AC27: 4360.84 | AD27: 3617.73 | AE27: 2539.85 | AF27: 4941.53 | AG27: 5327.62 | AH27: 5899.45 | AI27: 6159.57 | AJ27: 6777.40 | AK27: 6746.30 | AL27: 7189.67 | AM27: 7308.52 | AN27: 7153.52 | AO27: 17152.61 | AP27: 18644.35 | AQ27: 21974.18 | AR27: 27032.22 | AS27: 25807.07 | AT27: 18064.13 | AU27: 19370.88 | AV27: 19304.56 | AW27: 18006.09 | AX27: 16343.26 | AY27: 14684.84 | AZ27: 12170.00 | BA27: 13916.63 | BB27: 16355.98 | BC27: 17453.30 | BD27: 21096.70 | BE27: 22128.80 | BF27: 20613.04 | BG27: 19039.01 | BH27: 15290.44 | BI27: 14561.41 | BJ27: 13733.15 | BK27: 13326.37 | BL27: 12755.00
A28: =INDEX('化工产品价格总库（国内）'!A:A,ROW()-7) -> 2019-09-01 | B28: =IF(VLOOKUP($A28,'化工产品价格总库（国内）'!$A$1:$HB$66703,$A$8+167,0),VLOOKUP($A28,'化工产品价格总库（国内）'!$A$1:$HB$66703,$A$8+167,0),B29) -> 7422.54 | I28: 涤纶短丝-PTA-乙二醇价差 | J28: 1356.07 | K28: 1379.19 | L28: 1520.31 | M28: 1699.64 | N28: 1086.78 | O28: 1271.18 | P28: 1358.25 | Q28: 1686.73 | R28: 1205.47 | S28: 1304.49 | T28: 1143.18 | U28: 1096.63 | V28: 1228.41 | W28: 1036.68 | X28: 1106.01 | Y28: 1160.76 | Z28: 1070.86 | AA28: 913.48 | AB28: 1217.43 | AC28: 1357.93 | AD28: 966.10 | AE28: 1035.29 | AF28: 1317.86 | AG28: 891.53 | AH28: 866.55 | AI28: 1022.37 | AJ28: 1055.63 | AK28: 879.07 | AL28: 1122.76 | AM28: 1287.55 | AN28: 1428.76 | AO28: 1343.69 | AP28: 1504.70 | AQ28: 1530.06 | AR28: 1489.16 | AS28: 3432.95 | AT28: 1465.56 | AU28: 1218.58 | AV28: 653.69 | AW28: 662.60 | AX28: 745.13 | AY28: 1007.48 | AZ28: 1100.72 | BA28: 1754.20 | BB28: 1523.57 | BC28: 957.11 | BD28: 1435.09 | BE28: 1062.65 | BF28: 1027.00 | BG28: 1241.02 | BH28: 1079.30 | BI28: 1253.83 | BJ28: 705.11 | BK28: 756.14 | BL28: 952.81
A29: =INDEX('化工产品价格总库（国内）'!A:A,ROW()-7) -> 2019-08-31 | B29: =IF(VLOOKUP($A29,'化工产品价格总库（国内）'!$A$1:$HB$66703,$A$8+167,0),VLOOKUP($A29,'化工产品价格总库（国内）'!$A$1:$HB$66703,$A$8+167,0),B30) -> 7422.54 | I29: 涤纶POY-PTA-乙二醇价差 | J29: 1639.41 | K29: 1439.08 | L29: 1161.97 | M29: 1387.36 | N29: 1735.15 | O29: 1704.25 | P29: 1245.80 | Q29: 1537.59 | R29: 1368.19 | S29: 1458.44 | T29: 1397.96 | U29: 1401.30 | V29: 1230.59 | W29: 907.50 | X29: 1039.25 | Y29: 783.59 | Z29: 936.79 | AA29: 1107.61 | AB29: 1363.64 | AC29: 1679.77 | AD29: 1167.57 | AE29: 1453.66 | AF29: 1232.31 | AG29: 1032.24 | AH29: 1134.70 | AI29: 1334.24 | AJ29: 1112.08 | AK29: 1070.21 | AL29: 1513.79 | AM29: 1293.59 | AN29: 1492.60 | AO29: 1965.43 | AP29: 2670.24 | AQ29: 2558.63 | AR29: 1440.05 | AS29: 2471.53 | AT29: 2761.26 | AU29: 2044.67 | AV29: 1237.91 | AW29: 1459.88 | AX29: 1206.65 | AY29: 1401.76 | AZ29: 995.00 | BA29: 1610.78 | BB29: 1731.02 | BC29: 1524.91 | BD29: 1855.48 | BE29: 1429.93 | BF29: 1826.02 | BG29: 2100.36 | BH29: 1710.35 | BI29: 2073.93 | BJ29: 1211.85 | BK29: 1275.42 | BL29: 1098.36
A30: =INDEX('化工产品价格总库（国内）'!A:A,ROW()-7) -> 2019-08-30 | B30: =IF(VLOOKUP($A30,'化工产品价格总库（国内）'!$A$1:$HB$66703,$A$8+167,0),VLOOKUP($A30,'化工产品价格总库（国内）'!$A$1:$HB$66703,$A$8+167,0),B31) -> 7422.54 | I30: 腈纶短纤-丙烯腈价差 | J30: 3905.62 | K30: 3752.31 | L30: 4559.59 | M30: 5092.42 | N30: 3791.49 | O30: 3674.47 | P30: 2683.28 | Q30: 2879.61 | R30: 3254.50 | S30: 4320.31 | T30: 3254.12 | U30: 3154.73 | V30: 4457.75 | W30: 5210.40 | X30: 5362.24 | Y30: 5785.41 | Z30: 7202.69 | AA30: 5797.41 | AB30: 5371.86 | AC30: 4188.12 | AD30: 4355.46 | AE30: 4707.98 | AF30: 4103.21 | AG30: 5017.13 | AH30: 6185.44 | AI30: 6472.53 | AJ30: 4622.23 | AK30: 5299.28 | AL30: 3596.34 | AM30: 5609.67 | AN30: 5168.21 | AO30: 7308.28 | AP30: 7116.13 | AQ30: 6707.56 | AR30: 5436.49 | AS30: 5933.43 | AT30: 4780.65 | AU30: 3321.33 | AV30: 4161.02 | AW30: 6003.64 | AX30: 7398.51 | AY30: 7191.42 | AZ30: 5507.12 | BA30: 6298.49 | BB30: 3090.35 | BC30: 2868.38 | BD30: 4061.82 | BE30: 3199.98 | BF30: 3995.40 | BG30: 4525.19 | BH30: 4427.65 | BI30: 4466.30 | BJ30: 4438.93 | BK30: 4804.96 | BL30: 5520.60
A31: =INDEX('化工产品价格总库（国内）'!A:A,ROW()-7) -> 2019-08-29 | B31: =IF(VLOOKUP($A31,'化工产品价格总库（国内）'!$A$1:$HB$66703,$A$8+167,0),VLOOKUP($A31,'化工产品价格总库（国内）'!$A$1:$HB$66703,$A$8+167,0),B32) -> 7401.54 | I31: 尼龙6-己内酰胺价差 | J31: 910.64 | K31: 1035.01 | L31: 1746.34 | M31: 1178.69 | N31: 2037.77 | O31: 2261.08 | P31: 1735.00 | Q31: 1861.59 | R31: 1967.59 | S31: 2003.40 | T31: 1499.48 | U31: 1292.37 | V31: 880.93 | W31: 881.20 | X31: 785.74 | Y31: 870.09 | Z31: 2239.62 | AA31: 1288.20 | AB31: 1390.36 | AC31: 1714.13 | AD31: 1274.15 | AE31: 1972.79 | AF31: 3121.84 | AG31: 4205.89 | AH31: 9988.17 | AI31: 12549.82 | AJ31: 11618.68 | AK31: 12893.01 | AL31: 12397.68 | AM31: 11478.69 | AN31: 6023.03 | AO31: 5451.11 | AP31: 1688.77 | AQ31: 1158.82 | AR31: 623.27 | AS31: 3979.36 | AT31: 5142.25 | AU31: 4137.40 | AV31: 5618.19 | AW31: 8328.74 | AX31: 8957.52 | AY31: 12128.81 | AZ31: 17963.36 | BA31: 16789.71 | BB31: 9324.60 | BC31: 6539.58 | BD31: 6166.03 | BE31: 5027.36 | BF31: 6418.93 | BG31: 6318.03 | BH31: 6815.56 | BI31: 7314.41 | BJ31: 8366.54 | BK31: 9968.71 | BL31: 11222.28
A32: =INDEX('化工产品价格总库（国内）'!A:A,ROW()-7) -> 2019-08-28 | B32: =IF(VLOOKUP($A32,'化工产品价格总库（国内）'!$A$1:$HB$66703,$A$8+167,0),VLOOKUP($A32,'化工产品价格总库（国内）'!$A$1:$HB$66703,$A$8+167,0),B33) -> 7416.54 | I32: 尼龙66-己二酸价差 | J32: 19525.60 | K32: 24041.09 | L32: 28516.68 | M32: 32493.85 | N32: 30612.43 | O32: 26827.78 | P32: 21527.00 | Q32: 20934.86 | R32: 22051.71 | S32: 22101.92 | T32: 20657.50 | U32: 22051.08 | V32: 23033.92 | W32: 23141.78 | X32: 23933.70 | Y32: 23980.99 | Z32: 23315.73 | AA32: 22675.87 | AB32: 22736.49 | AC32: 21413.06 | AD32: 21027.17 | AE32: 22087.04 | AF32: 22412.58 | AG32: 22919.52 | AH32: 23087.13 | AI32: 23070.19 | AJ32: 23110.22 | AK32: 23860.26 | AL32: 24476.26 | AM32: 24624.92 | AN32: 23894.08 | AO32: 23626.73 | AP32: 21129.87 | AQ32: 21892.22 | AR32: 21229.13 | AS32: 20990.51 | AT32: 23741.38 | AU32: 20586.48 | AV32: 20257.88 | AW32: 21547.62 | AX32: 22707.50 | AY32: 24944.79 | AZ32: 26349.18 | BA32: 24357.62 | BB32: 23183.57 | BC32: 28320.70 | BD32: 26598.58 | BE32: 21965.83 | BF32: 16963.75 | BG32: 19955.56 | BH32: 20683.74 | BI32: 12698.05 | BJ32: 10818.48 | BK32: 12754.90 | BL32: 18037.02
A33: =INDEX('化工产品价格总库（国内）'!A:A,ROW()-7) -> 2019-08-27 | B33: =IF(VLOOKUP($A33,'化工产品价格总库（国内）'!$A$1:$HB$66703,$A$8+167,0),VLOOKUP($A33,'化工产品价格总库（国内）'!$A$1:$HB$66703,$A$8+167,0),B34) -> 7476.54 | I33: 双酚A-苯酚-丙酮价差 | J33: 1957.84 | K33: 3735.24 | L33: 3642.34 | M33: 2394.54 | N33: 4911.05 | O33: 4475.14 | P33: 3099.45 | Q33: 2654.40 | R33: 2027.40 | S33: 2245.13 | T33: 2716.15 | U33: 1578.43 | V33: 1264.42 | W33: 1384.79 | X33: 1296.52 | Y33: 989.30 | Z33: 1512.78 | AA33: 2259.67 | AB33: 2740.73 | AC33: 2950.11 | AD33: 2341.04 | AE33: 1575.01 | AF33: 1464.28 | AG33: 793.26 | AH33: 1619.35 | AI33: 1888.97 | AJ33: 2573.86 | AK33: 1629.44 | AL33: 1500.49 | AM33: 1828.98 | AN33: 1733.00 | AO33: 2263.66 | AP33: 2887.66 | AQ33: 4357.97 | AR33: 5320.18 | AS33: 6165.72 | AT33: 3213.32 | AU33: 2257.81 | AV33: 1429.78 | AW33: 1608.46 | AX33: 2197.76 | AY33: 1357.55 | AZ33: 1527.57 | BA33: 1235.02 | BB33: 1205.14 | BC33: 1326.96 | BD33: 2284.54 | BE33: 2294.14 | BF33: 2502.15 | BG33: 3221.55 | BH33: 2404.03 | BI33: 2147.57 | BJ33: 976.33 | BK33: -50.04 | BL33: 2005.61
A34: =INDEX('化工产品价格总库（国内）'!A:A,ROW()-7) -> 2019-08-26 | B34: =IF(VLOOKUP($A34,'化工产品价格总库（国内）'!$A$1:$HB$66703,$A$8+167,0),VLOOKUP($A34,'化工产品价格总库（国内）'!$A$1:$HB$66703,$A$8+167,0),B35) -> 7606.54 | I34: PVA-醋酸乙烯价差 | J34: 1735.12 | K34: 382.47 | L34: 369.56 | M34: -1286.25 | N34: -825.16 | O34: -91.10 | P34: 84.72 | Q34: 1512.99 | R34: -33.37 | S34: 1729.20 | T34: 1967.81 | U34: 1618.42 | V34: 716.74 | W34: 419.45 | X34: 1887.88 | Y34: 2365.33 | Z34: 1061.17 | AA34: -2.23 | AB34: 1688.18 | AC34: 88.68 | AD34: -777.83 | AE34: -726.65 | AF34: 369.61 | AG34: 312.34 | AH34: 276.14 | AI34: 698.79 | AJ34: 1124.00 | AK34: 1636.52 | AL34: 2467.28 | AM34: 2564.72 | AN34: 3084.00 | AO34: 1855.19 | AP34: 17.55 | AQ34: -330.93 | AR34: 1119.67 | AS34: 706.28 | AT34: 618.31 | AU34: 246.47 | AV34: -871.28 | AW34: -431.19 | AX34: 578.48 | AY34: -785.98 | AZ34: -584.07 | BA34: 4905.22 | BB34: 1240.49 | BC34: -634.81 | BD34: -6427.03 | BE34: -12021.74 | BF34: -9012.47 | BG34: -3578.16 | BH34: -3395.36 | BI34: -2861.01 | BJ34: -2647.47 | BK34: -2947.55 | BL34: -2946.30
A35: =INDEX('化工产品价格总库（国内）'!A:A,ROW()-7) -> 2019-08-25 | B35: =IF(VLOOKUP($A35,'化工产品价格总库（国内）'!$A$1:$HB$66703,$A$8+167,0),VLOOKUP($A35,'化工产品价格总库（国内）'!$A$1:$HB$66703,$A$8+167,0),B36) -> 7606.54 | I35: 甲基环氧硅烷-金属硅-甲醇-盐酸价差 | J35: 14687.39 | K35: 14024.09 | L35: 13442.07 | M35: 16297.10 | N35: 27403.36 | O35: 27083.18 | P35: 22951.21 | Q35: 22938.72 | R35: 16928.24 | S35: 16050.15 | T35: 13856.72 | U35: 10797.00 | V35: 9188.73 | W35: 8869.55 | X35: 9224.32 | Y35: 10024.90 | Z35: 9662.06 | AA35: 10166.47 | AB35: 10850.03 | AC35: 11371.87 | AD35: 11159.53 | AE35: 10207.89 | AF35: 10799.80 | AG35: 11242.38 | AH35: 11888.18 | AI35: 11546.74 | AJ35: 11598.78 | AK35: 12228.94 | AL35: 10832.59 | AM35: 10659.28 | AN35: 11250.15 | AO35: 11354.71 | AP35: 13055.27 | AQ35: 14710.16 | AR35: 15337.84 | AS35: 16608.45 | AT35: 15097.09 | AU35: 16512.41 | AV35: 15273.29 | AW35: 17581.24 | AX35: 14210.78 | AY35: 14088.62 | AZ35: 13294.35 | BA35: 16613.28 | BB35: 22619.80 | BC35: 17833.53 | BD35: 18212.12 | BE35: 18547.41 | BF35: 23848.62 | BG35: 24536.68 | BH35: 23136.85 | BI35: 19312.15 | BJ35: -4863.75 | BK35: -4705.02 | BL35: -4689.98
A36: =INDEX('化工产品价格总库（国内）'!A:A,ROW()-7) -> 2019-08-24 | B36: =IF(VLOOKUP($A36,'化工产品价格总库（国内）'!$A$1:$HB$66703,$A$8+167,0),VLOOKUP($A36,'化工产品价格总库（国内）'!$A$1:$HB$66703,$A$8+167,0),B37) -> 7606.54 | I36: 金红石-钛精矿-浓硫酸价差 | J36: 10896.59 | K36: 10953.73 | L36: 10022.89 | M36: 10696.15 | N36: 11415.00 | O36: 11603.08 | P36: 11408.33 | Q36: 11300.11 | R36: 11595.11 | S36: 11983.34 | T36: 10983.67 | U36: 9751.61 | V36: 9013.20 | W36: 7988.80 | X36: 6653.13 | Y36: 6597.02 | Z36: 7961.80 | AA36: 10346.46 | AB36: 10360.43 | AC36: 11338.99 | AD36: 11741.30 | AE36: 12194.34 | AF36: 12969.67 | AG36: 13265.33 | AH36: 13128.37 | AI36: 12449.02 | AJ36: 12392.11 | AK36: 12940.30 | AL36: 13471.63 | AM36: 13936.15 | AN36: 13125.93 | AO36: 12348.32 | AP36: 14461.74 | AQ36: 16048.99 | AR36: 13280.29 | AS36: 12128.48 | AT36: 11211.63 | AU36: 10179.34 | AV36: 9826.93 | AW36: -2377.66 | AX36: -1927.91 | AY36: -1853.16 | AZ36: -1920.67 | BA36: -2574.17 | BB36: -7615.73 | BC36: -8586.03 | BD36: -7002.65 | BE36: -5257.57 | BF36: -3463.65 | BG36: -3428.22 | BH36: -2653.78 | BI36: -2598.43 | BJ36: -2877.57 | BK36: -2905.34 | BL36: -2734.00
A37: =INDEX('化工产品价格总库（国内）'!A:A,ROW()-7) -> 2019-08-23 | B37: =IF(VLOOKUP($A37,'化工产品价格总库（国内）'!$A$1:$HB$66703,$A$8+167,0),VLOOKUP($A37,'化工产品价格总库（国内）'!$A$1:$HB$66703,$A$8+167,0),B38) -> 7606.54 | I37: 醋酸乙烯-电石-醋酸价差 | J37: 507.22 | K37: 1650.05 | L37: 1565.34 | M37: 1357.38 | N37: 830.22 | O37: 225.69 | P37: 472.58 | Q37: -62.22 | R37: 983.82 | S37: 878.44 | T37: 455.14 | U37: 517.21 | V37: 1355.79 | W37: 1881.19 | X37: 1530.84 | Y37: 1355.82 | Z37: 1603.69 | AA37: 1827.23 | AB37: 1544.25 | AC37: 1641.85 | AD37: 1359.60 | AE37: 1510.35 | AF37: 1138.12 | AG37: 918.79 | AH37: 1245.31 | AI37: 1073.32 | AJ37: 1070.02 | AK37: 1425.49 | AL37: 1146.32 | AM37: 802.97 | AN37: 1050.12 | AO37: 1328.80 | AP37: 1391.96 | AQ37: 1637.09 | AR37: 961.00 | AS37: 1173.37 | AT37: 676.35 | AU37: 897.24 | AV37: 828.66 | AW37: 967.95 | AX37: 782.88 | AY37: 1422.85 | AZ37: 1676.10 | BA37: 1236.90 | BB37: 1817.88 | BC37: 2999.97 | BD37: 5086.04 | BE37: 6148.82 | BF37: 4599.60 | BG37: 1889.71 | BH37: 2743.03 | BI37: 3025.15 | BJ37: 3147.28 | BK37: 2958.20 | BL37: 2554.47
A38: =INDEX('化工产品价格总库（国内）'!A:A,ROW()-7) -> 2019-08-22 | B38: =IF(VLOOKUP($A38,'化工产品价格总库（国内）'!$A$1:$HB$66703,$A$8+167,0),VLOOKUP($A38,'化工产品价格总库（国内）'!$A$1:$HB$66703,$A$8+167,0),B39) -> 7656.54 | I38: 醋酸-甲醇价差 | J38: 1979.17 | K38: 1419.97 | L38: 1789.13 | M38: 2817.42 | N38: 2647.38 | O38: 3275.01 | P38: 2828.25 | Q38: 2189.23 | R38: 1466.26 | S38: 1377.59 | T38: 1135.56 | U38: 1137.47 | V38: 778.06 | W38: 887.81 | X38: 752.54 | Y38: 859.06 | Z38: 1119.93 | AA38: 1257.27 | AB38: 1320.28 | AC38: 1839.35 | AD38: 2466.80 | AE38: 2130.84 | AF38: 1617.81 | AG38: 1303.14 | AH38: 1242.96 | AI38: 1502.02 | AJ38: 1372.34 | AK38: 1494.14 | AL38: 1451.07 | AM38: 1550.95 | AN38: 1364.42 | AO38: 1751.75 | AP38: 2145.02 | AQ38: 2521.25 | AR38: 1759.65 | AS38: 1477.53 | AT38: 1554.55 | AU38: 1706.93 | AV38: 1669.27 | AW38: 1798.45 | AX38: 1935.53 | AY38: 2202.65 | AZ38: 1814.47 | BA38: 2151.55 | BB38: 3312.30 | BC38: 3863.91 | BD38: 3750.02 | BE38: 4147.76 | BF38: 4694.09 | BG38: 5593.99 | BH38: 4293.70 | BI38: 3223.66 | BJ38: 3369.87 | BK38: 3893.22 | BL38: 4093.48
A39: =INDEX('化工产品价格总库（国内）'!A:A,ROW()-7) -> 2019-08-21 | B39: =IF(VLOOKUP($A39,'化工产品价格总库（国内）'!$A$1:$HB$66703,$A$8+167,0),VLOOKUP($A39,'化工产品价格总库（国内）'!$A$1:$HB$66703,$A$8+167,0),B40) -> 7842.54 | I39: 季戊四醇-甲醛-烧碱价差 | J39: 7061.66 | K39: 7459.73 | L39: 7586.76 | M39: 7690.45 | N39: 7383.68 | O39: 7223.01 | P39: 7041.89 | Q39: 5720.84 | R39: 6181.87 | S39: 5793.70 | T39: 5849.13 | U39: 5852.72 | V39: 6814.01 | W39: 7203.19 | X39: 7168.49 | Y39: 7031.13 | Z39: 7036.94 | AA39: 7881.54 | AB39: 8263.02 | AC39: 8441.14 | AD39: 7681.43 | AE39: 7677.94 | AF39: 7321.69 | AG39: 5505.72 | AH39: 5904.48 | AI39: 6186.82 | AJ39: 6160.98 | AK39: 5591.52 | AL39: 5153.86 | AM39: 5531.71 | AN39: 3539.34 | AO39: 3141.29 | AP39: 3344.85 | AQ39: 3506.17 | AR39: 3893.55 | AS39: 4034.49 | AT39: 4765.54 | AU39: 4662.68 | AV39: 4778.62 | AW39: 7196.76 | AX39: 10252.54 | AY39: 9069.98 | AZ39: 8925.87 | BA39: 8810.59 | BB39: 8896.21 | BC39: 8839.00 | BD39: 9594.62 | BE39: 9299.30 | BF39: 8307.78 | BG39: 6793.29 | BH39: 6616.03 | BI39: 6193.69 | BJ39: 5643.25 | BK39: 5174.96 | BL39: 5697.76
A40: =INDEX('化工产品价格总库（国内）'!A:A,ROW()-7) -> 2019-08-20 | B40: =IF(VLOOKUP($A40,'化工产品价格总库（国内）'!$A$1:$HB$66703,$A$8+167,0),VLOOKUP($A40,'化工产品价格总库（国内）'!$A$1:$HB$66703,$A$8+167,0),B41) -> 7836.54 | I40: 国内汽油-阿曼原油 | J40: 4398.00 | K40: 4523.80 | L40: 4464.65 | M40: 4966.84 | N40: 4791.26 | O40: 4748.27 | P40: 4770.47 | Q40: 4582.12 | R40: 4391.43 | S40: 4542.99 | T40: 4542.12 | U40: 4208.95 | V40: 4293.11 | W40: 4178.87 | X40: 4469.70 | Y40: 4363.11 | Z40: 4360.60 | AA40: 4319.46 | AB40: 4153.20 | AC40: 4352.05 | AD40: 4039.22 | AE40: 3956.03 | AF40: 3976.63 | AG40: 3763.59 | AH40: 3752.18 | AI40: 3627.84 | AJ40: 3748.30 | AK40: 3656.94 | AL40: 3442.69 | AM40: 3790.82 | AN40: 3312.98 | AO40: 3179.24 | AP40: 3532.62 | AQ40: 3378.09 | AR40: 2867.42 | AS40: 3221.06 | AT40: 3385.33 | AU40: 3532.35 | AV40: 3219.24 | AW40: 4575.22 | AX40: 6640.76 | AY40: 6210.44 | AZ40: 5565.67 | BA40: 6012.39 | BB40: 6480.00 | BC40: 5952.53 | BD40: 5480.00 | BE40: 5480.00 | BF40: 4985.43 | BG40: 4980.00 | BH40: 4980.00 | BI40: 5154.57 | BJ40: 5200.00 | BK40: 5084.62 | BL40: 4526.67
A41: =INDEX('化工产品价格总库（国内）'!A:A,ROW()-7) -> 2019-08-19 | B41: =IF(VLOOKUP($A41,'化工产品价格总库（国内）'!$A$1:$HB$66703,$A$8+167,0),VLOOKUP($A41,'化工产品价格总库（国内）'!$A$1:$HB$66703,$A$8+167,0),B42) -> 7916.54 | I41: 国内柴油-阿曼原油 | J41: 3414.49 | K41: 3526.66 | L41: 3461.26 | M41: 3931.52 | N41: 3753.00 | O41: 3723.05 | P41: 3754.86 | Q41: 3574.94 | R41: 3409.85 | S41: 3552.33 | T41: 3551.68 | U41: 3237.70 | V41: 3331.69 | W41: 3223.60 | X41: 3523.99 | Y41: 3407.13 | Z41: 3392.23 | AA41: 3344.68 | AB41: 3198.61 | AC41: 3201.79 | AD41: 2937.64 | AE41: 2835.10 | AF41: 2864.19 | AG41: 2866.64 | AH41: 2921.26 | AI41: 2813.00 | AJ41: 2934.53 | AK41: 2845.42 | AL41: 2628.78 | AM41: 2975.98 | AN41: 2462.98 | AO41: 2329.24 | AP41: 2682.62 | AQ41: 2528.09 | AR41: 2088.53 | AS41: 2476.50 | AT41: 2654.57 | AU41: 2799.16 | AV41: 2479.24 | AW41: 3835.22 | AX41: 5900.76 | AY41: 5470.44 | AZ41: 4888.00 | BA41: 5500.65 | BB41: 6070.00 | BC41: 5542.53 | BD41: 5070.00 | BE41: 5070.00 | BF41: 4575.43 | BG41: 4570.00 | BH41: 4570.00 | BI41: 4570.00 | BJ41: 4570.00 | BK41: 4454.62 | BL41: 3954.44
A42: =INDEX('化工产品价格总库（国内）'!A:A,ROW()-7) -> 2019-08-18 | B42: =IF(VLOOKUP($A42,'化工产品价格总库（国内）'!$A$1:$HB$66703,$A$8+167,0),VLOOKUP($A42,'化工产品价格总库（国内）'!$A$1:$HB$66703,$A$8+167,0),B43) -> 8002.54 | I42: 国内航天煤油-阿曼原油 | J42: 1774.55 | K42: 1625.45 | L42: 1636.18 | M42: 2532.84 | N42: 1765.28 | O42: 1700.72 | P42: 1932.66 | Q42: 1516.55 | R42: 1435.02 | S42: 1576.84 | T42: 1594.65 | U42: 1366.19 | V42: 1434.02 | W42: 1070.33 | X42: 1244.02 | Y42: 1655.10 | Z42: 1646.43 | AA42: 1488.49 | AB42: 1663.47 | AC42: 2714.60 | AD42: 2455.26 | AE42: 2089.08 | AF42: 2322.60 | AG42: 2398.99 | AH42: 2305.54 | AI42: 2218.62 | AJ42: 2754.05 | AK42: 2596.13 | AL42: 2307.75 | AM42: 2679.78 | AN42: 2216.97 | AO42: 2326.29 | AP42: 2631.04 | AQ42: 2245.55 | AR42: 1127.42 | AS42: 1486.50 | AT42: 1664.57 | AU42: 1809.16 | AV42: 1347.24 | AW42: 2679.14 | AX42: 4921.09 | AY42: 4300.33 | AZ42: 3837.11 | BA42: 6068.70 | BB42: 7450.00 | BC42: 6658.79 | BD42: 5950.00 | BE42: 5950.00 | BF42: 5455.43 | BG42: 5450.00 | BH42: 5450.00 | BI42: 5521.41 | BJ42: 5540.00 | BK42: 5424.62 | BL42: 4866.67
A43: =INDEX('化工产品价格总库（国内）'!A:A,ROW()-7) -> 2019-08-17 | B43: =IF(VLOOKUP($A43,'化工产品价格总库（国内）'!$A$1:$HB$66703,$A$8+167,0),VLOOKUP($A43,'化工产品价格总库（国内）'!$A$1:$HB$66703,$A$8+167,0),B44) -> 8002.54 | I43: 乙烯-石脑油 | J43: -965.27 | K43: -681.30 | L43: 1674.28 | M43: 1611.72 | N43: 3769.41 | O43: 3624.77 | P43: 3650.51 | Q43: 3873.34 | R43: 3613.11 | S43: 3278.33 | T43: 3618.10 | U43: 3620.89 | V43: 4215.30 | W43: 4422.64 | X43: 4229.37 | Y43: 3576.85 | Z43: 2455.40 | AA43: 4934.61 | AB43: 3168.89 | AC43: 2166.90 | AD43: 2319.24 | AE43: 2232.44 | AF43: 1958.68 | AG43: 2107.85 | AH43: 1797.05 | AI43: 1304.95 | AJ43: 1571.03 | AK43: 951.04 | AL43: 1354.99 | AM43: -56.59 | AN43: 831.14 | AO43: -118.70 | AP43: 154.37 | AQ43: 618.01 | AR43: 1265.29 | AS43: 1147.26 | AT43: 885.99 | AU43: 1568.95 | AV43: 2995.48 | AW43: -64.13 | AX43: -4773.80 | AY43: -3514.29 | AZ43: -2718.22 | BA43: -4674.35 | BB43: -8888.04 | BC43: -7777.91 | BD43: -7314.29 | BE43: -6717.72 | BF43: -6138.48 | BG43: -6163.74 | BH43: -5153.89 | BI43: -5074.46 | BJ43: -6070.65 | BK43: -5580.55 | BL43: -4980.89
A44: =INDEX('化工产品价格总库（国内）'!A:A,ROW()-7) -> 2019-08-16 | B44: =IF(VLOOKUP($A44,'化工产品价格总库（国内）'!$A$1:$HB$66703,$A$8+167,0),VLOOKUP($A44,'化工产品价格总库（国内）'!$A$1:$HB$66703,$A$8+167,0),B45) -> 8002.54 | I44: PP-石脑油 | J44: 2770.37 | K44: 3041.98 | L44: 4908.00 | M44: 6059.89 | N44: 6443.26 | O44: 5800.55 | P44: 5423.22 | Q44: 5609.24 | R44: 5908.70 | S44: 5847.03 | T44: 6240.67 | U44: 6508.70 | V44: 5486.09 | W44: 5269.56 | X44: 5363.30 | Y44: 5475.98 | Z44: 5498.04 | AA44: 6546.37 | AB44: 6064.05 | AC44: 5802.89 | AD44: 5881.09 | AE44: 5817.14 | AF44: 5026.56 | AG44: 6081.09 | AH44: 5137.39 | AI44: 4817.03 | AJ44: 4578.78 | AK44: 4869.02 | AL44: 5506.63 | AM44: 3704.40 | AN44: 4132.09 | AO44: 5067.72 | AP44: 5346.96 | AQ44: 4968.57 | AR44: 6403.89 | AS44: 7263.15 | AT44: 5897.61 | AU44: 5694.01 | AV44: 6021.22 | AW44: 5925.87 | AX44: 6019.13 | AY44: 7576.92 | AZ44: 5713.44 | BA44: 3781.63 | BB44: 5186.41 | BC44: 6830.88 | BD44: 5697.80 | BE44: 6142.61 | BF44: 6487.61 | BG44: 6575.27 | BH44: 7442.22 | BI44: 8566.30 | BJ44: 7425.54 | BK44: 6805.16 | BL44: 6945.78
A45: =INDEX('化工产品价格总库（国内）'!A:A,ROW()-7) -> 2019-08-15 | B45: =IF(VLOOKUP($A45,'化工产品价格总库（国内）'!$A$1:$HB$66703,$A$8+167,0),VLOOKUP($A45,'化工产品价格总库（国内）'!$A$1:$HB$66703,$A$8+167,0),B46) -> 8108.54 | I45: LDPE-石脑油 | J45: 1977.16 | K45: 2216.15 | L45: 4456.33 | M45: 4813.70 | N45: 5167.72 | O45: 5473.08 | P45: 5826.11 | Q45: 6705.43 | R45: 7297.17 | S45: 8133.63 | T45: 7785.67 | U45: 9209.24 | V45: 7232.28 | W45: 6764.62 | X45: 7334.18 | Y45: 6764.57 | Z45: 6962.17 | AA45: 7703.52 | AB45: 6994.19 | AC45: 6187.76 | AD45: 5870.22 | AE45: 5530.88 | AF45: 5842.67 | AG45: 7188.15 | AH45: 5919.35 | AI45: 5344.51 | AJ45: 4673.78 | AK45: 4052.61 | AL45: 4528.04 | AM45: 3279.12 | AN45: 4185.38 | AO45: 4981.85 | AP45: 5793.15 | AQ45: 5555.93 | AR45: 7021.67 | AS45: 7220.76 | AT45: 5705.76 | AU45: 5792.86 | AV45: 5844.00 | AW45: 5817.17 | AX45: 5930.00 | AY45: 6423.63 | AZ45: 6159.00 | BA45: 4143.59 | BB45: 5297.28 | BC45: 7060.00 | BD45: 6477.47 | BE45: 6725.22 | BF45: 6633.80 | BG45: 6402.75 | BH45: 7565.00 | BI45: 7602.17 | BJ45: 6885.33 | BK45: 6256.26 | BL45: 6116.33
A46: =INDEX('化工产品价格总库（国内）'!A:A,ROW()-7) -> 2019-08-14 | B46: =IF(VLOOKUP($A46,'化工产品价格总库（国内）'!$A$1:$HB$66703,$A$8+167,0),VLOOKUP($A46,'化工产品价格总库（国内）'!$A$1:$HB$66703,$A$8+167,0),B47) -> 8296.54 | I46: HDPE-石脑油 | J46: 2272.22 | K46: 2807.91 | L46: 4973.56 | M46: 6107.72 | N46: 6965.54 | O46: 7349.45 | P46: 6706.00 | Q46: 6654.89 | R46: 6970.00 | S46: 7220.11 | T46: 6732.33 | U46: 7470.11 | V46: 7358.37 | W46: 6991.54 | X46: 6983.08 | Y46: 6411.85 | Z46: 6911.63 | AA46: 7433.19 | AB46: 6327.57 | AC46: 6384.61 | AD46: 5877.28 | AE46: 5689.67 | AF46: 5012.11 | AG46: 5569.13 | AH46: 5354.24 | AI46: 5506.04 | AJ46: 4613.00 | AK46: 4200.76 | AL46: 5343.59 | AM46: 4020.33 | AN46: 3927.69 | AO46: 4828.04 | AP46: 5042.07 | AQ46: 3571.87 | AR46: 4302.78 | AS46: 5387.07 | AT46: 5431.30 | AU46: 5165.66 | AV46: 5743.52 | AW46: 5398.04 | AX46: 6101.52 | AY46: 7885.16 | AZ46: 6149.00 | BA46: 4453.91 | BB46: 5794.02 | BC46: 6883.63 | BD46: 6438.46 | BE46: 6920.87 | BF46: 6457.72 | BG46: 6059.89 | BH46: 7170.56 | BI46: 7892.39 | BJ46: 7308.15 | BK46: 7325.49 | BL46: 6392.44
A47: =INDEX('化工产品价格总库（国内）'!A:A,ROW()-7) -> 2019-08-13 | B47: =IF(VLOOKUP($A47,'化工产品价格总库（国内）'!$A$1:$HB$66703,$A$8+167,0),VLOOKUP($A47,'化工产品价格总库（国内）'!$A$1:$HB$66703,$A$8+167,0),B48) -> 8438.54
A48: =INDEX('化工产品价格总库（国内）'!A:A,ROW()-7) -> 2019-08-12 | B48: =IF(VLOOKUP($A48,'化工产品价格总库（国内）'!$A$1:$HB$66703,$A$8+167,0),VLOOKUP($A48,'化工产品价格总库（国内）'!$A$1:$HB$66703,$A$8+167,0),B49) -> 8681.54
A49: =INDEX('化工产品价格总库（国内）'!A:A,ROW()-7) -> 2019-08-11 | B49: =IF(VLOOKUP($A49,'化工产品价格总库（国内）'!$A$1:$HB$66703,$A$8+167,0),VLOOKUP($A49,'化工产品价格总库（国内）'!$A$1:$HB$66703,$A$8+167,0),B50) -> 8681.54
A50: =INDEX('化工产品价格总库（国内）'!A:A,ROW()-7) -> 2019-08-10 | B50: =IF(VLOOKUP($A50,'化工产品价格总库（国内）'!$A$1:$HB$66703,$A$8+167,0),VLOOKUP($A50,'化工产品价格总库（国内）'!$A$1:$HB$66703,$A$8+167,0),B51) -> 8681.54
A51: =INDEX('化工产品价格总库（国内）'!A:A,ROW()-7) -> 2019-08-09 | B51: =IF(VLOOKUP($A51,'化工产品价格总库（国内）'!$A$1:$HB$66703,$A$8+167,0),VLOOKUP($A51,'化工产品价格总库（国内）'!$A$1:$HB$66703,$A$8+167,0),B52) -> 8681.54
A52: =INDEX('化工产品价格总库（国内）'!A:A,ROW()-7) -> 2019-08-08 | B52: =IF(VLOOKUP($A52,'化工产品价格总库（国内）'!$A$1:$HB$66703,$A$8+167,0),VLOOKUP($A52,'化工产品价格总库（国内）'!$A$1:$HB$66703,$A$8+167,0),B53) -> 8681.54
A53: =INDEX('化工产品价格总库（国内）'!A:A,ROW()-7) -> 2019-08-07 | B53: =IF(VLOOKUP($A53,'化工产品价格总库（国内）'!$A$1:$HB$66703,$A$8+167,0),VLOOKUP($A53,'化工产品价格总库（国内）'!$A$1:$HB$66703,$A$8+167,0),B54) -> 8657.54
A54: =INDEX('化工产品价格总库（国内）'!A:A,ROW()-7) -> 2019-08-06 | B54: =IF(VLOOKUP($A54,'化工产品价格总库（国内）'!$A$1:$HB$66703,$A$8+167,0),VLOOKUP($A54,'化工产品价格总库（国内）'!$A$1:$HB$66703,$A$8+167,0),B55) -> 8651.54
A55: =INDEX('化工产品价格总库（国内）'!A:A,ROW()-7) -> 2019-08-05 | B55: =IF(VLOOKUP($A55,'化工产品价格总库（国内）'!$A$1:$HB$66703,$A$8+167,0),VLOOKUP($A55,'化工产品价格总库（国内）'!$A$1:$HB$66703,$A$8+167,0),B56) -> 8621.54
A56: =INDEX('化工产品价格总库（国内）'!A:A,ROW()-7) -> 2019-08-04 | B56: =IF(VLOOKUP($A56,'化工产品价格总库（国内）'!$A$1:$HB$66703,$A$8+167,0),VLOOKUP($A56,'化工产品价格总库（国内）'!$A$1:$HB$66703,$A$8+167,0),B57) -> 8621.54
A57: =INDEX('化工产品价格总库（国内）'!A:A,ROW()-7) -> 2019-08-03 | B57: =IF(VLOOKUP($A57,'化工产品价格总库（国内）'!$A$1:$HB$66703,$A$8+167,0),VLOOKUP($A57,'化工产品价格总库（国内）'!$A$1:$HB$66703,$A$8+167,0),B58) -> 8621.54
A58: =INDEX('化工产品价格总库（国内）'!A:A,ROW()-7) -> 2019-08-02 | B58: =IF(VLOOKUP($A58,'化工产品价格总库（国内）'!$A$1:$HB$66703,$A$8+167,0),VLOOKUP($A58,'化工产品价格总库（国内）'!$A$1:$HB$66703,$A$8+167,0),B59) -> 8621.54
A59: =INDEX('化工产品价格总库（国内）'!A:A,ROW()-7) -> 2019-08-01 | B59: =IF(VLOOKUP($A59,'化工产品价格总库（国内）'!$A$1:$HB$66703,$A$8+167,0),VLOOKUP($A59,'化工产品价格总库（国内）'!$A$1:$HB$66703,$A$8+167,0),B60) -> 8621.54
A60: =INDEX('化工产品价格总库（国内）'!A:A,ROW()-7) -> 2019-07-31 | B60: =IF(VLOOKUP($A60,'化工产品价格总库（国内）'!$A$1:$HB$66703,$A$8+167,0),VLOOKUP($A60,'化工产品价格总库（国内）'!$A$1:$HB$66703,$A$8+167,0),B61) -> 8496.54
A61: =INDEX('化工产品价格总库（国内）'!A:A,ROW()-7) -> 2019-07-30 | B61: =IF(VLOOKUP($A61,'化工产品价格总库（国内）'!$A$1:$HB$66703,$A$8+167,0),VLOOKUP($A61,'化工产品价格总库（国内）'!$A$1:$HB$66703,$A$8+167,0),B62) -> 8496.54
A62: =INDEX('化工产品价格总库（国内）'!A:A,ROW()-7) -> 2019-07-29 | B62: =IF(VLOOKUP($A62,'化工产品价格总库（国内）'!$A$1:$HB$66703,$A$8+167,0),VLOOKUP($A62,'化工产品价格总库（国内）'!$A$1:$HB$66703,$A$8+167,0),B63) -> 8496.54
A63: =INDEX('化工产品价格总库（国内）'!A:A,ROW()-7) -> 2019-07-28 | B63: =IF(VLOOKUP($A63,'化工产品价格总库（国内）'!$A$1:$HB$66703,$A$8+167,0),VLOOKUP($A63,'化工产品价格总库（国内）'!$A$1:$HB$66703,$A$8+167,0),B64) -> 8464.54
A64: =INDEX('化工产品价格总库（国内）'!A:A,ROW()-7) -> 2019-07-27 | B64: =IF(VLOOKUP($A64,'化工产品价格总库（国内）'!$A$1:$HB$66703,$A$8+167,0),VLOOKUP($A64,'化工产品价格总库（国内）'!$A$1:$HB$66703,$A$8+167,0),B65) -> 8464.54
A65: =INDEX('化工产品价格总库（国内）'!A:A,ROW()-7) -> 2019-07-26 | B65: =IF(VLOOKUP($A65,'化工产品价格总库（国内）'!$A$1:$HB$66703,$A$8+167,0),VLOOKUP($A65,'化工产品价格总库（国内）'!$A$1:$HB$66703,$A$8+167,0),B66) -> 8464.54
A66: =INDEX('化工产品价格总库（国内）'!A:A,ROW()-7) -> 2019-07-25 | B66: =IF(VLOOKUP($A66,'化工产品价格总库（国内）'!$A$1:$HB$66703,$A$8+167,0),VLOOKUP($A66,'化工产品价格总库（国内）'!$A$1:$HB$66703,$A$8+167,0),B67) -> 8314.54
A67: =INDEX('化工产品价格总库（国内）'!A:A,ROW()-7) -> 2019-07-24 | B67: =IF(VLOOKUP($A67,'化工产品价格总库（国内）'!$A$1:$HB$66703,$A$8+167,0),VLOOKUP($A67,'化工产品价格总库（国内）'!$A$1:$HB$66703,$A$8+167,0),B68) -> 8326.54
A68: =INDEX('化工产品价格总库（国内）'!A:A,ROW()-7) -> 2019-07-23 | B68: =IF(VLOOKUP($A68,'化工产品价格总库（国内）'!$A$1:$HB$66703,$A$8+167,0),VLOOKUP($A68,'化工产品价格总库（国内）'!$A$1:$HB$66703,$A$8+167,0),B69) -> 8311.54
A69: =INDEX('化工产品价格总库（国内）'!A:A,ROW()-7) -> 2019-07-22 | B69: =IF(VLOOKUP($A69,'化工产品价格总库（国内）'!$A$1:$HB$66703,$A$8+167,0),VLOOKUP($A69,'化工产品价格总库（国内）'!$A$1:$HB$66703,$A$8+167,0),B70) -> 8332.54
A70: =INDEX('化工产品价格总库（国内）'!A:A,ROW()-7) -> 2019-07-21 | B70: =IF(VLOOKUP($A70,'化工产品价格总库（国内）'!$A$1:$HB$66703,$A$8+167,0),VLOOKUP($A70,'化工产品价格总库（国内）'!$A$1:$HB$66703,$A$8+167,0),B71) -> 8356.54
A71: =INDEX('化工产品价格总库（国内）'!A:A,ROW()-7) -> 2019-07-20 | B71: =IF(VLOOKUP($A71,'化工产品价格总库（国内）'!$A$1:$HB$66703,$A$8+167,0),VLOOKUP($A71,'化工产品价格总库（国内）'!$A$1:$HB$66703,$A$8+167,0),B72) -> 8356.54
A72: =INDEX('化工产品价格总库（国内）'!A:A,ROW()-7) -> 2019-07-19 | B72: =IF(VLOOKUP($A72,'化工产品价格总库（国内）'!$A$1:$HB$66703,$A$8+167,0),VLOOKUP($A72,'化工产品价格总库（国内）'!$A$1:$HB$66703,$A$8+167,0),B73) -> 8356.54
A73: =INDEX('化工产品价格总库（国内）'!A:A,ROW()-7) -> 2019-07-18 | B73: =IF(VLOOKUP($A73,'化工产品价格总库（国内）'!$A$1:$HB$66703,$A$8+167,0),VLOOKUP($A73,'化工产品价格总库（国内）'!$A$1:$HB$66703,$A$8+167,0),B74) -> 8326.54
A74: =INDEX('化工产品价格总库（国内）'!A:A,ROW()-7) -> 2019-07-17 | B74: =IF(VLOOKUP($A74,'化工产品价格总库（国内）'!$A$1:$HB$66703,$A$8+167,0),VLOOKUP($A74,'化工产品价格总库（国内）'!$A$1:$HB$66703,$A$8+167,0),B75) -> 8314.54
A75: =INDEX('化工产品价格总库（国内）'!A:A,ROW()-7) -> 2019-07-16 | B75: =IF(VLOOKUP($A75,'化工产品价格总库（国内）'!$A$1:$HB$66703,$A$8+167,0),VLOOKUP($A75,'化工产品价格总库（国内）'!$A$1:$HB$66703,$A$8+167,0),B76) -> 8326.54
A76: =INDEX('化工产品价格总库（国内）'!A:A,ROW()-7) -> 2019-07-15 | B76: =IF(VLOOKUP($A76,'化工产品价格总库（国内）'!$A$1:$HB$66703,$A$8+167,0),VLOOKUP($A76,'化工产品价格总库（国内）'!$A$1:$HB$66703,$A$8+167,0),B77) -> 8052.54
A77: =INDEX('化工产品价格总库（国内）'!A:A,ROW()-7) -> 2019-07-14 | B77: =IF(VLOOKUP($A77,'化工产品价格总库（国内）'!$A$1:$HB$66703,$A$8+167,0),VLOOKUP($A77,'化工产品价格总库（国内）'!$A$1:$HB$66703,$A$8+167,0),B78) -> 8046.54
A78: =INDEX('化工产品价格总库（国内）'!A:A,ROW()-7) -> 2019-07-13 | B78: =IF(VLOOKUP($A78,'化工产品价格总库（国内）'!$A$1:$HB$66703,$A$8+167,0),VLOOKUP($A78,'化工产品价格总库（国内）'!$A$1:$HB$66703,$A$8+167,0),B79) -> 8046.54
A79: =INDEX('化工产品价格总库（国内）'!A:A,ROW()-7) -> 2019-07-12 | B79: =IF(VLOOKUP($A79,'化工产品价格总库（国内）'!$A$1:$HB$66703,$A$8+167,0),VLOOKUP($A79,'化工产品价格总库（国内）'!$A$1:$HB$66703,$A$8+167,0),B80) -> 8046.54
A80: =INDEX('化工产品价格总库（国内）'!A:A,ROW()-7) -> 2019-07-11 | B80: =IF(VLOOKUP($A80,'化工产品价格总库（国内）'!$A$1:$HB$66703,$A$8+167,0),VLOOKUP($A80,'化工产品价格总库（国内）'!$A$1:$HB$66703,$A$8+167,0),B81) -> 8046.54
A81: =INDEX('化工产品价格总库（国内）'!A:A,ROW()-7) -> 2019-07-10 | B81: =IF(VLOOKUP($A81,'化工产品价格总库（国内）'!$A$1:$HB$66703,$A$8+167,0),VLOOKUP($A81,'化工产品价格总库（国内）'!$A$1:$HB$66703,$A$8+167,0),B82) -> 8088.54
A82: =INDEX('化工产品价格总库（国内）'!A:A,ROW()-7) -> 2019-07-09 | B82: =IF(VLOOKUP($A82,'化工产品价格总库（国内）'!$A$1:$HB$66703,$A$8+167,0),VLOOKUP($A82,'化工产品价格总库（国内）'!$A$1:$HB$66703,$A$8+167,0),B83) -> 8085.54
A83: =INDEX('化工产品价格总库（国内）'!A:A,ROW()-7) -> 2019-07-08 | B83: =IF(VLOOKUP($A83,'化工产品价格总库（国内）'!$A$1:$HB$66703,$A$8+167,0),VLOOKUP($A83,'化工产品价格总库（国内）'!$A$1:$HB$66703,$A$8+167,0),B84) -> 8076.54
A84: =INDEX('化工产品价格总库（国内）'!A:A,ROW()-7) -> 2019-07-07 | B84: =IF(VLOOKUP($A84,'化工产品价格总库（国内）'!$A$1:$HB$66703,$A$8+167,0),VLOOKUP($A84,'化工产品价格总库（国内）'!$A$1:$HB$66703,$A$8+167,0),B85) -> 8091.54
A85: =INDEX('化工产品价格总库（国内）'!A:A,ROW()-7) -> 2019-07-06 | B85: =IF(VLOOKUP($A85,'化工产品价格总库（国内）'!$A$1:$HB$66703,$A$8+167,0),VLOOKUP($A85,'化工产品价格总库（国内）'!$A$1:$HB$66703,$A$8+167,0),B86) -> 8091.54
A86: =INDEX('化工产品价格总库（国内）'!A:A,ROW()-7) -> 2019-07-05 | B86: =IF(VLOOKUP($A86,'化工产品价格总库（国内）'!$A$1:$HB$66703,$A$8+167,0),VLOOKUP($A86,'化工产品价格总库（国内）'!$A$1:$HB$66703,$A$8+167,0),B87) -> 8091.54
A87: =INDEX('化工产品价格总库（国内）'!A:A,ROW()-7) -> 2019-07-04 | B87: =IF(VLOOKUP($A87,'化工产品价格总库（国内）'!$A$1:$HB$66703,$A$8+167,0),VLOOKUP($A87,'化工产品价格总库（国内）'!$A$1:$HB$66703,$A$8+167,0),B88) -> 7976.54
A88: =INDEX('化工产品价格总库（国内）'!A:A,ROW()-7) -> 2019-07-03 | B88: =IF(VLOOKUP($A88,'化工产品价格总库（国内）'!$A$1:$HB$66703,$A$8+167,0),VLOOKUP($A88,'化工产品价格总库（国内）'!$A$1:$HB$66703,$A$8+167,0),B89) -> 7756.54
A89: =INDEX('化工产品价格总库（国内）'!A:A,ROW()-7) -> 2019-07-02 | B89: =IF(VLOOKUP($A89,'化工产品价格总库（国内）'!$A$1:$HB$66703,$A$8+167,0),VLOOKUP($A89,'化工产品价格总库（国内）'!$A$1:$HB$66703,$A$8+167,0),B90) -> 7726.54
A90: =INDEX('化工产品价格总库（国内）'!A:A,ROW()-7) -> 2019-07-01 | B90: =IF(VLOOKUP($A90,'化工产品价格总库（国内）'!$A$1:$HB$66703,$A$8+167,0),VLOOKUP($A90,'化工产品价格总库（国内）'!$A$1:$HB$66703,$A$8+167,0),B91) -> 7786.54
A91: =INDEX('化工产品价格总库（国内）'!A:A,ROW()-7) -> 2019-06-30 | B91: =IF(VLOOKUP($A91,'化工产品价格总库（国内）'!$A$1:$HB$66703,$A$8+167,0),VLOOKUP($A91,'化工产品价格总库（国内）'!$A$1:$HB$66703,$A$8+167,0),B92) -> 7798.54
A92: =INDEX('化工产品价格总库（国内）'!A:A,ROW()-7) -> 2019-06-29 | B92: =IF(VLOOKUP($A92,'化工产品价格总库（国内）'!$A$1:$HB$66703,$A$8+167,0),VLOOKUP($A92,'化工产品价格总库（国内）'!$A$1:$HB$66703,$A$8+167,0),B93) -> 7798.54
A93: =INDEX('化工产品价格总库（国内）'!A:A,ROW()-7) -> 2019-06-28 | B93: =IF(VLOOKUP($A93,'化工产品价格总库（国内）'!$A$1:$HB$66703,$A$8+167,0),VLOOKUP($A93,'化工产品价格总库（国内）'!$A$1:$HB$66703,$A$8+167,0),B94) -> 7798.54
A94: =INDEX('化工产品价格总库（国内）'!A:A,ROW()-7) -> 2019-06-27 | B94: =IF(VLOOKUP($A94,'化工产品价格总库（国内）'!$A$1:$HB$66703,$A$8+167,0),VLOOKUP($A94,'化工产品价格总库（国内）'!$A$1:$HB$66703,$A$8+167,0),B95) -> 7816.54
A95: =INDEX('化工产品价格总库（国内）'!A:A,ROW()-7) -> 2019-06-26 | B95: =IF(VLOOKUP($A95,'化工产品价格总库（国内）'!$A$1:$HB$66703,$A$8+167,0),VLOOKUP($A95,'化工产品价格总库（国内）'!$A$1:$HB$66703,$A$8+167,0),B96) -> 7846.54
A96: =INDEX('化工产品价格总库（国内）'!A:A,ROW()-7) -> 2019-06-25 | B96: =IF(VLOOKUP($A96,'化工产品价格总库（国内）'!$A$1:$HB$66703,$A$8+167,0),VLOOKUP($A96,'化工产品价格总库（国内）'!$A$1:$HB$66703,$A$8+167,0),B97) -> 7796.54
A97: =INDEX('化工产品价格总库（国内）'!A:A,ROW()-7) -> 2019-06-24 | B97: =IF(VLOOKUP($A97,'化工产品价格总库（国内）'!$A$1:$HB$66703,$A$8+167,0),VLOOKUP($A97,'化工产品价格总库（国内）'!$A$1:$HB$66703,$A$8+167,0),B98) -> 7814.54
A98: =INDEX('化工产品价格总库（国内）'!A:A,ROW()-7) -> 2019-06-23 | B98: =IF(VLOOKUP($A98,'化工产品价格总库（国内）'!$A$1:$HB$66703,$A$8+167,0),VLOOKUP($A98,'化工产品价格总库（国内）'!$A$1:$HB$66703,$A$8+167,0),B99) -> 7826.54
A99: =INDEX('化工产品价格总库（国内）'!A:A,ROW()-7) -> 2019-06-22 | B99: =IF(VLOOKUP($A99,'化工产品价格总库（国内）'!$A$1:$HB$66703,$A$8+167,0),VLOOKUP($A99,'化工产品价格总库（国内）'!$A$1:$HB$66703,$A$8+167,0),B100) -> 7826.54
A100: =INDEX('化工产品价格总库（国内）'!A:A,ROW()-7) -> 2019-06-21 | B100: =IF(VLOOKUP($A100,'化工产品价格总库（国内）'!$A$1:$HB$66703,$A$8+167,0),VLOOKUP($A100,'化工产品价格总库（国内）'!$A$1:$HB$66703,$A$8+167,0),B101) -> 7826.54
A101: =INDEX('化工产品价格总库（国内）'!A:A,ROW()-7) -> 2019-06-20 | B101: =IF(VLOOKUP($A101,'化工产品价格总库（国内）'!$A$1:$HB$66703,$A$8+167,0),VLOOKUP($A101,'化工产品价格总库（国内）'!$A$1:$HB$66703,$A$8+167,0),B102) -> 7826.54
A102: =INDEX('化工产品价格总库（国内）'!A:A,ROW()-7) -> 2019-06-19 | B102: =IF(VLOOKUP($A102,'化工产品价格总库（国内）'!$A$1:$HB$66703,$A$8+167,0),VLOOKUP($A102,'化工产品价格总库（国内）'!$A$1:$HB$66703,$A$8+167,0),B103) -> 7796.54
A103: =INDEX('化工产品价格总库（国内）'!A:A,ROW()-7) -> 2019-06-18 | B103: =IF(VLOOKUP($A103,'化工产品价格总库（国内）'!$A$1:$HB$66703,$A$8+167,0),VLOOKUP($A103,'化工产品价格总库（国内）'!$A$1:$HB$66703,$A$8+167,0),B104) -> 7776.54
A104: =INDEX('化工产品价格总库（国内）'!A:A,ROW()-7) -> 2019-06-17 | B104: =IF(VLOOKUP($A104,'化工产品价格总库（国内）'!$A$1:$HB$66703,$A$8+167,0),VLOOKUP($A104,'化工产品价格总库（国内）'!$A$1:$HB$66703,$A$8+167,0),B105) -> 7576.54
A105: =INDEX('化工产品价格总库（国内）'!A:A,ROW()-7) -> 2019-06-16 | B105: =IF(VLOOKUP($A105,'化工产品价格总库（国内）'!$A$1:$HB$66703,$A$8+167,0),VLOOKUP($A105,'化工产品价格总库（国内）'!$A$1:$HB$66703,$A$8+167,0),B106) -> 7627.54
A106: =INDEX('化工产品价格总库（国内）'!A:A,ROW()-7) -> 2019-06-15 | B106: =IF(VLOOKUP($A106,'化工产品价格总库（国内）'!$A$1:$HB$66703,$A$8+167,0),VLOOKUP($A106,'化工产品价格总库（国内）'!$A$1:$HB$66703,$A$8+167,0),B107) -> 7627.54
A107: =INDEX('化工产品价格总库（国内）'!A:A,ROW()-7) -> 2019-06-14 | B107: =IF(VLOOKUP($A107,'化工产品价格总库（国内）'!$A$1:$HB$66703,$A$8+167,0),VLOOKUP($A107,'化工产品价格总库（国内）'!$A$1:$HB$66703,$A$8+167,0),B108) -> 7627.54
A108: =INDEX('化工产品价格总库（国内）'!A:A,ROW()-7) -> 2019-06-13 | B108: =IF(VLOOKUP($A108,'化工产品价格总库（国内）'!$A$1:$HB$66703,$A$8+167,0),VLOOKUP($A108,'化工产品价格总库（国内）'!$A$1:$HB$66703,$A$8+167,0),B109) -> 7666.54
A109: =INDEX('化工产品价格总库（国内）'!A:A,ROW()-7) -> 2019-06-12 | B109: =IF(VLOOKUP($A109,'化工产品价格总库（国内）'!$A$1:$HB$66703,$A$8+167,0),VLOOKUP($A109,'化工产品价格总库（国内）'!$A$1:$HB$66703,$A$8+167,0),B110) -> 7636.54
A110: =INDEX('化工产品价格总库（国内）'!A:A,ROW()-7) -> 2019-06-11 | B110: =IF(VLOOKUP($A110,'化工产品价格总库（国内）'!$A$1:$HB$66703,$A$8+167,0),VLOOKUP($A110,'化工产品价格总库（国内）'!$A$1:$HB$66703,$A$8+167,0),B111) -> 7642.54
A111: =INDEX('化工产品价格总库（国内）'!A:A,ROW()-7) -> 2019-06-10 | B111: =IF(VLOOKUP($A111,'化工产品价格总库（国内）'!$A$1:$HB$66703,$A$8+167,0),VLOOKUP($A111,'化工产品价格总库（国内）'!$A$1:$HB$66703,$A$8+167,0),B112) -> 7666.54
A112: =INDEX('化工产品价格总库（国内）'!A:A,ROW()-7) -> 2019-06-09 | B112: =IF(VLOOKUP($A112,'化工产品价格总库（国内）'!$A$1:$HB$66703,$A$8+167,0),VLOOKUP($A112,'化工产品价格总库（国内）'!$A$1:$HB$66703,$A$8+167,0),B113) -> 7756.54
A113: =INDEX('化工产品价格总库（国内）'!A:A,ROW()-7) -> 2019-06-08 | B113: =IF(VLOOKUP($A113,'化工产品价格总库（国内）'!$A$1:$HB$66703,$A$8+167,0),VLOOKUP($A113,'化工产品价格总库（国内）'!$A$1:$HB$66703,$A$8+167,0),B114) -> 7756.54
A114: =INDEX('化工产品价格总库（国内）'!A:A,ROW()-7) -> 2019-06-07 | B114: =IF(VLOOKUP($A114,'化工产品价格总库（国内）'!$A$1:$HB$66703,$A$8+167,0),VLOOKUP($A114,'化工产品价格总库（国内）'!$A$1:$HB$66703,$A$8+167,0),B115) -> 7756.54
A115: =INDEX('化工产品价格总库（国内）'!A:A,ROW()-7) -> 2019-06-06 | B115: =IF(VLOOKUP($A115,'化工产品价格总库（国内）'!$A$1:$HB$66703,$A$8+167,0),VLOOKUP($A115,'化工产品价格总库（国内）'!$A$1:$HB$66703,$A$8+167,0),B116) -> 7696.54
A116: =INDEX('化工产品价格总库（国内）'!A:A,ROW()-7) -> 2019-06-05 | B116: =IF(VLOOKUP($A116,'化工产品价格总库（国内）'!$A$1:$HB$66703,$A$8+167,0),VLOOKUP($A116,'化工产品价格总库（国内）'!$A$1:$HB$66703,$A$8+167,0),B117) -> 7690.54
A117: =INDEX('化工产品价格总库（国内）'!A:A,ROW()-7) -> 2019-06-04 | B117: =IF(VLOOKUP($A117,'化工产品价格总库（国内）'!$A$1:$HB$66703,$A$8+167,0),VLOOKUP($A117,'化工产品价格总库（国内）'!$A$1:$HB$66703,$A$8+167,0),B118) -> 7696.54
A118: =INDEX('化工产品价格总库（国内）'!A:A,ROW()-7) -> 2019-06-03 | B118: =IF(VLOOKUP($A118,'化工产品价格总库（国内）'!$A$1:$HB$66703,$A$8+167,0),VLOOKUP($A118,'化工产品价格总库（国内）'!$A$1:$HB$66703,$A$8+167,0),B119) -> 7636.54
A119: =INDEX('化工产品价格总库（国内）'!A:A,ROW()-7) -> 2019-06-02 | B119: =IF(VLOOKUP($A119,'化工产品价格总库（国内）'!$A$1:$HB$66703,$A$8+167,0),VLOOKUP($A119,'化工产品价格总库（国内）'!$A$1:$HB$66703,$A$8+167,0),B120) -> 7636.54
A120: =INDEX('化工产品价格总库（国内）'!A:A,ROW()-7) -> 2019-06-01 | B120: =IF(VLOOKUP($A120,'化工产品价格总库（国内）'!$A$1:$HB$66703,$A$8+167,0),VLOOKUP($A120,'化工产品价格总库（国内）'!$A$1:$HB$66703,$A$8+167,0),B121) -> 7636.54
A121: =INDEX('化工产品价格总库（国内）'!A:A,ROW()-7) -> 2019-05-31 | B121: =IF(VLOOKUP($A121,'化工产品价格总库（国内）'!$A$1:$HB$66703,$A$8+167,0),VLOOKUP($A121,'化工产品价格总库（国内）'!$A$1:$HB$66703,$A$8+167,0),B122) -> 7736.54
A122: =INDEX('化工产品价格总库（国内）'!A:A,ROW()-7) -> 2019-05-30 | B122: =IF(VLOOKUP($A122,'化工产品价格总库（国内）'!$A$1:$HB$66703,$A$8+167,0),VLOOKUP($A122,'化工产品价格总库（国内）'!$A$1:$HB$66703,$A$8+167,0),B123) -> 7736.54
A123: =INDEX('化工产品价格总库（国内）'!A:A,ROW()-7) -> 2019-05-29 | B123: =IF(VLOOKUP($A123,'化工产品价格总库（国内）'!$A$1:$HB$66703,$A$8+167,0),VLOOKUP($A123,'化工产品价格总库（国内）'!$A$1:$HB$66703,$A$8+167,0),B124) -> 7736.54
A124: =INDEX('化工产品价格总库（国内）'!A:A,ROW()-7) -> 2019-05-28 | B124: =IF(VLOOKUP($A124,'化工产品价格总库（国内）'!$A$1:$HB$66703,$A$8+167,0),VLOOKUP($A124,'化工产品价格总库（国内）'!$A$1:$HB$66703,$A$8+167,0),B125) -> 7886.54
A125: =INDEX('化工产品价格总库（国内）'!A:A,ROW()-7) -> 2019-05-27 | B125: =IF(VLOOKUP($A125,'化工产品价格总库（国内）'!$A$1:$HB$66703,$A$8+167,0),VLOOKUP($A125,'化工产品价格总库（国内）'!$A$1:$HB$66703,$A$8+167,0),B126) -> 8056.54
A126: =INDEX('化工产品价格总库（国内）'!A:A,ROW()-7) -> 2019-05-26 | B126: =IF(VLOOKUP($A126,'化工产品价格总库（国内）'!$A$1:$HB$66703,$A$8+167,0),VLOOKUP($A126,'化工产品价格总库（国内）'!$A$1:$HB$66703,$A$8+167,0),B127) -> 8086.54
A127: =INDEX('化工产品价格总库（国内）'!A:A,ROW()-7) -> 2019-05-25 | B127: =IF(VLOOKUP($A127,'化工产品价格总库（国内）'!$A$1:$HB$66703,$A$8+167,0),VLOOKUP($A127,'化工产品价格总库（国内）'!$A$1:$HB$66703,$A$8+167,0),B128) -> 8086.54
A128: =INDEX('化工产品价格总库（国内）'!A:A,ROW()-7) -> 2019-05-24 | B128: =IF(VLOOKUP($A128,'化工产品价格总库（国内）'!$A$1:$HB$66703,$A$8+167,0),VLOOKUP($A128,'化工产品价格总库（国内）'!$A$1:$HB$66703,$A$8+167,0),B129) -> 8086.54
A129: =INDEX('化工产品价格总库（国内）'!A:A,ROW()-7) -> 2019-05-23 | B129: =IF(VLOOKUP($A129,'化工产品价格总库（国内）'!$A$1:$HB$66703,$A$8+167,0),VLOOKUP($A129,'化工产品价格总库（国内）'!$A$1:$HB$66703,$A$8+167,0),B130) -> 8132.54
A130: =INDEX('化工产品价格总库（国内）'!A:A,ROW()-7) -> 2019-05-22 | B130: =IF(VLOOKUP($A130,'化工产品价格总库（国内）'!$A$1:$HB$66703,$A$8+167,0),VLOOKUP($A130,'化工产品价格总库（国内）'!$A$1:$HB$66703,$A$8+167,0),B131) -> 8299.54
A131: =INDEX('化工产品价格总库（国内）'!A:A,ROW()-7) -> 2019-05-21 | B131: =IF(VLOOKUP($A131,'化工产品价格总库（国内）'!$A$1:$HB$66703,$A$8+167,0),VLOOKUP($A131,'化工产品价格总库（国内）'!$A$1:$HB$66703,$A$8+167,0),B132) -> 8599.54
A132: =INDEX('化工产品价格总库（国内）'!A:A,ROW()-7) -> 2019-05-20 | B132: =IF(VLOOKUP($A132,'化工产品价格总库（国内）'!$A$1:$HB$66703,$A$8+167,0),VLOOKUP($A132,'化工产品价格总库（国内）'!$A$1:$HB$66703,$A$8+167,0),B133) -> 8943.54
A133: =INDEX('化工产品价格总库（国内）'!A:A,ROW()-7) -> 2019-05-19 | B133: =IF(VLOOKUP($A133,'化工产品价格总库（国内）'!$A$1:$HB$66703,$A$8+167,0),VLOOKUP($A133,'化工产品价格总库（国内）'!$A$1:$HB$66703,$A$8+167,0),B134) -> 9249.54
A134: =INDEX('化工产品价格总库（国内）'!A:A,ROW()-7) -> 2019-05-18 | B134: =IF(VLOOKUP($A134,'化工产品价格总库（国内）'!$A$1:$HB$66703,$A$8+167,0),VLOOKUP($A134,'化工产品价格总库（国内）'!$A$1:$HB$66703,$A$8+167,0),B135) -> 9249.54
A135: =INDEX('化工产品价格总库（国内）'!A:A,ROW()-7) -> 2019-05-17 | B135: =IF(VLOOKUP($A135,'化工产品价格总库（国内）'!$A$1:$HB$66703,$A$8+167,0),VLOOKUP($A135,'化工产品价格总库（国内）'!$A$1:$HB$66703,$A$8+167,0),B136) -> 9249.54
A136: =INDEX('化工产品价格总库（国内）'!A:A,ROW()-7) -> 2019-05-16 | B136: =IF(VLOOKUP($A136,'化工产品价格总库（国内）'!$A$1:$HB$66703,$A$8+167,0),VLOOKUP($A136,'化工产品价格总库（国内）'!$A$1:$HB$66703,$A$8+167,0),B137) -> 9526.54
A137: =INDEX('化工产品价格总库（国内）'!A:A,ROW()-7) -> 2019-05-15 | B137: =IF(VLOOKUP($A137,'化工产品价格总库（国内）'!$A$1:$HB$66703,$A$8+167,0),VLOOKUP($A137,'化工产品价格总库（国内）'!$A$1:$HB$66703,$A$8+167,0),B138) -> 9856.54
A138: =INDEX('化工产品价格总库（国内）'!A:A,ROW()-7) -> 2019-05-14 | B138: =IF(VLOOKUP($A138,'化工产品价格总库（国内）'!$A$1:$HB$66703,$A$8+167,0),VLOOKUP($A138,'化工产品价格总库（国内）'!$A$1:$HB$66703,$A$8+167,0),B139) -> 9976.54
A139: =INDEX('化工产品价格总库（国内）'!A:A,ROW()-7) -> 2019-05-13 | B139: =IF(VLOOKUP($A139,'化工产品价格总库（国内）'!$A$1:$HB$66703,$A$8+167,0),VLOOKUP($A139,'化工产品价格总库（国内）'!$A$1:$HB$66703,$A$8+167,0),B140) -> 10358.54
A140: =INDEX('化工产品价格总库（国内）'!A:A,ROW()-7) -> 2019-05-12 | B140: =IF(VLOOKUP($A140,'化工产品价格总库（国内）'!$A$1:$HB$66703,$A$8+167,0),VLOOKUP($A140,'化工产品价格总库（国内）'!$A$1:$HB$66703,$A$8+167,0),B141) -> 10602.54
A141: =INDEX('化工产品价格总库（国内）'!A:A,ROW()-7) -> 2019-05-11 | B141: =IF(VLOOKUP($A141,'化工产品价格总库（国内）'!$A$1:$HB$66703,$A$8+167,0),VLOOKUP($A141,'化工产品价格总库（国内）'!$A$1:$HB$66703,$A$8+167,0),B142) -> 10602.54
A142: =INDEX('化工产品价格总库（国内）'!A:A,ROW()-7) -> 2019-05-10 | B142: =IF(VLOOKUP($A142,'化工产品价格总库（国内）'!$A$1:$HB$66703,$A$8+167,0),VLOOKUP($A142,'化工产品价格总库（国内）'!$A$1:$HB$66703,$A$8+167,0),B143) -> 10602.54
A143: =INDEX('化工产品价格总库（国内）'!A:A,ROW()-7) -> 2019-05-09 | B143: =IF(VLOOKUP($A143,'化工产品价格总库（国内）'!$A$1:$HB$66703,$A$8+167,0),VLOOKUP($A143,'化工产品价格总库（国内）'!$A$1:$HB$66703,$A$8+167,0),B144) -> 11102.54
A144: =INDEX('化工产品价格总库（国内）'!A:A,ROW()-7) -> 2019-05-08 | B144: =IF(VLOOKUP($A144,'化工产品价格总库（国内）'!$A$1:$HB$66703,$A$8+167,0),VLOOKUP($A144,'化工产品价格总库（国内）'!$A$1:$HB$66703,$A$8+167,0),B145) -> 11102.54
A145: =INDEX('化工产品价格总库（国内）'!A:A,ROW()-7) -> 2019-05-07 | B145: =IF(VLOOKUP($A145,'化工产品价格总库（国内）'!$A$1:$HB$66703,$A$8+167,0),VLOOKUP($A145,'化工产品价格总库（国内）'!$A$1:$HB$66703,$A$8+167,0),B146) -> 11346.54
A146: =INDEX('化工产品价格总库（国内）'!A:A,ROW()-7) -> 2019-05-06 | B146: =IF(VLOOKUP($A146,'化工产品价格总库（国内）'!$A$1:$HB$66703,$A$8+167,0),VLOOKUP($A146,'化工产品价格总库（国内）'!$A$1:$HB$66703,$A$8+167,0),B147) -> 11746.54
A147: =INDEX('化工产品价格总库（国内）'!A:A,ROW()-7) -> 2019-05-05 | B147: =IF(VLOOKUP($A147,'化工产品价格总库（国内）'!$A$1:$HB$66703,$A$8+167,0),VLOOKUP($A147,'化工产品价格总库（国内）'!$A$1:$HB$66703,$A$8+167,0),B148) -> 11936.54
A148: =INDEX('化工产品价格总库（国内）'!A:A,ROW()-7) -> 2019-05-04 | B148: =IF(VLOOKUP($A148,'化工产品价格总库（国内）'!$A$1:$HB$66703,$A$8+167,0),VLOOKUP($A148,'化工产品价格总库（国内）'!$A$1:$HB$66703,$A$8+167,0),B149) -> 12148.54
A149: =INDEX('化工产品价格总库（国内）'!A:A,ROW()-7) -> 2019-05-03 | B149: =IF(VLOOKUP($A149,'化工产品价格总库（国内）'!$A$1:$HB$66703,$A$8+167,0),VLOOKUP($A149,'化工产品价格总库（国内）'!$A$1:$HB$66703,$A$8+167,0),B150) -> 12148.54
A150: =INDEX('化工产品价格总库（国内）'!A:A,ROW()-7) -> 2019-05-02 | B150: =IF(VLOOKUP($A150,'化工产品价格总库（国内）'!$A$1:$HB$66703,$A$8+167,0),VLOOKUP($A150,'化工产品价格总库（国内）'!$A$1:$HB$66703,$A$8+167,0),B151) -> 12148.54
A151: =INDEX('化工产品价格总库（国内）'!A:A,ROW()-7) -> 2019-05-01 | B151: =IF(VLOOKUP($A151,'化工产品价格总库（国内）'!$A$1:$HB$66703,$A$8+167,0),VLOOKUP($A151,'化工产品价格总库（国内）'!$A$1:$HB$66703,$A$8+167,0),B152) -> 12148.54
A152: =INDEX('化工产品价格总库（国内）'!A:A,ROW()-7) -> 2019-04-30 | B152: =IF(VLOOKUP($A152,'化工产品价格总库（国内）'!$A$1:$HB$66703,$A$8+167,0),VLOOKUP($A152,'化工产品价格总库（国内）'!$A$1:$HB$66703,$A$8+167,0),B153) -> 12148.54
A153: =INDEX('化工产品价格总库（国内）'!A:A,ROW()-7) -> 2019-04-29 | B153: =IF(VLOOKUP($A153,'化工产品价格总库（国内）'!$A$1:$HB$66703,$A$8+167,0),VLOOKUP($A153,'化工产品价格总库（国内）'!$A$1:$HB$66703,$A$8+167,0),B154) -> 11936.54
A154: =INDEX('化工产品价格总库（国内）'!A:A,ROW()-7) -> 2019-04-28 | B154: =IF(VLOOKUP($A154,'化工产品价格总库（国内）'!$A$1:$HB$66703,$A$8+167,0),VLOOKUP($A154,'化工产品价格总库（国内）'!$A$1:$HB$66703,$A$8+167,0),B155) -> 11918.54
A155: =INDEX('化工产品价格总库（国内）'!A:A,ROW()-7) -> 2019-04-27 | B155: =IF(VLOOKUP($A155,'化工产品价格总库（国内）'!$A$1:$HB$66703,$A$8+167,0),VLOOKUP($A155,'化工产品价格总库（国内）'!$A$1:$HB$66703,$A$8+167,0),B156) -> 11930.54
A156: =INDEX('化工产品价格总库（国内）'!A:A,ROW()-7) -> 2019-04-26 | B156: =IF(VLOOKUP($A156,'化工产品价格总库（国内）'!$A$1:$HB$66703,$A$8+167,0),VLOOKUP($A156,'化工产品价格总库（国内）'!$A$1:$HB$66703,$A$8+167,0),B157) -> 11930.54
A157: =INDEX('化工产品价格总库（国内）'!A:A,ROW()-7) -> 2019-04-25 | B157: =IF(VLOOKUP($A157,'化工产品价格总库（国内）'!$A$1:$HB$66703,$A$8+167,0),VLOOKUP($A157,'化工产品价格总库（国内）'!$A$1:$HB$66703,$A$8+167,0),B158) -> 11650.54
A158: =INDEX('化工产品价格总库（国内）'!A:A,ROW()-7) -> 2019-04-24 | B158: =IF(VLOOKUP($A158,'化工产品价格总库（国内）'!$A$1:$HB$66703,$A$8+167,0),VLOOKUP($A158,'化工产品价格总库（国内）'!$A$1:$HB$66703,$A$8+167,0),B159) -> 11750.54
A159: =INDEX('化工产品价格总库（国内）'!A:A,ROW()-7) -> 2019-04-23 | B159: =IF(VLOOKUP($A159,'化工产品价格总库（国内）'!$A$1:$HB$66703,$A$8+167,0),VLOOKUP($A159,'化工产品价格总库（国内）'!$A$1:$HB$66703,$A$8+167,0),B160) -> 11506.54
A160: =INDEX('化工产品价格总库（国内）'!A:A,ROW()-7) -> 2019-04-22 | B160: =IF(VLOOKUP($A160,'化工产品价格总库（国内）'!$A$1:$HB$66703,$A$8+167,0),VLOOKUP($A160,'化工产品价格总库（国内）'!$A$1:$HB$66703,$A$8+167,0),B161) -> 11006.54
A161: =INDEX('化工产品价格总库（国内）'!A:A,ROW()-7) -> 2019-04-21 | B161: =IF(VLOOKUP($A161,'化工产品价格总库（国内）'!$A$1:$HB$66703,$A$8+167,0),VLOOKUP($A161,'化工产品价格总库（国内）'!$A$1:$HB$66703,$A$8+167,0),B162) -> 10506.54
A162: =INDEX('化工产品价格总库（国内）'!A:A,ROW()-7) -> 2019-04-20 | B162: =IF(VLOOKUP($A162,'化工产品价格总库（国内）'!$A$1:$HB$66703,$A$8+167,0),VLOOKUP($A162,'化工产品价格总库（国内）'!$A$1:$HB$66703,$A$8+167,0),B163) -> 10506.54
A163: =INDEX('化工产品价格总库（国内）'!A:A,ROW()-7) -> 2019-04-19 | B163: =IF(VLOOKUP($A163,'化工产品价格总库（国内）'!$A$1:$HB$66703,$A$8+167,0),VLOOKUP($A163,'化工产品价格总库（国内）'!$A$1:$HB$66703,$A$8+167,0),B164) -> 10506.54
A164: =INDEX('化工产品价格总库（国内）'!A:A,ROW()-7) -> 2019-04-18 | B164: =IF(VLOOKUP($A164,'化工产品价格总库（国内）'!$A$1:$HB$66703,$A$8+167,0),VLOOKUP($A164,'化工产品价格总库（国内）'!$A$1:$HB$66703,$A$8+167,0),B165) -> 9756.54
A165: =INDEX('化工产品价格总库（国内）'!A:A,ROW()-7) -> 2019-04-17 | B165: =IF(VLOOKUP($A165,'化工产品价格总库（国内）'!$A$1:$HB$66703,$A$8+167,0),VLOOKUP($A165,'化工产品价格总库（国内）'!$A$1:$HB$66703,$A$8+167,0),B166) -> 9756.54
A166: =INDEX('化工产品价格总库（国内）'!A:A,ROW()-7) -> 2019-04-16 | B166: =IF(VLOOKUP($A166,'化工产品价格总库（国内）'!$A$1:$HB$66703,$A$8+167,0),VLOOKUP($A166,'化工产品价格总库（国内）'!$A$1:$HB$66703,$A$8+167,0),B167) -> 9756.54
A167: =INDEX('化工产品价格总库（国内）'!A:A,ROW()-7) -> 2019-04-15 | B167: =IF(VLOOKUP($A167,'化工产品价格总库（国内）'!$A$1:$HB$66703,$A$8+167,0),VLOOKUP($A167,'化工产品价格总库（国内）'!$A$1:$HB$66703,$A$8+167,0),B168) -> 9726.54
A168: =INDEX('化工产品价格总库（国内）'!A:A,ROW()-7) -> 2019-04-14 | B168: =IF(VLOOKUP($A168,'化工产品价格总库（国内）'!$A$1:$HB$66703,$A$8+167,0),VLOOKUP($A168,'化工产品价格总库（国内）'!$A$1:$HB$66703,$A$8+167,0),B169) -> 9756.54
A169: =INDEX('化工产品价格总库（国内）'!A:A,ROW()-7) -> 2019-04-13 | B169: =IF(VLOOKUP($A169,'化工产品价格总库（国内）'!$A$1:$HB$66703,$A$8+167,0),VLOOKUP($A169,'化工产品价格总库（国内）'!$A$1:$HB$66703,$A$8+167,0),B170) -> 9756.54
A170: =INDEX('化工产品价格总库（国内）'!A:A,ROW()-7) -> 2019-04-12 | B170: =IF(VLOOKUP($A170,'化工产品价格总库（国内）'!$A$1:$HB$66703,$A$8+167,0),VLOOKUP($A170,'化工产品价格总库（国内）'!$A$1:$HB$66703,$A$8+167,0),B171) -> 9756.54
A171: =INDEX('化工产品价格总库（国内）'!A:A,ROW()-7) -> 2019-04-11 | B171: =IF(VLOOKUP($A171,'化工产品价格总库（国内）'!$A$1:$HB$66703,$A$8+167,0),VLOOKUP($A171,'化工产品价格总库（国内）'!$A$1:$HB$66703,$A$8+167,0),B172) -> 9756.54
A172: =INDEX('化工产品价格总库（国内）'!A:A,ROW()-7) -> 2019-04-10 | B172: =IF(VLOOKUP($A172,'化工产品价格总库（国内）'!$A$1:$HB$66703,$A$8+167,0),VLOOKUP($A172,'化工产品价格总库（国内）'!$A$1:$HB$66703,$A$8+167,0),B173) -> 9906.54
A173: =INDEX('化工产品价格总库（国内）'!A:A,ROW()-7) -> 2019-04-09 | B173: =IF(VLOOKUP($A173,'化工产品价格总库（国内）'!$A$1:$HB$66703,$A$8+167,0),VLOOKUP($A173,'化工产品价格总库（国内）'!$A$1:$HB$66703,$A$8+167,0),B174) -> 9828.54
A174: =INDEX('化工产品价格总库（国内）'!A:A,ROW()-7) -> 2019-04-08 | B174: =IF(VLOOKUP($A174,'化工产品价格总库（国内）'!$A$1:$HB$66703,$A$8+167,0),VLOOKUP($A174,'化工产品价格总库（国内）'!$A$1:$HB$66703,$A$8+167,0),B175) -> 9946.54
A175: =INDEX('化工产品价格总库（国内）'!A:A,ROW()-7) -> 2019-04-07 | B175: =IF(VLOOKUP($A175,'化工产品价格总库（国内）'!$A$1:$HB$66703,$A$8+167,0),VLOOKUP($A175,'化工产品价格总库（国内）'!$A$1:$HB$66703,$A$8+167,0),B176) -> 9976.54
A176: =INDEX('化工产品价格总库（国内）'!A:A,ROW()-7) -> 2019-04-06 | B176: =IF(VLOOKUP($A176,'化工产品价格总库（国内）'!$A$1:$HB$66703,$A$8+167,0),VLOOKUP($A176,'化工产品价格总库（国内）'!$A$1:$HB$66703,$A$8+167,0),B177) -> 9976.54
A177: =INDEX('化工产品价格总库（国内）'!A:A,ROW()-7) -> 2019-04-05 | B177: =IF(VLOOKUP($A177,'化工产品价格总库（国内）'!$A$1:$HB$66703,$A$8+167,0),VLOOKUP($A177,'化工产品价格总库（国内）'!$A$1:$HB$66703,$A$8+167,0),B178) -> 9976.54
A178: =INDEX('化工产品价格总库（国内）'!A:A,ROW()-7) -> 2019-04-04 | B178: =IF(VLOOKUP($A178,'化工产品价格总库（国内）'!$A$1:$HB$66703,$A$8+167,0),VLOOKUP($A178,'化工产品价格总库（国内）'!$A$1:$HB$66703,$A$8+167,0),B179) -> 9976.54
A179: =INDEX('化工产品价格总库（国内）'!A:A,ROW()-7) -> 2019-04-03 | B179: =IF(VLOOKUP($A179,'化工产品价格总库（国内）'!$A$1:$HB$66703,$A$8+167,0),VLOOKUP($A179,'化工产品价格总库（国内）'!$A$1:$HB$66703,$A$8+167,0),B180) -> 9726.54
A180: =INDEX('化工产品价格总库（国内）'!A:A,ROW()-7) -> 2019-04-02 | B180: =IF(VLOOKUP($A180,'化工产品价格总库（国内）'!$A$1:$HB$66703,$A$8+167,0),VLOOKUP($A180,'化工产品价格总库（国内）'!$A$1:$HB$66703,$A$8+167,0),B181) -> 9744.54
A181: =INDEX('化工产品价格总库（国内）'!A:A,ROW()-7) -> 2019-04-01 | B181: =IF(VLOOKUP($A181,'化工产品价格总库（国内）'!$A$1:$HB$66703,$A$8+167,0),VLOOKUP($A181,'化工产品价格总库（国内）'!$A$1:$HB$66703,$A$8+167,0),B182) -> 9566.54
A182: =INDEX('化工产品价格总库（国内）'!A:A,ROW()-7) -> 2019-03-31 | B182: =IF(VLOOKUP($A182,'化工产品价格总库（国内）'!$A$1:$HB$66703,$A$8+167,0),VLOOKUP($A182,'化工产品价格总库（国内）'!$A$1:$HB$66703,$A$8+167,0),B183) -> 8994.54
A183: =INDEX('化工产品价格总库（国内）'!A:A,ROW()-7) -> 2019-03-30 | B183: =IF(VLOOKUP($A183,'化工产品价格总库（国内）'!$A$1:$HB$66703,$A$8+167,0),VLOOKUP($A183,'化工产品价格总库（国内）'!$A$1:$HB$66703,$A$8+167,0),B184) -> 8994.54
A184: =INDEX('化工产品价格总库（国内）'!A:A,ROW()-7) -> 2019-03-29 | B184: =IF(VLOOKUP($A184,'化工产品价格总库（国内）'!$A$1:$HB$66703,$A$8+167,0),VLOOKUP($A184,'化工产品价格总库（国内）'!$A$1:$HB$66703,$A$8+167,0),B185) -> 8994.54
A185: =INDEX('化工产品价格总库（国内）'!A:A,ROW()-7) -> 2019-03-28 | B185: =IF(VLOOKUP($A185,'化工产品价格总库（国内）'!$A$1:$HB$66703,$A$8+167,0),VLOOKUP($A185,'化工产品价格总库（国内）'!$A$1:$HB$66703,$A$8+167,0),B186) -> 8946.54
A186: =INDEX('化工产品价格总库（国内）'!A:A,ROW()-7) -> 2019-03-27 | B186: =IF(VLOOKUP($A186,'化工产品价格总库（国内）'!$A$1:$HB$66703,$A$8+167,0),VLOOKUP($A186,'化工产品价格总库（国内）'!$A$1:$HB$66703,$A$8+167,0),B187) -> 8512.54
A187: =INDEX('化工产品价格总库（国内）'!A:A,ROW()-7) -> 2019-03-26 | B187: =IF(VLOOKUP($A187,'化工产品价格总库（国内）'!$A$1:$HB$66703,$A$8+167,0),VLOOKUP($A187,'化工产品价格总库（国内）'!$A$1:$HB$66703,$A$8+167,0),B188) -> 8506.54
A188: =INDEX('化工产品价格总库（国内）'!A:A,ROW()-7) -> 2019-03-25 | B188: =IF(VLOOKUP($A188,'化工产品价格总库（国内）'!$A$1:$HB$66703,$A$8+167,0),VLOOKUP($A188,'化工产品价格总库（国内）'!$A$1:$HB$66703,$A$8+167,0),B189) -> 8506.54
A189: =INDEX('化工产品价格总库（国内）'!A:A,ROW()-7) -> 2019-03-24 | B189: =IF(VLOOKUP($A189,'化工产品价格总库（国内）'!$A$1:$HB$66703,$A$8+167,0),VLOOKUP($A189,'化工产品价格总库（国内）'!$A$1:$HB$66703,$A$8+167,0),B190) -> 8276.54
A190: =INDEX('化工产品价格总库（国内）'!A:A,ROW()-7) -> 2019-03-23 | B190: =IF(VLOOKUP($A190,'化工产品价格总库（国内）'!$A$1:$HB$66703,$A$8+167,0),VLOOKUP($A190,'化工产品价格总库（国内）'!$A$1:$HB$66703,$A$8+167,0),B191) -> 8276.54
A191: =INDEX('化工产品价格总库（国内）'!A:A,ROW()-7) -> 2019-03-22 | B191: =IF(VLOOKUP($A191,'化工产品价格总库（国内）'!$A$1:$HB$66703,$A$8+167,0),VLOOKUP($A191,'化工产品价格总库（国内）'!$A$1:$HB$66703,$A$8+167,0),B192) -> 8276.54
A192: =INDEX('化工产品价格总库（国内）'!A:A,ROW()-7) -> 2019-03-21 | B192: =IF(VLOOKUP($A192,'化工产品价格总库（国内）'!$A$1:$HB$66703,$A$8+167,0),VLOOKUP($A192,'化工产品价格总库（国内）'!$A$1:$HB$66703,$A$8+167,0),B193) -> 7894.54
A193: =INDEX('化工产品价格总库（国内）'!A:A,ROW()-7) -> 2019-03-20 | B193: =IF(VLOOKUP($A193,'化工产品价格总库（国内）'!$A$1:$HB$66703,$A$8+167,0),VLOOKUP($A193,'化工产品价格总库（国内）'!$A$1:$HB$66703,$A$8+167,0),B194) -> 7918.54
A194: =INDEX('化工产品价格总库（国内）'!A:A,ROW()-7) -> 2019-03-19 | B194: =IF(VLOOKUP($A194,'化工产品价格总库（国内）'!$A$1:$HB$66703,$A$8+167,0),VLOOKUP($A194,'化工产品价格总库（国内）'!$A$1:$HB$66703,$A$8+167,0),B195) -> 7806.54
A195: =INDEX('化工产品价格总库（国内）'!A:A,ROW()-7) -> 2019-03-18 | B195: =IF(VLOOKUP($A195,'化工产品价格总库（国内）'!$A$1:$HB$66703,$A$8+167,0),VLOOKUP($A195,'化工产品价格总库（国内）'!$A$1:$HB$66703,$A$8+167,0),B196) -> 7794.54
A196: =INDEX('化工产品价格总库（国内）'!A:A,ROW()-7) -> 2019-03-17 | B196: =IF(VLOOKUP($A196,'化工产品价格总库（国内）'!$A$1:$HB$66703,$A$8+167,0),VLOOKUP($A196,'化工产品价格总库（国内）'!$A$1:$HB$66703,$A$8+167,0),B197) -> 7836.54
A197: =INDEX('化工产品价格总库（国内）'!A:A,ROW()-7) -> 2019-03-16 | B197: =IF(VLOOKUP($A197,'化工产品价格总库（国内）'!$A$1:$HB$66703,$A$8+167,0),VLOOKUP($A197,'化工产品价格总库（国内）'!$A$1:$HB$66703,$A$8+167,0),B198) -> 7836.54
A198: =INDEX('化工产品价格总库（国内）'!A:A,ROW()-7) -> 2019-03-15 | B198: =IF(VLOOKUP($A198,'化工产品价格总库（国内）'!$A$1:$HB$66703,$A$8+167,0),VLOOKUP($A198,'化工产品价格总库（国内）'!$A$1:$HB$66703,$A$8+167,0),B199) -> 7836.54
A199: =INDEX('化工产品价格总库（国内）'!A:A,ROW()-7) -> 2019-03-14 | B199: =IF(VLOOKUP($A199,'化工产品价格总库（国内）'!$A$1:$HB$66703,$A$8+167,0),VLOOKUP($A199,'化工产品价格总库（国内）'!$A$1:$HB$66703,$A$8+167,0),B200) -> 7836.54
A200: =INDEX('化工产品价格总库（国内）'!A:A,ROW()-7) -> 2019-03-13 | B200: =IF(VLOOKUP($A200,'化工产品价格总库（国内）'!$A$1:$HB$66703,$A$8+167,0),VLOOKUP($A200,'化工产品价格总库（国内）'!$A$1:$HB$66703,$A$8+167,0),B201) -> 7836.54
... 2621 more rows

Sheet 价格总览
A1: 本周价格 | B1: =IF(B11=0,B12,B11) -> 24500.00 | E1: 更新日期 | F1: =INDEX('化工产品价格总库（国内）'!A:A,ROW()+2) -> 2019-09-19 | H1: 返回首页 | J1: 单季均价 | L1: 2019-07-01 | M1: 2019-04-01 | N1: 2019-01-01 | O1: 2018-10-01 | P1: 2018-07-01 | Q1: 2018-04-01 | R1: 2018-01-01 | S1: 2017-10-01 | T1: 2017-07-01 | U1: 2017-04-01 | V1: 2017-01-01 | W1: 2016-10-01 | X1: 2016-07-01 | Y1: 2016-04-01 | Z1: 2016-01-01 | AA1: 2015-10-01 | AB1: 2015-07-01 | AC1: 2015-04-01 | AD1: 2015-01-01 | AE1: 2014-10-01 | AF1: 2014-07-01 | AG1: 2014-04-01 | AH1: 2014-01-01 | AI1: 2013-10-01 | AJ1: 2013-07-01 | AK1: 2013-04-01 | AL1: 2013-01-01 | AM1: 2012-10-01 | AN1: 2012-07-01 | AO1: 2012-04-01 | AP1: 2012-01-01 | AQ1: 2011-10-01 | AR1: 2011-07-01 | AS1: 2011-04-01 | AT1: 2011-01-01 | AU1: 2010-10-01 | AV1: 2010-07-01 | AW1: 2010-04-01 | AX1: 2010-01-01 | AY1: 2009-10-01 | AZ1: 2009-07-01 | BA1: 2009-04-01 | BB1: 2009-01-01 | BC1: 2008-10-01 | BD1: 2008-07-01 | BE1: 2008-04-01 | BF1: 2008-01-01 | BG1: 2007-10-01 | BH1: 2007-07-01 | BI1: 2007-04-01 | BJ1: 2007-01-01 | BK1: 2006-10-01 | BL1: 2006-07-01 | BM1: 2006-04-01 | BN1: 2006-01-01
A2: 一周均价 | B2: =AVERAGE(B$11:B$17) -> 24500.00 | L2: 2019-09-30 | M2: 2019-06-30 | N2: 2019-03-31 | O2: 2018-12-31 | P2: 2018-09-30 | Q2: 2018-06-30 | R2: 2018-03-31 | S2: 2017-12-31 | T2: 2017-09-30 | U2: 2017-06-30 | V2: 2017-03-31 | W2: 2016-12-31 | X2: 2016-09-30 | Y2: 2016-06-30 | Z2: 2016-03-31 | AA2: 2015-12-31 | AB2: 2015-09-30 | AC2: 2015-06-30 | AD2: 2015-03-31 | AE2: 2014-12-31 | AF2: 2014-09-30 | AG2: 2014-06-30 | AH2: 2014-03-31 | AI2: 2013-12-31 | AJ2: 2013-09-30 | AK2: 2013-06-30 | AL2: 2013-03-31 | AM2: 2012-12-31 | AN2: 2012-09-30 | AO2: 2012-06-30 | AP2: 2012-03-31 | AQ2: 2011-12-31 | AR2: 2011-09-30 | AS2: 2011-06-30 | AT2: 2011-03-31 | AU2: 2010-12-31 | AV2: 2010-09-30 | AW2: 2010-06-30 | AX2: 2010-03-31 | AY2: 2009-12-31 | AZ2: 2009-09-30 | BA2: 2009-06-30 | BB2: 2009-03-31 | BC2: 2008-12-31 | BD2: 2008-09-30 | BE2: 2008-06-30 | BF2: 2008-03-31 | BG2: 2007-12-31 | BH2: 2007-09-30 | BI2: 2007-06-30 | BJ2: 2007-03-31 | BK2: 2006-12-31 | BL2: 2006-09-30 | BM2: 2006-06-30 | BN2: 2006-03-31
A3: 一月均价 | B3: =AVERAGE(B$11:B$30) -> 24900.00 | C3: 13 | D3: 1 | E3: 石油化工 | J3: 产品 | K3: 地区 | L3: 2019Q3 | M3: 2019Q2 | N3: 2019Q1 | O3: 2018Q4 | P3: 2018Q3 | Q3: 2018Q2 | R3: 2018Q1 | S3: 2017Q4 | T3: 2017Q3 | U3: 2017Q2 | V3: 2017Q1 | W3: 2016Q4 | X3: 2016Q3 | Y3: 2016Q2 | Z3: 2016Q1 | AA3: 2015Q4 | AB3: 2015Q3 | AC3: 2015Q2 | AD3: 2015Q1 | AE3: 2014Q4 | AF3: 2014Q3 | AG3: 2014Q2 | AH3: 2014Q1 | AI3: 2013Q4 | AJ3: 2013Q3 | AK3: 2013Q2 | AL3: 2013Q1 | AM3: 2012Q4 | AN3: 2012Q3 | AO3: 2012Q2 | AP3: 2012Q1 | AQ3: 2011Q4 | AR3: 2011Q3 | AS3: 2011Q2 | AT3: 2011Q1 | AU3: 2010Q4 | AV3: 2010Q3 | AW3: 2010Q2 | AX3: 2010Q1 | AY3: 2009Q4 | AZ3: 2009Q3 | BA3: 2009Q2 | BB3: 2009Q1 | BC3: 2008Q4 | BD3: 2008Q3 | BE3: 2008Q2 | BF3: 2008Q1 | BG3: 2007Q4 | BH3: 2007Q3 | BI3: 2007Q2 | BJ3: 2007Q1 | BK3: 2006Q4 | BL3: 2006Q3 | BM3: 2006Q2 | BN3: 2006Q1
A4: 一周涨跌幅 | B4: =IF(B$11=0,(B$12-B$19)/B$19,(B$11-B$18)/B$18) -> 0.00% | C4: 3 | J4: 原油 | K4: WTI（美元/桶） | L4: 56.29 | M4: 59.91 | N4: 54.87 | O4: 58.80 | P4: 69.61 | Q4: 67.85 | R4: 62.97 | S4: 55.46 | T4: 48.11 | U4: 48.32 | V4: 51.94 | W4: 49.25 | X4: 45.06 | Y4: 45.01 | Z4: 33.73 | AA4: 42.41 | AB4: 46.90 | AC4: 57.80 | AD4: 49.26 | AE4: 74.39 | AF4: 97.31 | AG4: 103.07 | AH4: 98.60 | AI4: 97.57 | AJ4: 105.94 | AK4: 94.14 | AL4: 94.37 | AM4: 88.18 | AN4: 92.29 | AO4: 93.49 | AP4: 102.88 | AQ4: 93.94 | AR4: 89.60 | AS4: 102.59 | AT4: 94.40 | AU4: 85.17 | AV4: 76.09 | AW4: 78.15 | AX4: 78.64 | AY4: 75.99 | AZ4: 68.25 | BA4: 59.83 | BB4: 43.30 | BC4: 58.50 | BD4: 118.67 | BE4: 124.30 | BF4: 97.71 | BG4: 90.88 | BH4: 75.17 | BI4: 65.06 | BJ4: 58.32 | BK4: 60.18 | BL4: 70.69 | BM4: 70.70 | BN4: 63.48
A5: 一月涨跌幅 | B5: =IF(B$11=0,(B$12-B$42)/B$42,(B$11-B$41)/B$41) -> -3.92% | C5: 18 | D5: 2 | E5: 化肥农药 | J5: 原油 | K5: 布伦特（美元/桶） | L5: 61.85 | M5: 68.56 | N5: 63.80 | O5: 68.17 | P5: 75.93 | Q5: 74.94 | R5: 67.29 | S5: 61.63 | T5: 52.11 | U5: 50.94 | V5: 54.71 | W5: 51.04 | X5: 46.93 | Y5: 46.41 | Z5: 35.41 | AA5: 44.44 | AB5: 51.17 | AC5: 63.39 | AD5: 57.17 | AE5: 78.30 | AF5: 103.46 | AG5: 109.81 | AH5: 107.96 | AI5: 109.39 | AJ5: 109.77 | AK5: 103.26 | AL5: 112.57 | AM5: 110.05 | AN5: 109.51 | AO5: 109.06 | AP5: 118.28 | AQ5: 108.82 | AR5: 112.50 | AS5: 117.09 | AT5: 105.17 | AU5: 87.26 | AV5: 76.87 | AW5: 79.49 | AX5: 77.20 | AY5: 75.29 | AZ5: 68.92 | BA5: 59.71 | BB5: 45.90 | BC5: 57.19 | BD5: 117.29 | BE5: 123.22 | BF5: 96.39 | BG5: 88.75 | BH5: 74.66 | BI5: 68.67 | BJ5: 58.58 | BK5: 60.70 | BL5: 70.92 | BM5: 70.31 | BN5: 62.60
A6: 两月涨跌幅 | B6: =IF(B$11=0,(B$12-B$72)/B$72,(B$11-B$71)/B$71) -> -12.50% | C6: 23 | J6: 原油 | K6: 阿曼（美元/桶） | L6: 61.46 | M6: 68.10 | N6: 63.52 | O6: 68.27 | P6: 74.45 | Q6: 71.95 | R6: 64.14 | S6: 59.28 | T6: 50.61 | U6: 49.88 | V6: 53.70 | W6: 48.69 | X6: 43.88 | Y6: 43.43 | Z6: 31.53 | AA6: 40.89 | AB6: 50.17 | AC6: 61.23 | AD6: 53.94 | AE6: 64.56 | AF6: 95.18 | AG6: 106.71 | AH6: 104.79 | AI6: 106.07 | AJ6: 107.46 | AK6: 101.58 | AL6: 105.87 | AM6: 107.21 | AN6: 109.77 | AO6: 100.33 | AP6: 119.39 | AQ6: 109.13 | AR6: 105.36 | AS6: 108.89 | AT6: 109.29 | AU6: 88.73 | AV6: 76.82 | AW6: 74.38 | AX6: 78.68 | AY6: 76.62 | AZ6: 71.16 | BA6: 64.44 | BB6: 46.89 | BC6: 44.71 | BD6: 91.96 | BE6: 127.11 | BF6: 97.55 | BG6: 87.61 | BH6: 73.29 | BI6: 67.21 | BJ6: 60.10 | BK6: 56.24 | BL6: 62.85 | BM6: 67.61 | BN6: 61.14
A7: 三月涨跌幅 | B7: =IF(B$11=0,(B$12-B$102)/B$102,(B$11-B$101)/B$101) -> -12.50% | C7: 10 | D7: 3 | E7: 氯碱纯碱民爆 | J7: 国际汽油 | K7: 新加坡（美元/桶） | L7: 72.04 | M7: 75.36 | N7: 67.03 | O7: 72.18 | P7: 85.56 | Q7: 84.34 | R7: 77.66 | S7: 73.74 | T7: 66.51 | U7: 63.92 | V7: 67.88 | W7: 62.88 | X7: 54.74 | Y7: 57.40 | Z7: 49.48 | AA7: 59.55 | AB7: 69.56 | AC7: 80.92 | AD7: 70.85 | AE7: 89.45 | AF7: 114.71 | AG7: 122.34 | AH7: 119.05 | AI7: 116.14 | AJ7: 118.85 | AK7: 115.26 | AL7: 126.42 | AM7: 120.73 | AN7: 122.36 | AO7: 120.64 | AP7: 130.35 | AQ7: 116.28 | AR7: 124.44 | AS7: 124.92 | AT7: 113.07 | AU7: 95.02 | AV7: 82.58 | AW7: 87.47 | AX7: 88.35 | AY7: 80.44 | AZ7: 76.87 | BA7: 68.80 | BB7: 54.95 | BC7: 56.60 | BD7: 119.65 | BE7: 129.47 | BF7: 104.89 | BG7: 95.99 | BH7: 81.63 | BI7: 85.41 | BJ7: 68.33 | BK7: 64.31 | BL7: 78.06 | BM7: 83.49 | BN7: 67.35
A8: 一年涨跌幅 | B8: =IF(B$11=0,(B$12-VLOOKUP(DATE(2015,1,1),A:B,2,FALSE))/VLOOKUP(DATE(2015,1,1),A:B,2,FALSE),(B$11-VLOOKUP(DATE(2015,1,1),A:B,2,FALSE))/VLOOKUP(DATE(2015,1,1),A:B,2,FALSE)) -> -2.00% | C8: 49 | J8: 国内汽油 | K8: 出厂价（元/吨） | L8: 7560.12 | M8: 7937.14 | N8: 7613.78 | O8: 8437.93 | P8: 8507.66 | Q8: 8122.31 | R8: 7768.61 | S8: 7462.83 | T8: 6871.52 | U8: 7059.62 | V8: 7261.56 | W8: 6655.27 | X8: 6443.42 | Y8: 6258.46 | Z8: 5985.00 | AA8: 6282.39 | AB8: 6682.55 | AC8: 7111.21 | AD8: 6627.70 | AE8: 7266.05 | AF8: 8353.04 | AG8: 8843.79 | AH8: 8676.33 | AI8: 8512.07 | AJ8: 8590.16 | AK8: 8221.98 | AL8: 8590.78 | AM8: 8577.17 | AN8: 8566.96 | AO8: 8459.34 | AP8: 8850.33 | AQ8: 8280.00 | AR8: 8501.74 | AS8: 8580.00 | AT8: 8154.44 | AU8: 7561.52 | AV8: 7207.50 | AW8: 7263.30 | AX8: 7167.56 | AY8: 7058.26 | AZ8: 6640.76 | BA8: 6210.44 | BB8: 5565.67 | BC8: 6012.39 | BD8: 6480.00 | BE8: 5952.53 | BF8: 5480.00 | BG8: 5480.00 | BH8: 4985.43 | BI8: 4980.00 | BJ8: 4980.00 | BK8: 5154.57 | BL8: 5200.00 | BM8: 5084.62 | BN8: 4526.67
A9: 129 | B9: =INDEX('化工产品价格总库（国内）'!1:1048576,1,价格总览!A9) -> R134a | C9: 13 | D9: 4 | E9: 聚氨酯 | J9: 国际柴油 | K9: 新加坡（美元/桶） | L9: 75.99 | M9: 80.01 | N9: 75.95 | O9: 81.57 | P9: 88.53 | Q9: 86.75 | R9: 78.68 | S9: 72.38 | T9: 64.48 | U9: 61.01 | V9: 64.89 | W9: 60.25 | X9: 51.80 | Y9: 53.11 | Z9: 40.39 | AA9: 54.48 | AB9: 60.79 | AC9: 75.29 | AD9: 70.33 | AE9: 91.34 | AF9: 115.94 | AG9: 122.28 | AH9: 122.25 | AI9: 124.59 | AJ9: 123.75 | AK9: 117.43 | AL9: 127.62 | AM9: 126.79 | AN9: 127.58 | AO9: 124.19 | AP9: 134.02 | AQ9: 126.05 | AR9: 126.44 | AS9: 131.98 | AT9: 119.42 | AU9: 97.95 | AV9: 87.09 | AW9: 90.22 | AX9: 85.98 | AY9: 82.39 | AZ9: 76.07 | BA9: 67.68 | BB9: 55.68 | BC9: 75.09 | BD9: 142.17 | BE9: 157.39 | BF9: 116.54 | BG9: 105.83 | BH9: 88.32 | BI9: 83.23 | BJ9: 71.76 | BK9: 71.83 | BL9: 84.18 | BM9: 87.38 | BN9: 74.30
A10: 地区 | B10: =INDEX('化工产品价格总库（国内）'!1:1048576,2,价格总览!A9) -> 浙江巨化（元/吨） | C10: 62 | J10: 国内柴油 | K10: 出厂价（元/吨） | L10: 6576.60 | M10: 6940.00 | N10: 6610.39 | O10: 7402.61 | P10: 7469.40 | Q10: 7097.09 | R10: 6753.00 | S10: 6455.65 | T10: 5889.95 | U10: 6068.96 | V10: 6271.11 | W10: 5684.02 | X10: 5482.01 | Y10: 5303.19 | Z10: 5039.29 | AA10: 5326.41 | AB10: 5714.18 | AC10: 6136.43 | AD10: 5673.11 | AE10: 6115.79 | AF10: 7251.47 | AG10: 7722.86 | AH10: 7563.89 | AI10: 7615.11 | AJ10: 7759.24 | AK10: 7407.14 | AL10: 7777.00 | AM10: 7765.65 | AN10: 7753.04 | AO10: 7644.51 | AP10: 8000.33 | AQ10: 7430.00 | AR10: 7651.74 | AS10: 7730.00 | AT10: 7375.56 | AU10: 6816.96 | AV10: 6476.74 | AW10: 6530.11 | AX10: 6427.56 | AY10: 6318.26 | AZ10: 5900.76 | BA10: 5470.44 | BB10: 4888.00 | BC10: 5500.65 | BD10: 6070.00 | BE10: 5542.53 | BF10: 5070.00 | BG10: 5070.00 | BH10: 4575.43 | BI10: 4570.00 | BJ10: 4570.00 | BK10: 4570.00 | BL10: 4570.00 | BM10: 4454.62 | BN10: 3954.44
A11: =INDEX('化工产品价格总库（国内）'!A:A,ROW()-8) -> 2019-09-19 | B11: =IF(VLOOKUP($A11,'化工产品价格总库（国内）'!$A$1:$FG$66703,$A$9,0),VLOOKUP($A11,'化工产品价格总库（国内）'!$A$1:$FG$66703,$A$9,0),B12) -> 24500 | C11: 24 | D11: 5 | E11: 化纤聚酯 | J11: 国内航空煤油 | K11: 出厂价（元/吨） | L11: 4936.67 | M11: 5038.79 | N11: 4785.30 | O11: 6003.93 | P11: 5481.68 | Q11: 5074.76 | R11: 4930.80 | S11: 4397.26 | T11: 3915.11 | U11: 4093.46 | V11: 4314.09 | W11: 3812.51 | X11: 3584.34 | Y11: 3149.92 | Z11: 2759.32 | AA11: 3574.38 | AB11: 3968.38 | AC11: 4280.24 | AD11: 4137.97 | AE11: 5628.61 | AF11: 6769.09 | AG11: 6976.84 | AH11: 7022.30 | AI11: 7147.47 | AJ11: 7143.52 | AK11: 6812.76 | AL11: 7596.52 | AM11: 7516.37 | AN11: 7432.01 | AO11: 7348.31 | AP11: 7754.32 | AQ11: 7427.05 | AR11: 7600.15 | AS11: 7447.45 | AT11: 6414.44 | AU11: 5826.96 | AV11: 5486.74 | AW11: 5540.11 | AX11: 5295.56 | AY11: 5162.17 | AZ11: 4921.09 | BA11: 4300.33 | BB11: 3837.11 | BC11: 6068.70 | BD11: 7450.00 | BE11: 6658.79 | BF11: 5950.00 | BG11: 5950.00 | BH11: 5455.43 | BI11: 5450.00 | BJ11: 5450.00 | BK11: 5521.41 | BL11: 5540.00 | BM11: 5424.62 | BN11: 4866.67
A12: =INDEX('化工产品价格总库（国内）'!A:A,ROW()-8) -> 2019-09-18 | B12: =IF(VLOOKUP($A12,'化工产品价格总库（国内）'!$A$1:$FG$66703,$A$9,0),VLOOKUP($A12,'化工产品价格总库（国内）'!$A$1:$FG$66703,$A$9,0),B13) -> 24500 | C12: 78 | J12: 国际石脑油 | K12: 新加坡（美元/桶） | L12: 52.81 | M12: 58.57 | N12: 55.82 | O12: 61.11 | P12: 72.83 | Q12: 70.82 | R12: 63.57 | S12: 62.33 | T12: 50.12 | U12: 48.41 | V12: 54.12 | W12: 48.48 | X12: 41.24 | Y12: 43.72 | Z12: 36.82 | AA12: 47.90 | AB12: 48.81 | AC12: 60.78 | AD12: 55.97 | AE12: 70.54 | AF12: 99.98 | AG12: 105.22 | AH12: 103.07 | AI12: 103.88 | AJ12: 100.52 | AK12: 93.65 | AL12: 106.37 | AM12: 103.54 | AN12: 100.12 | AO12: 98.10 | AP12: 112.76 | AQ12: 96.78 | AR12: 104.02 | AS12: 108.57 | AT12: 100.42 | AU12: 88.04 | AV12: 72.10 | AW12: 77.54 | AX12: 79.07 | AY12: 74.45 | AZ12: 66.66 | BA12: 56.45 | BB12: 45.25 | BC12: 37.47 | BD12: 109.00 | BE12: 113.52 | BF12: 95.00 | BG12: 88.33 | BH12: 73.97 | BI12: 74.73 | BJ12: 63.56 | BK12: 58.07 | BL12: 65.29 | BM12: 65.92 | BN12: 58.20
A13: =INDEX('化工产品价格总库（国内）'!A:A,ROW()-8) -> 2019-09-17 | B13: =IF(VLOOKUP($A13,'化工产品价格总库（国内）'!$A$1:$FG$66703,$A$9,0),VLOOKUP($A13,'化工产品价格总库（国内）'!$A$1:$FG$66703,$A$9,0),B14) -> 24500 | C13: 8 | D13: 6 | E13: 塑膜 | J13: 国内石脑油 | K13: 中石化出厂预算价（元/吨） | L13: 6459.26 | M13: 6427.25 | N13: 4693.67 | O13: 4620.00 | P13: 4620.87 | Q13: 4258.79 | R13: 4264.56 | S13: 3912.50 | T13: 3358.80 | U13: 3476.59 | V13: 3734.33 | W13: 3092.93 | X13: 2858.48 | Y13: 2864.51 | Z13: 2474.62 | AA13: 2943.04 | AB13: 3623.15 | AC13: 3780.00 | AD13: 3331.22 | AE13: 5531.32 | AF13: 6824.35 | AG13: 6782.86 | AH13: 6816.78 | AI13: 6631.96 | AJ13: 6308.26 | AK13: 6465.38 | AL13: 7089.56 | AM13: 7036.52 | AN13: 6166.20 | AO13: 7435.71 | AP13: 7041.54 | AQ13: 6718.15 | AR13: 7157.39 | AS13: 7655.60 | AT13: 6687.22 | AU13: 5775.98 | AV13: 5202.39 | AW13: 5839.01 | AX13: 5656.00 | AY13: 5063.26 | AZ13: 4773.80 | BA13: 3514.29 | BB13: 2718.22 | BC13: 4674.35 | BD13: 8888.04 | BE13: 7777.91 | BF13: 7314.29 | BG13: 6717.72 | BH13: 6138.48 | BI13: 6163.74 | BJ13: 5153.89 | BK13: 5074.46 | BL13: 6070.65 | BM13: 5580.55 | BN13: 4980.89
A14: =INDEX('化工产品价格总库（国内）'!A:A,ROW()-8) -> 2019-09-16 | B14: =IF(VLOOKUP($A14,'化工产品价格总库（国内）'!$A$1:$FG$66703,$A$9,0),VLOOKUP($A14,'化工产品价格总库（国内）'!$A$1:$FG$66703,$A$9,0),B15) -> 24500 | C14: 104 | J14: 液化气 | K14: 长岭炼化（元/吨） | L14: 3524.44 | M14: 4164.84 | N14: 4232.78 | O14: 4686.96 | P14: 4951.09 | Q14: 4183.52 | R14: 4320.78 | S14: 4753.80 | T14: 3714.67 | U14: 3707.14 | V14: 4324.78 | W14: 3765.11 | X14: 2884.24 | Y14: 2956.48 | Z14: 3268.90 | AA14: 3854.02 | AB14: 3692.83 | AC14: 4092.86 | AD14: 4444.73 | AE14: 5235.66 | AF14: 6036.41 | AG14: 6527.14 | AH14: 6864.88 | AI14: 6907.61 | AJ14: 6069.02 | AK14: 5922.31 | AL14: 6334.00 | AM14: 6858.37 | AN14: 6249.89 | AO14: 6132.31 | AP14: 6660.55 | AQ14: 6029.67 | AR14: 6289.46 | AS14: 6596.26 | AT14: 6155.22 | AU14: 6142.83 | AV14: 5097.28 | AW14: 5828.24 | AX14: 5757.33 | AY14: 5595.54 | AZ14: 4314.13 | BA14: 3560.22 | BB14: 3654.22 | BC14: 4646.96 | BD14: 6046.02 | BE14: 6821.78 | BF14: 6175.27 | BG14: 6395.70 | BH14: 5337.46 | BI14: 3296.86 | BJ14: 0.00 | BK14: 0.00 | BL14: 0.00 | BM14: 0.00 | BN14: 0.00
A15: =INDEX('化工产品价格总库（国内）'!A:A,ROW()-8) -> 2019-09-15 | B15: =IF(VLOOKUP($A15,'化工产品价格总库（国内）'!$A$1:$FG$66703,$A$9,0),VLOOKUP($A15,'化工产品价格总库（国内）'!$A$1:$FG$66703,$A$9,0),B16) -> 24500 | C15: 6 | D15: 7 | E15: 橡胶 | J15: 乙烯 | K15: 东南亚CFR（美元/吨） | L15: 783.83 | M15: 842.86 | N15: 944.22 | O15: 900.87 | P15: 1235.76 | Q15: 1236.15 | R15: 1244.50 | S15: 1177.55 | T15: 1046.80 | U15: 983.79 | V15: 1067.17 | W15: 983.04 | X15: 1060.98 | Y15: 1119.18 | Z15: 1025.05 | AA15: 1019.67 | AB15: 966.07 | AC15: 1404.76 | AD15: 1041.82 | AE15: 1253.32 | AF15: 1483.32 | AG15: 1446.67 | AH15: 1438.28 | AI15: 1434.89 | AJ15: 1323.26 | AK15: 1262.69 | AL15: 1391.70 | AM15: 1279.01 | AN15: 1184.60 | AO15: 1166.23 | AP15: 1247.63 | AQ15: 1037.81 | AR15: 1139.37 | AS15: 1272.73 | AT15: 1208.18 | AU15: 1040.17 | AV15: 899.50 | AW15: 1085.45 | AX15: 1267.15 | AY15: 1053.07 | AZ15: 1039.89 | BA15: 749.73 | BB15: 605.00 | BC15: 556.85 | BD15: 1387.15 | BE15: 1375.36 | BF15: 1246.13 | BG15: 1173.29 | BH15: 1179.67 | BI15: 1138.68 | BJ15: 1229.44 | BK15: 1170.49 | BL15: 1307.34 | BM15: 1133.52 | BN15: 1045.33
A16: =INDEX('化工产品价格总库（国内）'!A:A,ROW()-8) -> 2019-09-14 | B16: =IF(VLOOKUP($A16,'化工产品价格总库（国内）'!$A$1:$FG$66703,$A$9,0),VLOOKUP($A16,'化工产品价格总库（国内）'!$A$1:$FG$66703,$A$9,0),B17) -> 24500 | C16: 116 | J16: 丙烯 | K16: FOB韩国（美元/吨） | L16: 910.25 | M16: 870.99 | N16: 908.03 | O16: 978.59 | P16: 1084.08 | Q16: 1055.38 | R16: 1026.26 | S16: 919.55 | T16: 879.78 | U16: 818.84 | V16: 896.33 | W16: 805.32 | X16: 760.62 | Y16: 694.35 | Z16: 598.49 | AA16: 565.39 | AB16: 762.32 | AC16: 974.13 | AD16: 880.51 | AE16: 1036.24 | AF16: 1360.99 | AG16: 1355.30 | AH16: 1395.72 | AI16: 1405.97 | AJ16: 1370.13 | AK16: 1278.95 | AL16: 1305.39 | AM16: 1264.33 | AN16: 1300.92 | AO16: 1308.99 | AP16: 1348.04 | AQ16: 1238.22 | AR16: 1482.36 | AS16: 1497.65 | AT16: 1400.77 | AU16: 1190.07 | AV16: 1112.36 | AW16: 1182.82 | AX16: 1223.96 | AY16: 1039.07 | AZ16: 1024.22 | BA16: 837.36 | BB16: 646.60 | BC16: 555.68 | BD16: 1525.00 | BE16: 1478.76 | BF16: 1186.10 | BG16: 1085.84 | BH16: 1032.42 | BI16: 1055.05 | BJ16: 1098.00 | BK16: 1133.13 | BL16: 1248.51 | BM16: 1016.46 | BN16: 917.19
A17: =INDEX('化工产品价格总库（国内）'!A:A,ROW()-8) -> 2019-09-13 | B17: =IF(VLOOKUP($A17,'化工产品价格总库（国内）'!$A$1:$FG$66703,$A$9,0),VLOOKUP($A17,'化工产品价格总库（国内）'!$A$1:$FG$66703,$A$9,0),B18) -> 24500 | C17: 6 | D17: 8 | E17: 氟硅化工 | J17: 丙烯 | K17: 汇丰石化（元/吨） | L17: 7854.94 | M17: 7229.12 | N17: 7665.00 | O17: 8815.22 | P17: 9191.52 | Q17: 8344.84 | R17: 8222.56 | S17: 8183.26 | T17: 7705.43 | U17: 6977.80 | V17: 7899.44 | W17: 7492.28 | X17: 6811.52 | Y17: 6230.66 | Z17: 5458.35 | AA17: 4873.48 | AB17: 6574.46 | AC17: 7646.15 | AD17: 7571.89 | AE17: 8948.55 | AF17: 10518.04 | AG17: 10243.85 | AH17: 10370.00 | AI17: 11086.96 | AJ17: 10666.52 | AK17: 9971.54 | AL17: 10221.67 | AM17: 10256.52 | AN17: 10821.74 | AO17: 10290.33 | AP17: 10560.99 | AQ17: 10132.61 | AR17: 11842.61 | AS17: 11537.91 | AT17: 11105.00 | AU17: 10413.04 | AV17: 9213.59 | AW17: 9792.31 | AX17: 10050.00 | AY17: 8997.28 | AZ17: 8200.00 | BA17: 7476.37 | BB17: 6556.11 | BC17: 6232.61 | BD17: 12018.48 | BE17: 12587.91 | BF17: 10476.37 | BG17: 10504.89 | BH17: 10423.91 | BI17: 10235.16 | BJ17: 10051.22 | BK17: 11094.57 | BL17: 0.00 | BM17: 0.00 | BN17: 0.00
A18: =INDEX('化工产品价格总库（国内）'!A:A,ROW()-8) -> 2019-09-12 | B18: =IF(VLOOKUP($A18,'化工产品价格总库（国内）'!$A$1:$FG$66703,$A$9,0),VLOOKUP($A18,'化工产品价格总库（国内）'!$A$1:$FG$66703,$A$9,0),B19) -> 24500 | C18: 125 | J18: 纯苯 | K18: FOB韩国（美元/吨） | L18: 671.83 | M18: 625.17 | N18: 588.07 | O18: 692.28 | P18: 856.55 | Q18: 842.01 | R18: 889.27 | S18: 837.74 | T18: 760.70 | U18: 767.61 | V18: 917.98 | W18: 720.18 | X18: 641.71 | Y18: 634.04 | Z18: 576.12 | AA18: 605.17 | AB18: 667.83 | AC18: 803.54 | AD18: 686.43 | AE18: 975.87 | AF18: 1302.38 | AG18: 1292.48 | AH18: 1298.49 | AI18: 1284.63 | AJ18: 1256.84 | AK18: 1286.71 | AL18: 1377.78 | AM18: 1361.24 | AN18: 1176.08 | AO18: 1110.84 | AP18: 1179.96 | AQ18: 999.14 | AR18: 1130.97 | AS18: 1148.75 | AT18: 1142.83 | AU18: 958.59 | AV18: 832.20 | AW18: 901.62 | AX18: 966.15 | AY18: 862.42 | AZ18: 813.90 | BA18: 662.94 | BB18: 401.61 | BC18: 453.14 | BD18: 1199.96 | BE18: 1223.46 | BF18: 1047.16 | BG18: 1013.40 | BH18: 1004.74 | BI18: 1081.70 | BJ18: 981.52 | BK18: 945.93 | BL18: 901.78 | BM18: 862.11 | BN18: 738.00
A19: =INDEX('化工产品价格总库（国内）'!A:A,ROW()-8) -> 2019-09-11 | B19: =IF(VLOOKUP($A19,'化工产品价格总库（国内）'!$A$1:$FG$66703,$A$9,0),VLOOKUP($A19,'化工产品价格总库（国内）'!$A$1:$FG$66703,$A$9,0),B20) -> 24500 | C19: 19 | D19: 9 | E19: 有机原料 | J19: 纯苯 | K19: 华东地区（元/吨） | L19: 5346.30 | M19: 4527.47 | N19: 4761.94 | O19: 5891.47 | P19: 6864.24 | Q19: 6232.86 | R19: 6735.56 | S19: 6568.37 | T19: 6195.33 | U19: 6415.93 | V19: 7800.00 | W19: 6382.61 | X19: 5294.57 | Y19: 5082.25 | Z19: 4704.34 | AA19: 4584.67 | AB19: 5009.78 | AC19: 5924.18 | AD19: 5358.11 | AE19: 7142.70 | AF19: 9317.12 | AG19: 9056.59 | AH19: 8977.22 | AI19: 9272.28 | AJ19: 9241.85 | AK19: 9193.96 | AL19: 10439.44 | AM19: 10451.36 | AN19: 8865.76 | AO19: 8206.04 | AP19: 8402.47 | AQ19: 7778.26 | AR19: 8235.71 | AS19: 7856.04 | AT19: 7940.83 | AU19: 7082.77 | AV19: 6450.11 | AW19: 7026.10 | AX19: 7692.50 | AY19: 6380.33 | AZ19: 5740.76 | BA19: 4908.52 | BB19: 3364.72 | BC19: 4382.34 | BD19: 9575.27 | BE19: 9550.82 | BF19: 8682.69 | BG19: 8720.11 | BH19: 8916.30 | BI19: 9311.81 | BJ19: 9273.61 | BK19: 8141.30 | BL19: 7675.05 | BM19: 7229.12 | BN19: 6745.00
A20: =INDEX('化工产品价格总库（国内）'!A:A,ROW()-8) -> 2019-09-10 | B20: =IF(VLOOKUP($A20,'化工产品价格总库（国内）'!$A$1:$FG$66703,$A$9,0),VLOOKUP($A20,'化工产品价格总库（国内）'!$A$1:$FG$66703,$A$9,0),B21) -> 25000 | C20: 135 | J20: 甲苯 | K20: 华东地区（元/吨） | L20: 5671.79 | M20: 5253.02 | N20: 5169.89 | O20: 6295.65 | P20: 6590.98 | Q20: 5996.04 | R20: 5585.44 | S20: 5514.40 | T20: 5158.10 | U20: 5343.46 | V20: 5731.44 | W20: 5490.76 | X20: 4825.49 | Y20: 4801.37 | Z20: 4780.77 | AA20: 5401.63 | AB20: 5177.17 | AC20: 5838.57 | AD20: 4908.78 | AE20: 6520.00 | AF20: 8256.20 | AG20: 7956.43 | AH20: 8013.33 | AI20: 8371.20 | AJ20: 8232.07 | AK20: 8412.64 | AL20: 9498.33 | AM20: 10023.37 | AN20: 8767.12 | AO20: 8765.93 | AP20: 8951.10 | AQ20: 8908.42 | AR20: 8582.07 | AS20: 8537.03 | AT20: 7737.30 | AU20: 7084.12 | AV20: 6310.87 | AW20: 6684.07 | AX20: 7151.39 | AY20: 6655.16 | AZ20: 6364.67 | BA20: 5457.14 | BB20: 4671.94 | BC20: 5417.12 | BD20: 8458.80 | BE20: 9293.68 | BF20: 8346.43 | BG20: 7798.64 | BH20: 7321.47 | BI20: 7803.57 | BJ20: 7687.22 | BK20: 8033.64 | BL20: 8749.29 | BM20: 8652.09 | BN20: 7374.28
A21: =INDEX('化工产品价格总库（国内）'!A:A,ROW()-8) -> 2019-09-09 | B21: =IF(VLOOKUP($A21,'化工产品价格总库（国内）'!$A$1:$FG$66703,$A$9,0),VLOOKUP($A21,'化工产品价格总库（国内）'!$A$1:$FG$66703,$A$9,0),B22) -> 25000 | C21: 8 | D21: 10 | E21: 精细化工 | J21: 二甲苯 | K21: 华东地区（元/吨） | L21: 5966.42 | M21: 5583.19 | N21: 5537.33 | O21: 6624.29 | P21: 6821.74 | Q21: 6248.13 | R21: 5847.89 | S21: 5705.54 | T21: 5278.53 | U21: 5599.78 | V21: 5642.44 | W21: 5649.08 | X21: 5185.38 | Y21: 5058.79 | Z21: 4785.77 | AA21: 5366.85 | AB21: 5654.62 | AC21: 6071.15 | AD21: 5361.49 | AE21: 6516.42 | AF21: 8173.97 | AG21: 8016.76 | AH21: 8137.22 | AI21: 8882.61 | AJ21: 8671.20 | AK21: 8450.55 | AL21: 9281.67 | AM21: 9661.14 | AN21: 8820.65 | AO21: 8801.65 | AP21: 9127.75 | AQ21: 9282.88 | AR21: 9437.23 | AS21: 9012.20 | AT21: 7841.50 | AU21: 7569.95 | AV21: 6585.33 | AW21: 6892.86 | AX21: 7343.06 | AY21: 6698.48 | AZ21: 6461.64 | BA21: 6073.08 | BB21: 5170.56 | BC21: 5646.47 | BD21: 9136.14 | BE21: 8988.19 | BF21: 8037.91 | BG21: 8068.64 | BH21: 8279.89 | BI21: 8489.01 | BJ21: 7803.33 | BK21: 8426.36 | BL21: 10003.59 | BM21: 8939.23 | BN21: 7185.06
A22: =INDEX('化工产品价格总库（国内）'!A:A,ROW()-8) -> 2019-09-08 | B22: =IF(VLOOKUP($A22,'化工产品价格总库（国内）'!$A$1:$FG$66703,$A$9,0),VLOOKUP($A22,'化工产品价格总库（国内）'!$A$1:$FG$66703,$A$9,0),B23) -> 25000 | C22: 154 | J22: 苯乙烯 | K22: FOB韩国（美元/吨） | L22: 1004.10 | M22: 1030.50 | N22: 1012.37 | O22: 1092.59 | P22: 1390.01 | Q22: 1359.42 | R22: 1352.96 | S22: 1238.30 | T22: 1227.66 | U22: 1093.64 | V22: 1328.42 | W22: 1109.43 | X22: 1015.22 | Y22: 1032.64 | Z22: 987.97 | AA22: 901.01 | AB22: 1053.21 | AC22: 1323.26 | AD22: 1014.70 | AE22: 1237.22 | AF22: 1560.16 | AG22: 1581.68 | AH22: 1614.90 | AI22: 1656.51 | AJ22: 1754.52 | AK22: 1651.51 | AL22: 1685.10 | AM22: 1593.66 | AN22: 1425.73 | AO22: 1372.13 | AP22: 1432.40 | AQ22: 1300.11 | AR22: 1456.00 | AS22: 1407.95 | AT22: 1407.04 | AU22: 1263.94 | AV22: 1068.19 | AW22: 1155.13 | AX22: 1276.36 | AY22: 1071.46 | AZ22: 1069.81 | BA22: 952.00 | BB22: 719.45 | BC22: 663.76 | BD22: 1501.49 | BE22: 1525.52 | BF22: 1372.03 | BG22: 1341.43 | BH22: 1342.79 | BI22: 1322.37 | BJ22: 1254.84 | BK22: 1259.65 | BL22: 1233.18 | BM22: 1135.45 | BN22: 1011.38
A23: =INDEX('化工产品价格总库（国内）'!A:A,ROW()-8) -> 2019-09-07 | B23: =IF(VLOOKUP($A23,'化工产品价格总库（国内）'!$A$1:$FG$66703,$A$9,0),VLOOKUP($A23,'化工产品价格总库（国内）'!$A$1:$FG$66703,$A$9,0),B24) -> 25000 | J23: 苯乙烯 | K23: CFR华东（美元/吨） | L23: 1044.10 | M23: 1070.50 | N23: 1053.93 | O23: 1134.65 | P23: 1427.59 | Q23: 1399.23 | R23: 1390.06 | S23: 1266.81 | T23: 1237.20 | U23: 1119.53 | V23: 1353.10 | W23: 1131.96 | X23: 1037.48 | Y23: 1056.63 | Z23: 1012.86 | AA23: 923.33 | AB23: 1077.87 | AC23: 1347.38 | AD23: 1038.82 | AE23: 1263.66 | AF23: 1581.97 | AG23: 1604.86 | AH23: 1641.18 | AI23: 1682.08 | AJ23: 1783.36 | AK23: 1681.81 | AL23: 1709.04 | AM23: 1617.94 | AN23: 1451.03 | AO23: 1389.30 | AP23: 1440.84 | AQ23: 1328.78 | AR23: 1480.20 | AS23: 1415.83 | AT23: 1401.09 | AU23: 1285.90 | AV23: 1093.08 | AW23: 1168.85 | AX23: 1284.79 | AY23: 1089.49 | AZ23: 1087.10 | BA23: 975.52 | BB23: 739.33 | BC23: 702.21 | BD23: 1519.42 | BE23: 1548.00 | BF23: 1387.63 | BG23: 1364.02 | BH23: 1371.14 | BI23: 1344.89 | BJ23: 1282.68 | BK23: 176.84 | BL23: 0.00 | BM23: 0.00 | BN23: 0.00
A24: =INDEX('化工产品价格总库（国内）'!A:A,ROW()-8) -> 2019-09-06 | B24: =IF(VLOOKUP($A24,'化工产品价格总库（国内）'!$A$1:$FG$66703,$A$9,0),VLOOKUP($A24,'化工产品价格总库（国内）'!$A$1:$FG$66703,$A$9,0),B25) -> 25000 | J24: 天然气 | K24: NYMEX天然气(期货) | L24: 2.31 | M24: 2.51 | N24: 2.88 | O24: 3.76 | P24: 2.87 | Q24: 2.83 | R24: 2.84 | S24: 2.91 | T24: 2.95 | U24: 3.15 | V24: 3.08 | W24: 3.18 | X24: 2.81 | Y24: 2.22 | Z24: 1.99 | AA24: 2.24 | AB24: 2.74 | AC24: 2.73 | AD24: 2.79 | AE24: 3.83 | AF24: 3.95 | AG24: 4.58 | AH24: 4.72 | AI24: 3.87 | AJ24: 3.56 | AK24: 4.01 | AL24: 3.49 | AM24: 3.55 | AN24: 2.89 | AO24: 2.35 | AP24: 2.52 | AQ24: 3.48 | AR24: 4.06 | AS24: 4.38 | AT24: 4.19 | AU24: 3.99 | AV24: 4.24 | AW24: 4.35 | AX24: 5.03 | AY24: 4.93 | AZ24: 3.42 | BA24: 3.80 | BB24: 4.49 | BC24: 6.37 | BD24: 9.03 | BE24: 11.48 | BF24: 8.72 | BG24: 7.40 | BH24: 6.25 | BI24: 7.66 | BJ24: 7.16 | BK24: 7.23 | BL24: 6.16 | BM24: 6.65 | BN24: 7.93
A25: =INDEX('化工产品价格总库（国内）'!A:A,ROW()-8) -> 2019-09-05 | B25: =IF(VLOOKUP($A25,'化工产品价格总库（国内）'!$A$1:$FG$66703,$A$9,0),VLOOKUP($A25,'化工产品价格总库（国内）'!$A$1:$FG$66703,$A$9,0),B26) -> 25000 | J25: 合成氨 | K25: 江苏工厂（元/吨） | L25: 3190.37 | M25: 3316.37 | N25: 3306.00 | O25: 3541.85 | P25: 3506.30 | Q25: 3343.85 | R25: 3343.67 | S25: 3218.59 | T25: 2823.59 | U25: 2683.63 | V25: 2891.78 | W25: 2496.63 | X25: 2117.07 | Y25: 2229.23 | Z25: 2300.00 | AA25: 2319.57 | AB25: 2681.74 | AC25: 2591.10 | AD25: 2377.03 | AE25: 2398.82 | AF25: 2567.61 | AG25: 2324.40 | AH25: 2607.56 | AI25: 2616.30 | AJ25: 2463.59 | AK25: 2780.55 | AL25: 3078.33 | AM25: 2972.61 | AN25: 3204.89 | AO25: 3472.53 | AP25: 3600.00 | AQ25: 3428.26 | AR25: 3496.74 | AS25: 3284.62 | AT25: 3147.78 | AU25: 3280.43 | AV25: 2862.50 | AW25: 2683.52 | AX25: 2433.89 | AY25: 2300.00 | AZ25: 2549.46 | BA25: 2850.00 | BB25: 2662.22 | BC25: 2730.98 | BD25: 3585.87 | BE25: 3345.60 | BF25: 2904.40 | BG25: 2585.87 | BH25: 2609.24 | BI25: 2573.08 | BJ25: 2420.56 | BK25: 2340.76 | BL25: 2455.98 | BM25: 2464.29 | BN25: 2421.11
A26: =INDEX('化工产品价格总库（国内）'!A:A,ROW()-8) -> 2019-09-04 | B26: =IF(VLOOKUP($A26,'化工产品价格总库（国内）'!$A$1:$FG$66703,$A$9,0),VLOOKUP($A26,'化工产品价格总库（国内）'!$A$1:$FG$66703,$A$9,0),B27) -> 25500 | J26: 尿素 | K26: 波罗的海(小粒散装)（美元/吨） | L26: 249.41 | M26: 245.55 | N26: 241.46 | O26: 287.58 | P26: 260.66 | Q26: 219.10 | R26: 220.89 | S26: 235.46 | T26: 197.37 | U26: 194.48 | V26: 234.98 | W26: 200.23 | X26: 180.76 | Y26: 195.85 | Z26: 195.91 | AA26: 246.58 | AB26: 263.91 | AC26: 268.95 | AD26: 286.61 | AE26: 311.04 | AF26: 313.50 | AG26: 291.27 | AH26: 327.06 | AI26: 295.39 | AJ26: 292.25 | AK26: 340.20 | AL26: 386.13 | AM26: 377.82 | AN26: 380.21 | AO26: 471.99 | AP26: 379.67 | AQ26: 432.09 | AR26: 479.98 | AS26: 393.66 | AT26: 348.33 | AU26: 348.64 | AV26: 274.70 | AW26: 230.99 | AX26: 266.18 | AY26: 236.21 | AZ26: 240.12 | BA26: 235.08 | BB26: 257.56 | BC26: 293.84 | BD26: 712.30 | BE26: 543.53 | BF26: 349.13 | BG26: 355.45 | BH26: 269.39 | BI26: 282.34 | BJ26: 279.33 | BK26: 221.34 | BL26: 203.91 | BM26: 220.95 | BN26: 208.53
A27: =INDEX('化工产品价格总库（国内）'!A:A,ROW()-8) -> 2019-09-03 | B27: =IF(VLOOKUP($A27,'化工产品价格总库（国内）'!$A$1:$FG$66703,$A$9,0),VLOOKUP($A27,'化工产品价格总库（国内）'!$A$1:$FG$66703,$A$9,0),B28) -> 25500 | J27: 尿素 | K27: 华鲁恒升(小颗粒)（元/吨） | L27: 1860.25 | M27: 1956.92 | N27: 1913.11 | O27: 2079.46 | P27: 1932.83 | Q27: 1947.47 | R27: 1936.00 | S27: 1774.13 | T27: 1553.04 | U27: 1533.52 | V27: 1661.33 | W27: 1402.39 | X27: 1185.43 | Y27: 1303.74 | Z27: 1292.97 | AA27: 1423.15 | AB27: 1586.96 | AC27: 1650.11 | AD27: 1606.62 | AE27: 1529.61 | AF27: 1536.63 | AG27: 1439.89 | AH27: 1602.33 | AI27: 1613.48 | AJ27: 1632.28 | AK27: 1907.58 | AL27: 2137.11 | AM27: 1997.39 | AN27: 2072.17 | AO27: 2327.14 | AP27: 2129.45 | AQ27: 2047.28 | AR27: 2244.89 | AS27: 2073.52 | AT27: 1979.44 | AU27: 1946.20 | AV27: 1653.37 | AW27: 1597.58 | AX27: 1756.44 | AY27: 1645.98 | AZ27: 1520.65 | BA27: 1735.49 | BB27: 1785.78 | BC27: 1703.21 | BD27: 1725.00 | BE27: 1725.00 | BF27: 1725.00 | BG27: 1702.93 | BH27: 1545.87 | BI27: 1684.95 | BJ27: 1676.33 | BK27: 1530.11 | BL27: 1544.08 | BM27: 1915.05 | BN27: 1920.00
A28: =INDEX('化工产品价格总库（国内）'!A:A,ROW()-8) -> 2019-09-02 | B28: =IF(VLOOKUP($A28,'化工产品价格总库（国内）'!$A$1:$FG$66703,$A$9,0),VLOOKUP($A28,'化工产品价格总库（国内）'!$A$1:$FG$66703,$A$9,0),B29) -> 25500 | J28: 三聚氰胺 | K28: 中原大化（元/吨） | L28: 5964.20 | M28: 6321.98 | N28: 6800.00 | O28: 8165.22 | P28: 8621.74 | Q28: 8171.43 | R28: 8773.33 | S28: 9031.52 | T28: 8023.91 | U28: 7203.30 | V28: 8177.78 | W28: 8810.87 | X28: 6475.00 | Y28: 6200.00 | Z28: 6101.10 | AA28: 6000.00 | AB28: 6192.39 | AC28: 6248.35 | AD28: 6200.00 | AE28: 6384.21 | AF28: 6267.39 | AG28: 6590.66 | AH28: 7900.00 | AI28: 7891.85 | AJ28: 7927.17 | AK28: 8309.89 | AL28: 8224.44 | AM28: 8207.61 | AN28: 8337.50 | AO28: 8698.35 | AP28: 8500.00 | AQ28: 8836.96 | AR28: 9439.13 | AS28: 10169.23 | AT28: 10091.11 | AU28: 11128.26 | AV28: 9459.78 | AW28: 8840.66 | AX28: 8752.22 | AY28: 8431.52 | AZ28: 7893.48 | BA28: 8218.68 | BB28: 7386.67 | BC28: 8695.65 | BD28: 11128.26 | BE28: 10696.70 | BF28: 10021.98 | BG28: 10582.61 | BH28: 8197.83 | BI28: 8076.92 | BJ28: 8131.11 | BK28: 8500.00 | BL28: 8500.00 | BM28: 8382.97 | BN28: 8327.22
A29: =INDEX('化工产品价格总库（国内）'!A:A,ROW()-8) -> 2019-09-01 | B29: =IF(VLOOKUP($A29,'化工产品价格总库（国内）'!$A$1:$FG$66703,$A$9,0),VLOOKUP($A29,'化工产品价格总库（国内）'!$A$1:$FG$66703,$A$9,0),B30) -> 25500 | J29: 氯化铵（农湿） | K29: 石家庄联碱（元/吨） | L29: 606.17 | M29: 571.43 | N29: 555.44 | O29: 508.80 | P29: 494.78 | Q29: 480.00 | R29: 472.11 | S29: 444.89 | T29: 359.24 | U29: 406.59 | V29: 524.11 | W29: 438.15 | X29: 417.61 | Y29: 506.59 | Z29: 425.71 | AA29: 526.20 | AB29: 350.00 | AC29: 350.00 | AD29: 350.00 | AE29: 350.00 | AF29: 350.00 | AG29: 385.27 | AH29: 506.67 | AI29: 531.74 | AJ29: 550.00 | AK29: 693.52 | AL29: 876.44 | AM29: 773.80 | AN29: 972.50 | AO29: 1159.34 | AP29: 942.09 | AQ29: 960.65 | AR29: 1136.74 | AS29: 787.14 | AT29: 670.44 | AU29: 727.83 | AV29: 525.11 | AW29: 514.29 | AX29: 645.67 | AY29: 603.59 | AZ29: 590.43 | BA29: 600.00 | BB29: 671.11 | BC29: 953.26 | BD29: 1214.13 | BE29: 1088.46 | BF29: 950.00 | BG29: 725.22 | BH29: 646.90 | BI29: 653.90 | BJ29: 641.39 | BK29: 475.65 | BL29: 560.11 | BM29: 600.22 | BN29: 707.00
A30: =INDEX('化工产品价格总库（国内）'!A:A,ROW()-8) -> 2019-08-31 | B30: =IF(VLOOKUP($A30,'化工产品价格总库（国内）'!$A$1:$FG$66703,$A$9,0),VLOOKUP($A30,'化工产品价格总库（国内）'!$A$1:$FG$66703,$A$9,0),B31) -> 25500 | J30: 氯化钾 | K30: 青海盐湖95%（元/吨） | L30: 2290.74 | M30: 2350.00 | N30: 2407.56 | O30: 2387.28 | P30: 2327.72 | Q30: 2264.84 | R30: 2180.00 | S30: 1949.57 | T30: 1951.96 | U30: 2000.00 | V30: 1976.00 | W30: 1906.74 | X30: 2016.52 | Y30: 2105.27 | Z30: 2115.60 | AA30: 2300.00 | AB30: 2087.39 | AC30: 2023.30 | AD30: 2150.27 | AE30: 2134.21 | AF30: 1986.41 | AG30: 2161.65 | AH30: 2141.11 | AI30: 2100.00 | AJ30: 2342.17 | AK30: 2720.00 | AL30: 2720.00 | AM30: 2842.50 | AN30: 3077.39 | AO30: 3137.03 | AP30: 3085.82 | AQ30: 3313.48 | AR30: 3320.11 | AS30: 3005.49 | AT30: 2843.11 | AU30: 2654.89 | AV30: 2428.04 | AW30: 2546.70 | AX30: 2507.78 | AY30: 2491.30 | AZ30: 3052.17 | BA30: 3473.63 | BB30: 4401.67 | BC30: 4750.00 | BD30: 4591.30 | BE30: 4341.76 | BF30: 2715.49 | BG30: 2296.74 | BH30: 1994.78 | BI30: 1886.15 | BJ30: 1792.33 | BK30: 1770.00 | BL30: 1745.22 | BM30: 1712.42 | BN30: 1709.78
A31: =INDEX('化工产品价格总库（国内）'!A:A,ROW()-8) -> 2019-08-30 | B31: =IF(VLOOKUP($A31,'化工产品价格总库（国内）'!$A$1:$FG$66703,$A$9,0),VLOOKUP($A31,'化工产品价格总库（国内）'!$A$1:$FG$66703,$A$9,0),B32) -> 25500 | J31: 硫酸钾 | K31: 新疆罗布泊50%粉（元/吨） | L31: 3100.00 | M31: 3100.00 | N31: 3100.00 | O31: 3054.35 | P31: 3000.00 | Q31: 3000.00 | R31: 2968.33 | S31: 2801.09 | T31: 2565.76 | U31: 2550.00 | V31: 2479.44 | W31: 2350.00 | X31: 2350.00 | Y31: 2350.00 | Z31: 2418.13 | AA31: 3008.15 | AB31: 2865.22 | AC31: 2926.92 | AD31: 3429.73 | AE31: 3600.00 | AF31: 3475.00 | AG31: 3318.02 | AH31: 3232.22 | AI31: 3210.00 | AJ31: 3210.00 | AK31: 3176.92 | AL31: 3011.11 | AM31: 2953.80 | AN31: 3399.02 | AO31: 3453.96 | AP31: 3381.43 | AQ31: 3703.37 | AR31: 3625.54 | AS31: 3379.67 | AT31: 3350.00 | AU31: 3447.28 | AV31: 2818.26 | AW31: 2523.85 | AX31: 2500.00 | AY31: 2452.72 | AZ31: 2920.65 | BA31: 3671.43 | BB31: 4840.00 | BC31: 5700.00 | BD31: 5700.00 | BE31: 5416.48 | BF31: 3616.48 | BG31: 2660.87 | BH31: 2265.22 | BI31: 2301.10 | BJ31: 2400.00 | BK31: 2400.00 | BL31: 2334.78 | BM31: 2250.00 | BN31: 2250.00
A32: =INDEX('化工产品价格总库（国内）'!A:A,ROW()-8) -> 2019-08-29 | B32: =IF(VLOOKUP($A32,'化工产品价格总库（国内）'!$A$1:$FG$66703,$A$9,0),VLOOKUP($A32,'化工产品价格总库（国内）'!$A$1:$FG$66703,$A$9,0),B33) -> 25500 | J32: 磷矿石 | K32: 湖北宜化（28%）（元/吨） | L32: 410.00 | M32: 473.19 | N32: 500.00 | O32: 496.20 | P32: 450.00 | Q32: 450.00 | R32: 450.00 | S32: 369.13 | T32: 340.00 | U32: 340.00 | V32: 340.00 | W32: 340.00 | X32: 352.17 | Y32: 372.64 | Z32: 460.00 | AA32: 460.00 | AB32: 482.17 | AC32: 500.00 | AD32: 431.89 | AE32: 420.00 | AF32: 420.00 | AG32: 428.90 | AH32: 430.00 | AI32: 430.00 | AJ32: 432.28 | AK32: 539.23 | AL32: 570.00 | AM32: 570.00 | AN32: 571.74 | AO32: 580.33 | AP32: 514.95 | AQ32: 506.96 | AR32: 472.50 | AS32: 408.19 | AT32: 361.11 | AU32: 339.46 | AV32: 320.00 | AW32: 320.00 | AX32: 320.00 | AY32: 322.72 | AZ32: 322.72 | BA32: 337.03 | BB32: 361.33 | BC32: 342.61 | BD32: 357.28 | BE32: 354.51 | BF32: 340.00 | BG32: 340.00 | BH32: 340.00 | BI32: 340.00 | BJ32: 339.78 | BK32: 330.00 | BL32: 330.00 | BM32: 330.00 | BN32: 322.22
A33: =INDEX('化工产品价格总库（国内）'!A:A,ROW()-8) -> 2019-08-28 | B33: =IF(VLOOKUP($A33,'化工产品价格总库（国内）'!$A$1:$FG$66703,$A$9,0),VLOOKUP($A33,'化工产品价格总库（国内）'!$A$1:$FG$66703,$A$9,0),B34) -> 25500 | J33: 磷矿石 | K33: 摩洛哥-印度CFR(70-72BPL)合同价（美元/吨） | L33: 131.90 | M33: 137.00 | N33: 137.00 | O33: 133.47 | P33: 131.50 | Q33: 120.03 | R33: 103.73 | S33: 99.00 | T33: 103.82 | U33: 103.74 | V33: 95.00 | W33: 113.61 | X33: 134.78 | Y33: 147.50 | Z33: 147.50 | AA33: 147.50 | AB33: 147.50 | AC33: 142.42 | AD33: 150.00 | AE33: 150.00 | AF33: 132.80 | AG33: 132.53 | AH33: 135.00 | AI33: 139.29 | AJ33: 174.50 | AK33: 182.59 | AL33: 197.50 | AM33: 197.50 | AN33: 202.93 | AO33: 218.10 | AP33: 222.50 | AQ33: 207.72 | AR33: 202.50 | AS33: 181.53 | AT33: 163.89 | AU33: 163.67 | AV33: 161.70 | AW33: 153.92 | AX33: 140.50 | AY33: 141.41 | AZ33: 182.50 | BA33: 154.09 | BB33: 284.92 | BC33: 336.09 | BD33: 379.86 | BE33: 435.93 | BF33: 190.33 | BG33: 121.50 | BH33: 121.50 | BI33: 103.62 | BJ33: 80.00 | BK33: 80.00 | BL33: 80.00 | BM33: 80.89 | BN33: 82.00
A34: =INDEX('化工产品价格总库（国内）'!A:A,ROW()-8) -> 2019-08-27 | B34: =IF(VLOOKUP($A34,'化工产品价格总库（国内）'!$A$1:$FG$66703,$A$9,0),VLOOKUP($A34,'化工产品价格总库（国内）'!$A$1:$FG$66703,$A$9,0),B35) -> 25500 | J34: 磷酸一铵 | K34: 四川金河粉状55%（元/吨） | L34: 2095.68 | M34: 2100.00 | N34: 2260.00 | O34: 2270.76 | P34: 2200.00 | Q34: 2200.00 | R34: 2200.00 | S34: 2086.96 | T34: 1800.00 | U34: 1800.00 | V34: 1919.44 | W34: 1726.63 | X34: 1700.00 | Y34: 1928.02 | Z34: 1950.00 | AA34: 2033.15 | AB34: 2067.93 | AC34: 1974.73 | AD34: 2007.43 | AE34: 2063.82 | AF34: 2015.22 | AG34: 1848.35 | AH34: 1879.44 | AI34: 1843.48 | AJ34: 1870.11 | AK34: 2162.09 | AL34: 2300.00 | AM34: 2356.52 | AN34: 2590.82 | AO34: 2708.24 | AP34: 2750.00 | AQ34: 2829.67 | AR34: 2943.70 | AS34: 2779.67 | AT34: 2688.33 | AU34: 2628.80 | AV34: 1995.65 | AW34: 2065.93 | AX34: 2213.89 | AY34: 1767.39 | AZ34: 1612.72 | BA34: 1691.76 | BB34: 1771.11 | BC34: 2588.04 | BD34: 3774.46 | BE34: 3922.53 | BF34: 3520.33 | BG34: 2813.59 | BH34: 2160.16 | BI34: 1923.74 | BJ34: 1834.33 | BK34: 1647.83 | BL34: 1632.72 | BM34: 1661.54 | BN34: 1641.22
A35: =INDEX('化工产品价格总库（国内）'!A:A,ROW()-8) -> 2019-08-26 | B35: =IF(VLOOKUP($A35,'化工产品价格总库（国内）'!$A$1:$FG$66703,$A$9,0),VLOOKUP($A35,'化工产品价格总库（国内）'!$A$1:$FG$66703,$A$9,0),B36) -> 25500 | J35: 磷酸二铵 | K35: 西南工厂64%褐色（元/吨） | L35: 2440.12 | M35: 2640.66 | N35: 2700.00 | O35: 2670.65 | P35: 2571.41 | Q35: 2499.12 | R35: 2577.78 | S35: 2200.00 | T35: 2200.00 | U35: 2369.78 | V35: 2741.67 | W35: 2375.54 | X35: 2300.00 | Y35: 2639.01 | Z35: 2900.00 | AA35: 2900.00 | AB35: 2976.09 | AC35: 3150.00 | AD35: 3150.00 | AE35: 3062.50 | AF35: 2876.63 | AG35: 2850.00 | AH35: 2763.89 | AI35: 2708.70 | AJ35: 2858.70 | AK35: 3191.21 | AL35: 3346.67 | AM35: 3350.00 | AN35: 3370.65 | AO35: 3332.42 | AP35: 3350.00 | AQ35: 3350.00 | AR35: 3332.61 | AS35: 3300.00 | AT35: 3169.22 | AU35: 3054.35 | AV35: 2812.50 | AW35: 2900.00 | AX35: 2810.00 | AY35: 2333.48 | AZ35: 2328.91 | BA35: 2647.25 | BB35: 2892.22 | BC35: 3909.78 | BD35: 4543.48 | BE35: 4100.00 | BF35: 3987.91 | BG35: 3035.98 | BH35: 2572.61 | BI35: 2520.55 | BJ35: 2380.56 | BK35: 2409.24 | BL35: 2473.15 | BM35: 2490.44 | BN35: 2390.00
A36: =INDEX('化工产品价格总库（国内）'!A:A,ROW()-8) -> 2019-08-25 | B36: =IF(VLOOKUP($A36,'化工产品价格总库（国内）'!$A$1:$FG$66703,$A$9,0),VLOOKUP($A36,'化工产品价格总库（国内）'!$A$1:$FG$66703,$A$9,0),B37) -> 25500 | J36: 磷酸二铵 | K36: 美国海湾（美元/吨） | L36: 335.12 | M36: 369.39 | N36: 409.34 | O36: 436.15 | P36: 432.34 | Q36: 410.03 | R36: 400.28 | S36: 364.85 | T36: 340.88 | U36: 358.79 | V36: 351.60 | W36: 325.02 | X36: 339.99 | Y36: 352.57 | Z36: 373.02 | AA36: 421.36 | AB36: 463.70 | AC36: 468.91 | AD36: 481.73 | AE36: 460.43 | AF36: 498.00 | AG36: 459.69 | AH36: 466.31 | AI36: 362.78 | AJ36: 432.17 | AK36: 488.02 | AL36: 489.24 | AM36: 519.46 | AN36: 557.58 | AO36: 542.58 | AP36: 519.03 | AQ36: 607.95 | AR36: 651.47 | AS36: 614.37 | AT36: 606.33 | AU36: 578.87 | AV36: 492.56 | AW36: 455.46 | AX36: 452.13 | AY36: 314.83 | AZ36: 308.13 | BA36: 307.48 | BB36: 369.43 | BC36: 771.96 | BD36: 1161.14 | BE36: 1192.31 | BF36: 811.54 | BG36: 505.73 | BH36: 430.23 | BI36: 429.33 | BJ36: 323.34 | BK36: 251.73 | BL36: 258.50 | BM36: 263.85 | BN36: 259.11
A37: =INDEX('化工产品价格总库（国内）'!A:A,ROW()-8) -> 2019-08-24 | B37: =IF(VLOOKUP($A37,'化工产品价格总库（国内）'!$A$1:$FG$66703,$A$9,0),VLOOKUP($A37,'化工产品价格总库（国内）'!$A$1:$FG$66703,$A$9,0),B38) -> 25500 | J37: 硫磺 | K37: CFR中国现货价（美元/吨） | L37: 73.09 | M37: 96.62 | N37: 111.33 | O37: 128.91 | P37: 104.40 | Q37: 116.21 | R37: 125.22 | S37: 131.41 | T37: 81.70 | U37: 74.85 | V37: 75.31 | W37: 72.83 | X37: 60.18 | Y37: 71.62 | Z37: 88.46 | AA37: 118.90 | AB37: 139.23 | AC37: 136.63 | AD37: 157.30 | AE37: 135.61 | AF37: 151.35 | AG37: 125.49 | AH37: 156.28 | AI37: 87.55 | AJ37: 79.45 | AK37: 153.89 | AL37: 169.17 | AM37: 177.03 | AN37: 203.35 | AO37: 211.61 | AP37: 204.92 | AQ37: 223.66 | AR37: 231.67 | AS37: 239.86 | AT37: 205.75 | AU37: 181.83 | AV37: 122.01 | AW37: 145.15 | AX37: 161.17 | AY37: 76.30 | AZ37: 54.47 | BA37: 61.25 | BB37: 53.41 | BC37: 128.46 | BD37: 703.57 | BE37: 757.08 | BF37: 569.53 | BG37: 339.08 | BH37: 196.11 | BI37: 136.25 | BJ37: 80.24 | BK37: 71.76 | BL37: 75.03 | BM37: 77.79 | BN37: 85.74
A38: =INDEX('化工产品价格总库（国内）'!A:A,ROW()-8) -> 2019-08-23 | B38: =IF(VLOOKUP($A38,'化工产品价格总库（国内）'!$A$1:$FG$66703,$A$9,0),VLOOKUP($A38,'化工产品价格总库（国内）'!$A$1:$FG$66703,$A$9,0),B39) -> 25500 | J38: 硫磺 | K38: 高桥石化出厂价格（元/吨） | L38: 750.74 | M38: 953.41 | N38: 1139.00 | O38: 1327.61 | P38: 1216.41 | Q38: 1218.46 | R38: 1211.67 | S38: 1233.04 | T38: 882.61 | U38: 902.31 | V38: 859.00 | W38: 768.59 | X38: 627.50 | Y38: 747.03 | Z38: 806.37 | AA38: 1051.20 | AB38: 1149.13 | AC38: 1150.88 | AD38: 1250.81 | AE38: 1151.58 | AF38: 1258.04 | AG38: 1197.03 | AH38: 1276.89 | AI38: 877.72 | AJ38: 818.59 | AK38: 1164.29 | AL38: 1290.00 | AM38: 1422.61 | AN38: 1523.15 | AO38: 1618.35 | AP38: 1675.71 | AQ38: 1790.11 | AR38: 1794.78 | AS38: 1829.01 | AT38: 1619.33 | AU38: 1534.78 | AV38: 1059.46 | AW38: 1284.95 | AX38: 1209.56 | AY38: 718.70 | AZ38: 551.09 | BA38: 633.19 | BB38: 659.22 | BC38: 1085.87 | BD38: 4682.61 | BE38: 5552.75 | BF38: 4423.08 | BG38: 2533.70 | BH38: 1860.22 | BI38: 1226.37 | BJ38: 777.89 | BK38: 734.57 | BL38: 749.35 | BM38: 796.37 | BN38: 804.67
A39: =INDEX('化工产品价格总库（国内）'!A:A,ROW()-8) -> 2019-08-22 | B39: =IF(VLOOKUP($A39,'化工产品价格总库（国内）'!$A$1:$FG$66703,$A$9,0),VLOOKUP($A39,'化工产品价格总库（国内）'!$A$1:$FG$66703,$A$9,0),B40) -> 25500 | J39: 复合肥 | K39: 江苏瑞和牌45%[CL]（元/吨） | L39: 2062.96 | M39: 2100.00 | N39: 2206.67 | O39: 2144.02 | P39: 2100.00 | Q39: 2069.78 | R39: 2047.78 | S39: 1834.57 | T39: 1876.52 | U39: 2000.00 | V39: 2000.00 | W39: 2275.76 | X39: 2430.00 | Y39: 2430.00 | Z39: 2430.00 | AA39: 2430.00 | AB39: 2430.00 | AC39: 2430.00 | AD39: 2430.00 | AE39: 2491.84 | AF39: 2530.00 | AG39: 2530.00 | AH39: 2530.00 | AI39: 2530.00 | AJ39: 2530.00 | AK39: 2530.00 | AL39: 2530.00 | AM39: 2371.96 | AN39: 2569.57 | AO39: 2567.47 | AP39: 2579.34 | AQ39: 2750.33 | AR39: 2685.87 | AS39: 2467.58 | AT39: 2452.67 | AU39: 2380.22 | AV39: 1909.78 | AW39: 1931.87 | AX39: 2116.11 | AY39: 1880.22 | AZ39: 1990.76 | BA39: 2400.00 | BB39: 2479.44 | BC39: 2905.43 | BD39: 3100.00 | BE39: 3012.09 | BF39: 2753.19 | BG39: 2236.41 | BH39: 1820.00 | BI39: 1693.08 | BJ39: 1630.00 | BK39: 1630.00 | BL39: 1630.00 | BM39: 1630.00 | BN39: 1636.78
A40: =INDEX('化工产品价格总库（国内）'!A:A,ROW()-8) -> 2019-08-21 | B40: =IF(VLOOKUP($A40,'化工产品价格总库（国内）'!$A$1:$FG$66703,$A$9,0),VLOOKUP($A40,'化工产品价格总库（国内）'!$A$1:$FG$66703,$A$9,0),B41) -> 25500 | J40: 复合肥 | K40: 江苏瑞和牌45%[S]（元/吨） | L40: 2400.00 | M40: 2400.00 | N40: 2471.11 | O40: 2429.35 | P40: 2400.00 | Q40: 2369.78 | R40: 2347.78 | S40: 2122.83 | T40: 1998.70 | U40: 1950.00 | V40: 1950.00 | W40: 2142.39 | X40: 2250.00 | Y40: 2250.00 | Z40: 2250.00 | AA40: 2250.00 | AB40: 2250.00 | AC40: 2250.00 | AD40: 2250.00 | AE40: 2250.00 | AF40: 2250.00 | AG40: 2250.00 | AH40: 2250.00 | AI40: 2302.93 | AJ40: 2375.11 | AK40: 2680.00 | AL40: 2680.00 | AM40: 2633.48 | AN40: 2886.96 | AO40: 2905.60 | AP40: 2798.24 | AQ40: 2897.83 | AR40: 2881.52 | AS40: 2764.29 | AT40: 2713.89 | AU40: 2601.09 | AV40: 2129.89 | AW40: 2140.11 | AX40: 2316.11 | AY40: 2116.30 | AZ40: 2095.11 | BA40: 2500.00 | BB40: 2725.56 | BC40: 3203.26 | BD40: 3500.00 | BE40: 3349.78 | BF40: 3059.34 | BG40: 2454.89 | BH40: 1970.00 | BI40: 1843.08 | BJ40: 1780.00 | BK40: 1780.00 | BL40: 1780.00 | BM40: 1780.00 | BN40: 1778.56
A41: =INDEX('化工产品价格总库（国内）'!A:A,ROW()-8) -> 2019-08-20 | B41: =IF(VLOOKUP($A41,'化工产品价格总库（国内）'!$A$1:$FG$66703,$A$9,0),VLOOKUP($A41,'化工产品价格总库（国内）'!$A$1:$FG$66703,$A$9,0),B42) -> 25500 | J41: 硫酸 | K41: 浙江嘉化98%（元/吨） | L41: 303.46 | M41: 430.99 | N41: 663.00 | O41: 660.76 | P41: 590.00 | Q41: 561.76 | R41: 570.00 | S41: 576.30 | T41: 490.00 | U41: 490.00 | V41: 490.00 | W41: 435.33 | X41: 390.00 | Y41: 460.55 | Z41: 491.32 | AA41: 535.87 | AB41: 594.13 | AC41: 543.74 | AD41: 550.00 | AE41: 532.63 | AF41: 522.28 | AG41: 395.16 | AH41: 322.22 | AI41: 215.54 | AJ41: 267.28 | AK41: 360.66 | AL41: 403.67 | AM41: 423.70 | AN41: 466.09 | AO41: 551.32 | AP41: 564.62 | AQ41: 612.93 | AR41: 662.17 | AS41: 678.57 | AT41: 628.67 | AU41: 607.61 | AV41: 417.28 | AW41: 440.11 | AX41: 518.67 | AY41: 283.48 | AZ41: 215.98 | BA41: 198.79 | BB41: 215.67 | BC41: 363.04 | BD41: 1608.37 | BE41: 1841.76 | BF41: 1436.81 | BG41: 992.39 | BH41: 543.91 | BI41: 535.05 | BJ41: 341.44 | BK41: 327.61 | BL41: 397.39 | BM41: 426.70 | BN41: 396.00
A42: =INDEX('化工产品价格总库（国内）'!A:A,ROW()-8) -> 2019-08-19 | B42: =IF(VLOOKUP($A42,'化工产品价格总库（国内）'!$A$1:$FG$66703,$A$9,0),VLOOKUP($A42,'化工产品价格总库（国内）'!$A$1:$FG$66703,$A$9,0),B43) -> 25500 | J42: 磷酸（元/吨） | K42: 新乡华幸工业85% | L42: 4948.15 | M42: 4600.00 | N42: 4600.00 | O42: 4410.87 | P42: 4358.70 | Q42: 4795.60 | R42: 4800.00 | S42: 4800.00 | T42: 4800.00 | U42: 4920.88 | V42: 4600.00 | W42: 4600.00 | X42: 4600.00 | Y42: 4787.91 | Z42: 4900.00 | AA42: 4900.00 | AB42: 4968.48 | AC42: 5000.00 | AD42: 5194.59 | AE42: 5200.00 | AF42: 5200.00 | AG42: 5200.00 | AH42: 5200.00 | AI42: 5200.00 | AJ42: 5247.83 | AK42: 5300.00 | AL42: 5284.44 | AM42: 5206.52 | AN42: 5307.61 | AO42: 5500.00 | AP42: 5148.35 | AQ42: 5317.39 | AR42: 4754.35 | AS42: 4891.21 | AT42: 4562.22 | AU42: 4721.74 | AV42: 4225.54 | AW42: 4228.57 | AX42: 4921.11 | AY42: 3997.83 | AZ42: 3791.85 | BA42: 3815.38 | BB42: 3905.56 | BC42: 4873.91 | BD42: 5628.26 | BE42: 0.00 | BF42: 0.00 | BG42: 0.00 | BH42: 0.00 | BI42: 0.00 | BJ42: 0.00 | BK42: 0.00 | BL42: 0.00 | BM42: 0.00 | BN42: 0.00
A43: =INDEX('化工产品价格总库（国内）'!A:A,ROW()-8) -> 2019-08-18 | B43: =IF(VLOOKUP($A43,'化工产品价格总库（国内）'!$A$1:$FG$66703,$A$9,0),VLOOKUP($A43,'化工产品价格总库（国内）'!$A$1:$FG$66703,$A$9,0),B44) -> 25500 | J43: 磷酸（元/吨） | K43: 新乡华幸食品 | L43: 5003.70 | M43: 4645.05 | N43: 4688.89 | O43: 4700.00 | P43: 4818.48 | Q43: 5295.60 | R43: 5300.00 | S43: 5300.00 | T43: 5300.00 | U43: 5438.46 | V43: 5100.00 | W43: 5100.00 | X43: 5100.00 | Y43: 5287.91 | Z43: 5400.00 | AA43: 5526.09 | AB43: 5800.00 | AC43: 5800.00 | AD43: 5800.00 | AE43: 5800.00 | AF43: 5800.00 | AG43: 5800.00 | AH43: 5800.00 | AI43: 5800.00 | AJ43: 5800.00 | AK43: 5800.00 | AL43: 5753.33 | AM43: 5519.57 | AN43: 5731.52 | AO43: 5100.00 | AP43: 5100.00 | AQ43: 5417.39 | AR43: 4854.35 | AS43: 4991.21 | AT43: 4776.67 | AU43: 4858.70 | AV43: 4289.13 | AW43: 4300.00 | AX43: 5083.33 | AY43: 4097.83 | AZ43: 3980.98 | BA43: 4046.15 | BB43: 4161.11 | BC43: 4785.33 | BD43: 5833.70 | BE43: 0.00 | BF43: 0.00 | BG43: 0.00 | BH43: 0.00 | BI43: 0.00 | BJ43: 0.00 | BK43: 0.00 | BL43: 0.00 | BM43: 0.00 | BN43: 0.00
A44: =INDEX('化工产品价格总库（国内）'!A:A,ROW()-8) -> 2019-08-17 | B44: =IF(VLOOKUP($A44,'化工产品价格总库（国内）'!$A$1:$FG$66703,$A$9,0),VLOOKUP($A44,'化工产品价格总库（国内）'!$A$1:$FG$66703,$A$9,0),B45) -> 25500 | J44: 黄磷 | K44: 四川地区（元/吨） | L44: 17535.80 | M44: 15081.32 | N44: 15041.11 | O44: 15259.78 | P44: 14172.83 | Q44: 14639.56 | R44: 15747.78 | S44: 16781.52 | T44: 15055.43 | U44: 14485.71 | V44: 14166.67 | W44: 13448.37 | X44: 11264.13 | Y44: 12345.60 | Z44: 12451.65 | AA44: 12400.00 | AB44: 12644.02 | AC44: 13729.67 | AD44: 14730.41 | AE44: 14069.08 | AF44: 14013.59 | AG44: 15452.75 | AH44: 15422.22 | AI44: 15400.00 | AJ44: 14869.02 | AK44: 16051.65 | AL44: 16298.89 | AM44: 16130.98 | AN44: 15386.41 | AO44: 16357.14 | AP44: 16917.03 | AQ44: 17453.26 | AR44: 15666.85 | AS44: 15062.64 | AT44: 14950.00 | AU44: 15179.89 | AV44: 14004.35 | AW44: 13052.75 | AX44: 15653.33 | AY44: 12859.78 | AZ44: 11100.00 | BA44: 11906.59 | BB44: 12326.67 | BC44: 14189.13 | BD44: 22812.39 | BE44: 18934.07 | BF44: 15863.74 | BG44: 13315.22 | BH44: 10465.22 | BI44: 10531.87 | BJ44: 10931.11 | BK44: 14000.00 | BL44: 11326.09 | BM44: 11989.01 | BN44: 15655.56
A45: =INDEX('化工产品价格总库（国内）'!A:A,ROW()-8) -> 2019-08-16 | B45: =IF(VLOOKUP($A45,'化工产品价格总库（国内）'!$A$1:$FG$66703,$A$9,0),VLOOKUP($A45,'化工产品价格总库（国内）'!$A$1:$FG$66703,$A$9,0),B46) -> 25500 | J45: 五氧化二磷折纯 | K45: CFR印度合同价（美元/吨) | L45: 1073.00 | M45: 1193.21 | N45: 1237.73 | O45: 1255.62 | P45: 1238.63 | Q45: 1178.92 | R45: 1073.93 | S45: 933.61 | T45: 945.21 | U45: 931.66 | V45: 942.30 | W45: 963.28 | X45: 1016.77 | Y45: 1172.00 | Z45: 1196.00 | AA45: 1328.00 | AB45: 1328.00 | AC45: 1321.05 | AD45: 1258.46 | AE45: 1254.00 | AF45: 1207.65 | AG45: 1136.30 | AH45: 1052.60 | AI45: 1016.91 | AJ45: 1183.15 | AK45: 1243.89
A46: =INDEX('化工产品价格总库（国内）'!A:A,ROW()-8) -> 2019-08-15 | B46: =IF(VLOOKUP($A46,'化工产品价格总库（国内）'!$A$1:$FG$66703,$A$9,0),VLOOKUP($A46,'化工产品价格总库（国内）'!$A$1:$FG$66703,$A$9,0),B47) -> 25500 | J46: 三聚磷酸钠 | K46: 新乡华幸工业级94%（元/吨） | L46: 6411.11 | M46: 6400.00 | N46: 6400.00 | O46: 6134.78 | P46: 6000.00 | Q46: 6000.00 | R46: 5760.00 | S46: 5600.00 | T46: 5600.00 | U46: 5861.54 | V46: 5980.00 | W46: 5400.00 | X46: 5330.43 | Y46: 5200.00 | Z46: 5200.00 | AA46: 5200.00 | AB46: 5461.96 | AC46: 5600.00 | AD46: 5800.00 | AE46: 5800.00 | AF46: 5808.70 | AG46: 6000.00 | AH46: 6000.00 | AI46: 5639.13 | AJ46: 5694.57 | AK46: 5995.60 | AL46: 6017.78 | AM46: 6175.00 | AN46: 6014.13 | AO46: 6434.07 | AP46: 6397.80 | AQ46: 6500.00 | AR46: 6067.39 | AS46: 5874.73 | AT46: 5857.78 | AU46: 5647.83 | AV46: 5344.02 | AW46: 5385.16 | AX46: 5785.56 | AY46: 4848.91 | AZ46: 4626.09 | BA46: 4909.89 | BB46: 5772.22 | BC46: 7415.22 | BD46: 8729.89 | BE46: 8365.38 | BF46: 6439.01 | BG46: 0.00 | BH46: 0.00 | BI46: 0.00 | BJ46: 0.00 | BK46: 0.00 | BL46: 0.00 | BM46: 0.00 | BN46: 0.00
A47: =INDEX('化工产品价格总库（国内）'!A:A,ROW()-8) -> 2019-08-14 | B47: =IF(VLOOKUP($A47,'化工产品价格总库（国内）'!$A$1:$FG$66703,$A$9,0),VLOOKUP($A47,'化工产品价格总库（国内）'!$A$1:$FG$66703,$A$9,0),B48) -> 26000 | J47: 纯吡啶 | K47: 华东地区（元/吨） | L47: 19500.00 | M47: 20109.89 | N47: 20583.33 | O47: 20858.70 | P47: 21500.00 | Q47: 21840.66 | R47: 24227.78 | S47: 26872.28 | T47: 27298.91 | U47: 26543.96 | V47: 18905.56 | W47: 15292.93 | X47: 15250.00 | Y47: 16656.59 | Z47: 19340.66 | AA47: 21394.02 | AB47: 23399.46 | AC47: 24994.51 | AD47: 25952.70 | AE47: 27914.47 | AF47: 31741.85 | AG47: 38000.00 | AH47: 37438.89 | AI47: 34051.63 | AJ47: 32953.80 | AK47: 35697.80 | AL47: 31594.44 | AM47: 28832.07 | AN47: 27362.50 | AO47: 26340.66 | AP47: 25961.54 | AQ47: 26809.24 | AR47: 26967.39 | AS47: 28541.21 | AT47: 30322.22 | AU47: 31889.13 | AV47: 31440.22 | AW47: 33482.75 | AX47: 34683.74 | AY47: 34876.09 | AZ47: 36474.79 | BA47: 41050.07 | BB47: 41866.79 | BC47: 42794.25 | BD47: 48790.98 | BE47: 53619.49 | BF47: 54797.81 | BG47: 54756.12 | BH47: 61267.88 | BI47: 62870.80 | BJ47: 62532.36 | BK47: 62830.57 | BL47: 66370.40 | BM47: 52998.12 | BN47: 49584.20
A48: =INDEX('化工产品价格总库（国内）'!A:A,ROW()-8) -> 2019-08-13 | B48: =IF(VLOOKUP($A48,'化工产品价格总库（国内）'!$A$1:$FG$66703,$A$9,0),VLOOKUP($A48,'化工产品价格总库（国内）'!$A$1:$FG$66703,$A$9,0),B49) -> 26000 | J48: 百草枯 | K48: 浙江永农42%水剂（元/吨） | L48: 16500.00 | M48: 16208.79 | N48: 16311.11 | O48: 18445.65 | P48: 19500.00 | Q48: 20439.56 | R48: 22000.00 | S48: 22130.43 | T48: 21233.70 | U48: 21879.12 | V48: 18644.44 | W48: 11108.70 | X48: 10000.00 | Y48: 11219.78 | Z48: 13060.44 | AA48: 14088.04 | AB48: 16388.04 | AC48: 17000.00 | AD48: 18945.95 | AE48: 22756.58 | AF48: 25442.39 | AG48: 27961.54 | AH48: 29105.56 | AI48: 27396.74 | AJ48: 23158.70 | AK48: 20467.03 | AL48: 16746.67 | AM48: 15403.26 | AN48: 14183.70 | AO48: 14138.46 | AP48: 14019.78 | AQ48: 13984.78 | AR48: 13817.39 | AS48: 14946.15 | AT48: 15350.00 | AU48: 15010.00
A49: =INDEX('化工产品价格总库（国内）'!A:A,ROW()-8) -> 2019-08-12 | B49: =IF(VLOOKUP($A49,'化工产品价格总库（国内）'!$A$1:$FG$66703,$A$9,0),VLOOKUP($A49,'化工产品价格总库（国内）'!$A$1:$FG$66703,$A$9,0),B50) -> 26000 | J49: 草甘膦 | K49: 浙江新安化工（元/吨） | L49: 25395.06 | M49: 24467.03 | N49: 25575.00 | O49: 27842.39 | P49: 27597.83 | Q49: 25681.32 | R49: 25650.00 | S49: 27967.39 | T49: 22869.57 | U49: 20964.29 | V49: 23452.78 | W49: 21936.96 | X49: 17538.59 | Y49: 17343.96 | Z49: 17715.38 | AA49: 18829.89 | AB49: 19122.28 | AC49: 20445.05 | AD49: 20763.51 | AE49: 24131.58 | AF49: 27592.39 | AG49: 30016.48 | AH49: 33547.22 | AI49: 34480.98 | AJ49: 42535.33 | AK49: 36673.08 | AL49: 32891.67 | AM49: 34233.70 | AN49: 31402.17 | AO49: 25314.84 | AP49: 24436.26 | AQ49: 24051.63 | AR49: 22200.00 | AS49: 21805.49 | AT49: 21672.22 | AU49: 22097.83 | AV49: 22538.04 | AW49: 24241.76 | AX49: 24083.33 | AY49: 20467.39 | AZ49: 21521.74 | BA49: 25109.89 | BB49: 25116.67 | BC49: 27222.83 | BD49: 65902.17 | BE49: 92670.33 | BF49: 85285.71 | BG49: 53961.96 | BH49: 36597.83 | BI49: 32175.82 | BJ49: 30173.33 | BK49: 34630.43 | BL49: 31304.35 | BM49: 28164.84 | BN49: 27500.00
A50: =INDEX('化工产品价格总库（国内）'!A:A,ROW()-8) -> 2019-08-11 | B50: =IF(VLOOKUP($A50,'化工产品价格总库（国内）'!$A$1:$FG$66703,$A$9,0),VLOOKUP($A50,'化工产品价格总库（国内）'!$A$1:$FG$66703,$A$9,0),B51) -> 26000 | J50: 液氯 | K50: 华东地区（元/吨） | L50: 150.50 | M50: 150.50 | N50: 150.50 | O50: 150.50 | P50: 150.50 | Q50: 150.50 | R50: 150.50 | S50: 117.35 | T50: 100.50 | U50: 145.01 | V50: 187.14 | W50: 273.91 | X50: 235.16 | Y50: 478.85 | Z50: 593.41 | AA50: 527.99 | AB50: 401.63 | AC50: 722.80 | AD50: 824.32 | AE50: 759.21 | AF50: 665.49 | AG50: 995.05 | AH50: 802.50 | AI50: 813.04 | AJ50: 614.67 | AK50: 678.30 | AL50: 637.22 | AM50: 326.90 | AN50: 424.18 | AO50: 356.32 | AP50: 670.82 | AQ50: 484.65 | AR50: 764.76 | AS50: 979.47 | AT50: 1385.31 | AU50: 1945.98 | AV50: 1880.22 | AW50: 1612.53 | AX50: 1851.83 | AY50: 1590.54 | AZ50: 1385.33 | BA50: 1052.12 | BB50: 1078.02 | BC50: 460.40 | BD50: 917.64 | BE50: 1563.41 | BF50: 1691.21 | BG50: 1843.15 | BH50: 1601.09 | BI50: 1411.98 | BJ50: 1280.92 | BK50: 1484.78 | BL50: 1110.35 | BM50: 1546.48 | BN50: 1758.78
A51: =INDEX('化工产品价格总库（国内）'!A:A,ROW()-8) -> 2019-08-10 | B51: =IF(VLOOKUP($A51,'化工产品价格总库（国内）'!$A$1:$FG$66703,$A$9,0),VLOOKUP($A51,'化工产品价格总库（国内）'!$A$1:$FG$66703,$A$9,0),B52) -> 26000 | J51: 原盐 | K51: 河北出厂（元/吨） | L51: 185.14 | M51: 178.35 | N51: 203.99 | O51: 205.34 | P51: 181.83 | Q51: 178.25 | R51: 175.00 | S51: 169.35 | T51: 165.22 | U51: 173.46 | V51: 160.83 | W51: 122.61 | X51: 120.00 | Y51: 117.97 | Z51: 139.20 | AA51: 152.50 | AB51: 152.50 | AC51: 156.29 | AD51: 186.15 | AE51: 208.29 | AF51: 270.00 | AG51: 270.00 | AH51: 285.00 | AI51: 285.00 | AJ51: 286.41 | AK51: 293.85 | AL51: 313.83 | AM51: 315.00 | AN51: 311.68 | AO51: 318.90 | AP51: 325.00 | AQ51: 328.42 | AR51: 335.33 | AS51: 325.38 | AT51: 314.89 | AU51: 296.96 | AV51: 243.70 | AW51: 238.08 | AX51: 221.22 | AY51: 217.72 | AZ51: 220.00 | BA51: 215.05 | BB51: 186.72 | BC51: 266.63 | BD51: 382.93 | BE51: 250.00 | BF51: 213.19 | BG51: 198.32 | BH51: 179.95 | BI51: 185.00 | BJ51: 192.76 | BK51: 191.68 | BL51: 191.68 | BM51: 211.70 | BN51: 251.22
A52: =INDEX('化工产品价格总库（国内）'!A:A,ROW()-8) -> 2019-08-09 | B52: =IF(VLOOKUP($A52,'化工产品价格总库（国内）'!$A$1:$FG$66703,$A$9,0),VLOOKUP($A52,'化工产品价格总库（国内）'!$A$1:$FG$66703,$A$9,0),B53) -> 26000 | J52: 烧碱 | K52: 32%离子膜华东地区（元/吨） | L52: 734.46 | M52: 798.65 | N52: 881.78 | O52: 1033.55 | P52: 969.09 | Q52: 1050.35 | R52: 1163.84 | S52: 1374.95 | T52: 1026.62 | U52: 1004.14 | V52: 983.70 | W52: 964.29 | X52: 700.54 | Y52: 593.41 | Z52: 604.67 | AA52: 636.79 | AB52: 629.68 | AC52: 598.24 | AD52: 568.31 | AE52: 645.39 | AF52: 618.35 | AG52: 604.78 | AH52: 699.50 | AI52: 723.04 | AJ52: 671.86 | AK52: 661.32 | AL52: 659.37 | AM52: 790.27 | AN52: 907.66 | AO52: 890.71 | AP52: 886.98 | AQ52: 848.80 | AR52: 798.75 | AS52: 760.19 | AT52: 668.94 | AU52: 624.13 | AV52: 447.45 | AW52: 475.88 | AX52: 450.00 | AY52: 453.80 | AZ52: 440.76 | BA52: 628.30 | BB52: 718.11 | BC52: 838.32 | BD52: 793.80 | BE52: 743.46 | BF52: 648.02 | BG52: 653.91 | BH52: 622.99 | BI52: 695.82 | BJ52: 686.11 | BK52: 725.92 | BL52: 632.12 | BM52: 539.07 | BN52: 480.00
A53: =INDEX('化工产品价格总库（国内）'!A:A,ROW()-8) -> 2019-08-08 | B53: =IF(VLOOKUP($A53,'化工产品价格总库（国内）'!$A$1:$FG$66703,$A$9,0),VLOOKUP($A53,'化工产品价格总库（国内）'!$A$1:$FG$66703,$A$9,0),B54) -> 26000 | J53: 烧碱 | K53: 30%隔膜华东地区（元/吨） | L53: 550.00 | M53: 550.00 | N53: 550.00 | O53: 550.00 | P53: 550.00 | Q53: 550.00 | R53: 550.00 | S53: 550.00 | T53: 550.00 | U53: 550.00 | V53: 550.00 | W53: 550.00 | X53: 550.00 | Y53: 550.00 | Z53: 550.44 | AA53: 638.59 | AB53: 610.11 | AC53: 571.32 | AD53: 561.01 | AE53: 602.76 | AF53: 600.00 | AG53: 602.47 | AH53: 657.44 | AI53: 625.00 | AJ53: 620.68 | AK53: 582.25 | AL53: 669.44 | AM53: 825.05 | AN53: 840.00 | AO53: 830.44 | AP53: 845.00 | AQ53: 799.24 | AR53: 740.43 | AS53: 693.57 | AT53: 607.28 | AU53: 575.22 | AV53: 424.13 | AW53: 436.32 | AX53: 403.22 | AY53: 415.22 | AZ53: 412.01 | BA53: 580.22 | BB53: 666.44 | BC53: 768.10 | BD53: 743.42 | BE53: 696.24 | BF53: 596.59 | BG53: 606.58 | BH53: 577.07 | BI53: 645.77 | BJ53: 640.06 | BK53: 681.36 | BL53: 590.49 | BM53: 517.42 | BN53: 515.00
A54: =INDEX('化工产品价格总库（国内）'!A:A,ROW()-8) -> 2019-08-07 | B54: =IF(VLOOKUP($A54,'化工产品价格总库（国内）'!$A$1:$FG$66703,$A$9,0),VLOOKUP($A54,'化工产品价格总库（国内）'!$A$1:$FG$66703,$A$9,0),B55) -> 26000 | J54: 电石 | K54: 华东地区（元/吨） | L54: 3302.86 | M54: 3213.21 | N54: 3126.28 | O54: 3392.50 | P54: 3454.86 | Q54: 3277.43 | R54: 3237.61 | S54: 3445.98 | T54: 3021.41 | U54: 2822.64 | V54: 3044.56 | W54: 3081.74 | X54: 2648.32 | Y54: 2474.01 | Z54: 2434.12 | AA54: 2497.55 | AB54: 2692.34 | AC54: 2864.18 | AD54: 2631.96 | AE54: 2967.17 | AF54: 3182.34 | AG54: 3262.64 | AH54: 3288.50 | AI54: 3279.24 | AJ54: 3270.65 | AK54: 3323.30 | AL54: 3527.78 | AM54: 3411.96 | AN54: 3537.50 | AO54: 3740.66 | AP54: 3815.93 | AQ54: 3745.00 | AR54: 4161.30 | AS54: 4028.02 | AT54: 3868.89 | AU54: 4376.09 | AV54: 3676.30 | AW54: 3573.08 | AX54: 3548.11 | AY54: 3271.20 | AZ54: 3136.20 | BA54: 3140.38 | BB54: 3076.11 | BC54: 3256.14 | BD54: 4340.76 | BE54: 3886.54 | BF54: 3237.36 | BG54: 3269.02 | BH54: 3179.08 | BI54: 2893.57 | BJ54: 2750.50 | BK54: 2713.04 | BL54: 2698.26 | BM54: 2615.16 | BN54: 2535.78
A55: =INDEX('化工产品价格总库（国内）'!A:A,ROW()-8) -> 2019-08-06 | B55: =IF(VLOOKUP($A55,'化工产品价格总库（国内）'!$A$1:$FG$66703,$A$9,0),VLOOKUP($A55,'化工产品价格总库（国内）'!$A$1:$FG$66703,$A$9,0),B56) -> 26000 | J55: PVC | K55: CFR东南亚（美元/吨） | L55: 872.95 | M55: 844.51 | N55: 891.83 | O55: 859.89 | P55: 936.03 | Q55: 937.09 | R55: 946.17 | S55: 887.93 | T55: 899.84 | U55: 886.37 | V55: 923.72 | W55: 930.33 | X55: 824.57 | Y55: 806.48 | Z55: 739.73 | AA55: 756.58 | AB55: 825.82 | AC55: 869.12 | AD55: 824.32 | AE55: 928.95 | AF55: 1038.85 | AG55: 1031.36 | AH55: 1044.89 | AI55: 1000.05 | AJ55: 1023.04 | AK55: 982.03 | AL55: 1049.21 | AM55: 967.83 | AN55: 966.63 | AO55: 999.99 | AP55: 1002.04 | AQ55: 916.10 | AR55: 1093.77 | AS55: 1197.27 | AT55: 1068.24 | AU55: 1019.57 | AV55: 945.78 | AW55: 984.46 | AX55: 1025.67 | AY55: 887.01 | AZ55: 902.88 | BA55: 747.80 | BB55: 658.02 | BC55: 696.90 | BD55: 1218.42 | BE55: 1190.99 | BF55: 1045.55 | BG55: 982.61 | BH55: 1013.59 | BI55: 925.82 | BJ55: 852.94 | BK55: 844.24 | BL55: 901.99 | BM55: 798.75 | BN55: 776.89
A56: =INDEX('化工产品价格总库（国内）'!A:A,ROW()-8) -> 2019-08-05 | B56: =IF(VLOOKUP($A56,'化工产品价格总库（国内）'!$A$1:$FG$66703,$A$9,0),VLOOKUP($A56,'化工产品价格总库（国内）'!$A$1:$FG$66703,$A$9,0),B57) -> 26500 | J56: PVC | K56: 华东电石法（元/吨） | L56: 6749.68 | M56: 6831.18 | N56: 6488.56 | O56: 6624.35 | P56: 7004.13 | Q56: 6792.74 | R56: 6548.66 | S56: 6480.71 | T56: 7085.65 | U56: 5849.18 | V56: 6277.78 | W56: 7279.29 | X56: 5833.64 | Y56: 5326.65 | Z56: 5080.38 | AA56: 4889.29 | AB56: 5344.29 | AC56: 5767.58 | AD56: 5265.68 | AE56: 6029.80 | AF56: 6060.76 | AG56: 6056.10 | AH56: 6184.44 | AI56: 6361.20 | AJ56: 6702.07 | AK56: 6434.07 | AL56: 6281.00 | AM56: 6317.39 | AN56: 6361.41 | AO56: 6590.11 | AP56: 6644.35 | AQ56: 6632.04 | AR56: 7694.46 | AS56: 7949.36 | AT56: 7839.80 | AU56: 8331.28 | AV56: 7269.25 | AW56: 7326.26 | AX56: 7301.34 | AY56: 6713.91 | AZ56: 6690.92 | BA56: 6384.51 | BB56: 6256.11 | BC56: 6134.78 | BD56: 8055.98 | BE56: 8473.63 | BF56: 7485.16 | BG56: 7300.00 | BH56: 7708.70 | BI56: 7376.37 | BJ56: 6519.44 | BK56: 6690.49 | BL56: 7295.11 | BM56: 6565.66 | BN56: 6287.78
A57: =INDEX('化工产品价格总库（国内）'!A:A,ROW()-8) -> 2019-08-04 | B57: =IF(VLOOKUP($A57,'化工产品价格总库（国内）'!$A$1:$FG$66703,$A$9,0),VLOOKUP($A57,'化工产品价格总库（国内）'!$A$1:$FG$66703,$A$9,0),B58) -> 26500 | J57: PVC | K57: 华东乙烯法（元/吨） | L57: 7014.22 | M57: 7017.57 | N57: 7008.83 | O57: 7072.18 | P57: 7329.35 | Q57: 7036.40 | R57: 6946.61 | S57: 6986.20 | T57: 7381.30 | U57: 6490.93 | V57: 7142.22 | W57: 7754.89 | X57: 6052.12 | Y57: 5790.05 | Z57: 5658.13 | AA57: 5573.80 | AB57: 5799.67 | AC57: 6169.51 | AD57: 5705.41 | AE57: 6658.49 | AF57: 6868.32 | AG57: 6900.22 | AH57: 7070.94 | AI57: 6946.63 | AJ57: 7086.09 | AK57: 6838.46 | AL57: 6763.89 | AM57: 6734.78 | AN57: 6666.30 | AO57: 6969.01 | AP57: 6950.55 | AQ57: 7087.50 | AR57: 8403.37 | AS57: 8618.68 | AT57: 8403.89 | AU57: 8686.03 | AV57: 7479.89 | AW57: 7578.30 | AX57: 7621.48 | AY57: 6880.22 | AZ57: 6898.91 | BA57: 6524.34 | BB57: 6470.00 | BC57: 6348.91 | BD57: 8679.35 | BE57: 8850.00 | BF57: 7860.44 | BG57: 7820.11 | BH57: 8106.52 | BI57: 7819.23 | BJ57: 7183.89 | BK57: 7379.89 | BL57: 7586.41 | BM57: 6943.41 | BN57: 6750.00
A58: =INDEX('化工产品价格总库（国内）'!A:A,ROW()-8) -> 2019-08-03 | B58: =IF(VLOOKUP($A58,'化工产品价格总库（国内）'!$A$1:$FG$66703,$A$9,0),VLOOKUP($A58,'化工产品价格总库（国内）'!$A$1:$FG$66703,$A$9,0),B59) -> 26500 | J58: 盐酸 | K58: 华东盐酸(31%)（元/吨） | L58: 250.00 | M58: 250.00 | N58: 250.00 | O58: 250.00 | P58: 250.00 | Q58: 250.00 | R58: 250.00 | S58: 250.00 | T58: 272.17 | U58: 287.03 | V58: 345.56 | W58: 350.00 | X58: 291.66 | Y58: 262.56 | Z58: 263.00 | AA58: 256.84 | AB58: 233.33 | AC58: 217.51 | AD58: 216.55 | AE58: 197.83 | AF58: 188.32 | AG58: 201.91 | AH58: 207.23 | AI58: 231.47 | AJ58: 236.03 | AK58: 229.67 | AL58: 210.06 | AM58: 217.39 | AN58: 237.61 | AO58: 254.84 | AP58: 222.20 | AQ58: 340.43 | AR58: 537.53 | AS58: 579.41 | AT58: 545.22 | AU58: 549.24 | AV58: 510.53 | AW58: 503.52 | AX58: 415.04 | AY58: 397.52 | AZ58: 384.71 | BA58: 667.47 | BB58: 778.89 | BC58: 539.95 | BD58: 669.78 | BE58: 690.33 | BF58: 57.69 | BG58: 0.00 | BH58: 0.00 | BI58: 0.00 | BJ58: 0.00 | BK58: 0.00 | BL58: 0.00 | BM58: 0.00 | BN58: 0.00
A59: =INDEX('化工产品价格总库（国内）'!A:A,ROW()-8) -> 2019-08-02 | B59: =IF(VLOOKUP($A59,'化工产品价格总库（国内）'!$A$1:$FG$66703,$A$9,0),VLOOKUP($A59,'化工产品价格总库（国内）'!$A$1:$FG$66703,$A$9,0),B60) -> 26500 | J59: 轻质纯碱 | K59: 华东地区（元/吨） | L59: 1613.89 | M59: 1835.00 | N59: 1862.89 | O59: 1998.64 | P59: 1795.82 | Q59: 1984.23 | R59: 1704.61 | S59: 2215.65 | T59: 1797.99 | U59: 1553.19 | V59: 1914.83 | W59: 1611.90 | X59: 1274.29 | Y59: 1287.42 | Z59: 1357.42 | AA59: 1235.11 | AB59: 1297.88 | AC59: 1386.98 | AD59: 1433.78 | AE59: 1442.50 | AF59: 1473.70 | AG59: 1433.63 | AH59: 1423.67 | AI59: 1484.08 | AJ59: 1257.99 | AK59: 1216.76 | AL59: 1237.67 | AM59: 1229.40 | AN59: 1246.36 | AO59: 1375.27 | AP59: 1509.40 | AQ59: 1770.11 | AR59: 1930.71 | AS59: 1885.82 | AT59: 1687.44 | AU59: 2028.59 | AV59: 1325.98 | AW59: 1321.92 | AX59: 1437.50 | AY59: 1178.97 | AZ59: 1110.76 | BA59: 1086.43 | BB59: 1107.72 | BC59: 1359.67 | BD59: 1932.77 | BE59: 1990.49 | BF59: 1958.30 | BG59: 1624.89 | BH59: 1536.63 | BI59: 1493.52 | BJ59: 1429.94 | BK59: 1401.36 | BL59: 1394.24 | BM59: 1243.19 | BN59: 1254.33
A60: =INDEX('化工产品价格总库（国内）'!A:A,ROW()-8) -> 2019-08-01 | B60: =IF(VLOOKUP($A60,'化工产品价格总库（国内）'!$A$1:$FG$66703,$A$9,0),VLOOKUP($A60,'化工产品价格总库（国内）'!$A$1:$FG$66703,$A$9,0),B61) -> 26500 | J60: 重质纯碱 | K60: 华东地区（元/吨） | L60: 1820.99 | M60: 1944.51 | N60: 2084.17 | O60: 2103.70 | P60: 1886.68 | Q60: 2034.07 | R60: 1785.56 | S60: 2432.61 | T60: 1902.07 | U60: 1671.15 | V60: 2086.39 | W60: 1754.78 | X60: 1401.03 | Y60: 1423.85 | Z60: 1453.85 | AA60: 1321.25 | AB60: 1400.16 | AC60: 1460.11 | AD60: 1497.64 | AE60: 1525.00 | AF60: 1594.57 | AG60: 1568.57 | AH60: 1592.78 | AI60: 1562.50 | AJ60: 1329.08 | AK60: 1290.77 | AL60: 1300.00 | AM60: 1310.33 | AN60: 1347.83 | AO60: 1472.53 | AP60: 1654.67 | AQ60: 1905.98 | AR60: 2026.63 | AS60: 1954.34 | AT60: 1960.28 | AU60: 2218.59 | AV60: 1377.61 | AW60: 1455.88 | AX60: 1502.67 | AY60: 1248.42 | AZ60: 1166.68 | BA60: 1161.70 | BB60: 1175.50 | BC60: 1549.18 | BD60: 2088.48 | BE60: 2125.55 | BF60: 2085.71 | BG60: 1710.60 | BH60: 1640.16 | BI60: 1596.59 | BJ60: 1492.50 | BK60: 1433.04 | BL60: 1413.26 | BM60: 1394.67 | BN60: 1503.33
A61: =INDEX('化工产品价格总库（国内）'!A:A,ROW()-8) -> 2019-07-31 | B61: =IF(VLOOKUP($A61,'化工产品价格总库（国内）'!$A$1:$FG$66703,$A$9,0),VLOOKUP($A61,'化工产品价格总库（国内）'!$A$1:$FG$66703,$A$9,0),B62) -> 26500 | J61: 硝酸 | K61: 安徽淮化98%（元/吨） | L61: 1700.00 | M61: 1700.00 | N61: 1746.67 | O61: 1952.17 | P61: 1503.26 | Q61: 1657.69 | R61: 1924.44 | S61: 1904.46 | T61: 1421.96 | U61: 1547.69 | V61: 1563.00 | W61: 1269.02 | X61: 1112.07 | Y61: 1160.11 | Z61: 1037.36 | AA61: 1281.52 | AB61: 1362.39 | AC61: 1411.87 | AD61: 1437.30 | AE61: 1512.50 | AF61: 1490.43 | AG61: 1455.93 | AH61: 1494.44 | AI61: 1617.93 | AJ61: 1733.91 | AK61: 1772.86 | AL61: 1619.56 | AM61: 1688.37 | AN61: 1621.30 | AO61: 1864.84 | AP61: 1852.47 | AQ61: 1993.32 | AR61: 2193.86 | AS61: 1985.88 | AT61: 1849.44 | AU61: 2319.57 | AV61: 1830.65 | AW61: 1828.90 | AX61: 1998.06 | AY61: 1914.67 | AZ61: 1906.52 | BA61: 1859.89 | BB61: 1424.44 | BC61: 1767.39 | BD61: 4211.96 | BE61: 2962.09 | BF61: 1715.93 | BG61: 0.00 | BH61: 0.00 | BI61: 0.00 | BJ61: 0.00 | BK61: 0.00 | BL61: 0.00 | BM61: 0.00 | BN61: 0.00
A62: =INDEX('化工产品价格总库（国内）'!A:A,ROW()-8) -> 2019-07-30 | B62: =IF(VLOOKUP($A62,'化工产品价格总库（国内）'!$A$1:$FG$66703,$A$9,0),VLOOKUP($A62,'化工产品价格总库（国内）'!$A$1:$FG$66703,$A$9,0),B63) -> 26500 | J62: 硝酸铵（工业） | K62: 华北地区山东联合（元/吨） | L62: 1850.00 | M62: 1853.30 | N62: 2000.00 | O62: 1991.30 | P62: 1950.00 | Q62: 1979.67 | R62: 1976.67 | S62: 1664.13 | T62: 1600.00 | U62: 1526.37 | V62: 1454.44 | W62: 1400.00 | X62: 1333.15 | Y62: 1350.00 | Z62: 1365.93 | AA62: 1400.00 | AB62: 1447.28 | AC62: 1426.92 | AD62: 1463.85 | AE62: 1475.00 | AF62: 1485.60 | AG62: 1558.24 | AH62: 1637.78 | AI62: 1690.22 | AJ62: 1661.96 | AK62: 1732.42 | AL62: 1830.56 | AM62: 1843.15 | AN62: 1869.29 | AO62: 2190.66 | AP62: 2444.51 | AQ62: 2743.48 | AR62: 2767.39 | AS62: 2373.08 | AT62: 2494.44 | AU62: 2336.96 | AV62: 1980.43 | AW62: 2112.09 | AX62: 2021.67 | AY62: 1656.52 | AZ62: 1741.30 | BA62: 2100.55 | BB62: 2138.89 | BC62: 2545.65 | BD62: 2904.35 | BE62: 2565.49 | BF62: 2205.38 | BG62: 0.00 | BH62: 0.00 | BI62: 0.00 | BJ62: 0.00 | BK62: 0.00 | BL62: 0.00 | BM62: 0.00 | BN62: 0.00
A63: =INDEX('化工产品价格总库（国内）'!A:A,ROW()-8) -> 2019-07-29 | B63: =IF(VLOOKUP($A63,'化工产品价格总库（国内）'!$A$1:$FG$66703,$A$9,0),VLOOKUP($A63,'化工产品价格总库（国内）'!$A$1:$FG$66703,$A$9,0),B64) -> 26500 | J63: 苯胺 | K63: 华东地区（元/吨） | L63: 6322.84 | M63: 6071.98 | N63: 6222.22 | O63: 7561.41 | P63: 8993.48 | Q63: 10660.16 | R63: 12120.00 | S63: 11529.08 | T63: 9018.48 | U63: 9179.67 | V63: 9331.11 | W63: 7739.24 | X63: 6752.72 | Y63: 6413.74 | Z63: 5561.87 | AA63: 5873.42 | AB63: 6450.00 | AC63: 6991.48 | AD63: 6418.24 | AE63: 8293.42 | AF63: 10732.34 | AG63: 11002.75 | AH63: 10927.78 | AI63: 11116.85 | AJ63: 11525.54 | AK63: 11296.15 | AL63: 12175.56 | AM63: 12466.85 | AN63: 10779.89 | AO63: 10152.75 | AP63: 10655.49 | AQ63: 9996.74 | AR63: 10414.67 | AS63: 10069.78 | AT63: 10498.33 | AU63: 11990.22 | AV63: 11341.85 | AW63: 11303.85 | AX63: 11095.56 | AY63: 9773.91 | AZ63: 9181.52 | BA63: 8096.70 | BB63: 6356.67 | BC63: 6988.04 | BD63: 13808.15 | BE63: 13550.00 | BF63: 10521.98 | BG63: 10547.83 | BH63: 10625.54 | BI63: 10982.97 | BJ63: 11800.56 | BK63: 11933.15 | BL63: 11319.02 | BM63: 12148.35 | BN63: 12887.22
A64: =INDEX('化工产品价格总库（国内）'!A:A,ROW()-8) -> 2019-07-28 | B64: =IF(VLOOKUP($A64,'化工产品价格总库（国内）'!$A$1:$FG$66703,$A$9,0),VLOOKUP($A64,'化工产品价格总库（国内）'!$A$1:$FG$66703,$A$9,0),B65) -> 26500 | J64: TDI | K64: 华东（元/吨） | L64: 13053.70 | M64: 14227.47 | N64: 13473.33 | O64: 18889.67 | P64: 28013.59 | Q64: 27701.10 | R64: 37957.22 | S64: 36988.04 | T64: 33911.96 | U64: 26010.99 | V64: 29564.44 | W64: 32349.46 | X64: 16504.89 | Y64: 13059.62 | Z64: 11380.77 | AA64: 11842.93 | AB64: 12290.76 | AC64: 13260.99 | AD64: 12164.86 | AE64: 15113.82 | AF64: 17513.59 | AG64: 17887.36 | AH64: 19396.11 | AI64: 20002.72 | AJ64: 20932.07 | AK64: 20228.02 | AL64: 23118.33 | AM64: 24671.20 | AN64: 22503.26 | AO64: 21839.56 | AP64: 19925.82 | AQ64: 17979.35 | AR64: 18827.72 | AS64: 20290.11 | AT64: 20774.44 | AU64: 22784.78 | AV64: 21844.57 | AW64: 24351.10 | AX64: 26946.11 | AY64: 28096.74 | AZ64: 26755.98 | BA64: 23104.40 | BB64: 19585.56 | BC64: 23479.35 | BD64: 38279.89 | BE64: 45134.07 | BF64: 39581.87 | BG64: 47540.22 | BH64: 44851.09 | BI64: 34309.89 | BJ64: 40116.67 | BK64: 34448.91 | BL64: 26303.26 | BM64: 25474.73 | BN64: 26744.44
A65: =INDEX('化工产品价格总库（国内）'!A:A,ROW()-8) -> 2019-07-27 | B65: =IF(VLOOKUP($A65,'化工产品价格总库（国内）'!$A$1:$FG$66703,$A$9,0),VLOOKUP($A65,'化工产品价格总库（国内）'!$A$1:$FG$66703,$A$9,0),B66) -> 26500 | J65: 聚合MDI | K65: 华东烟台万华（元/吨） | L65: 12977.78 | M65: 15440.11 | N65: 13874.44 | O65: 12737.50 | P65: 18804.89 | Q65: 21547.80 | R65: 24252.78 | S65: 29698.91 | T65: 29875.00 | U65: 22867.58 | V65: 25457.78 | W65: 19511.41 | X65: 14270.65 | Y65: 12488.46 | Z65: 10299.45 | AA65: 10497.28 | AB65: 10184.78 | AC65: 12418.13 | AD65: 13500.00 | AE65: 15675.00 | AF65: 15126.63 | AG65: 15485.16 | AH65: 16625.56 | AI65: 16381.52 | AJ65: 16940.76 | AK65: 18228.57 | AL65: 19006.67 | AM65: 20291.30 | AN65: 19454.35 | AO65: 17385.16 | AP65: 16114.84 | AQ65: 14147.83 | AR65: 15538.04 | AS65: 17243.41 | AT65: 17447.78 | AU65: 17125.00 | AV65: 15979.89 | AW65: 16833.52 | AX65: 15912.78 | AY65: 15304.89 | AZ65: 16159.78 | BA65: 15120.33 | BB65: 11844.44 | BC65: 13920.92 | BD65: 21114.67 | BE65: 23298.08 | BF65: 23834.62 | BG65: 26006.52 | BH65: 26570.65 | BI65: 26197.80 | BJ65: 22541.11 | BK65: 21016.30 | BL65: 23554.35 | BM65: 23181.32 | BN65: 21637.78
A66: =INDEX('化工产品价格总库（国内）'!A:A,ROW()-8) -> 2019-07-26 | B66: =IF(VLOOKUP($A66,'化工产品价格总库（国内）'!$A$1:$FG$66703,$A$9,0),VLOOKUP($A66,'化工产品价格总库（国内）'!$A$1:$FG$66703,$A$9,0),B67) -> 26500 | J66: 纯MDI | K66: 华东（元/吨） | L66: 18319.14 | M66: 21540.66 | N66: 21623.33 | O66: 22329.89 | P66: 28447.28 | Q66: 28504.95 | R66: 32857.22 | S66: 30154.35 | T66: 28305.43 | U66: 26357.14 | V66: 27479.44 | W66: 23264.13 | X66: 16722.28 | Y66: 16147.80 | Z66: 14712.09 | AA66: 14627.72 | AB66: 15726.63 | AC66: 17637.91 | AD66: 18124.32 | AE66: 19052.63 | AF66: 19682.07 | AG66: 20002.20 | AH66: 19447.22 | AI66: 19605.43 | AJ66: 19956.52 | AK66: 21202.75 | AL66: 21829.44 | AM66: 22608.15 | AN66: 22051.09 | AO66: 20661.54 | AP66: 18168.13 | AQ66: 17386.96 | AR66: 18496.20 | AS66: 20262.09 | AT66: 20790.56 | AU66: 21432.07 | AV66: 16810.87 | AW66: 17525.27 | AX66: 16985.56 | AY66: 16748.37 | AZ66: 17533.15 | BA66: 18435.16 | BB66: 16361.11 | BC66: 19422.28 | BD66: 23457.07 | BE66: 24125.82 | BF66: 25303.85 | BG66: 29192.93 | BH66: 32341.30 | BI66: 29084.07 | BJ66: 22453.89 | BK66: 21769.57 | BL66: 23434.24 | BM66: 23700.00 | BN66: 24422.78
A67: =INDEX('化工产品价格总库（国内）'!A:A,ROW()-8) -> 2019-07-25 | B67: =IF(VLOOKUP($A67,'化工产品价格总库（国内）'!$A$1:$FG$66703,$A$9,0),VLOOKUP($A67,'化工产品价格总库（国内）'!$A$1:$FG$66703,$A$9,0),B68) -> 26500 | J67: 烟台万华 | K67: 挂牌聚合MDI | L67: 14987.65 | M67: 17137.36 | N67: 13860.00 | O67: 14089.13 | P67: 20788.04 | Q67: 22461.54 | R67: 26068.89 | S67: 31058.70 | T67: 27108.70 | U67: 23714.29 | V67: 24200.00 | W67: 19521.74 | X67: 13854.35 | Y67: 12706.59 | Z67: 11319.78 | AA67: 11065.22 | AB67: 12243.48 | AC67: 14028.57 | AD67: 14918.92 | AE67: 16976.32 | AF67: 15897.83 | AG67: 16872.53 | AH67: 17538.89 | AI67: 16817.39 | AJ67: 17510.87 | AK67: 19180.22 | AL67: 19426.67 | AM67: 20653.26 | AN67: 18731.52 | AO67: 18254.95 | AP67: 16980.22 | AQ67: 15609.78 | AR67: 16792.39 | AS67: 18512.09 | AT67: 18275.56 | AU67: 17634.78 | AV67: 16663.04 | AW67: 18340.66 | AX67: 16568.89 | AY67: 16869.57 | AZ67: 16923.91 | BA67: 15346.15 | BB67: 13000.00 | BC67: 17163.04 | BD67: 23179.35 | BE67: 24835.16 | BF67: 25170.33 | BG67: 27163.04 | BH67: 26663.04 | BI67: 26500.00 | BJ67: 22437.78 | BK67: 23163.04 | BL67: 23163.04 | BM67: 22371.43 | BN67: 21696.67
A68: =INDEX('化工产品价格总库（国内）'!A:A,ROW()-8) -> 2019-07-24 | B68: =IF(VLOOKUP($A68,'化工产品价格总库（国内）'!$A$1:$FG$66703,$A$9,0),VLOOKUP($A68,'化工产品价格总库（国内）'!$A$1:$FG$66703,$A$9,0),B69) -> 26500 | J68: 烟台万华 | K68: 挂牌纯MDI | L68: 20767.90 | M68: 25509.89 | N68: 24150.00 | O68: 26417.39 | P68: 30778.26 | Q68: 30972.53 | R68: 30071.11 | S68: 29304.35 | T68: 26285.87 | U68: 27571.43 | V68: 23633.33 | W68: 19816.30 | X68: 19098.91 | Y68: 18681.32 | Z68: 16562.64 | AA68: 17326.09 | AB68: 18300.00 | AC68: 20230.77 | AD68: 20194.59 | AE68: 21105.26 | AF68: 23000.00 | AG68: 22936.26 | AH68: 21794.44 | AI68: 21430.43 | AJ68: 21740.22 | AK68: 23423.08 | AL68: 23710.00 | AM68: 23902.17 | AN68: 23007.61 | AO68: 22262.64 | AP68: 20891.21 | AQ68: 20100.00 | AR68: 20869.57 | AS68: 22724.18 | AT68: 22244.44 | AU68: 20729.35 | AV68: 18339.13 | AW68: 19570.33 | AX68: 17900.00 | AY68: 18378.26 | AZ68: 18697.83 | BA68: 18072.53 | BB68: 17337.78 | BC68: 22022.83 | BD68: 25069.57 | BE68: 25468.13 | BF68: 26936.26 | BG68: 27500.00 | BH68: 27735.87 | BI68: 25604.40 | BJ68: 22200.00 | BK68: 23500.00 | BL68: 24000.00 | BM68: 24065.93 | BN68: 25206.67
A69: =INDEX('化工产品价格总库（国内）'!A:A,ROW()-8) -> 2019-07-23 | B69: =IF(VLOOKUP($A69,'化工产品价格总库（国内）'!$A$1:$FG$66703,$A$9,0),VLOOKUP($A69,'化工产品价格总库（国内）'!$A$1:$FG$66703,$A$9,0),B70) -> 26500 | J69: BDO | K69: 华东散水（元/吨） | L69: 8743.83 | M69: 8515.93 | N69: 9046.11 | O69: 10374.46 | P69: 11304.89 | Q69: 12025.27 | R69: 11400.00 | S69: 10478.26 | T69: 10817.39 | U69: 11446.70 | V69: 11137.22 | W69: 9327.72 | X69: 7699.46 | Y69: 7252.20 | Z69: 7745.33 | AA69: 8175.54 | AB69: 8498.37 | AC69: 8784.62 | AD69: 9904.05 | AE69: 11161.84 | AF69: 9929.35 | AG69: 12238.46 | AH69: 13627.78 | AI69: 13655.98 | AJ69: 13828.26 | AK69: 14531.87 | AL69: 14662.22 | AM69: 15493.48 | AN69: 16038.04 | AO69: 16751.65 | AP69: 17725.27 | AQ69: 22355.98 | AR69: 23711.96 | AS69: 23796.70 | AT69: 21323.33 | AU69: 21850.54 | AV69: 18209.24 | AW69: 18796.70 | AX69: 14388.89 | AY69: 12821.74 | AZ69: 12317.93 | BA69: 12642.31 | BB69: 9811.11 | BC69: 13453.26 | BD69: 17346.74 | BE69: 16335.16 | BF69: 17176.92 | BG69: 18665.22 | BH69: 18789.13 | BI69: 20497.80 | BJ69: 21277.78 | BK69: 19446.74 | BL69: 19808.70 | BM69: 18148.35 | BN69: 16897.78
A70: =INDEX('化工产品价格总库（国内）'!A:A,ROW()-8) -> 2019-07-22 | B70: =IF(VLOOKUP($A70,'化工产品价格总库（国内）'!$A$1:$FG$66703,$A$9,0),VLOOKUP($A70,'化工产品价格总库（国内）'!$A$1:$FG$66703,$A$9,0),B71) -> 28000 | J70: DMF | K70: 华东（元/吨） | L70: 4690.74 | M70: 4796.70 | N70: 4826.94 | O70: 5477.45 | P70: 5733.70 | Q70: 5979.67 | R70: 6424.17 | S70: 6571.47 | T70: 5510.60 | U70: 5965.38 | V70: 5831.39 | W70: 5038.32 | X70: 4233.70 | Y70: 4363.19 | Z70: 4263.74 | AA70: 3781.90 | AB70: 4401.90 | AC70: 4826.65 | AD70: 5088.85 | AE70: 5009.54 | AF70: 5072.01 | AG70: 5314.29 | AH70: 5403.33 | AI70: 5504.89 | AJ70: 5379.35 | AK70: 5723.08 | AL70: 5659.44 | AM70: 5527.72 | AN70: 5644.02 | AO70: 5824.18 | AP70: 5798.35 | AQ70: 6277.72 | AR70: 6251.63 | AS70: 6626.37 | AT70: 6464.44 | AU70: 6645.65 | AV70: 5285.33 | AW70: 5377.47 | AX70: 5338.61 | AY70: 5521.03 | AZ70: 5250.76 | BA70: 5363.90 | BB70: 5233.78 | BC70: 6158.21 | BD70: 7218.15 | BE70: 6807.14 | BF70: 5847.69 | BG70: 6491.52 | BH70: 6627.17 | BI70: 6911.54 | BJ70: 7012.78 | BK70: 7450.54 | BL70: 7439.13 | BM70: 6756.04 | BN70: 6270.00
A71: =INDEX('化工产品价格总库（国内）'!A:A,ROW()-8) -> 2019-07-21 | B71: =IF(VLOOKUP($A71,'化工产品价格总库（国内）'!$A$1:$FG$66703,$A$9,0),VLOOKUP($A71,'化工产品价格总库（国内）'!$A$1:$FG$66703,$A$9,0),B72) -> 28000 | J71: PTMEG | K71: 1800分子量华东（元/吨） | L71: 15486.42 | M71: 16769.23 | N71: 16562.22 | O71: 19643.48 | P71: 19844.57 | Q71: 20000.00 | R71: 19715.00 | S71: 19597.83 | T71: 18941.85 | U71: 17030.22 | V71: 15474.44 | W71: 15075.27 | X71: 14811.41 | Y71: 15150.00 | Z71: 15907.14 | AA71: 17419.57 | AB71: 18929.89 | AC71: 19897.80 | AD71: 20770.27 | AE71: 21698.03 | AF71: 22737.50 | AG71: 24527.47 | AH71: 25502.22 | AI71: 25780.43 | AJ71: 26145.65 | AK71: 26293.41 | AL71: 26250.00 | AM71: 26514.67 | AN71: 26600.00 | AO71: 26844.51 | AP71: 27290.66 | AQ71: 30021.20 | AR71: 31000.00 | AS71: 30928.57 | AT71: 30311.11 | AU71: 29863.04 | AV71: 27271.74 | AW71: 25062.64 | AX71: 22078.89 | AY71: 21195.65 | AZ71: 21760.87 | BA71: 20794.51 | BB71: 20483.33 | BC71: 26866.30 | BD71: 29020.65 | BE71: 30242.86 | BF71: 32000.00 | BG71: 32000.00 | BH71: 32000.00 | BI71: 31395.60 | BJ71: 30316.67 | BK71: 29811.96 | BL71: 28478.26 | BM71: 26785.71 | BN71: 26261.11
A72: =INDEX('化工产品价格总库（国内）'!A:A,ROW()-8) -> 2019-07-20 | B72: =IF(VLOOKUP($A72,'化工产品价格总库（国内）'!$A$1:$FG$66703,$A$9,0),VLOOKUP($A72,'化工产品价格总库（国内）'!$A$1:$FG$66703,$A$9,0),B73) -> 28000 | J72: 己二酸 | K72: 华东（元/吨） | L72: 8289.20 | M72: 8026.92 | N72: 8461.67 | O72: 8996.74 | P72: 10143.48 | Q72: 9817.58 | R72: 13127.78 | S72: 10588.32 | T72: 9221.20 | U72: 9134.62 | V72: 11625.00 | W72: 9222.28 | X72: 7527.72 | Y72: 7341.76 | Z72: 5976.37 | AA72: 5894.84 | AB72: 7041.85 | AC72: 8145.05 | AD72: 8040.54 | AE72: 10340.46 | AF72: 11261.25 | AG72: 11236.81 | AH72: 11495.56 | AI72: 11345.65 | AJ72: 11628.26 | AK72: 11605.49 | AL72: 11758.06 | AM72: 10954.95 | AN72: 10432.61 | AO72: 10553.85 | AP72: 11973.08 | AQ72: 12026.63 | AR72: 17221.74 | AS72: 17610.99 | AT72: 21156.67 | AU72: 20509.24 | AV72: 16694.02 | AW72: 19403.30 | AX72: 18532.55 | AY72: 14173.31 | AZ72: 13273.54 | BA72: 9961.20 | BB72: 7418.44 | BC72: 9730.10 | BD72: 13447.18 | BE72: 13487.43 | BF72: 14285.11 | BG72: 14983.70 | BH72: 17230.43 | BI72: 18889.01 | BJ72: 19537.78 | BK72: 19773.91 | BL72: 24292.39 | BM72: 19635.16 | BN72: 12792.22
A73: =INDEX('化工产品价格总库（国内）'!A:A,ROW()-8) -> 2019-07-19 | B73: =IF(VLOOKUP($A73,'化工产品价格总库（国内）'!$A$1:$FG$66703,$A$9,0),VLOOKUP($A73,'化工产品价格总库（国内）'!$A$1:$FG$66703,$A$9,0),B74) -> 28000 | J73: 丁酮 | K73: 华东（元/吨） | L73: 7201.54 | M73: 7133.24 | N73: 7098.89 | O73: 7679.35 | P73: 7437.50 | Q73: 7832.42 | R73: 9915.28 | S73: 10698.37 | T73: 8142.12 | U73: 7836.81 | V73: 7006.94 | W73: 6837.50 | X73: 6035.87 | Y73: 5115.38 | Z73: 5039.56 | AA73: 5589.13 | AB73: 5733.97 | AC73: 6957.42 | AD73: 7088.85 | AE73: 9593.75 | AF73: 10194.02 | AG73: 9871.43 | AH73: 9251.11 | AI73: 9697.55 | AJ73: 8341.85 | AK73: 8087.09 | AL73: 8521.67 | AM73: 9021.47 | AN73: 8633.10 | AO73: 8885.71 | AP73: 8403.85 | AQ73: 8398.37 | AR73: 10921.41 | AS73: 17932.42 | AT73: 12775.56 | AU73: 15589.13 | AV73: 10903.26 | AW73: 8608.24 | AX73: 8606.06 | AY73: 7996.48 | AZ73: 6404.44 | BA73: 5933.56 | BB73: 5722.84 | BC73: 8093.48 | BD73: 12769.02 | BE73: 12648.93 | BF73: 10898.08 | BG73: 10616.85 | BH73: 9592.39 | BI73: 10684.62 | BJ73: 11286.67 | BK73: 10958.70 | BL73: 10631.52 | BM73: 7980.22 | BN73: 7240.00
A74: =INDEX('化工产品价格总库（国内）'!A:A,ROW()-8) -> 2019-07-18 | B74: =IF(VLOOKUP($A74,'化工产品价格总库（国内）'!$A$1:$FG$66703,$A$9,0),VLOOKUP($A74,'化工产品价格总库（国内）'!$A$1:$FG$66703,$A$9,0),B75) -> 28000 | J74: 环己酮 | K74: 华东（元/吨） | L74: 8700.93 | M74: 9593.41 | N74: 10036.67 | O74: 11196.20 | P74: 13153.26 | Q74: 12151.65 | R74: 12370.83 | S74: 12476.09 | T74: 9993.48 | U74: 9220.88 | V74: 12193.61 | W74: 9427.17 | X74: 7825.54 | Y74: 7767.03 | Z74: 6664.56 | AA74: 6791.03 | AB74: 7515.76 | AC74: 8873.08 | AD74: 8406.08 | AE74: 9969.74 | AF74: 12048.91 | AG74: 12269.78 | AH74: 11860.00 | AI74: 11747.83 | AJ74: 12266.85 | AK74: 12571.43 | AL74: 13070.00 | AM74: 12826.09 | AN74: 12112.50 | AO74: 11395.60 | AP74: 11655.49 | AQ74: 10879.89 | AR74: 12157.61 | AS74: 12712.64 | AT74: 14058.33 | AU74: 15413.04 | AV74: 14086.96 | AW74: 15925.82 | AX74: 12734.44 | AY74: 10951.09 | AZ74: 11069.02 | BA74: 9229.67 | BB74: 7378.89 | BC74: 8459.24 | BD74: 13575.54 | BE74: 14589.59 | BF74: 14196.70 | BG74: 0.00 | BH74: 0.00 | BI74: 0.00 | BJ74: 0.00 | BK74: 0.00 | BL74: 0.00 | BM74: 0.00 | BN74: 0.00
A75: =INDEX('化工产品价格总库（国内）'!A:A,ROW()-8) -> 2019-07-17 | B75: =IF(VLOOKUP($A75,'化工产品价格总库（国内）'!$A$1:$FG$66703,$A$9,0),VLOOKUP($A75,'化工产品价格总库（国内）'!$A$1:$FG$66703,$A$9,0),B76) -> 28000 | J75: 环氧乙烷 | K75: 上海石化（元/吨） | L75: 7696.30 | M75: 7570.33 | N75: 7973.33 | O75: 9729.35 | P75: 10350.00 | Q75: 10576.92 | R75: 10564.44 | S75: 10226.09 | T75: 9280.43 | U75: 9378.02 | V75: 10194.44 | W75: 8836.96 | X75: 8998.91 | Y75: 8769.23 | Z75: 7486.81 | AA75: 7339.13 | AB75: 7648.91 | AC75: 9246.15 | AD75: 7501.35 | AE75: 10078.95 | AF75: 10734.78 | AG75: 10600.00 | AH75: 10566.67 | AI75: 10400.00 | AJ75: 10156.52 | AK75: 10730.77 | AL75: 12180.00 | AM75: 12628.26 | AN75: 11284.78 | AO75: 11394.51 | AP75: 11503.30 | AQ75: 12191.30 | AR75: 12095.65 | AS75: 13000.00 | AT75: 12663.33 | AU75: 13040.22 | AV75: 10784.78 | AW75: 12658.24 | AX75: 12015.56 | AY75: 10153.26 | AZ75: 10355.43 | BA75: 10289.01 | BB75: 9968.89 | BC75: 12146.74 | BD75: 16969.57 | BE75: 17419.78 | BF75: 16565.38 | BG75: 16379.35 | BH75: 14358.70 | BI75: 13581.32 | BJ75: 13645.78 | BK75: 13223.37 | BL75: 13059.78 | BM75: 14148.35 | BN75: 14654.44
A76: =INDEX('化工产品价格总库（国内）'!A:A,ROW()-8) -> 2019-07-16 | B76: =IF(VLOOKUP($A76,'化工产品价格总库（国内）'!$A$1:$FG$66703,$A$9,0),VLOOKUP($A76,'化工产品价格总库（国内）'!$A$1:$FG$66703,$A$9,0),B77) -> 28000 | J76: 环氧丙烷 | K76: 华东（元/吨） | L76: 10119.14 | M76: 9895.88 | N76: 10406.11 | O76: 11652.45 | P76: 12471.20 | Q76: 11763.19 | R76: 12454.44 | S76: 11983.70 | T76: 11245.92 | U76: 9800.82 | V76: 10598.33 | W76: 10840.76 | X76: 9993.48 | Y76: 8248.35 | Z76: 7701.37 | AA76: 9583.97 | AB76: 9780.16 | AC76: 11229.12 | AD76: 11810.14 | AE76: 12922.04 | AF76: 13683.70 | AG76: 12730.22 | AH76: 14403.89 | AI76: 13804.89 | AJ76: 12456.25 | AK76: 11935.16 | AL76: 12345.56 | AM76: 11744.02 | AN76: 12210.33 | AO76: 11470.88 | AP76: 13416.48 | AQ76: 14138.04 | AR76: 15515.22 | AS76: 15765.93 | AT76: 14868.89 | AU76: 13684.24 | AV76: 11816.30 | AW76: 12910.99 | AX76: 13512.22 | AY76: 12460.33 | AZ76: 11986.41 | BA76: 10043.41 | BB76: 8352.78 | BC76: 8039.13 | BD76: 14490.22 | BE76: 15553.02 | BF76: 13838.19 | BG76: 14045.38 | BH76: 13238.59 | BI76: 12184.34 | BJ76: 12362.78 | BK76: 14084.78 | BL76: 15070.11 | BM76: 14852.03 | BN76: 15135.00
A77: =INDEX('化工产品价格总库（国内）'!A:A,ROW()-8) -> 2019-07-15 | B77: =IF(VLOOKUP($A77,'化工产品价格总库（国内）'!$A$1:$FG$66703,$A$9,0),VLOOKUP($A77,'化工产品价格总库（国内）'!$A$1:$FG$66703,$A$9,0),B78) -> 28000 | J77: 软泡聚醚 | K77: 华东散水（元/吨） | L77: 10460.49 | M77: 10414.29 | N77: 11168.33 | O77: 12276.09 | P77: 12908.70 | Q77: 12502.20 | R77: 13077.50 | S77: 12627.72 | T77: 11816.30 | U77: 10281.32 | V77: 11072.22 | W77: 11265.22 | X77: 10304.89 | Y77: 8766.48 | Z77: 8504.67 | AA77: 10214.67 | AB77: 10133.70 | AC77: 11565.93 | AD77: 12497.30 | AE77: 13848.68 | AF77: 13890.76 | AG77: 13206.04 | AH77: 14946.11 | AI77: 14204.89 | AJ77: 13159.78 | AK77: 12241.76 | AL77: 12844.44 | AM77: 12476.63 | AN77: 12630.43 | AO77: 12237.91 | AP77: 14046.43 | AQ77: 15212.50 | AR77: 15922.28 | AS77: 16240.66 | AT77: 15552.78 | AU77: 14959.78 | AV77: 12800.00 | AW77: 13924.73 | AX77: 14292.22 | AY77: 13210.33 | AZ77: 12551.63 | BA77: 11190.66 | BB77: 8951.67 | BC77: 9736.41 | BD77: 16183.70 | BE77: 15554.95 | BF77: 14419.98 | BG77: 14432.61 | BH77: 13213.04 | BI77: 12482.42 | BJ77: 13050.00 | BK77: 14566.30 | BL77: 15215.76 | BM77: 15168.13 | BN77: 15672.78
A78: =INDEX('化工产品价格总库（国内）'!A:A,ROW()-8) -> 2019-07-14 | B78: =IF(VLOOKUP($A78,'化工产品价格总库（国内）'!$A$1:$FG$66703,$A$9,0),VLOOKUP($A78,'化工产品价格总库（国内）'!$A$1:$FG$66703,$A$9,0),B79) -> 28000 | J78: 硬泡聚醚 | K78: 华东（元/吨） | L78: 9786.42 | M78: 9914.29 | N78: 10432.22 | O78: 11156.25 | P78: 11296.20 | Q78: 11348.90 | R78: 11705.56 | S78: 11549.46 | T78: 10846.47 | U78: 9808.79 | V78: 10438.89 | W78: 10315.22 | X78: 9413.59 | Y78: 8458.79 | Z78: 8071.43 | AA78: 9332.07 | AB78: 9465.22 | AC78: 10566.48 | AD78: 11274.32 | AE78: 12365.79 | AF78: 12621.20 | AG78: 12165.93 | AH78: 13098.89 | AI78: 12588.59 | AJ78: 11838.04 | AK78: 11438.46 | AL78: 11751.11 | AM78: 11523.37 | AN78: 11776.09 | AO78: 11603.30 | AP78: 13301.10 | AQ78: 14064.13 | AR78: 14511.96 | AS78: 14835.16 | AT78: 13948.89 | AU78: 13225.00 | AV78: 12151.09 | AW78: 12768.13 | AX78: 11944.44 | AY78: 10955.98 | AZ78: 10461.41 | BA78: 9479.12 | BB78: 7879.44 | BC78: 8683.15 | BD78: 13004.35 | BE78: 12663.19 | BF78: 12538.46 | BG78: 12498.91 | BH78: 11663.04 | BI78: 12170.33 | BJ78: 12500.00 | BK78: 12683.15 | BL78: 12700.00 | BM78: 12632.97 | BN78: 12700.00
A79: =INDEX('化工产品价格总库（国内）'!A:A,ROW()-8) -> 2019-07-13 | B79: =IF(VLOOKUP($A79,'化工产品价格总库（国内）'!$A$1:$FG$66703,$A$9,0),VLOOKUP($A79,'化工产品价格总库（国内）'!$A$1:$FG$66703,$A$9,0),B80) -> 28000 | J79: PX | K79: CFR东南亚（美元/吨） | L79: 817.07 | M79: 915.04 | N79: 1072.17 | O79: 1151.70 | P79: 1168.55 | Q79: 982.12 | R79: 959.68 | S79: 882.48 | T79: 822.91 | U79: 816.46 | V79: 892.62 | W79: 811.33 | X79: 806.84 | Y79: 805.34 | Z79: 748.33 | AA79: 792.34 | AB79: 829.93 | AC79: 915.84 | AD79: 838.32 | AE79: 1018.36 | AF79: 1356.70 | AG79: 1242.74 | AH79: 1288.49 | AI79: 1426.26 | AJ79: 1477.32 | AK79: 1441.65 | AL79: 1635.43 | AM79: 1570.51 | AN79: 1434.76 | AO79: 1438.79 | AP79: 1604.29 | AQ79: 1482.29 | AR79: 1571.38 | AS79: 1537.72 | AT79: 1626.51 | AU79: 1253.74 | AV79: 926.35 | AW79: 983.52 | AX79: 1060.51 | AY79: 1019.95 | AZ79: 1040.03 | BA79: 1082.89 | BB79: 845.77 | BC79: 720.41 | BD79: 1423.70 | BE79: 1451.02 | BF79: 1263.27 | BG79: 1266.24 | BH79: 1193.99 | BI79: 1314.73 | BJ79: 1240.55 | BK79: 1362.15 | BL79: 1413.55 | BM79: 1150.03 | BN79: 1046.73
A80: =INDEX('化工产品价格总库（国内）'!A:A,ROW()-8) -> 2019-07-12 | B80: =IF(VLOOKUP($A80,'化工产品价格总库（国内）'!$A$1:$FG$66703,$A$9,0),VLOOKUP($A80,'化工产品价格总库（国内）'!$A$1:$FG$66703,$A$9,0),B81) -> 28000 | J80: PTA | K80: 华东（元/吨） | L80: 5599.94 | M80: 6172.64 | N80: 6496.83 | O80: 6892.39 | P80: 7595.27 | Q80: 5689.62 | R80: 5755.52 | S80: 5449.84 | T80: 5226.68 | U80: 4786.04 | V80: 5326.64 | W80: 4858.09 | X80: 4599.76 | Y80: 4676.66 | Z80: 4328.63 | AA80: 4547.28 | AB80: 4494.79 | AC80: 4966.70 | AD80: 4560.81 | AE80: 5533.36 | AF80: 7210.76 | AG80: 6537.75 | AH80: 6598.67 | AI80: 7413.70 | AJ80: 7753.48 | AK80: 7762.09 | AL80: 8539.44 | AM80: 8313.15 | AN80: 7934.57 | AO80: 8155.60 | AP80: 8889.29 | AQ80: 8628.70 | AR80: 9726.74 | AS80: 10054.95 | AT80: 11185.00 | AU80: 9112.72 | AV80: 7288.91 | AW80: 7637.31 | AX80: 7999.22 | AY80: 7431.30 | AZ80: 7409.73 | BA80: 7192.91 | BB80: 5933.17 | BC80: 5330.71 | BD80: 8475.82 | BE80: 8495.33 | BF80: 7547.69 | BG80: 7167.55 | BH80: 8142.61 | BI80: 8596.32 | BJ80: 8132.78 | BK80: 8480.33 | BL80: 10243.48 | BM80: 8511.26 | BN80: 8100.44
A81: =INDEX('化工产品价格总库（国内）'!A:A,ROW()-8) -> 2019-07-11 | B81: =IF(VLOOKUP($A81,'化工产品价格总库（国内）'!$A$1:$FG$66703,$A$9,0),VLOOKUP($A81,'化工产品价格总库（国内）'!$A$1:$FG$66703,$A$9,0),B82) -> 28000 | J81: MEG | K81: 华东（元/吨） | L81: 4510.40 | M81: 4557.96 | N81: 5150.90 | O81: 6422.85 | P81: 7577.62 | Q81: 7492.03 | R81: 7746.09 | S81: 7500.33 | T81: 7382.87 | U81: 6374.79 | V81: 7602.33 | W81: 6316.77 | X81: 5295.82 | Y81: 5276.89 | Z81: 5085.49 | AA81: 4866.65 | AB81: 6123.80 | AC81: 7335.29 | AD81: 6095.61 | AE81: 6133.03 | AF81: 7217.17 | AG81: 6949.67 | AH81: 7020.44 | AI81: 7634.84 | AJ81: 7845.98 | AK81: 7258.35 | AL81: 8438.89 | AM81: 8117.93 | AN81: 7668.59 | AO81: 7119.45 | AP81: 8169.78 | AQ81: 8594.24 | AR81: 9643.80 | AS81: 8941.98 | AT81: 9499.22 | AU81: 8093.70 | AV81: 6288.04 | AW81: 6816.87 | AX81: 8135.56 | AY81: 6591.30 | AZ81: 5827.39 | BA81: 4478.74 | BB81: 4149.44 | BC81: 4377.17 | BD81: 7586.79 | BE81: 9118.57 | BF81: 10407.69 | BG81: 13406.30 | BH81: 10151.96 | BI81: 8610.82 | BJ81: 8182.56 | BK81: 8023.80 | BL81: 8939.13 | BM81: 8275.55 | BN81: 8316.11
A82: =INDEX('化工产品价格总库（国内）'!A:A,ROW()-8) -> 2019-07-10 | B82: =IF(VLOOKUP($A82,'化工产品价格总库（国内）'!$A$1:$FG$66703,$A$9,0),VLOOKUP($A82,'化工产品价格总库（国内）'!$A$1:$FG$66703,$A$9,0),B83) -> 28000 | J82: PET切片 | K82: 华东（元/吨） | L82: 7069.75 | M82: 7358.79 | N82: 7799.44 | O82: 8615.49 | P82: 9464.67 | Q82: 8031.87 | R82: 8022.22 | S82: 7797.28 | T82: 7452.28 | U82: 6742.31 | V82: 7523.33 | W82: 6805.43 | X82: 6279.67 | Y82: 6224.18 | Z82: 5937.09 | AA82: 6025.27 | AB82: 6355.16 | AC82: 7009.34 | AD82: 6386.82 | AE82: 7392.76 | AF82: 9076.63 | AG82: 8320.33 | AH82: 8513.06 | AI82: 9239.13 | AJ82: 9622.28 | AK82: 9493.41 | AL82: 10622.78 | AM82: 10197.55 | AN82: 9826.36 | AO82: 9901.37 | AP82: 10974.89 | AQ82: 10922.28 | AR82: 12503.53 | AS82: 12481.59 | AT82: 13191.67 | AU82: 11413.04 | AV82: 9188.59 | AW82: 9721.70 | AX82: 9876.39 | AY82: 9020.38 | AZ82: 8808.70 | BA82: 8225.00 | BB82: 6680.00 | BC82: 6674.46 | BD82: 10567.12 | BE82: 11041.87 | BF82: 10734.29 | BG82: 11225.76 | BH82: 10802.17 | BI82: 10884.95 | BJ82: 10149.92 | BK82: 10809.13 | BL82: 12122.28 | BM82: 10403.85 | BN82: 10056.11
A83: =INDEX('化工产品价格总库（国内）'!A:A,ROW()-8) -> 2019-07-09 | B83: =IF(VLOOKUP($A83,'化工产品价格总库（国内）'!$A$1:$FG$66703,$A$9,0),VLOOKUP($A83,'化工产品价格总库（国内）'!$A$1:$FG$66703,$A$9,0),B84) -> 28000 | J83: 氨纶40D | K83: 华东（元/吨） | L83: 30055.56 | M83: 32160.44 | N83: 32466.67 | O83: 33397.83 | P83: 34255.98 | Q83: 35412.09 | R83: 36772.22 | S83: 38896.74 | T83: 35132.61 | U83: 36382.42 | V83: 32050.00 | W83: 29326.09 | X83: 29000.00 | Y83: 30258.24 | Z83: 35225.27 | AA83: 37940.22 | AB83: 38885.87 | AC83: 41175.82 | AD83: 44631.08 | AE83: 46986.84 | AF83: 48086.96 | AG83: 49379.12 | AH83: 52611.11 | AI83: 53728.26 | AJ83: 50760.87 | AK83: 46478.02 | AL83: 44544.44 | AM83: 44248.91 | AN83: 43302.17 | AO83: 43303.30 | AP83: 43068.13 | AQ83: 44122.83 | AR83: 45141.30 | AS83: 51934.07 | AT83: 63888.89 | AU83: 63902.17 | AV83: 56782.61 | AW83: 58357.14 | AX83: 52388.89 | AY83: 47000.00 | AZ83: 47000.00 | BA83: 43989.01 | BB83: 40166.67 | BC83: 43608.70 | BD83: 45527.17 | BE83: 53901.10 | BF83: 63615.38 | BG83: 75510.87 | BH83: 78777.17 | BI83: 89329.67 | BJ83: 84827.78 | BK83: 59706.52 | BL83: 57260.87 | BM83: 46615.38 | BN83: 44625.56
A84: =INDEX('化工产品价格总库（国内）'!A:A,ROW()-8) -> 2019-07-08 | B84: =IF(VLOOKUP($A84,'化工产品价格总库（国内）'!$A$1:$FG$66703,$A$9,0),VLOOKUP($A84,'化工产品价格总库（国内）'!$A$1:$FG$66703,$A$9,0),B85) -> 28000 | J84: 己内酰胺 | K84: 华东CPL（元/吨） | L84: 12331.48 | M84: 13147.80 | N84: 13310.00 | O84: 16105.10 | P84: 16572.20 | Q84: 15242.71 | R84: 16283.56 | S84: 16585.87 | T84: 14355.43 | U84: 12379.01 | V84: 17830.00 | W84: 13072.83 | X84: 11070.33 | Y84: 10506.59 | Z84: 10110.41 | AA84: 10789.95 | AB84: 11364.13 | AC84: 13817.58 | AD84: 12382.43 | AE84: 15034.87 | AF84: 17150.54 | AG84: 16292.31 | AH84: 16815.56 | AI84: 17726.63 | AJ84: 18247.83 | AK84: 17764.84 | AL84: 19132.22 | AM84: 17872.83 | AN84: 18438.59 | AO84: 19823.08 | AP84: 23081.32 | AQ84: 24345.65 | AR84: 27970.65 | AS84: 26892.86 | AT84: 27228.89 | AU84: 22987.50 | AV84: 20883.70 | AW84: 21809.89 | AX84: 19965.00 | AY84: 16958.15 | AZ84: 16747.28 | BA84: 13784.62 | BB84: 10804.44 | BC84: 13366.30 | BD84: 21485.33 | BE84: 22116.48 | BF84: 22548.35 | BG84: 23666.41 | BH84: 22423.37 | BI84: 22731.32 | BJ84: 22862.78 | BK84: 22737.50 | BL84: 21316.30 | BM84: 19986.81 | BN84: 20226.11
A85: =INDEX('化工产品价格总库（国内）'!A:A,ROW()-8) -> 2019-07-07 | B85: =IF(VLOOKUP($A85,'化工产品价格总库（国内）'!$A$1:$FG$66703,$A$9,0),VLOOKUP($A85,'化工产品价格总库（国内）'!$A$1:$FG$66703,$A$9,0),B86) -> 28000 | J85: 丙烯腈 | K85: 华东AN（元/吨） | L85: 12132.19 | M85: 14163.43 | N85: 12261.67 | O85: 15105.72 | P85: 17927.99 | Q85: 16021.43 | R85: 14740.83 | S85: 15072.28 | T85: 12629.35 | U85: 11879.95 | V85: 11851.11 | W85: 10137.77 | X85: 9087.50 | Y85: 8286.81 | Z85: 8125.27 | AA85: 8198.91 | AB85: 8620.87 | AC85: 9954.95 | AD85: 10916.22 | AE85: 14785.53 | AF85: 14692.39 | AG85: 14034.07 | AH85: 14229.44 | AI85: 13298.15 | AJ85: 12887.83 | AK85: 12582.42 | AL85: 14120.56 | AM85: 13085.87 | AN85: 13897.28 | AO85: 13714.29 | AP85: 16384.07 | AQ85: 13670.65 | AR85: 17732.61 | AS85: 20107.69 | AT85: 20237.78 | AU85: 18636.96 | AV85: 17684.78 | AW85: 20712.64 | AX85: 18146.67 | AY85: 13747.28 | AZ85: 10799.46 | BA85: 9408.24 | BB85: 7276.11 | BC85: 9585.33 | BD85: 16513.04 | BE85: 16539.01 | BF85: 15023.08 | BG85: 17372.83 | BH85: 17571.96 | BI85: 16117.69 | BJ85: 15883.11 | BK85: 16259.84 | BL85: 16056.52 | BM85: 13910.44 | BN85: 12926.67
A86: =INDEX('化工产品价格总库（国内）'!A:A,ROW()-8) -> 2019-07-06 | B86: =IF(VLOOKUP($A86,'化工产品价格总库（国内）'!$A$1:$FG$66703,$A$9,0),VLOOKUP($A86,'化工产品价格总库（国内）'!$A$1:$FG$66703,$A$9,0),B87) -> 28000 | J86: 粘胶长丝 | K86: 120D华东（元/吨） | L86: 37800.00 | M86: 37800.00 | N86: 37745.56 | O86: 37751.09 | P86: 37756.74 | Q86: 37793.41 | R86: 37800.00 | S86: 37800.00 | T86: 38229.35 | U86: 41773.08 | V86: 41244.44 | W86: 37813.04 | X86: 37605.98 | Y86: 37434.29 | Z86: 37180.00 | AA86: 37177.39 | AB86: 36955.22 | AC86: 36198.90 | AD86: 35230.68 | AE86: 35181.58 | AF86: 34767.61 | AG86: 34579.67 | AH86: 33777.67 | AI86: 33896.20 | AJ86: 34702.28 | AK86: 38153.63 | AL86: 39108.33 | AM86: 41833.91 | AN86: 43845.11 | AO86: 44786.15 | AP86: 45121.54 | AQ86: 45484.78 | AR86: 46651.74 | AS86: 50627.47 | AT86: 50511.11 | AU86: 46653.80 | AV86: 35367.72 | AW86: 35396.15 | AX86: 34250.56 | AY86: 33570.65 | AZ86: 31560.87 | BA86: 30367.03 | BB86: 29406.11 | BC86: 30599.46 | BD86: 32251.09 | BE86: 32769.23 | BF86: 33969.78 | BG86: 34586.52 | BH86: 34232.61 | BI86: 34373.63 | BJ86: 32833.33 | BK86: 31502.17 | BL86: 30202.17 | BM86: 29107.69 | BN86: 26674.44
A87: =INDEX('化工产品价格总库（国内）'!A:A,ROW()-8) -> 2019-07-05 | B87: =IF(VLOOKUP($A87,'化工产品价格总库（国内）'!$A$1:$FG$66703,$A$9,0),VLOOKUP($A87,'化工产品价格总库（国内）'!$A$1:$FG$66703,$A$9,0),B88) -> 28000 | J87: 粘胶短纤 | K87: 1.5D*38mm华东（元/吨） | L87: 11359.88 | M87: 11947.25 | N87: 13109.44 | O87: 14367.93 | P87: 14658.70 | Q87: 14423.63 | R87: 14621.11 | S87: 15009.24 | T87: 15912.07 | U87: 15326.37 | V87: 17005.56 | W87: 15921.74 | X87: 15714.13 | Y87: 13434.40 | Z87: 12741.21 | AA87: 14110.76 | AB87: 13489.24 | AC87: 12330.22 | AD87: 11362.97 | AE87: 11879.34 | AF87: 11910.65 | AG87: 11929.62 | AH87: 12182.22 | AI87: 12701.09 | AJ87: 13161.96 | AK87: 13423.08 | AL87: 14493.78 | AM87: 14152.17 | AN87: 15219.67 | AO87: 15666.70 | AP87: 16758.57 | AQ87: 17359.46 | AR87: 18644.35 | AS87: 21974.18 | AT87: 27032.22 | AU87: 25807.07 | AV87: 18064.13 | AW87: 19370.88 | AX87: 19304.56 | AY87: 18006.09 | AZ87: 16343.26 | BA87: 14684.84 | BB87: 12170.00 | BC87: 13916.63 | BD87: 16355.98 | BE87: 17453.30 | BF87: 21096.70 | BG87: 22128.80 | BH87: 20613.04 | BI87: 19039.01 | BJ87: 15290.44 | BK87: 14561.41 | BL87: 13733.15 | BM87: 13326.37 | BN87: 12755.00
A88: =INDEX('化工产品价格总库（国内）'!A:A,ROW()-8) -> 2019-07-04 | B88: =IF(VLOOKUP($A88,'化工产品价格总库（国内）'!$A$1:$FG$66703,$A$9,0),VLOOKUP($A88,'化工产品价格总库（国内）'!$A$1:$FG$66703,$A$9,0),B89) -> 28000 | J88: 涤纶短丝 | K88: 1.4D*38mm华东（元/吨） | L88: 7705.56 | M88: 8237.36 | N88: 8858.89 | O88: 9810.87 | P88: 10195.11 | Q88: 8711.54 | R88: 8941.67 | S88: 8923.70 | T88: 8210.60 | U88: 7587.91 | V88: 8308.89 | W88: 7422.28 | X88: 6984.78 | Y88: 6852.75 | Z88: 6557.69 | AA88: 6726.09 | AB88: 7018.68 | AC88: 7678.85 | AD88: 7212.23 | AE88: 8201.84 | AF88: 9621.20 | AG88: 9020.64 | AH88: 9379.67 | AI88: 9863.15 | AJ88: 10202.17 | AK88: 10165.60 | AL88: 11268.78 | AM88: 10788.48 | AN88: 10553.80 | AO88: 10721.98 | AP88: 11851.27 | AQ88: 11686.41 | AR88: 13148.59 | AS88: 13217.58 | AT88: 14338.00 | AU88: 14021.74 | AV88: 9871.96 | AW88: 10104.40 | AX88: 10299.11 | AY88: 9294.57 | AZ88: 9098.80 | BA88: 8716.15 | BB88: 7614.06 | BC88: 7826.85 | BD88: 11392.28 | BE88: 11363.41 | BF88: 11464.73 | BG88: 11784.89 | BH88: 11481.30 | BI88: 11561.54 | BJ88: 10855.56 | BK88: 11275.00 | BL88: 12553.80 | BM88: 10889.52 | BN88: 10746.67
A89: =INDEX('化工产品价格总库（国内）'!A:A,ROW()-8) -> 2019-07-03 | B89: =IF(VLOOKUP($A89,'化工产品价格总库（国内）'!$A$1:$FG$66703,$A$9,0),VLOOKUP($A89,'化工产品价格总库（国内）'!$A$1:$FG$66703,$A$9,0),B90) -> 28000 | J89: 涤纶POY | K89: 华东150D/48F（元/吨） | L89: 7988.89 | M89: 8297.25 | N89: 8500.56 | O89: 9498.59 | P89: 10843.48 | Q89: 9144.62 | R89: 8829.22 | S89: 8774.57 | T89: 8373.32 | U89: 7741.87 | V89: 8563.67 | W89: 7726.96 | X89: 6986.96 | Y89: 6723.57 | Z89: 6490.93 | AA89: 6348.91 | AB89: 6884.40 | AC89: 7872.97 | AD89: 7358.45 | AE89: 8523.68 | AF89: 9822.66 | AG89: 9439.01 | AH89: 9294.11 | AI89: 10003.86 | AJ89: 10470.33 | AK89: 10477.47 | AL89: 11325.22 | AM89: 10979.62 | AN89: 10944.84 | AO89: 10728.02 | AP89: 11915.11 | AQ89: 12308.15 | AR89: 14314.13 | AS89: 14246.15 | AT89: 14288.89 | AU89: 13060.33 | AV89: 11167.66 | AW89: 10930.49 | AX89: 10883.33 | AY89: 10091.85 | AZ89: 9560.33 | BA89: 9110.44 | BB89: 7508.33 | BC89: 7683.42 | BD89: 11599.73 | BE89: 11931.21 | BF89: 11885.11 | BG89: 12152.17 | BH89: 12280.33 | BI89: 12420.88 | BJ89: 11486.61 | BK89: 12095.11 | BL89: 13060.54 | BM89: 11408.79 | BN89: 10892.22
A90: =INDEX('化工产品价格总库（国内）'!A:A,ROW()-8) -> 2019-07-02 | B90: =IF(VLOOKUP($A90,'化工产品价格总库（国内）'!$A$1:$FG$66703,$A$9,0),VLOOKUP($A90,'化工产品价格总库（国内）'!$A$1:$FG$66703,$A$9,0),B91) -> 28000 | J90: 涤纶FDY | K90: 华东68D/24F（元/吨） | L90: 8045.43 | M90: 8641.21 | N90: 9341.67 | O90: 9871.20 | P90: 10876.63 | Q90: 9600.77 | R90: 9288.33 | S90: 9288.48 | T90: 9276.20 | U90: 8088.68 | V90: 9075.00 | W90: 8387.01 | X90: 7657.61 | Y90: 7395.60 | Z90: 6964.84 | AA90: 6889.13 | AB90: 7513.86 | AC90: 8025.99 | AD90: 7377.16 | AE90: 8616.45 | AF90: 10207.61 | AG90: 9848.35 | AH90: 9937.78 | AI90: 10244.02 | AJ90: 10728.80 | AK90: 11694.23 | AL90: 12598.06 | AM90: 12144.57 | AN90: 12285.60 | AO90: 12162.36 | AP90: 13434.62 | AQ90: 14038.04 | AR90: 15664.67 | AS90: 15415.93 | AT90: 17228.33 | AU90: 17383.15 | AV90: 15335.33 | AW90: 13699.45 | AX90: 12750.28 | AY90: 11799.18 | AZ90: 11365.22 | BA90: 10676.65 | BB90: 8964.17 | BC90: 9715.76 | BD90: 13401.63 | BE90: 13242.31 | BF90: 13294.29 | BG90: 13703.86 | BH90: 13827.72 | BI90: 13834.62 | BJ90: 12865.33 | BK90: 13632.07 | BL90: 14566.30 | BM90: 12962.64 | BN90: 12927.22
A91: =INDEX('化工产品价格总库（国内）'!A:A,ROW()-8) -> 2019-07-01 | B91: =IF(VLOOKUP($A91,'化工产品价格总库（国内）'!$A$1:$FG$66703,$A$9,0),VLOOKUP($A91,'化工产品价格总库（国内）'!$A$1:$FG$66703,$A$9,0),B92) -> 28000 | J91: 海利得涤纶工业丝（500D/96F） | K91: 江浙市场 （元/吨） | L91: 11000.00 | M91: 11000.00 | N91: 11000.00 | O91: 11000.00 | P91: 11000.00 | Q91: 11000.00 | R91: 11000.00 | S91: 11000.00 | T91: 11000.00 | U91: 11000.00 | V91: 11000.00 | W91: 11000.00 | X91: 11000.00 | Y91: 11000.00 | Z91: 11000.00 | AA91: 11000.00 | AB91: 11000.00 | AC91: 11721.98 | AD91: 11900.00 | AE91: 13063.16 | AF91: 14375.00 | AG91: 13876.92 | AH91: 14800.00 | AI91: 14457.61 | AJ91: 15390.22 | AK91: 15114.29 | AL91: 15370.00 | AM91: 17268.63
A92: =INDEX('化工产品价格总库（国内）'!A:A,ROW()-8) -> 2019-06-30 | B92: =IF(VLOOKUP($A92,'化工产品价格总库（国内）'!$A$1:$FG$66703,$A$9,0),VLOOKUP($A92,'化工产品价格总库（国内）'!$A$1:$FG$66703,$A$9,0),B93) -> 28000 | J92: 古纤道涤纶工业丝（1000D/192F） | K92: 江浙市场 （元/吨） | L92: 11800.00 | M92: 11800.00 | N92: 11800.00 | O92: 11800.00 | P92: 11800.00 | Q92: 11800.00 | R92: 11800.00 | S92: 11800.00 | T92: 11800.00 | U92: 11800.00 | V92: 11800.00 | W92: 11800.00 | X92: 11800.00 | Y92: 11800.00 | Z92: 11800.00 | AA92: 11800.00 | AB92: 11350.00 | AC92: 10117.58 | AD92: 10444.59 | AE92: 11914.47 | AF92: 13225.00 | AG92: 12894.51 | AH92: 13800.00 | AI92: 13527.17 | AJ92: 14275.00 | AK92: 13918.68 | AL92: 13557.78 | AM92: 15368.63
A93: =INDEX('化工产品价格总库（国内）'!A:A,ROW()-8) -> 2019-06-29 | B93: =IF(VLOOKUP($A93,'化工产品价格总库（国内）'!$A$1:$FG$66703,$A$9,0),VLOOKUP($A93,'化工产品价格总库（国内）'!$A$1:$FG$66703,$A$9,0),B94) -> 28000 | J93: 海利得涤纶工业丝（1000D/192F） | K93: 江浙市场（元/吨） | L93: 10000.00 | M93: 10000.00 | N93: 10000.00 | O93: 10000.00 | P93: 10000.00 | Q93: 10000.00 | R93: 10000.00 | S93: 10000.00 | T93: 10000.00 | U93: 10000.00 | V93: 10000.00 | W93: 10000.00 | X93: 10000.00 | Y93: 10000.00 | Z93: 10000.00 | AA93: 10000.00 | AB93: 10000.00 | AC93: 11434.07 | AD93: 11570.27 | AE93: 12072.37 | AF93: 13327.17 | AG93: 12964.84 | AH93: 13800.00 | AI93: 13492.39 | AJ93: 14275.00 | AK93: 13918.68 | AL93: 13554.44 | AM93: 15368.63
A94: =INDEX('化工产品价格总库（国内）'!A:A,ROW()-8) -> 2019-06-28 | B94: =IF(VLOOKUP($A94,'化工产品价格总库（国内）'!$A$1:$FG$66703,$A$9,0),VLOOKUP($A94,'化工产品价格总库（国内）'!$A$1:$FG$66703,$A$9,0),B95) -> 28000 | J94: 锦纶POY | K94: 华东（元/吨） | L94: 15546.91 | M94: 17018.68 | N94: 17862.78 | O94: 20811.41 | P94: 21412.50 | Q94: 20679.67 | R94: 20950.00 | S94: 21182.07 | T94: 18653.80 | U94: 17275.82 | V94: 22202.22 | W94: 16248.91 | X94: 13760.87 | Y94: 13370.88 | Z94: 13425.27 | AA94: 14576.09 | AB94: 15927.72 | AC94: 17757.14 | AD94: 16883.11 | AE94: 20356.58 | AF94: 21279.35 | AG94: 20848.90 | AH94: 22123.89 | AI94: 22739.13 | AJ94: 23143.48 | AK94: 23174.73 | AL94: 24193.33 | AM94: 23885.87 | AN94: 23894.02 | AO94: 25916.48 | AP94: 27915.38 | AQ94: 29561.96 | AR94: 32240.22 | AS94: 32585.71 | AT94: 32338.89 | AU94: 28300.00 | AV94: 25648.91 | AW94: 26337.36 | AX94: 24167.78 | AY94: 21335.87 | AZ94: 21367.39 | BA94: 17571.43 | BB94: 15313.33 | BC94: 19889.13 | BD94: 26115.22 | BE94: 26041.76 | BF94: 26743.96 | BG94: 27245.65 | BH94: 26730.43 | BI94: 26792.31 | BJ94: 26709.44 | BK94: 26133.70 | BL94: 25854.35 | BM94: 24742.86 | BN94: 24393.33
A95: =INDEX('化工产品价格总库（国内）'!A:A,ROW()-8) -> 2019-06-27 | B95: =IF(VLOOKUP($A95,'化工产品价格总库（国内）'!$A$1:$FG$66703,$A$9,0),VLOOKUP($A95,'化工产品价格总库（国内）'!$A$1:$FG$66703,$A$9,0),B96) -> 28000 | J95: 锦纶DTY | K95: 华东70D/24F（元/吨） | L95: 18193.21 | M95: 19943.96 | N95: 20895.56 | O95: 23763.04 | P95: 24433.15 | Q95: 23769.23 | R95: 24093.89 | S95: 23888.59 | T95: 21249.46 | U95: 19960.44 | V95: 24995.56 | W95: 18775.00 | X95: 16498.91 | Y95: 16208.24 | Z95: 16074.18 | AA95: 17198.91 | AB95: 18542.39 | AC95: 20553.85 | AD95: 20179.73 | AE95: 23242.11 | AF95: 23908.15 | AG95: 23870.33 | AH95: 25018.33 | AI95: 25694.57 | AJ95: 26080.43 | AK95: 26314.29 | AL95: 27180.00 | AM95: 27006.52 | AN95: 27021.74 | AO95: 29465.93 | AP95: 31058.24 | AQ95: 32911.96 | AR95: 35248.91 | AS95: 35938.46 | AT95: 35703.33 | AU95: 31707.61 | AV95: 28790.22 | AW95: 29250.55 | AX95: 26668.89 | AY95: 24293.48 | AZ95: 24155.43 | BA95: 20521.98 | BB95: 18520.00 | BC95: 23533.70 | BD95: 29348.91 | BE95: 29870.33 | BF95: 30180.22 | BG95: 30340.22 | BH95: 29552.17 | BI95: 29450.55 | BJ95: 29358.89 | BK95: 28948.91 | BL95: 28614.13 | BM95: 28483.52 | BN95: 28661.11
A96: =INDEX('化工产品价格总库（国内）'!A:A,ROW()-8) -> 2019-06-26 | B96: =IF(VLOOKUP($A96,'化工产品价格总库（国内）'!$A$1:$FG$66703,$A$9,0),VLOOKUP($A96,'化工产品价格总库（国内）'!$A$1:$FG$66703,$A$9,0),B97) -> 28000 | J96: 锦纶FDY | K96: 华东70D/24F（元/吨） | L96: 16984.57 | M96: 18004.95 | N96: 18902.78 | O96: 22313.04 | P96: 23589.13 | Q96: 22612.64 | R96: 22433.89 | S96: 22812.50 | T96: 20564.13 | U96: 18345.05 | V96: 23547.78 | W96: 17463.59 | X96: 14990.22 | Y96: 14676.92 | Z96: 14606.04 | AA96: 15832.61 | AB96: 17115.22 | AC96: 18784.62 | AD96: 18448.65 | AE96: 21699.34 | AF96: 22289.13 | AG96: 22246.70 | AH96: 23331.67 | AI96: 23789.13 | AJ96: 23959.78 | AK96: 24386.81 | AL96: 25270.00 | AM96: 25040.22 | AN96: 24797.83 | AO96: 27021.98 | AP96: 28700.00 | AQ96: 30373.91 | AR96: 33125.00 | AS96: 34089.01 | AT96: 34676.67 | AU96: 30275.00 | AV96: 26764.13 | AW96: 27480.22 | AX96: 25586.67 | AY96: 22917.39 | AZ96: 22583.70 | BA96: 18219.78 | BB96: 15881.11 | BC96: 21353.26 | BD96: 26869.57 | BE96: 27060.44 | BF96: 27514.29 | BG96: 27984.78 | BH96: 27644.57 | BI96: 27786.81 | BJ96: 27912.22 | BK96: 28395.65 | BL96: 28929.35 | BM96: 26932.97 | BN96: 27132.22
A97: =INDEX('化工产品价格总库（国内）'!A:A,ROW()-8) -> 2019-06-25 | B97: =IF(VLOOKUP($A97,'化工产品价格总库（国内）'!$A$1:$FG$66703,$A$9,0),VLOOKUP($A97,'化工产品价格总库（国内）'!$A$1:$FG$66703,$A$9,0),B98) -> 28000 | J97: 腈纶短纤 | K97: 华东（元/吨） | L97: 15309.88 | M97: 17065.93 | N97: 16085.56 | O97: 19291.79 | P97: 20643.80 | Q97: 18734.62 | R97: 16539.67 | S97: 17047.55 | T97: 15126.09 | U97: 15487.46 | V97: 14394.17 | W97: 12684.24 | X97: 13000.00 | Y97: 13000.00 | Z97: 13000.00 | AA97: 13492.39 | AB97: 15306.30 | AC97: 15155.05 | AD97: 15633.11 | AE97: 18086.51 | AF97: 18166.30 | AG97: 17900.00 | AH97: 17478.89 | AI97: 17517.39 | AJ97: 18300.00 | AK97: 18300.00 | AL97: 17895.56 | AM97: 17600.00 | AN97: 16659.78 | AO97: 18501.10 | AP97: 20569.23 | AQ97: 20158.70 | AR97: 23784.78 | AS97: 25608.79 | AT97: 24460.00 | AU97: 23452.17 | AV97: 21404.35 | AW97: 22791.21 | AX97: 21218.89 | AY97: 18926.09 | AZ97: 17550.00 | BA97: 16035.16 | BB97: 12346.67 | BC97: 15308.70 | BD97: 18612.61 | BE97: 18415.05 | BF97: 18183.52 | BG97: 19530.43 | BH97: 20513.04 | BI97: 19675.82 | BJ97: 19357.78 | BK97: 19750.54 | BL97: 19532.07 | BM97: 17880.77 | BN97: 17671.67
A98: =INDEX('化工产品价格总库（国内）'!A:A,ROW()-8) -> 2019-06-24 | B98: =IF(VLOOKUP($A98,'化工产品价格总库（国内）'!$A$1:$FG$66703,$A$9,0),VLOOKUP($A98,'化工产品价格总库（国内）'!$A$1:$FG$66703,$A$9,0),B99) -> 28000 | J98: 腈纶毛条 | K98: 华东（元/吨） | L98: 16623.46 | M98: 18330.77 | N98: 17201.11 | O98: 19888.59 | P98: 21016.41 | Q98: 19612.09 | R98: 17614.72 | S98: 18216.85 | T98: 16326.09 | U98: 16808.52 | V98: 15602.22 | W98: 14012.77 | X98: 14150.00 | Y98: 14150.00 | Z98: 14150.00 | AA98: 14636.96 | AB98: 16507.07 | AC98: 16356.32 | AD98: 16833.11 | AE98: 19306.58 | AF98: 19347.83 | AG98: 18817.58 | AH98: 18370.00 | AI98: 18325.00 | AJ98: 19000.00 | AK98: 19000.00 | AL98: 18595.56 | AM98: 18300.00 | AN98: 17475.00 | AO98: 19525.27 | AP98: 21581.32 | AQ98: 21321.74 | AR98: 24984.78 | AS98: 26753.85 | AT98: 25426.67 | AU98: 24128.26 | AV98: 22281.52 | AW98: 23496.70 | AX98: 21688.89 | AY98: 19052.17 | AZ98: 18321.74 | BA98: 16915.38 | BB98: 13367.78 | BC98: 16431.52 | BD98: 19679.89 | BE98: 18842.31 | BF98: 18439.56 | BG98: 19821.74 | BH98: 20504.35 | BI98: 20064.84 | BJ98: 20002.78 | BK98: 20630.43 | BL98: 20584.78 | BM98: 18880.22 | BN98: 18643.33
A99: =INDEX('化工产品价格总库（国内）'!A:A,ROW()-8) -> 2019-06-23 | B99: =IF(VLOOKUP($A99,'化工产品价格总库（国内）'!$A$1:$FG$66703,$A$9,0),VLOOKUP($A99,'化工产品价格总库（国内）'!$A$1:$FG$66703,$A$9,0),B100) -> 28000 | J99: PA6 切片 | K99: 华东地区（元/吨） | L99: 13365.43 | M99: 14314.29 | N99: 15189.44 | O99: 17444.84 | P99: 18775.68 | Q99: 17656.22 | R99: 18181.39 | S99: 18613.32 | T99: 16466.58 | U99: 14506.20 | V99: 19507.78 | W99: 14495.92 | X99: 12061.96 | Y99: 11492.86 | Z99: 10997.25 | AA99: 11767.93 | AB99: 13717.39 | AC99: 15243.96 | AD99: 13896.62 | AE99: 16899.34 | AF99: 18596.20 | AG99: 18428.02 | AH99: 20105.56 | AI99: 22109.78 | AJ99: 28418.48 | AK99: 30492.31 | AL99: 30942.22 | AM99: 30944.57 | AN99: 31020.65 | AO99: 31500.00 | AP99: 29335.16 | AQ99: 30040.22 | AR99: 29939.13 | AS99: 28320.60 | AT99: 28124.44 | AU99: 27196.74 | AV99: 26234.78 | AW99: 26165.38 | AX99: 25782.84 | AY99: 25456.48 | AZ99: 25872.27 | BA99: 26051.27 | BB99: 28875.84 | BC99: 30289.67 | BD99: 31024.78 | BE99: 28877.23 | BF99: 28939.87 | BG99: 28930.43 | BH99: 29066.53 | BI99: 29276.66 | BJ99: 29906.97 | BK99: 30279.28 | BL99: 29896.01 | BM99: 30155.40 | BN99: 31650.66
A100: =INDEX('化工产品价格总库（国内）'!A:A,ROW()-8) -> 2019-06-22 | B100: =IF(VLOOKUP($A100,'化工产品价格总库（国内）'!$A$1:$FG$66703,$A$9,0),VLOOKUP($A100,'化工产品价格总库（国内）'!$A$1:$FG$66703,$A$9,0),B101) -> 28000 | J100: PA66 | K100: 华东1300S（元/吨） | L100: 24333.33 | M100: 28696.70 | N100: 33424.44 | O100: 37711.96 | P100: 36495.65 | Q100: 32521.98 | R100: 29141.11 | S100: 27076.09 | T100: 27400.00 | U100: 27400.00 | V100: 27400.00 | W100: 27400.00 | X100: 27400.00 | Y100: 27400.00 | Z100: 27400.00 | AA100: 27400.00 | AB100: 27400.00 | AC100: 27400.00 | AD100: 27400.00 | AE100: 27410.53 | AF100: 27558.70 | AG100: 28604.40 | AH100: 29080.00 | AI100: 29500.00 | AJ100: 29831.52 | AK100: 29801.37 | AL100: 29929.89 | AM100: 30214.13 | AN100: 30527.17 | AO100: 30746.15 | AP100: 30838.46 | AQ100: 30602.17 | AR100: 31118.48 | AS100: 32106.59 | AT100: 33500.00 | AU100: 32885.87 | AV100: 33423.91 | AW100: 31840.40 | AX100: 31006.76 | AY100: 29768.14 | AZ100: 30406.15 | BA100: 30722.29 | BB100: 30651.88 | BC100: 30001.08 | BD100: 30982.93 | BE100: 36143.41 | BF100: 34883.95 | BG100: 30656.37 | BH100: 26957.40 | BI100: 30911.19 | BJ100: 32015.66 | BK100: 24166.92 | BL100: 24908.07 | BM100: 24143.30 | BN100: 25456.51
A101: =INDEX('化工产品价格总库（国内）'!A:A,ROW()-8) -> 2019-06-21 | B101: =IF(VLOOKUP($A101,'化工产品价格总库（国内）'!$A$1:$FG$66703,$A$9,0),VLOOKUP($A101,'化工产品价格总库（国内）'!$A$1:$FG$66703,$A$9,0),B102) -> 28000 | J101: 棉花 | K101: CCIndex(3128B) | L101: 13654.09 | M101: 14995.74 | N101: 15499.30 | O101: 15648.17 | P101: 16268.53 | Q101: 15894.48 | R101: 15684.51 | S101: 15910.95 | T101: 15913.14 | U101: 15974.35 | V101: 15906.44 | W101: 15604.09 | X101: 14413.91 | Y101: 12365.10 | Z101: 12268.96 | AA101: 12981.72 | AB101: 13123.35 | AC101: 13369.48 | AD101: 13474.69 | AE101: 14515.64 | AF101: 16989.93 | AG101: 17773.40 | AH101: 19448.06 | AI101: 19585.86 | AJ101: 19203.71 | AK101: 19349.54 | AL101: 19299.71 | AM101: 18849.47 | AN101: 18415.25 | AO101: 18967.57 | AP101: 19435.56 | AQ101: 19348.25 | AR101: 20369.92 | AS101: 26221.57 | AT101: 29401.88 | AU101: 26605.48 | AV101: 18545.65 | AW101: 17016.33 | AX101: 15138.86 | AY101: 14214.87 | AZ101: 13048.71 | BA101: 12611.74 | BB101: 11290.83 | BC101: 11383.02 | BD101: 13510.85 | BE101: 13824.47 | BF101: 13718.70 | BG101: 13455.24 | BH101: 14122.89 | BI101: 13118.24 | BJ101: 12993.71 | BK101: 12817.27 | BL101: 13987.38 | BM101: 14076.42 | BN101: 14294.74
A102: =INDEX('化工产品价格总库（国内）'!A:A,ROW()-8) -> 2019-06-20 | B102: =IF(VLOOKUP($A102,'化工产品价格总库（国内）'!$A$1:$FG$66703,$A$9,0),VLOOKUP($A102,'化工产品价格总库（国内）'!$A$1:$FG$66703,$A$9,0),B103) -> 28000 | J102: 溶解浆 | K102: CCFEI价格指数（元/吨） | L102: 6151.85 | M102: 6837.36 | N102: 7259.78 | O102: 7674.46 | P102: 7570.11 | Q102: 7472.20 | R102: 7717.78 | S102: 7249.78 | T102: 8017.93 | U102: 8114.73 | V102: 6802.89 | W102: 6828.75 | X102: 6561.74 | Y102: 6045.27 | Z102: 6041.65 | AA102: 6276.20 | AB102: 6651.74 | AC102: 6627.69 | AD102: 6688.65 | AE102: 6835.00 | AF102: 7539.02 | AG102: 8536.15 | AH102: 6582.44 | AI102: 6703.15 | AJ102: 6602.28 | AK102: 6603.19 | AL102: 7014.89 | AM102: 6732.61 | AN102: 7300.00 | AO102: 7598.35 | AP102: 8731.87 | AQ102: 188.04 | AR102: 0.00 | AS102: 0.00 | AT102: 0.00 | AU102: 0.00 | AV102: 0.00 | AW102: 0.00 | AX102: 0.00 | AY102: 0.00 | AZ102: 0.00 | BA102: 0.00 | BB102: 0.00 | BC102: 0.00 | BD102: 0.00 | BE102: 0.00 | BF102: 0.00 | BG102: 0.00 | BH102: 0.00 | BI102: 0.00 | BJ102: 0.00 | BK102: 0.00 | BL102: 0.00 | BM102: 0.00 | BN102: 0.00
A103: =INDEX('化工产品价格总库（国内）'!A:A,ROW()-8) -> 2019-06-19 | B103: =IF(VLOOKUP($A103,'化工产品价格总库（国内）'!$A$1:$FG$66703,$A$9,0),VLOOKUP($A103,'化工产品价格总库（国内）'!$A$1:$FG$66703,$A$9,0),B104) -> 28000 | J103: 棉浆 | K103: 华东（元/吨） | L103: 5969.14 | M103: 6604.40 | N103: 7032.89 | O103: 7169.67 | P103: 7142.39 | Q103: 7188.68 | R103: 7208.89 | S103: 7627.17 | T103: 7377.72 | U103: 7379.67 | V103: 8118.89 | W103: 8232.61 | X103: 7691.30 | Y103: 6850.55 | Z103: 6812.75 | AA103: 6717.99 | AB103: 6259.71 | AC103: 6027.03 | AD103: 5966.35 | AE103: 6007.24 | AF103: 6119.35 | AG103: 6354.40 | AH103: 6682.89 | AI103: 6658.91 | AJ103: 6658.04 | AK103: 6757.58 | AL103: 7002.44 | AM103: 7076.74 | AN103: 7582.72 | AO103: 8397.36 | AP103: 5133.96 | AQ103: 0.00 | AR103: 0.00 | AS103: 0.00 | AT103: 0.00 | AU103: 0.00 | AV103: 0.00 | AW103: 0.00 | AX103: 0.00 | AY103: 0.00 | AZ103: 0.00 | BA103: 0.00 | BB103: 0.00 | BC103: 0.00 | BD103: 0.00 | BE103: 0.00 | BF103: 0.00 | BG103: 0.00 | BH103: 0.00 | BI103: 0.00 | BJ103: 0.00 | BK103: 0.00 | BL103: 0.00 | BM103: 0.00 | BN103: 0.00
A104: =INDEX('化工产品价格总库（国内）'!A:A,ROW()-8) -> 2019-06-18 | B104: =IF(VLOOKUP($A104,'化工产品价格总库（国内）'!$A$1:$FG$66703,$A$9,0),VLOOKUP($A104,'化工产品价格总库（国内）'!$A$1:$FG$66703,$A$9,0),B105) -> 28000 | J104: 木浆 | K104: 国际（美元/吨） | L104: 756.91 | M104: 844.12 | N104: 886.70 | O104: 931.28 | P104: 939.59 | Q104: 941.76 | R104: 922.73 | S104: 928.53 | T104: 866.63 | U104: 879.78 | V104: 937.56 | W104: 976.85 | X104: 970.00 | Y104: 879.60 | Z104: 881.58 | AA104: 890.61 | AB104: 853.67 | AC104: 813.60 | AD104: 804.51 | AE104: 813.04 | AF104: 831.97 | AG104: 849.89 | AH104: 885.93 | AI104: 880.22 | AJ104: 868.48 | AK104: 892.93 | AL104: 905.39 | AM104: 919.51 | AN104: 1002.88 | AO104: 1064.62 | AP104: 663.46 | AQ104: 0.00 | AR104: 0.00 | AS104: 0.00 | AT104: 0.00 | AU104: 0.00 | AV104: 0.00 | AW104: 0.00 | AX104: 0.00 | AY104: 0.00 | AZ104: 0.00 | BA104: 0.00 | BB104: 0.00 | BC104: 0.00 | BD104: 0.00 | BE104: 0.00 | BF104: 0.00 | BG104: 0.00 | BH104: 0.00 | BI104: 0.00 | BJ104: 0.00 | BK104: 0.00 | BL104: 0.00 | BM104: 0.00 | BN104: 0.00
A105: =INDEX('化工产品价格总库（国内）'!A:A,ROW()-8) -> 2019-06-17 | B105: =IF(VLOOKUP($A105,'化工产品价格总库（国内）'!$A$1:$FG$66703,$A$9,0),VLOOKUP($A105,'化工产品价格总库（国内）'!$A$1:$FG$66703,$A$9,0),B106) -> 28000 | J105: HDPE | K105: 余姚市场5000S/扬子（元/吨） | L105: 8731.48 | M105: 9235.16 | N105: 9667.22 | O105: 10727.72 | P105: 11586.41 | Q105: 11608.24 | R105: 10970.56 | S105: 10567.39 | T105: 10328.80 | U105: 10696.70 | V105: 10466.67 | W105: 10563.04 | X105: 10216.85 | Y105: 9856.04 | Z105: 9457.69 | AA105: 9354.89 | AB105: 10534.78 | AC105: 11213.19 | AD105: 9658.78 | AE105: 11915.92 | AF105: 12701.63 | AG105: 12472.53 | AH105: 11828.89 | AI105: 12201.09 | AJ105: 11662.50 | AK105: 11971.43 | AL105: 11702.56 | AM105: 11237.28 | AN105: 11509.78 | AO105: 11456.04 | AP105: 10969.23 | AQ105: 11546.20 | AR105: 12199.46 | AS105: 11227.47 | AT105: 10990.00 | AU105: 11163.04 | AV105: 10633.70 | AW105: 11004.67 | AX105: 11399.52 | AY105: 10461.30 | AZ105: 10875.33 | BA105: 11399.45 | BB105: 8867.22 | BC105: 9128.26 | BD105: 14682.07 | BE105: 14661.54 | BF105: 13752.75 | BG105: 13638.59 | BH105: 12596.20 | BI105: 12223.63 | BJ105: 12324.44 | BK105: 12966.85 | BL105: 13378.80 | BM105: 12906.04 | BN105: 11373.33
A106: =INDEX('化工产品价格总库（国内）'!A:A,ROW()-8) -> 2019-06-16 | B106: =IF(VLOOKUP($A106,'化工产品价格总库（国内）'!$A$1:$FG$66703,$A$9,0),VLOOKUP($A106,'化工产品价格总库（国内）'!$A$1:$FG$66703,$A$9,0),B107) -> 28000 | J106: LDPE | K106: 余姚市场2102TN26（元/吨） | L106: 8436.42 | M106: 8643.41 | N106: 9150.00 | O106: 9433.70 | P106: 9788.59 | Q106: 9731.87 | R106: 10090.67 | S106: 10617.93 | T106: 10655.98 | U106: 11610.22 | V106: 11520.00 | W106: 12302.17 | X106: 10090.76 | Y106: 9629.12 | Z106: 9808.79 | AA106: 9707.61 | AB106: 10585.33 | AC106: 11483.52 | AD106: 10325.41 | AE106: 11719.08 | AF106: 12694.57 | AG106: 12313.74 | AH106: 12659.44 | AI106: 13820.11 | AJ106: 12227.61 | AK106: 11809.89 | AL106: 11763.33 | AM106: 11089.13 | AN106: 10694.24 | AO106: 10714.84 | AP106: 11226.92 | AQ106: 11700.00 | AR106: 12950.54 | AS106: 13211.54 | AT106: 13708.89 | AU106: 12996.74 | AV106: 10908.15 | AW106: 11631.87 | AX106: 11500.00 | AY106: 10880.43 | AZ106: 10703.80 | BA106: 9937.91 | BB106: 8877.22 | BC106: 8817.93 | BD106: 14185.33 | BE106: 14837.91 | BF106: 13791.76 | BG106: 13442.93 | BH106: 12772.28 | BI106: 12566.48 | BJ106: 12718.89 | BK106: 12676.63 | BL106: 12955.98 | BM106: 11836.81 | BN106: 11097.22
A107: =INDEX('化工产品价格总库（国内）'!A:A,ROW()-8) -> 2019-06-15 | B107: =IF(VLOOKUP($A107,'化工产品价格总库（国内）'!$A$1:$FG$66703,$A$9,0),VLOOKUP($A107,'化工产品价格总库（国内）'!$A$1:$FG$66703,$A$9,0),B108) -> 28000 | J107: LLDPE | K107: 余姚市场7042/大庆（元/吨） | L107: 7648.77 | M107: 8207.69 | N107: 8931.11 | O107: 9522.83 | P107: 9608.70 | Q107: 9684.07 | R107: 9765.00 | S107: 9836.52 | T107: 9689.67 | U107: 9348.90 | V107: 9935.56 | W107: 9868.59 | X107: 9230.65 | Y107: 9098.35 | Z107: 9038.46 | AA107: 8904.89 | AB107: 10446.20 | AC107: 10667.58 | AD107: 9515.54 | AE107: 10598.68 | AF107: 11783.15 | AG107: 11888.46 | AH107: 11380.56 | AI107: 12007.61 | AJ107: 11383.70 | AK107: 10698.35 | AL107: 11191.39 | AM107: 11069.02 | AN107: 10649.18 | AO107: 10243.68 | AP107: 10045.05 | AQ107: 9673.64 | AR107: 10863.04 | AS107: 10860.71 | AT107: 11287.50 | AU107: 11091.03 | AV107: 9854.89 | AW107: 10770.88 | AX107: 11693.33 | AY107: 10958.15 | AZ107: 10538.86 | BA107: 9776.21 | BB107: 8882.78 | BC107: 9123.10 | BD107: 13775.00 | BE107: 14583.30 | BF107: 13620.44 | BG107: 12898.91 | BH107: 12199.76 | BI107: 12200.55 | BJ107: 12375.30 | BK107: 12411.98 | BL107: 12520.87 | BM107: 11548.90 | BN107: 11240.31
A108: =INDEX('化工产品价格总库（国内）'!A:A,ROW()-8) -> 2019-06-14 | B108: =IF(VLOOKUP($A108,'化工产品价格总库（国内）'!$A$1:$FG$66703,$A$9,0),VLOOKUP($A108,'化工产品价格总库（国内）'!$A$1:$FG$66703,$A$9,0),B109) -> 28000 | J108: VCM | K108: CFR东南亚（美元/吨） | L108: 737.04 | M108: 716.92 | N108: 744.72 | O108: 699.95 | P108: 728.64 | Q108: 770.33 | R108: 808.94 | S108: 749.43 | T108: 712.77 | U108: 742.53 | V108: 791.50 | W108: 800.54 | X108: 684.35 | Y108: 682.86 | Z108: 610.23 | AA108: 677.08 | AB108: 710.38 | AC108: 769.51 | AD108: 738.85 | AE108: 856.05 | AF108: 934.68 | AG108: 940.00 | AH108: 961.50 | AI108: 878.91 | AJ108: 859.57 | AK108: 862.07
A109: =INDEX('化工产品价格总库（国内）'!A:A,ROW()-8) -> 2019-06-13 | B109: =IF(VLOOKUP($A109,'化工产品价格总库（国内）'!$A$1:$FG$66703,$A$9,0),VLOOKUP($A109,'化工产品价格总库（国内）'!$A$1:$FG$66703,$A$9,0),B110) -> 28000 | J109: EDC | K109: CFR东南亚（美元/吨） | L109: 312.59 | M109: 389.78 | N109: 412.28 | O109: 376.63 | P109: 334.02 | Q109: 286.04 | R109: 230.56 | S109: 201.96 | T109: 234.02 | U109: 302.80 | V109: 328.28 | W109: 274.08 | X109: 254.32 | Y109: 284.29 | Z109: 253.00 | AA109: 262.17 | AB109: 320.33 | AC109: 360.25 | AD109: 263.65 | AE109: 374.01 | AF109: 439.47 | AG109: 460.96 | AH109: 480.28 | AI109: 394.95 | AJ109: 357.23 | AK109: 353.57 | AL109: 378.33 | AM109: 278.59 | AN109: 233.43 | AO109: 273.75 | AP109: 307.23 | AQ109: 311.43 | AR109: 457.74 | AS109: 543.36 | AT109: 498.98 | AU109: 522.18 | AV109: 451.91 | AW109: 510.22 | AX109: 486.14 | AY109: 391.58 | AZ109: 459.67 | BA109: 365.44 | BB109: 190.09 | BC109: 175.63 | BD109: 497.45 | BE109: 456.32 | BF109: 438.79 | BG109: 422.83 | BH109: 451.09 | BI109: 409.45 | BJ109: 455.72 | BK109: 444.40 | BL109: 383.32 | BM109: 337.53 | BN109: 327.11
A110: =INDEX('化工产品价格总库（国内）'!A:A,ROW()-8) -> 2019-06-12 | B110: =IF(VLOOKUP($A110,'化工产品价格总库（国内）'!$A$1:$FG$66703,$A$9,0),VLOOKUP($A110,'化工产品价格总库（国内）'!$A$1:$FG$66703,$A$9,0),B111) -> 28000 | J110: PP | K110: 余姚市场J340/扬子（元/吨） | L110: 9229.63 | M110: 9469.23 | N110: 9601.67 | O110: 10679.89 | P110: 11064.13 | Q110: 10059.34 | R110: 9687.78 | S110: 9521.74 | T110: 9267.50 | U110: 9323.63 | V110: 9975.00 | W110: 9601.63 | X110: 8344.57 | Y110: 8134.07 | Z110: 7837.91 | AA110: 8419.02 | AB110: 9121.20 | AC110: 10326.37 | AD110: 9395.27 | AE110: 11334.21 | AF110: 12705.43 | AG110: 12600.00 | AH110: 11843.33 | AI110: 12713.04 | AJ110: 11445.65 | AK110: 11282.42 | AL110: 11668.33 | AM110: 11905.54 | AN110: 11672.83 | AO110: 11140.11 | AP110: 11173.63 | AQ110: 11785.87 | AR110: 12504.35 | AS110: 12624.18 | AT110: 13091.11 | AU110: 13039.13 | AV110: 11100.00 | AW110: 11533.02 | AX110: 11677.22 | AY110: 10989.13 | AZ110: 10792.93 | BA110: 11091.21 | BB110: 8431.67 | BC110: 8455.98 | BD110: 14074.46 | BE110: 14608.79 | BF110: 13012.09 | BG110: 12860.33 | BH110: 12626.09 | BI110: 12739.01 | BJ110: 12596.11 | BK110: 13640.76 | BL110: 13496.20 | BM110: 12385.71 | BN110: 11926.67
A111: =INDEX('化工产品价格总库（国内）'!A:A,ROW()-8) -> 2019-06-11 | B111: =IF(VLOOKUP($A111,'化工产品价格总库（国内）'!$A$1:$FG$66703,$A$9,0),VLOOKUP($A111,'化工产品价格总库（国内）'!$A$1:$FG$66703,$A$9,0),B112) -> 28000 | J111: PS | K111: 华东地区GPPS（元/吨） | L111: 9887.47 | M111: 10417.14 | N111: 11220.19 | O111: 11920.11 | P111: 12736.96 | Q111: 12218.96 | R111: 11895.83 | S111: 12038.04 | T111: 11316.03 | U111: 10646.15 | V111: 11942.22 | W111: 10616.30 | X111: 9335.60 | Y111: 9219.23 | Z111: 8933.52 | AA111: 8544.57 | AB111: 8832.99 | AC111: 11381.04 | AD111: 9238.11 | AE111: 11082.89 | AF111: 12323.15 | AG111: 12616.48 | AH111: 12613.89 | AI111: 13454.08 | AJ111: 13870.92 | AK111: 13598.90 | AL111: 13881.11 | AM111: 13518.48 | AN111: 11834.29 | AO111: 11435.99 | AP111: 11768.68 | AQ111: 11555.98 | AR111: 12432.34 | AS111: 11805.22 | AT111: 11688.61 | AU111: 10995.65 | AV111: 10008.15 | AW111: 10949.45 | AX111: 11376.94 | AY111: 9884.64 | AZ111: 9925.82 | BA111: 9110.44 | BB111: 7215.28 | BC111: 8466.03 | BD111: 12876.63 | BE111: 12961.21 | BF111: 13133.52 | BG111: 13526.09 | BH111: 13893.48 | BI111: 13930.77 | BJ111: 13550.00 | BK111: 13169.57 | BL111: 12929.35 | BM111: 11557.14 | BN111: 10777.78
A112: =INDEX('化工产品价格总库（国内）'!A:A,ROW()-8) -> 2019-06-10 | B112: =IF(VLOOKUP($A112,'化工产品价格总库（国内）'!$A$1:$FG$66703,$A$9,0),VLOOKUP($A112,'化工产品价格总库（国内）'!$A$1:$FG$66703,$A$9,0),B113) -> 28000 | J112: PS | K112: 华东地区HIPS（元/吨） | L112: 11045.37 | M112: 11472.25 | N112: 11703.61 | O112: 12497.28 | P112: 13390.82 | Q112: 13303.02 | R112: 12555.17 | S112: 12730.98 | T112: 12469.02 | U112: 11978.57 | V112: 13041.11 | W112: 11306.25 | X112: 9878.26 | Y112: 9640.66 | Z112: 9139.56 | AA112: 8778.53 | AB112: 9065.65 | AC112: 11453.57 | AD112: 9962.16 | AE112: 11924.34 | AF112: 13055.98 | AG112: 13373.63 | AH112: 13374.44 | AI112: 13927.72 | AJ112: 14161.41 | AK112: 14153.57 | AL112: 14440.83 | AM112: 13944.57 | AN112: 13638.86 | AO112: 13593.13 | AP112: 13340.93 | AQ112: 12785.33 | AR112: 14021.74 | AS112: 13668.68 | AT112: 13179.44 | AU112: 12186.68 | AV112: 11093.48 | AW112: 11798.90 | AX112: 11843.06 | AY112: 10331.52 | AZ112: 10576.09 | BA112: 10233.79 | BB112: 8449.72 | BC112: 9654.35 | BD112: 14077.72 | BE112: 13737.91 | BF112: 13228.57 | BG112: 13747.83 | BH112: 13860.87 | BI112: 13731.32 | BJ112: 13548.89 | BK112: 13366.30 | BL112: 13342.93 | BM112: 12016.48 | BN112: 11371.67
A113: =INDEX('化工产品价格总库（国内）'!A:A,ROW()-8) -> 2019-06-09 | B113: =IF(VLOOKUP($A113,'化工产品价格总库（国内）'!$A$1:$FG$66703,$A$9,0),VLOOKUP($A113,'化工产品价格总库（国内）'!$A$1:$FG$66703,$A$9,0),B114) -> 28000 | J113: ABS | K113: 华东地区（元/吨） | L113: 12007.23 | M113: 12719.29 | N113: 12927.70 | O113: 13836.14 | P113: 15451.53 | Q113: 15928.95 | R113: 16168.06 | S113: 16373.91 | T113: 16018.75 | U113: 14701.26 | V113: 16172.78 | W113: 13912.77 | X113: 11197.01 | Y113: 10636.35 | Z113: 9900.27 | AA113: 9530.57 | AB113: 9764.13 | AC113: 12691.21 | AD113: 12190.20 | AE113: 13696.05 | AF113: 14373.30 | AG113: 14560.33 | AH113: 14484.44 | AI113: 14606.52 | AJ113: 14782.61 | AK113: 14715.66 | AL113: 15196.39 | AM113: 15164.13 | AN113: 15152.88 | AO113: 15438.52 | AP113: 15749.45 | AQ113: 15075.00 | AR113: 17167.66 | AS113: 17402.47 | AT113: 18424.67 | AU113: 17803.80 | AV113: 16197.55 | AW113: 16002.47 | AX113: 15020.56 | AY113: 12939.40 | AZ113: 12616.85 | BA113: 12114.84 | BB113: 10298.61 | BC113: 12722.28 | BD113: 16392.39 | BE113: 16200.27 | BF113: 15358.79 | BG113: 15966.30 | BH113: 16070.11 | BI113: 15920.33 | BJ113: 15554.44 | BK113: 15450.00 | BL113: 15205.43 | BM113: 14974.18 | BN113: 14321.11
A114: =INDEX('化工产品价格总库（国内）'!A:A,ROW()-8) -> 2019-06-08 | B114: =IF(VLOOKUP($A114,'化工产品价格总库（国内）'!$A$1:$FG$66703,$A$9,0),VLOOKUP($A114,'化工产品价格总库（国内）'!$A$1:$FG$66703,$A$9,0),B115) -> 28000 | J114: BOPP | K114: 江苏双良15U光膜出厂价（元/吨） | L114: 11729.63 | M114: 11673.08 | N114: 12219.44 | O114: 12798.91 | P114: 12174.46 | Q114: 11527.47 | R114: 12072.22 | S114: 12150.00 | T114: 11167.93 | U114: 10458.79 | V114: 12072.22 | W114: 11560.42 | X114: 10570.65 | Y114: 10202.20 | Z114: 9428.57 | AA114: 9638.59 | AB114: 11044.57 | AC114: 11630.77 | AD114: 11647.30 | AE114: 13276.32 | AF114: 13926.09 | AG114: 13907.69 | AH114: 13943.33 | AI114: 14625.00 | AJ114: 13719.57 | AK114: 13401.10 | AL114: 13888.89 | AM114: 13859.78 | AN114: 14040.22 | AO114: 14006.59 | AP114: 14371.43 | AQ114: 15415.22 | AR114: 15905.43 | AS114: 15828.57 | AT114: 16853.33 | AU114: 16151.09 | AV114: 13279.35 | AW114: 13393.13 | AX114: 13025.90 | AY114: 12124.76 | AZ114: 4858.83 | BA114: 0.00 | BB114: 0.00 | BC114: 0.00 | BD114: 0.00 | BE114: 0.00 | BF114: 0.00 | BG114: 0.00 | BH114: 0.00 | BI114: 0.00 | BJ114: 0.00 | BK114: 0.00 | BL114: 0.00 | BM114: 0.00 | BN114: 0.00
A115: =INDEX('化工产品价格总库（国内）'!A:A,ROW()-8) -> 2019-06-07 | B115: =IF(VLOOKUP($A115,'化工产品价格总库（国内）'!$A$1:$FG$66703,$A$9,0),VLOOKUP($A115,'化工产品价格总库（国内）'!$A$1:$FG$66703,$A$9,0),B116) -> 28000 | J115: BOPET | K115: 浙江强盟实业BOPET普通膜出厂价（元/吨） | L115: 8700.00 | M115: 8700.00 | N115: 8700.00 | O115: 8700.00 | P115: 8700.00 | Q115: 8700.00 | R115: 8700.00 | S115: 8700.00 | T115: 8700.00 | U115: 8700.00 | V115: 8700.00 | W115: 8700.00 | X115: 8700.00 | Y115: 8700.00 | Z115: 8700.00 | AA115: 8700.00 | AB115: 8700.00 | AC115: 8700.00 | AD115: 8508.11 | AE115: 9589.47 | AF115: 11398.91 | AG115: 12150.55 | AH115: 12406.67 | AI115: 12500.00 | AJ115: 12858.70 | AK115: 13032.97 | AL115: 13122.22 | AM115: 14092.39 | AN115: 15000.00 | AO115: 15000.00 | AP115: 15000.00 | AQ115: 15000.00 | AR115: 15000.00 | AS115: 15000.00 | AT115: 15000.00 | AU115: 15000.00 | AV115: 15000.00 | AW115: 8571.43 | AX115: 0.00 | AY115: 0.00 | AZ115: 0.00 | BA115: 0.00 | BB115: 0.00 | BC115: 0.00 | BD115: 0.00 | BE115: 0.00 | BF115: 0.00 | BG115: 0.00 | BH115: 0.00 | BI115: 0.00 | BJ115: 0.00 | BK115: 0.00 | BL115: 0.00 | BM115: 0.00 | BN115: 0.00
A116: =INDEX('化工产品价格总库（国内）'!A:A,ROW()-8) -> 2019-06-06 | B116: =IF(VLOOKUP($A116,'化工产品价格总库（国内）'!$A$1:$FG$66703,$A$9,0),VLOOKUP($A116,'化工产品价格总库（国内）'!$A$1:$FG$66703,$A$9,0),B117) -> 28000 | J116: CPP | K116: 河北泰达25U复合膜出厂均价（元/吨） | L116: 12800.00 | M116: 12800.00 | N116: 12800.00 | O116: 12800.00 | P116: 12800.00 | Q116: 12800.00 | R116: 12800.00 | S116: 12800.00 | T116: 12800.00 | U116: 12800.00 | V116: 12800.00 | W116: 12800.00 | X116: 12800.00 | Y116: 12800.00 | Z116: 12800.00 | AA116: 12800.00 | AB116: 12800.00 | AC116: 12548.35 | AD116: 12670.27 | AE116: 13507.89 | AF116: 13600.00 | AG116: 13671.43 | AH116: 14144.44 | AI116: 14272.83 | AJ116: 13460.87 | AK116: 13800.00 | AL116: 13800.00 | AM116: 13676.09 | AN116: 13493.48 | AO116: 14902.20 | AP116: 16700.00 | AQ116: 16700.00 | AR116: 16700.00 | AS116: 16700.00 | AT116: 16381.11 | AU116: 14054.35 | AV116: 13226.09 | AW116: 4463.74 | AX116: 0.00 | AY116: 0.00 | AZ116: 0.00 | BA116: 0.00 | BB116: 0.00 | BC116: 0.00 | BD116: 0.00 | BE116: 0.00 | BF116: 0.00 | BG116: 0.00 | BH116: 0.00 | BI116: 0.00 | BJ116: 0.00 | BK116: 0.00 | BL116: 0.00 | BM116: 0.00 | BN116: 0.00
A117: =INDEX('化工产品价格总库（国内）'!A:A,ROW()-8) -> 2019-06-05 | B117: =IF(VLOOKUP($A117,'化工产品价格总库（国内）'!$A$1:$FG$66703,$A$9,0),VLOOKUP($A117,'化工产品价格总库（国内）'!$A$1:$FG$66703,$A$9,0),B118) -> 28000 | J117: 丁二烯 | K117: 东南亚CFR（美元/吨） | L117: 1168.89 | M117: 971.32 | N117: 1084.78 | O117: 1091.30 | P117: 1601.25 | Q117: 1554.45 | R117: 1329.94 | S117: 1073.97 | T117: 1183.59 | U117: 1122.64 | V117: 2621.56 | W117: 1578.91 | X117: 1054.18 | Y117: 1006.54 | Z117: 879.23 | AA117: 721.08 | AB117: 987.93 | AC117: 1110.22 | AD117: 738.18 | AE117: 1080.00 | AF117: 1434.52 | AG117: 1236.41 | AH117: 1386.57 | AI117: 1555.82 | AJ117: 1116.14 | AK117: 1388.41 | AL117: 1802.78 | AM117: 1658.97 | AN117: 2114.41 | AO117: 2420.37 | AP117: 3436.37 | AQ117: 2184.78 | AR117: 3808.90 | AS117: 3374.62 | AT117: 2372.03 | AU117: 1936.09 | AV117: 1748.39 | AW117: 2106.21 | AX117: 1852.37 | AY117: 1467.66 | AZ117: 1302.61 | BA117: 752.88 | BB117: 534.55
A118: =INDEX('化工产品价格总库（国内）'!A:A,ROW()-8) -> 2019-06-04 | B118: =IF(VLOOKUP($A118,'化工产品价格总库（国内）'!$A$1:$FG$66703,$A$9,0),VLOOKUP($A118,'化工产品价格总库（国内）'!$A$1:$FG$66703,$A$9,0),B119) -> 28000 | J118: 丁二烯 | K118: 上海石化（元/吨） | L118: 9755.56 | M118: 8303.30 | N118: 10043.33 | O118: 10226.09 | P118: 12600.00 | Q118: 10943.96 | R118: 10287.78 | S118: 9436.96 | T118: 9855.43 | U118: 9512.09 | V118: 21005.56 | W118: 12916.30 | X118: 8798.91 | Y118: 8449.45 | Z118: 6713.19 | AA118: 6321.74 | AB118: 7489.13 | AC118: 8349.45 | AD118: 6160.81 | AE118: 8807.89 | AF118: 10675.00 | AG118: 8863.74 | AH118: 9558.89 | AI118: 10577.17 | AJ118: 8329.35 | AK118: 10703.30 | AL118: 13614.44 | AM118: 14517.39 | AN118: 17305.43 | AO118: 20675.82 | AP118: 23978.02 | AQ118: 17711.96 | AR118: 28994.57 | AS118: 22631.87 | AT118: 13324.44 | AU118: 0.00 | AV118: 0.00
A119: =INDEX('化工产品价格总库（国内）'!A:A,ROW()-8) -> 2019-06-03 | B119: =IF(VLOOKUP($A119,'化工产品价格总库（国内）'!$A$1:$FG$66703,$A$9,0),VLOOKUP($A119,'化工产品价格总库（国内）'!$A$1:$FG$66703,$A$9,0),B120) -> 28000 | J119: 天然橡胶 | K119: 上海市场（元/吨） | L119: 10598.77 | M119: 11373.96 | N119: 11239.72 | O119: 10538.59 | P119: 10285.87 | Q119: 10626.92 | R119: 11759.44 | S119: 11872.83 | T119: 12941.03 | U119: 13166.76 | V119: 17776.94 | W119: 14004.62 | X119: 10640.49 | Y119: 11147.80 | Z119: 10077.47 | AA119: 9771.74 | AB119: 10971.74 | AC119: 12619.23 | AD119: 12414.19 | AE119: 11395.72 | AF119: 13074.75 | AG119: 14120.33 | AH119: 15662.78 | AI119: 19065.76 | AJ119: 18373.37 | AK119: 19225.27 | AL119: 24680.00 | AM119: 23892.39 | AN119: 22927.72 | AO119: 26490.11 | AP119: 28812.09 | AQ119: 27751.09 | AR119: 33792.39 | AS119: 36526.32 | AT119: 38896.11 | AU119: 32011.68 | AV119: 24914.95 | AW119: 24396.70 | AX119: 24086.11 | AY119: 19766.30 | AZ119: 16502.17 | BA119: 14963.74 | BB119: 13962.22 | BC119: 14352.17 | BD119: 26493.48 | BE119: 24730.77 | BF119: 22789.01 | BG119: 21530.43 | BH119: 18984.78 | BI119: 20186.81 | BJ119: 20517.78 | BK119: 18521.74 | BL119: 22102.17 | BM119: 24151.10 | BN119: 20461.67
A120: =INDEX('化工产品价格总库（国内）'!A:A,ROW()-8) -> 2019-06-02 | B120: =IF(VLOOKUP($A120,'化工产品价格总库（国内）'!$A$1:$FG$66703,$A$9,0),VLOOKUP($A120,'化工产品价格总库（国内）'!$A$1:$FG$66703,$A$9,0),B121) -> 28000 | J120: 丁苯橡胶 | K120: 华东1502 | L120: 10496.98 | M120: 11126.37 | N120: 11738.33 | O120: 12102.72 | P120: 12815.22 | Q120: 12694.51 | R120: 13109.44 | S120: 13180.43 | T120: 12682.88 | U120: 12542.31 | V120: 21360.00 | W120: 15598.37 | X120: 11036.41 | Y120: 11619.78 | Z120: 9415.38 | AA120: 9268.48 | AB120: 10063.59 | AC120: 10738.46 | AD120: 10077.70 | AE120: 11213.82 | AF120: 12794.57 | AG120: 12798.90 | AH120: 12664.44 | AI120: 13370.65 | AJ120: 12030.43 | AK120: 13523.08 | AL120: 17036.67 | AM120: 18028.26 | AN120: 19464.67 | AO120: 21252.20 | AP120: 23625.27 | AQ120: 23232.61 | AR120: 32523.91 | AS120: 28657.69 | AT120: 25285.00 | AU120: 20993.48 | AV120: 16754.89 | AW120: 16436.81 | AX120: 17438.89 | AY120: 14157.61 | AZ120: 13365.76 | BA120: 12260.44 | BB120: 10877.78 | BC120: 11569.02 | BD120: 23082.61 | BE120: 21573.63 | BF120: 18990.66 | BG120: 17601.09 | BH120: 15248.37 | BI120: 15718.68 | BJ120: 17078.33 | BK120: 17576.63 | BL120: 18614.67 | BM120: 17731.87 | BN120: 14960.56
A121: =INDEX('化工产品价格总库（国内）'!A:A,ROW()-8) -> 2019-06-01 | B121: =IF(VLOOKUP($A121,'化工产品价格总库（国内）'!$A$1:$FG$66703,$A$9,0),VLOOKUP($A121,'化工产品价格总库（国内）'!$A$1:$FG$66703,$A$9,0),B122) -> 28000 | J121: 丁基橡胶 | K121: 进口301（元/吨） | L121: 16635.80 | M121: 18140.11 | N121: 19775.00 | O121: 20382.07 | P121: 21630.43 | Q121: 21450.55 | R121: 20500.00 | S121: 19766.30 | T121: 20472.83 | U121: 25527.47 | V121: 22524.44 | W121: 19133.70 | X121: 18842.39 | Y121: 19032.97 | Z121: 19131.87 | AA121: 19000.00 | AB121: 19668.48 | AC121: 23065.93 | AD121: 25000.00 | AE121: 25065.79 | AF121: 25944.02 | AG121: 26368.13 | AH121: 27055.56 | AI121: 28913.04 | AJ121: 33027.17 | AK121: 35471.43 | AL121: 35865.00 | AM121: 38565.22 | AN121: 40429.35 | AO121: 41931.32 | AP121: 45491.76 | AQ121: 43701.09 | AR121: 51255.43 | AS121: 53934.07 | AT121: 53711.11 | AU121: 52576.09 | AV121: 60543.48 | AW121: 49175.82 | AX121: 42677.78 | AY121: 39722.83 | AZ121: 41796.20 | BA121: 42898.35 | BB121: 48811.11 | BC121: 58190.22 | BD121: 77502.72 | BE121: 76675.82 | BF121: 70376.37 | BG121: 0.00 | BH121: 0.00 | BI121: 0.00 | BJ121: 0.00 | BK121: 0.00 | BL121: 0.00 | BM121: 0.00 | BN121: 0.00
A122: =INDEX('化工产品价格总库（国内）'!A:A,ROW()-8) -> 2019-05-31 | B122: =IF(VLOOKUP($A122,'化工产品价格总库（国内）'!$A$1:$FG$66703,$A$9,0),VLOOKUP($A122,'化工产品价格总库（国内）'!$A$1:$FG$66703,$A$9,0),B123) -> 28000 | J122: 顺丁橡胶 | K122: 山东（元/吨） | L122: 10831.48 | M122: 11317.03 | N122: 11754.44 | O122: 12371.20 | P122: 13905.98 | Q122: 12159.34 | R122: 12428.89 | S122: 12325.43 | T122: 12541.30 | U122: 13100.55 | V122: 22936.11 | W122: 16821.74 | X122: 11327.17 | Y122: 10910.44 | Z122: 8679.67 | AA122: 8644.02 | AB122: 9494.57 | AC122: 10511.54 | AD122: 8716.89 | AE122: 12026.64 | AF122: 13084.24 | AG122: 11456.04 | AH122: 11975.56 | AI122: 13283.70 | AJ122: 11950.00 | AK122: 13719.23 | AL122: 17371.11 | AM122: 19046.74 | AN122: 20845.11 | AO122: 24617.03 | AP122: 26672.53 | AQ122: 26381.52 | AR122: 33960.33 | AS122: 29597.80 | AT122: 31693.33 | AU122: 27822.83 | AV122: 20417.39 | AW122: 21067.03 | AX122: 21245.56 | AY122: 16141.30 | AZ122: 13877.72 | BA122: 12461.54 | BB122: 12066.11 | BC122: 11872.28 | BD122: 24129.08 | BE122: 23196.43 | BF122: 22309.89 | BG122: 19605.98 | BH122: 17295.65 | BI122: 16373.63 | BJ122: 17275.00 | BK122: 16100.27 | BL122: 16677.72 | BM122: 16637.91 | BN122: 14698.33
A123: =INDEX('化工产品价格总库（国内）'!A:A,ROW()-8) -> 2019-05-30 | B123: =IF(VLOOKUP($A123,'化工产品价格总库（国内）'!$A$1:$FG$66703,$A$9,0),VLOOKUP($A123,'化工产品价格总库（国内）'!$A$1:$FG$66703,$A$9,0),B124) -> 28000 | J123: 丁腈橡胶 | K123: 华东地区（N41）市场均价（元/吨） | L123: 21500.00 | M123: 21500.00 | N123: 20062.70 | O123: 20284.96 | P123: 23045.76 | Q123: 23071.06 | R123: 20836.89 | S123: 19971.09 | T123: 19226.09 | U123: 17163.85 | V123: 9000.00 | W123: 9000.00 | X123: 9000.00 | Y123: 9000.00 | Z123: 9210.81 | AA123: 11478.67 | AB123: 13608.50 | AC123: 15043.96 | AD123: 14502.82 | AE123: 16136.72 | AF123: 17160.55 | AG123: 15910.24 | AH123: 15550.50 | AI123: 16372.50 | AJ123: 16728.26 | AK123: 17425.22 | AL123: 19703.33 | AM123: 20335.00 | AN123: 21904.19 | AO123: 24182.99 | AP123: 26939.23 | AQ123: 24695.59 | AR123: 32014.48 | AS123: 29077.14 | AT123: 26339.52 | AU123: 22170.43 | AV123: 19491.96 | AW123: 20729.95 | AX123: 20084.32 | AY123: 17090.40 | AZ123: 16540.72 | BA123: 16485.42 | BB123: 15374.89 | BC123: 21377.17 | BD123: 31183.70 | BE123: 27461.76 | BF123: 25865.57 | BG123: 25100.76 | BH123: 24037.14 | BI123: 20257.69 | BJ123: 19800.00 | BK123: 19924.78 | BL123: 19927.83 | BM123: 19389.01 | BN123: 20290.42
A124: =INDEX('化工产品价格总库（国内）'!A:A,ROW()-8) -> 2019-05-29 | B124: =IF(VLOOKUP($A124,'化工产品价格总库（国内）'!$A$1:$FG$66703,$A$9,0),VLOOKUP($A124,'化工产品价格总库（国内）'!$A$1:$FG$66703,$A$9,0),B125) -> 28000 | J124: SBS干胶 | K124: 华东地区815市场均价（元/吨） | L124: 13100.00 | M124: 13100.00 | N124: 13152.44 | O124: 14154.13 | P124: 15431.01 | Q124: 15542.71 | R124: 15419.11 | S124: 15658.46 | T124: 14580.58 | U124: 14884.18 | V124: 19305.58 | W124: 14207.89 | X124: 12911.59 | Y124: 13336.11 | Z124: 12237.62 | AA124: 13594.90 | AB124: 12405.74 | AC124: 12875.49 | AD124: 10788.59 | AE124: 13177.98 | AF124: 14072.65 | AG124: 13093.86 | AH124: 13322.19 | AI124: 14536.45 | AJ124: 15019.77 | AK124: 16252.93 | AL124: 19152.21 | AM124: 19571.52 | AN124: 20262.32 | AO124: 19908.97 | AP124: 22492.05 | AQ124: 21421.88 | AR124: 25008.84 | AS124: 19599.93 | AT124: 18419.48 | AU124: 17080.43 | AV124: 15560.43 | AW124: 16135.60 | AX124: 16977.24 | AY124: 14313.88 | AZ124: 15105.07 | BA124: 13938.28 | BB124: 14488.89 | BC124: 16671.74 | BD124: 20756.79 | BE124: 19505.24 | BF124: 17924.40 | BG124: 16950.47 | BH124: 14749.28 | BI124: 15426.28 | BJ124: 15844.44 | BK124: 15175.47 | BL124: 17049.46 | BM124: 18969.27 | BN124: 18584.99
A125: =INDEX('化工产品价格总库（国内）'!A:A,ROW()-8) -> 2019-05-28 | B125: =IF(VLOOKUP($A125,'化工产品价格总库（国内）'!$A$1:$FG$66703,$A$9,0),VLOOKUP($A125,'化工产品价格总库（国内）'!$A$1:$FG$66703,$A$9,0),B126) -> 28000 | J125: 三元乙丙橡胶 | K125: 华东地区（4703）市场均价（元/吨） | L125: 22000.00 | M125: 22000.00 | N125: 22000.00 | O125: 22000.00 | P125: 22000.00 | Q125: 22000.00 | R125: 22000.00 | S125: 22000.00 | T125: 22000.00 | U125: 22000.00 | V125: 21693.70 | W125: 20402.54 | X125: 20253.44 | Y125: 21282.42 | Z125: 21808.42 | AA125: 22772.83 | AB125: 23593.48 | AC125: 21170.33 | AD125: 22756.76 | AE125: 24000.00 | AF125: 24000.00 | AG125: 24073.63 | AH125: 24793.33 | AI125: 24018.48 | AJ125: 25164.13 | AK125: 28034.80 | AL125: 30105.19 | AM125: 34069.93 | AN125: 34594.84 | AO125: 38376.92 | AP125: 39560.90 | AQ125: 40763.04 | AR125: 47422.28 | AS125: 54052.75 | AT125: 39592.04 | AU125: 32757.61 | AV125: 29595.11 | AW125: 29500.00 | AX125: 28133.33 | AY125: 26361.96 | AZ125: 25507.61 | BA125: 25500.00 | BB125: 25488.89 | BC125: 25400.00 | BD125: 25400.00 | BE125: 25400.00 | BF125: 25400.00 | BG125: 25400.00 | BH125: 25400.00 | BI125: 25400.00 | BJ125: 25400.00 | BK125: 25400.00 | BL125: 25400.00 | BM125: 25400.00 | BN125: 25400.00
A126: =INDEX('化工产品价格总库（国内）'!A:A,ROW()-8) -> 2019-05-27 | B126: =IF(VLOOKUP($A126,'化工产品价格总库（国内）'!$A$1:$FG$66703,$A$9,0),VLOOKUP($A126,'化工产品价格总库（国内）'!$A$1:$FG$66703,$A$9,0),B127) -> 28000 | J126: 萤石粉-湿粉 | K126: 华东地区（元/吨） | L126: 3070.99 | M126: 2881.87 | N126: 2871.11 | O126: 3341.30 | P126: 2583.15 | Q126: 2326.10 | R126: 2703.33 | S126: 2389.67 | T126: 1964.40 | U126: 2087.91 | V126: 1713.61 | W126: 1476.96 | X126: 1379.67 | Y126: 1477.47 | Z126: 1300.00 | AA126: 1349.18 | AB126: 1589.13 | AC126: 1600.00 | AD126: 1600.00 | AE126: 1600.00 | AF126: 1569.57 | AG126: 1578.57 | AH126: 1797.22 | AI126: 1741.30 | AJ126: 1508.70 | AK126: 1801.65 | AL126: 1936.67 | AM126: 1610.11 | AN126: 1528.80 | AO126: 1948.90 | AP126: 1975.00 | AQ126: 2127.72 | AR126: 2621.74 | AS126: 2522.53 | AT126: 2068.89 | AU126: 1605.98 | AV126: 1450.00 | AW126: 0.00 | AX126: 0.00 | AY126: 0.00 | AZ126: 0.00 | BA126: 0.00 | BB126: 0.00 | BC126: 0.00 | BD126: 0.00 | BE126: 0.00 | BF126: 0.00 | BG126: 0.00 | BH126: 0.00 | BI126: 0.00 | BJ126: 0.00 | BK126: 0.00 | BL126: 0.00 | BM126: 0.00 | BN126: 0.00
A127: =INDEX('化工产品价格总库（国内）'!A:A,ROW()-8) -> 2019-05-26 | B127: =IF(VLOOKUP($A127,'化工产品价格总库（国内）'!$A$1:$FG$66703,$A$9,0),VLOOKUP($A127,'化工产品价格总库（国内）'!$A$1:$FG$66703,$A$9,0),B128) -> 28000 | J127: 无水氢氟酸 | K127: 华东地区（元/吨） | L127: 10506.17 | M127: 10172.53 | N127: 11028.89 | O127: 13038.86 | P127: 10251.09 | Q127: 9498.35 | R127: 13656.11 | S127: 11801.36 | T127: 11758.15 | U127: 11085.16 | V127: 8179.44 | W127: 5956.52 | X127: 6003.80 | Y127: 6451.65 | Z127: 5712.09 | AA127: 5828.26 | AB127: 6530.43 | AC127: 6591.21 | AD127: 6100.00 | AE127: 6343.42 | AF127: 6678.26 | AG127: 6903.30 | AH127: 6773.33 | AI127: 6611.96 | AJ127: 6332.61 | AK127: 7219.78 | AL127: 7867.22 | AM127: 6963.04 | AN127: 7280.43 | AO127: 7947.25 | AP127: 8742.86 | AQ127: 9398.91 | AR127: 10832.61 | AS127: 12131.87 | AT127: 10371.11 | AU127: 8853.80 | AV127: 8589.67 | AW127: 7634.62 | AX127: 7335.56 | AY127: 0.00 | AZ127: 0.00 | BA127: 0.00 | BB127: 0.00 | BC127: 0.00 | BD127: 0.00 | BE127: 0.00 | BF127: 0.00 | BG127: 0.00 | BH127: 0.00 | BI127: 0.00 | BJ127: 0.00 | BK127: 0.00 | BL127: 0.00 | BM127: 0.00 | BN127: 0.00
A128: =INDEX('化工产品价格总库（国内）'!A:A,ROW()-8) -> 2019-05-25 | B128: =IF(VLOOKUP($A128,'化工产品价格总库（国内）'!$A$1:$FG$66703,$A$9,0),VLOOKUP($A128,'化工产品价格总库（国内）'!$A$1:$FG$66703,$A$9,0),B129) -> 28000 | J128: 二氯甲烷 | K128: 华东地区（元/吨） | L128: 3157.78 | M128: 3308.79 | N128: 3341.00 | O128: 4101.63 | P128: 4419.57 | Q128: 3655.22 | R128: 3332.94 | S128: 3633.70 | T128: 3061.41 | U128: 2643.96 | V128: 2527.22 | W128: 2768.75 | X128: 2235.05 | Y128: 2127.75 | Z128: 1945.82 | AA128: 2177.34 | AB128: 2830.71 | AC128: 3295.05 | AD128: 2953.38 | AE128: 3740.79 | AF128: 3796.74 | AG128: 3574.73 | AH128: 3101.67 | AI128: 3580.98 | AJ128: 2802.72 | AK128: 2461.54 | AL128: 2507.50 | AM128: 2838.04 | AN128: 3208.15 | AO128: 3537.36 | AP128: 4204.95 | AQ128: 4413.04 | AR128: 5542.93 | AS128: 6845.05 | AT128: 7044.44 | AU128: 7985.87 | AV128: 5582.61 | AW128: 5528.02 | AX128: 5212.78 | AY128: 4291.30 | AZ128: 3350.00 | BA128: 2821.43 | BB128: 4257.78 | BC128: 4877.17 | BD128: 4720.65 | BE128: 4885.71 | BF128: 4442.86 | BG128: 4105.98 | BH128: 3902.17 | BI128: 4507.14 | BJ128: 5211.67 | BK128: 4596.20 | BL128: 4416.85 | BM128: 5728.57 | BN128: 6535.28
A129: =INDEX('化工产品价格总库（国内）'!A:A,ROW()-8) -> 2019-05-24 | B129: =IF(VLOOKUP($A129,'化工产品价格总库（国内）'!$A$1:$FG$66703,$A$9,0),VLOOKUP($A129,'化工产品价格总库（国内）'!$A$1:$FG$66703,$A$9,0),B130) -> 28000 | J129: 三氯乙烯 | K129: 华东地区（元/吨） | L129: 4805.56 | M129: 4782.97 | N129: 5413.33 | O129: 5500.00 | P129: 5715.22 | Q129: 5492.31 | R129: 4566.11 | S129: 4672.01 | T129: 4947.28 | U129: 4827.47 | V129: 4700.00 | W129: 4761.96 | X129: 4728.26 | Y129: 4802.20 | Z129: 4374.73 | AA129: 4535.33 | AB129: 4748.91 | AC129: 4768.68 | AD129: 4942.57 | AE129: 5000.00 | AF129: 5079.35 | AG129: 5339.56 | AH129: 5111.11 | AI129: 5013.04 | AJ129: 4854.35 | AK129: 5000.00 | AL129: 5205.56 | AM129: 5759.78 | AN129: 5538.04 | AO129: 6989.01 | AP129: 7781.32 | AQ129: 9266.30 | AR129: 11108.70 | AS129: 11406.59 | AT129: 11352.22 | AU129: 11845.65 | AV129: 11934.78 | AW129: 11879.12 | AX129: 10010.56 | AY129: 7614.13 | AZ129: 7530.43 | BA129: 7502.20 | BB129: 7168.33 | BC129: 7817.39 | BD129: 7374.46 | BE129: 6467.03 | BF129: 6250.00 | BG129: 6151.09 | BH129: 5659.24 | BI129: 5742.31 | BJ129: 6304.44 | BK129: 4093.48 | BL129: 0.00 | BM129: 0.00 | BN129: 0.00
A130: =INDEX('化工产品价格总库（国内）'!A:A,ROW()-8) -> 2019-05-23 | B130: =IF(VLOOKUP($A130,'化工产品价格总库（国内）'!$A$1:$FG$66703,$A$9,0),VLOOKUP($A130,'化工产品价格总库（国内）'!$A$1:$FG$66703,$A$9,0),B131) -> 28000 | J130: R22 | K130: 巨化股份（元/吨） | L130: 15838.27 | M130: 17252.75 | N130: 18577.78 | O130: 22717.39 | P130: 20423.91 | Q130: 18109.89 | R130: 17161.11 | S130: 15733.70 | T130: 14114.13 | U130: 16395.60 | V130: 11256.67 | W130: 9091.30 | X130: 9583.70 | Y130: 9648.35 | Z130: 8971.43 | AA130: 9665.22 | AB130: 11781.52 | AC130: 13028.57 | AD130: 13378.38 | AE130: 13782.89 | AF130: 14006.52 | AG130: 13209.89 | AH130: 10172.22 | AI130: 10020.65 | AJ130: 9600.00 | AK130: 10148.35 | AL130: 9022.22 | AM130: 9041.30 | AN130: 11227.17 | AO130: 12881.32 | AP130: 13978.02 | AQ130: 13980.43 | AR130: 19008.70 | AS130: 25481.32 | AT130: 25973.33 | AU130: 18960.87 | AV130: 14998.91 | AW130: 13638.46 | AX130: 13287.78 | AY130: 9860.33 | AZ130: 7714.13 | BA130: 7898.90 | BB130: 8918.33 | BC130: 11000.54 | BD130: 12841.30 | BE130: 13642.86 | BF130: 11969.78 | BG130: 11083.15 | BH130: 10722.83 | BI130: 11406.04 | BJ130: 10666.67 | BK130: 8937.50 | BL130: 8904.35 | BM130: 11492.31 | BN130: 13188.89
A131: =INDEX('化工产品价格总库（国内）'!A:A,ROW()-8) -> 2019-05-22 | B131: =IF(VLOOKUP($A131,'化工产品价格总库（国内）'!$A$1:$FG$66703,$A$9,0),VLOOKUP($A131,'化工产品价格总库（国内）'!$A$1:$FG$66703,$A$9,0),B132) -> 28000 | J131: R134a | K131: 浙江巨化（元/吨） | L131: 26259.26 | M131: 28659.34 | N131: 32738.89 | O131: 33048.91 | P131: 31065.22 | Q131: 32780.22 | R131: 30616.67 | S131: 26543.48 | T131: 24171.20 | U131: 30989.01 | V131: 23043.33 | W131: 19864.13 | X131: 20254.35 | Y131: 19890.11 | Z131: 18387.91 | AA131: 18315.22 | AB131: 18951.09 | AC131: 18307.69 | AD131: 21829.73 | AE131: 25000.00 | AF131: 25000.00 | AG131: 25000.00 | AH131: 25000.00 | AI131: 25000.00 | AJ131: 20559.78 | AK131: 26000.00 | AL131: 24966.67 | AM131: 25000.00 | AN131: 33478.26 | AO131: 40417.58 | AP131: 42956.04 | AQ131: 37211.96 | AR131: 52271.74 | AS131: 71934.07 | AT131: 67844.44 | AU131: 53250.00 | AV131: 43777.17 | AW131: 49021.98 | AX131: 39916.67 | AY131: 35739.13 | AZ131: 31152.17 | BA131: 31269.23 | BB131: 30440.00 | BC131: 28305.43 | BD131: 27193.48 | BE131: 29051.65 | BF131: 24868.13 | BG131: 24722.83 | BH131: 26972.83 | BI131: 28741.76 | BJ131: 28255.56 | BK131: 29391.30 | BL131: 43369.57 | BM131: 50329.67 | BN131: 52000.00
A132: =INDEX('化工产品价格总库（国内）'!A:A,ROW()-8) -> 2019-05-21 | B132: =IF(VLOOKUP($A132,'化工产品价格总库（国内）'!$A$1:$FG$66703,$A$9,0),VLOOKUP($A132,'化工产品价格总库（国内）'!$A$1:$FG$66703,$A$9,0),B133) -> 28000 | J132: 氟化铝 | K132: 河南地区（元/吨） | L132: 10293.83 | M132: 9345.05 | N132: 12153.33 | O132: 12183.70 | P132: 9894.57 | Q132: 9999.45 | R132: 12415.56 | S132: 11996.20 | T132: 9087.50 | U132: 9379.12 | V132: 7911.11 | W132: 6775.00 | X132: 6055.43 | Y132: 6291.21 | Z132: 6303.85 | AA132: 6500.00 | AB132: 6531.52 | AC132: 6683.52 | AD132: 6700.00 | AE132: 6671.71 | AF132: 6553.80 | AG132: 6153.30 | AH132: 7132.78 | AI132: 7239.95 | AJ132: 6569.29 | AK132: 7103.85 | AL132: 7401.11 | AM132: 6800.00 | AN132: 7610.87 | AO132: 8795.05 | AP132: 9346.15 | AQ132: 9869.02 | AR132: 9882.07 | AS132: 10699.45 | AT132: 9516.67 | AU132: 8202.17 | AV132: 6496.20 | AW132: 7473.63 | AX132: 6648.33 | AY132: 4819.57 | AZ132: 0.00 | BG132: 0.00 | BH132: 0.00 | BI132: 0.00 | BJ132: 0.00 | BK132: 0.00 | BL132: 0.00 | BM132: 0.00 | BN132: 0.00
A133: =INDEX('化工产品价格总库（国内）'!A:A,ROW()-8) -> 2019-05-20 | B133: =IF(VLOOKUP($A133,'化工产品价格总库（国内）'!$A$1:$FG$66703,$A$9,0),VLOOKUP($A133,'化工产品价格总库（国内）'!$A$1:$FG$66703,$A$9,0),B134) -> 28000 | J133: 冰晶石 | K133: 河南地区（元/吨） | L133: 5908.64 | M133: 5618.68 | N133: 5708.89 | O133: 5927.72 | P133: 5947.55 | Q133: 7000.00 | R133: 6844.44 | S133: 6630.43 | T133: 6492.39 | U133: 5830.77 | V133: 5793.33 | W133: 5708.70 | X133: 5750.00 | Y133: 5750.00 | Z133: 5750.00 | AA133: 5750.00 | AB133: 5750.00 | AC133: 5750.00 | AD133: 5750.00 | AE133: 5750.00 | AF133: 5750.00 | AG133: 5703.30 | AH133: 5650.00 | AI133: 5718.48 | AJ133: 6000.00 | AK133: 6003.30 | AL133: 6046.67 | AM133: 6123.91 | AN133: 6475.54 | AO133: 7252.20 | AP133: 8337.36 | AQ133: 8425.00 | AR133: 8343.48 | AS133: 8681.87 | AT133: 8365.56 | AU133: 7133.70 | AV133: 5602.17 | AW133: 6508.79 | AX133: 5651.67 | AY133: 4840.76 | AZ133: 0.00 | BE133: 0.00 | BF133: 0.00 | BG133: 0.00 | BH133: 0.00 | BI133: 0.00 | BJ133: 0.00 | BK133: 0.00 | BL133: 0.00 | BM133: 0.00 | BN133: 0.00
A134: =INDEX('化工产品价格总库（国内）'!A:A,ROW()-8) -> 2019-05-19 | B134: =IF(VLOOKUP($A134,'化工产品价格总库（国内）'!$A$1:$FG$66703,$A$9,0),VLOOKUP($A134,'化工产品价格总库（国内）'!$A$1:$FG$66703,$A$9,0),B135) -> 28000 | J134: 甲基环硅氧烷 | K134: DMC华东（元/吨） | L134: 19728.40 | M134: 19309.89 | N134: 18800.00 | O134: 21998.91 | P134: 33303.26 | Q134: 33126.37 | R134: 29255.56 | S134: 29150.00 | T134: 22728.26 | U134: 21234.07 | V134: 19553.33 | W134: 16104.35 | X134: 13697.83 | Y134: 13540.66 | Z134: 13753.85 | AA134: 14625.00 | AB134: 14489.13 | AC134: 15490.11 | AD134: 16221.62 | AE134: 16941.45 | AF134: 16748.91 | AG134: 15891.21 | AH134: 16542.22 | AI134: 17265.76 | AJ134: 17364.67 | AK134: 16835.16 | AL134: 17060.00 | AM134: 17495.65 | AN134: 16209.78 | AO134: 16185.71 | AP134: 16628.57 | AQ134: 17081.52 | AR134: 19190.22 | AS134: 20838.46 | AT134: 21316.67 | AU134: 22792.39 | AV134: 20816.30 | AW134: 22164.84 | AX134: 20900.00 | AY134: 23013.04 | AZ134: 19430.98 | BA134: 19960.44 | BB134: 19290.00 | BC134: 22234.78 | BD134: 29417.39 | BE134: 24935.16 | BF134: 23397.80 | BG134: 23922.83 | BH134: 28659.78 | BI134: 29108.79 | BJ134: 28178.33 | BK134: 29081.79
A135: =INDEX('化工产品价格总库（国内）'!A:A,ROW()-8) -> 2019-05-18 | B135: =IF(VLOOKUP($A135,'化工产品价格总库（国内）'!$A$1:$FG$66703,$A$9,0),VLOOKUP($A135,'化工产品价格总库（国内）'!$A$1:$FG$66703,$A$9,0),B136) -> 28000 | J135: 金属硅 | K135: 贵州港口均价441#（元/吨） | L135: 11926.23 | M135: 12329.40 | N135: 12338.89 | O135: 12740.22 | P135: 12603.26 | Q135: 13445.60 | R135: 14277.22 | S135: 14077.17 | T135: 13494.02 | U135: 11424.18 | V135: 11698.33 | W135: 11146.74 | X135: 10103.26 | Y135: 10938.46 | Z135: 10559.34 | AA135: 10755.98 | AB135: 11329.35 | AC135: 12473.08 | AD135: 13292.57 | AE135: 13609.87 | AF135: 13411.96 | AG135: 13470.88 | AH135: 13116.11 | AI135: 12872.28 | AJ135: 11930.98 | AK135: 11771.98 | AL135: 12260.00 | AM135: 11484.78 | AN135: 11658.70 | AO135: 11800.00 | AP135: 11800.00 | AQ135: 11800.00 | AR135: 11800.00 | AS135: 11800.00 | AT135: 11800.00 | AU135: 11800.00 | AV135: 11800.00 | AW135: 11800.00 | AX135: 11800.00 | AY135: 11800.00 | AZ135: 11800.00 | BA135: 11800.00 | BB135: 11800.00 | BC135: 11800.00 | BD135: 11800.00 | BE135: 11800.00 | BF135: 11800.00 | BG135: 11800.00 | BH135: 11800.00 | BI135: 11800.00 | BJ135: 11800.00 | BK135: 11800.00 | BL135: 11800.00 | BM135: 11800.00 | BN135: 11800.00
A136: =INDEX('化工产品价格总库（国内）'!A:A,ROW()-8) -> 2019-05-17 | B136: =IF(VLOOKUP($A136,'化工产品价格总库（国内）'!$A$1:$FG$66703,$A$9,0),VLOOKUP($A136,'化工产品价格总库（国内）'!$A$1:$FG$66703,$A$9,0),B137) -> 28000 | J136: 丙烯酸 | K136: 华东地区市场均价（元/吨） | L136: 7322.99 | M136: 7682.95 | N136: 8491.94 | O136: 9351.49 | P136: 8753.70 | Q136: 7703.78 | R136: 7768.39 | S136: 8354.78 | T136: 8358.04 | U136: 7475.24 | V136: 10081.56 | W136: 8570.63 | X136: 6027.12 | Y136: 5471.10 | Z136: 5179.41 | AA136: 4971.87 | AB136: 6085.54 | AC136: 7027.20 | AD136: 6635.68 | AE136: 7928.99 | AF136: 9943.89 | AG136: 10362.12 | AH136: 12212.33 | AI136: 14735.43 | AJ136: 13681.96 | AK136: 10395.82 | AL136: 10333.07 | AM136: 13021.09 | AN136: 11100.00 | AO136: 10845.38 | AP136: 11789.23 | AQ136: 13408.93 | AR136: 19186.14 | AS136: 19537.80 | AT136: 22306.33 | AU136: 22000.00 | AV136: 22000.00 | AW136: 22000.00 | AX136: 22000.00 | AY136: 22000.00 | AZ136: 22000.00 | BA136: 22000.00 | BB136: 22000.00 | BC136: 22000.00 | BD136: 22000.00 | BE136: 22000.00 | BF136: 22000.00 | BG136: 22000.00 | BH136: 22000.00 | BI136: 22000.00 | BJ136: 22000.00 | BK136: 22000.00 | BL136: 22000.00 | BM136: 22000.00 | BN136: 22000.00
A137: =INDEX('化工产品价格总库（国内）'!A:A,ROW()-8) -> 2019-05-16 | B137: =IF(VLOOKUP($A137,'化工产品价格总库（国内）'!$A$1:$FG$66703,$A$9,0),VLOOKUP($A137,'化工产品价格总库（国内）'!$A$1:$FG$66703,$A$9,0),B138) -> 28000 | J137: 丙烯酸乙酯 | K137: 浙江卫星出厂价（元/吨） | L137: 10435.19 | M137: 11649.45 | N137: 11136.67 | O137: 11586.96 | P137: 12721.74 | Q137: 12379.12 | R137: 12068.33 | S137: 12599.46 | T137: 11598.91 | U137: 10057.14 | V137: 11885.56 | W137: 10371.20 | X137: 8528.26 | Y137: 8000.00 | Z137: 8000.00 | AA137: 8031.52 | AB137: 9057.61 | AC137: 10014.29 | AD137: 12066.22 | AE137: 12700.00 | AF137: 12878.26 | AG137: 13506.59 | AH137: 14008.33 | AI137: 14570.65 | AJ137: 14260.87 | AK137: 12847.25 | AL137: 13130.56 | AM137: 14909.42 | AN137: 12530.25 | AO137: 12985.16 | AP137: 13152.20 | AQ137: 13941.67
A138: =INDEX('化工产品价格总库（国内）'!A:A,ROW()-8) -> 2019-05-15 | B138: =IF(VLOOKUP($A138,'化工产品价格总库（国内）'!$A$1:$FG$66703,$A$9,0),VLOOKUP($A138,'化工产品价格总库（国内）'!$A$1:$FG$66703,$A$9,0),B139) -> 28000 | J138: 丙烯酸丁酯 | K138: 浙江卫星出厂价（元/吨） | L138: 9270.99 | M138: 10054.95 | N138: 10543.89 | O138: 10944.57 | P138: 12304.35 | Q138: 11230.22 | R138: 10243.33 | S138: 10462.50 | T138: 11329.89 | U138: 9332.97 | V138: 11996.67 | W138: 10071.20 | X138: 7391.30 | Y138: 7400.00 | Z138: 6668.13 | AA138: 7055.43 | AB138: 8384.78 | AC138: 9117.58 | AD138: 9908.11 | AE138: 10351.32 | AF138: 11682.72 | AG138: 13625.27 | AH138: 13872.22 | AI138: 15539.13 | AJ138: 14731.79 | AK138: 13176.92 | AL138: 13541.39 | AM138: 15440.33 | AN138: 13489.28 | AO138: 13552.60 | AP138: 13513.68 | AQ138: 13000.83
A139: =INDEX('化工产品价格总库（国内）'!A:A,ROW()-8) -> 2019-05-14 | B139: =IF(VLOOKUP($A139,'化工产品价格总库（国内）'!$A$1:$FG$66703,$A$9,0),VLOOKUP($A139,'化工产品价格总库（国内）'!$A$1:$FG$66703,$A$9,0),B140) -> 28000 | J139: 丙烯酸异辛酯 | K139: 浙江卫星出厂价（元/吨） | L139: 10351.85 | M139: 11791.21 | N139: 12596.11 | O139: 12699.46 | P139: 13046.74 | Q139: 12193.41 | R139: 11830.00 | S139: 12092.93 | T139: 12014.67 | U139: 10329.67 | V139: 12502.22 | W139: 10974.46 | X139: 8390.22 | Y139: 8000.00 | Z139: 8000.00 | AA139: 8272.83 | AB139: 9820.65 | AC139: 9801.10 | AD139: 12124.32 | AE139: 13200.00 | AF139: 13351.09 | AG139: 14129.67 | AH139: 14700.93 | AI139: 16255.43 | AJ139: 16068.84 | AK139: 14877.29 | AL139: 15272.59 | AM139: 17463.41 | AN139: 14928.99 | AO139: 15514.56 | AP139: 15381.32 | AQ139: 14841.67
A140: =INDEX('化工产品价格总库（国内）'!A:A,ROW()-8) -> 2019-05-13 | B140: =IF(VLOOKUP($A140,'化工产品价格总库（国内）'!$A$1:$FG$66703,$A$9,0),VLOOKUP($A140,'化工产品价格总库（国内）'!$A$1:$FG$66703,$A$9,0),B141) -> 28000 | J140: 环氧氯丙烷 | K140: 华东地区（元/吨） | L140: 14675.31 | M140: 12604.40 | N140: 11861.11 | O140: 11707.07 | P140: 11706.52 | Q140: 11012.09 | R140: 15867.22 | S140: 14447.83 | T140: 8864.13 | U140: 8420.33 | V140: 8978.89 | W140: 7826.09 | X140: 6893.48 | Y140: 7348.35 | Z140: 7797.80 | AA140: 8330.43 | AB140: 8507.61 | AC140: 9834.07 | AD140: 10566.22 | AE140: 11101.97 | AF140: 11436.41 | AG140: 10296.70 | AH140: 10293.33 | AI140: 10025.82 | AJ140: 9641.03 | AK140: 9597.53 | AL140: 10480.28 | AM140: 10702.17 | AN140: 11096.20 | AO140: 11466.48 | AP140: 13125.27 | AQ140: 12780.43 | AR140: 13611.96 | AS140: 13780.33 | AT140: 15716.67 | AU140: 15023.91 | AV140: 14551.63 | AW140: 15286.81 | AX140: 15578.89 | AY140: 11937.50 | AZ140: 10533.70 | BA140: 10187.91 | BB140: 7934.72 | BC140: 8792.39 | BD140: 13652.72 | BE140: 14717.58 | BF140: 15489.01 | BG140: 18108.70 | BH140: 16604.89 | BI140: 16986.26 | BJ140: 16616.11 | BK140: 22137.50 | BL140: 24498.91 | BM140: 24353.30 | BN140: 19637.22
A141: =INDEX('化工产品价格总库（国内）'!A:A,ROW()-8) -> 2019-05-12 | B141: =IF(VLOOKUP($A141,'化工产品价格总库（国内）'!$A$1:$FG$66703,$A$9,0),VLOOKUP($A141,'化工产品价格总库（国内）'!$A$1:$FG$66703,$A$9,0),B142) -> 28000 | J141: 苯酚 | K141: 华东地区（元/吨） | L141: 7625.00 | M141: 7644.23 | N141: 8594.17 | O141: 10577.17 | P141: 10130.71 | Q141: 9821.98 | R141: 9315.83 | S141: 9045.11 | T141: 7084.24 | U141: 6821.98 | V141: 7625.83 | W141: 7196.74 | X141: 7333.15 | Y141: 6980.77 | Z141: 5903.30 | AA141: 5758.70 | AB141: 6084.24 | AC141: 7248.35 | AD141: 7270.61 | AE141: 9488.16 | AF141: 12035.33 | AG141: 10262.09 | AH141: 9832.22 | AI141: 10386.96 | AJ141: 10001.63 | AK141: 10548.35 | AL141: 11150.00 | AM141: 11088.59 | AN141: 11209.78 | AO141: 10634.07 | AP141: 11078.02 | AQ141: 9709.78 | AR141: 13321.20 | AS141: 14822.53 | AT141: 14279.44 | AU141: 14599.46 | AV141: 14611.41 | AW141: 13351.10 | AX141: 11669.72 | AY141: 9697.28 | AZ141: 7757.07 | BA141: 7213.19 | BB141: 5068.33 | BC141: 7608.70 | BD141: 13827.17 | BE141: 13710.99 | BF141: 13870.88 | BG141: 14851.63 | BH141: 15816.30 | BI141: 15288.46 | BJ141: 14383.33 | BK141: 13339.67 | BL141: 13396.74 | BM141: 12632.97 | BN141: 9246.11
A142: =INDEX('化工产品价格总库（国内）'!A:A,ROW()-8) -> 2019-05-11 | B142: =IF(VLOOKUP($A142,'化工产品价格总库（国内）'!$A$1:$FG$66703,$A$9,0),VLOOKUP($A142,'化工产品价格总库（国内）'!$A$1:$FG$66703,$A$9,0),B143) -> 28000 | J142: 丙酮 | K142: 华东地区高端（元/吨） | L142: 3745.99 | M142: 3060.71 | N142: 3617.50 | O142: 4335.87 | P142: 5099.46 | Q142: 5226.92 | R142: 6002.50 | S142: 6052.72 | T142: 5789.67 | U142: 5730.49 | V142: 7558.33 | W142: 6292.66 | X142: 5523.91 | Y142: 5053.85 | Z142: 3720.44 | AA142: 3515.33 | AB142: 4311.41 | AC142: 5186.81 | AD142: 5505.07 | AE142: 7261.84 | AF142: 8629.13 | AG142: 8441.98 | AH142: 9055.56 | AI142: 9410.33 | AJ142: 8588.59 | AK142: 8599.45 | AL142: 8806.67 | AM142: 8587.50 | AN142: 7785.33 | AO142: 7575.27 | AP142: 7943.96 | AQ142: 7971.20 | AR142: 9422.28 | AS142: 9089.56 | AT142: 7932.78 | AU142: 7009.95 | AV142: 6104.89 | AW142: 7589.56 | AX142: 8680.00 | AY142: 7090.22 | AZ142: 5834.78 | BA142: 6061.54 | BB142: 5024.44 | BC142: 6088.04 | BD142: 9403.80 | BE142: 9171.98 | BF142: 9448.35 | BG142: 9390.22 | BH142: 8982.61 | BI142: 8590.11 | BJ142: 7976.67 | BK142: 7118.04 | BL142: 6780.98 | BM142: 6934.62 | BN142: 6895.56
A143: =INDEX('化工产品价格总库（国内）'!A:A,ROW()-8) -> 2019-05-10 | B143: =IF(VLOOKUP($A143,'化工产品价格总库（国内）'!$A$1:$FG$66703,$A$9,0),VLOOKUP($A143,'化工产品价格总库（国内）'!$A$1:$FG$66703,$A$9,0),B144) -> 28000 | J143: 双酚A | K143: 华东（元/吨） | L143: 9487.96 | M143: 11089.84 | N143: 11960.28 | O143: 12599.18 | P143: 14950.00 | Q143: 14287.36 | R143: 12698.61 | S143: 12037.50 | T143: 9670.11 | U143: 9648.35 | V143: 11314.44 | W143: 9457.61 | X143: 9044.29 | Y143: 8733.52 | Z143: 7356.04 | AA143: 6868.48 | AB143: 7891.58 | AC143: 9873.08 | AD143: 10462.16 | AE143: 13048.36 | AF143: 14987.23 | AG143: 12661.54 | AH143: 12357.22 | AI143: 12257.07 | AJ143: 12525.54 | AK143: 13262.91 | AL143: 14517.22 | AM143: 13459.24 | AN143: 13208.70 | AO143: 12989.01 | AP143: 13373.63 | AQ143: 12748.91 | AR143: 16848.91 | AS143: 19502.20 | AT143: 19678.89 | AU143: 20538.04 | AV143: 17342.39 | AW143: 15731.32 | AX143: 13779.44 | AY143: 11836.41 | AZ143: 10425.00 | BA143: 9185.99 | BB143: 7242.50 | BC143: 9407.07 | BD143: 15591.30 | BE143: 15549.45 | BF143: 16720.33 | BG143: 17547.28 | BH143: 18461.14 | BI143: 18621.98 | BJ143: 16863.33 | BK143: 15479.35 | BL143: 14262.23 | BM143: 12629.67 | BN143: 11795.56
A144: =INDEX('化工产品价格总库（国内）'!A:A,ROW()-8) -> 2019-05-09 | B144: =IF(VLOOKUP($A144,'化工产品价格总库（国内）'!$A$1:$FG$66703,$A$9,0),VLOOKUP($A144,'化工产品价格总库（国内）'!$A$1:$FG$66703,$A$9,0),B145) -> 29000 | J144: PVA | K144: 国内聚乙烯醇（元/吨） | L144: 13550.00 | M144: 13550.00 | N144: 13780.00 | O144: 13938.04 | P144: 13610.87 | Q144: 13598.90 | R144: 13600.00 | S144: 13564.13 | T144: 11754.35 | U144: 12687.91 | V144: 12643.33 | W144: 12181.52 | X144: 11004.35 | Y144: 11474.73 | Z144: 11984.62 | AA144: 12447.83 | AB144: 12500.00 | AC144: 12656.04 | AD144: 13225.68 | AE144: 13369.74 | AF144: 13370.65 | AG144: 13473.63 | AH144: 13424.44 | AI144: 12878.26 | AJ144: 12978.80 | AK144: 13376.37 | AL144: 14143.89 | AM144: 15238.04 | AN144: 15771.20 | AO144: 15867.03 | AP144: 16659.34 | AQ144: 16410.87 | AR144: 16005.98 | AS144: 16215.38 | AT144: 14990.56 | AU144: 15865.22 | AV144: 13078.26 | AW144: 13046.23 | AX144: 11917.36 | AY144: 12035.20 | AZ144: 12388.32 | BA144: 12573.66 | BB144: 12434.79 | BC144: 18140.76 | BD144: 20373.91 | BE144: 20808.92 | BF144: 16841.30 | BG144: 14200.00 | BH144: 14200.00 | BI144: 14947.25 | BJ144: 15257.78 | BK144: 15181.52 | BL144: 15200.00 | BM144: 14884.62 | BN144: 14225.81
A145: =INDEX('化工产品价格总库（国内）'!A:A,ROW()-8) -> 2019-05-08 | B145: =IF(VLOOKUP($A145,'化工产品价格总库（国内）'!$A$1:$FG$66703,$A$9,0),VLOOKUP($A145,'化工产品价格总库（国内）'!$A$1:$FG$66703,$A$9,0),B146) -> 29000 | J145: 甲醇 | K145: 华东地区（元/吨） | L145: 2111.73 | M145: 2342.14 | N145: 2460.06 | O145: 2859.24 | P145: 3257.66 | Q145: 3115.05 | R145: 3177.11 | S145: 3110.92 | T145: 2594.29 | U145: 2439.34 | V145: 2954.72 | W145: 2530.05 | X145: 1882.01 | Y145: 1887.86 | Z145: 1819.67 | AA145: 1873.32 | AB145: 2087.28 | AC145: 2467.20 | AD145: 2177.16 | AE145: 2440.53 | AF145: 2601.74 | AG145: 2680.99 | AH145: 2922.78 | AI145: 3416.09 | AJ145: 2902.12 | AK145: 2680.93 | AL145: 2826.94 | AM145: 2823.42 | AN145: 2852.28 | AO145: 2973.41 | AP145: 2849.78 | AQ145: 2979.35 | AR145: 2902.74 | AS145: 2728.24 | AT145: 2608.17 | AU145: 2940.16 | AV145: 2303.37 | AW145: 2217.53 | AX145: 2518.83 | AY145: 2256.79 | AZ145: 1948.10 | BA145: 1950.22 | BB145: 1725.78 | BC145: 2023.10 | BD145: 3510.33 | BE145: 3945.55 | BF145: 3164.40 | BG145: 3710.87 | BH145: 2754.51 | BI145: 2349.34 | BJ145: 3144.89 | BK145: 3657.88 | BL145: 2843.64 | BM145: 2574.62 | BN145: 2549.11
A146: =INDEX('化工产品价格总库（国内）'!A:A,ROW()-8) -> 2019-05-07 | B146: =IF(VLOOKUP($A146,'化工产品价格总库（国内）'!$A$1:$FG$66703,$A$9,0),VLOOKUP($A146,'化工产品价格总库（国内）'!$A$1:$FG$66703,$A$9,0),B147) -> 29000 | J146: 醋酸 | K146: 华东地区（元/吨） | L146: 3119.51 | M146: 2684.73 | N146: 3117.56 | O146: 4361.41 | P146: 4406.52 | Q146: 4957.14 | R146: 4543.89 | S146: 3869.13 | T146: 2867.17 | U146: 2694.84 | V146: 2731.11 | W146: 2503.70 | X146: 1794.35 | Y146: 1907.25 | Z146: 1735.16 | AA146: 1870.65 | AB146: 2247.07 | AC146: 2589.56 | AD146: 2495.95 | AE146: 3157.24 | AF146: 3871.74 | AG146: 3578.57 | AH146: 3196.11 | AI146: 3147.83 | AJ146: 2810.11 | AK146: 2949.73 | AL146: 2898.89 | AM146: 3018.79 | AN146: 2991.30 | AO146: 3156.59 | AP146: 2903.30 | AQ146: 3360.60 | AR146: 3712.50 | AS146: 3994.51 | AT146: 3168.06 | AU146: 3065.22 | AV146: 2798.37 | AW146: 2904.40 | AX146: 3029.44 | AY146: 3017.12 | AZ146: 2987.50 | BA146: 3255.77 | BB146: 2746.39 | BC146: 3244.02 | BD146: 5207.88 | BE146: 5994.51 | BF146: 5458.79 | BG146: 6151.63 | BH146: 6181.52 | BI146: 6862.64 | BJ146: 5991.94 | BK146: 5198.91 | BL146: 4905.43 | BM146: 5283.52 | BN146: 5470.00
A147: =INDEX('化工产品价格总库（国内）'!A:A,ROW()-8) -> 2019-05-06 | B147: =IF(VLOOKUP($A147,'化工产品价格总库（国内）'!$A$1:$FG$66703,$A$9,0),VLOOKUP($A147,'化工产品价格总库（国内）'!$A$1:$FG$66703,$A$9,0),B148) -> 29000 | J147: 醋酸酐 | K147: 华东地区（元/吨） | L147: 6208.02 | M147: 5368.68 | N147: 6180.00 | O147: 7280.43 | P147: 7194.02 | Q147: 8293.41 | R147: 8066.67 | S147: 6873.91 | T147: 5072.28 | U147: 5387.91 | V147: 5207.78 | W147: 5366.30 | X147: 5892.39 | Y147: 4893.41 | Z147: 5057.14 | AA147: 5486.96 | AB147: 5880.43 | AC147: 6181.32 | AD147: 6074.32 | AE147: 6630.26 | AF147: 6826.63 | AG147: 5700.00 | AH147: 5658.89 | AI147: 5478.26 | AJ147: 5405.43 | AK147: 5269.23 | AL147: 5086.67 | AM147: 5127.72 | AN147: 5250.00 | AO147: 5250.00 | AP147: 5250.00 | AQ147: 5488.04 | AR147: 5476.63 | AS147: 6434.07 | AT147: 5086.11 | AU147: 5421.74 | AV147: 5159.24 | AW147: 5563.74 | AX147: 5407.78 | AY147: 5144.29 | AZ147: 5422.28 | BA147: 6041.21 | BB147: 5196.67 | BC147: 5755.43 | BD147: 9153.80 | BE147: 12512.09 | BF147: 10608.79 | BG147: 11983.15 | BH147: 11590.22 | BI147: 10935.16 | BJ147: 10518.22 | BK147: 10356.96 | BL147: 10776.41 | BM147: 10047.25 | BN147: 10313.22
A148: =INDEX('化工产品价格总库（国内）'!A:A,ROW()-8) -> 2019-05-05 | B148: =IF(VLOOKUP($A148,'化工产品价格总库（国内）'!$A$1:$FG$66703,$A$9,0),VLOOKUP($A148,'化工产品价格总库（国内）'!$A$1:$FG$66703,$A$9,0),B149) -> 29000 | J148: 乙醇 | K148: 食用酒精华东地区（元/吨） | L148: 5425.93 | M148: 5371.98 | N148: 5353.67 | O148: 5620.71 | P148: 5498.91 | Q148: 5430.22 | R148: 5494.44 | S148: 5647.01 | T148: 4890.22 | U148: 4625.27 | V148: 4900.56 | W148: 4818.48 | X148: 4650.54 | Y148: 4711.54 | Z148: 5001.65 | AA148: 5345.11 | AB148: 5571.20 | AC148: 5900.00 | AD148: 5968.24 | AE148: 5991.58 | AF148: 5530.00 | AG148: 5512.86 | AH148: 5816.00 | AI148: 5987.93 | AJ148: 5845.98 | AK148: 5994.07 | AL148: 6222.67 | AM148: 6383.15 | AN148: 6407.50 | AO148: 6509.01 | AP148: 6723.96 | AQ148: 7235.33 | AR148: 7469.35 | AS148: 7267.03 | AT148: 7048.89 | AU148: 6622.28 | AV148: 6045.11 | AW148: 5712.09 | AX148: 5703.33 | AY148: 5277.72 | AZ148: 4581.79 | BA148: 4101.92 | BB148: 4002.78 | BC148: 4405.71 | BD148: 5333.97 | BE148: 5438.19 | BF148: 5258.79 | BG148: 5298.37 | BH148: 4690.71 | BI148: 4731.54 | BJ148: 4700.00 | BK148: 5248.37 | BL148: 5234.78 | BM148: 4959.01 | BN148: 5008.00
A149: =INDEX('化工产品价格总库（国内）'!A:A,ROW()-8) -> 2019-05-04 | B149: =IF(VLOOKUP($A149,'化工产品价格总库（国内）'!$A$1:$FG$66703,$A$9,0),VLOOKUP($A149,'化工产品价格总库（国内）'!$A$1:$FG$66703,$A$9,0),B150) -> 29000 | J149: 二乙二醇 | K149: 华东地区市场均价（元/吨） | L149: 4474.03 | M149: 4502.04 | N149: 5106.22 | O149: 6466.80 | P149: 7495.83 | Q149: 7438.70 | R149: 7746.81 | S149: 7006.61 | T149: 6476.02 | U149: 6039.26 | V149: 6897.17 | W149: 6236.57 | X149: 5260.56 | Y149: 4660.40 | Z149: 4720.22 | AA149: 4050.38 | AB149: 4936.23 | AC149: 6998.68 | AD149: 6608.51 | AE149: 7323.59 | AF149: 9338.93 | AG149: 9414.11 | AH149: 8662.77 | AI149: 8618.60 | AJ149: 8226.29 | AK149: 7845.86 | AL149: 8555.79 | AM149: 8491.30 | AN149: 7109.19 | AO149: 6207.12 | AP149: 6593.54 | AQ149: 7714.24 | AR149: 9076.29 | AS149: 9393.37 | AT149: 10375.17 | AU149: 10460.33 | AV149: 8908.29 | AW149: 8825.75 | AX149: 8466.00 | AY149: 6506.77 | AZ149: 5290.74 | BA149: 4845.24 | BB149: 5218.44 | BC149: 5705.76 | BD149: 8316.05 | BE149: 9063.41 | BF149: 10138.32 | BG149: 11150.05 | BH149: 9969.14 | BI149: 9300.00 | BJ149: 10372.00 | BK149: 10486.74 | BL149: 9719.46 | BM149: 7205.71 | BN149: 6481.36
A150: =INDEX('化工产品价格总库（国内）'!A:A,ROW()-8) -> 2019-05-03 | B150: =IF(VLOOKUP($A150,'化工产品价格总库（国内）'!$A$1:$FG$66703,$A$9,0),VLOOKUP($A150,'化工产品价格总库（国内）'!$A$1:$FG$66703,$A$9,0),B151) -> 29000 | J150: 季戊四醇 | K150: 淄博(95%)（元/吨） | L150: 10204.94 | M150: 10879.12 | N150: 11317.78 | O150: 12059.78 | P150: 11500.00 | Q150: 11648.35 | R150: 11911.11 | S150: 11339.13 | T150: 10458.70 | U150: 10000.00 | V150: 10000.00 | W150: 9882.61 | X150: 9800.00 | Y150: 9800.00 | Z150: 9800.00 | AA150: 9800.00 | AB150: 9800.00 | AC150: 10547.25 | AD150: 10800.00 | AE150: 11280.26 | AF150: 10430.43 | AG150: 10385.71 | AH150: 10400.00 | AI150: 8706.52 | AJ150: 8864.13 | AK150: 9100.00 | AL150: 9066.67 | AM150: 9000.00 | AN150: 9000.00 | AO150: 9314.29 | AP150: 7310.99 | AQ150: 6800.00 | AR150: 6800.00 | AS150: 6800.00 | AT150: 6800.00 | AU150: 6800.00 | AV150: 6800.00 | AW150: 6800.00 | AX150: 6800.00 | AY150: 9206.52 | AZ150: 12200.00 | BA150: 11730.77 | BB150: 11896.67 | BC150: 12321.74 | BD150: 12375.54 | BE150: 12215.35 | BF150: 12510.64 | BG150: 12234.78 | BH150: 11117.39 | BI150: 9931.32 | BJ150: 9737.36 | BK150: 9416.22 | BL150: 8455.17 | BM150: 7605.16 | BN150: 7905.48
A151: =INDEX('化工产品价格总库（国内）'!A:A,ROW()-8) -> 2019-05-02 | B151: =IF(VLOOKUP($A151,'化工产品价格总库（国内）'!$A$1:$FG$66703,$A$9,0),VLOOKUP($A151,'化工产品价格总库（国内）'!$A$1:$FG$66703,$A$9,0),B152) -> 29000 | J151: DOP | K151: 市场均价（元/吨） | L151: 8416.67 | M151: 8416.67 | N151: 8502.37 | O151: 9423.42 | P151: 9258.07 | Q151: 8722.01 | R151: 8842.63 | S151: 8788.12 | T151: 8863.06 | U151: 8034.11 | V151: 8482.38 | W151: 8224.49 | X151: 6855.17 | Y151: 6734.51 | Z151: 6221.47 | AA151: 6235.04 | AB151: 7688.09 | AC151: 8668.46 | AD151: 8193.75 | AE151: 9707.13 | AF151: 10716.98 | AG151: 10351.36 | AH151: 10634.78 | AI151: 10985.00 | AJ151: 11493.04 | AK151: 11774.36 | AL151: 12870.59 | AM151: 12983.80 | AN151: 13109.71 | AO151: 12608.63 | AP151: 13009.58 | AQ151: 12858.87 | AR151: 13910.48 | AS151: 13889.63 | AT151: 14280.38 | AU151: 13962.34 | AV151: 12789.78 | AW151: 13837.16 | AX151: 13674.09 | AY151: 10551.96 | AZ151: 9932.07 | BA151: 9539.90 | BB151: 8454.13 | BC151: 9024.53 | BD151: 16079.76 | BE151: 15912.15 | BF151: 14219.25 | BG151: 14314.33 | BH151: 14711.17 | BI151: 14921.81 | BJ151: 14834.33 | BK151: 12288.41 | BL151: 12494.09 | BM151: 10778.52 | BN151: 10127.50
A152: =INDEX('化工产品价格总库（国内）'!A:A,ROW()-8) -> 2019-05-01 | B152: =IF(VLOOKUP($A152,'化工产品价格总库（国内）'!$A$1:$FG$66703,$A$9,0),VLOOKUP($A152,'化工产品价格总库（国内）'!$A$1:$FG$66703,$A$9,0),B153) -> 29000 | J152: 正丁醇 | K152: 华东地区市场均价（元/吨） | L152: 6555.39 | M152: 6686.09 | N152: 7032.36 | O152: 7238.37 | P152: 8090.43 | Q152: 8149.33 | R152: 7249.05 | S152: 7147.20 | T152: 7481.26 | U152: 6108.33 | V152: 6500.47 | W152: 6301.59 | X152: 5367.03 | Y152: 5006.43 | Z152: 4775.29 | AA152: 4392.17 | AB152: 5824.23 | AC152: 7034.54 | AD152: 6725.56 | AE152: 8207.24 | AF152: 8983.97 | AG152: 8519.79 | AH152: 8562.33 | AI152: 8915.87 | AJ152: 9100.44 | AK152: 10340.55 | AL152: 11457.91 | AM152: 11310.76 | AN152: 10509.49 | AO152: 10363.59 | AP152: 10431.67 | AQ152: 10277.59 | AR152: 12475.00 | AS152: 12795.86 | AT152: 13757.22 | AU152: 13563.80 | AV152: 11888.97 | AW152: 12859.34 | AX152: 13490.96 | AY152: 10138.64 | AZ152: 8883.96 | BA152: 7955.05 | BB152: 6940.44 | BC152: 8270.87 | BD152: 15241.74 | BE152: 15622.89 | BF152: 13602.89 | BG152: 13782.03 | BH152: 13392.43 | BI152: 14527.85 | BJ152: 15085.22 | BK152: 14939.46 | BL152: 15179.02 | BM152: 11029.45 | BN152: 9261.11
A153: =INDEX('化工产品价格总库（国内）'!A:A,ROW()-8) -> 2019-04-30 | B153: =IF(VLOOKUP($A153,'化工产品价格总库（国内）'!$A$1:$FG$66703,$A$9,0),VLOOKUP($A153,'化工产品价格总库（国内）'!$A$1:$FG$66703,$A$9,0),B154) -> 29000 | J153: 辛醇 | K153: 华东地区市场均价（元/吨） | L153: 7460.93 | M153: 7504.07 | N153: 8022.73 | O153: 9214.26 | P153: 9194.02 | Q153: 8628.81 | R153: 8381.50 | S153: 8366.85 | T153: 8548.93 | U153: 7380.57 | V153: 7793.98 | W153: 7294.09 | X153: 6500.70 | Y153: 6201.56 | Z153: 5553.86 | AA153: 5399.08 | AB153: 7173.17 | AC153: 8020.21 | AD153: 7924.89 | AE153: 9349.29 | AF153: 10251.19 | AG153: 9790.60 | AH153: 9828.17 | AI153: 10271.85 | AJ153: 10796.41 | AK153: 10840.00 | AL153: 11951.06 | AM153: 12389.13 | AN153: 12876.29 | AO153: 11930.58 | AP153: 12164.27 | AQ153: 11891.96 | AR153: 14349.27 | AS153: 14584.56 | AT153: 15205.81 | AU153: 14880.71 | AV153: 13660.65 | AW153: 14985.57 | AX153: 13994.18 | AY153: 10625.05 | AZ153: 9818.70 | BA153: 9019.34 | BB153: 7981.15 | BC153: 8803.91 | BD153: 17227.83 | BE153: 17079.82 | BF153: 15051.14 | BG153: 15005.18 | BH153: 15136.38 | BI153: 15494.76 | BJ153: 15159.11 | BK153: 15102.72 | BL153: 14463.91 | BM153: 11474.07 | BN153: 9927.78
A154: =INDEX('化工产品价格总库（国内）'!A:A,ROW()-8) -> 2019-04-29 | B154: =IF(VLOOKUP($A154,'化工产品价格总库（国内）'!$A$1:$FG$66703,$A$9,0),VLOOKUP($A154,'化工产品价格总库（国内）'!$A$1:$FG$66703,$A$9,0),B155) -> 29000 | J154: 苯酐 | K154: 华东地区市场均价（元/吨） | L154: 5902.22 | M154: 6162.60 | N154: 6947.97 | O154: 7652.32 | P154: 7367.97 | Q154: 7165.61 | R154: 7305.69 | S154: 7447.50 | T154: 6619.02 | U154: 6925.59 | V154: 7486.26 | W154: 7744.65 | X154: 6125.34 | Y154: 6146.98 | Z154: 5510.33 | AA154: 5346.27 | AB154: 6022.68 | AC154: 7360.25 | AD154: 6596.17 | AE154: 7533.40 | AF154: 8947.60 | AG154: 8960.04 | AH154: 9610.44 | AI154: 10386.96 | AJ154: 10543.91 | AK154: 10346.96 | AL154: 11402.17 | AM154: 10972.37 | AN154: 11223.69 | AO154: 10857.12 | AP154: 11879.07 | AQ154: 11369.96 | AR154: 10404.27 | AS154: 9698.92 | AT154: 9742.55 | AU154: 9079.84 | AV154: 8063.15 | AW154: 8904.24 | AX154: 9358.47 | AY154: 8422.53 | AZ154: 8185.35 | BA154: 7925.64 | BB154: 7012.48 | BC154: 6660.75 | BD154: 10545.24 | BE154: 10791.42 | BF154: 10555.55 | BG154: 11239.51 | BH154: 11243.26 | BI154: 11234.23 | BJ154: 11162.00 | BK154: 10699.37 | BL154: 13073.93 | BM154: 10114.40 | BN154: 8623.47
A155: =INDEX('化工产品价格总库（国内）'!A:A,ROW()-8) -> 2019-04-28 | B155: =IF(VLOOKUP($A155,'化工产品价格总库（国内）'!$A$1:$FG$66703,$A$9,0),VLOOKUP($A155,'化工产品价格总库（国内）'!$A$1:$FG$66703,$A$9,0),B156) -> 29000 | J155: 钛精矿 | K155: 四川攀钢（元/吨） | L155: 1231.11 | M155: 1246.92 | N155: 1274.44 | O155: 1285.65 | P155: 1250.00 | Q155: 1343.96 | R155: 1400.00 | S155: 1534.78 | T155: 1511.96 | U155: 1881.54 | V155: 1548.89 | W155: 1095.00 | X155: 857.83 | Y155: 678.35 | Z155: 640.11 | AA155: 640.00 | AB155: 640.00 | AC155: 640.00 | AD155: 640.00 | AE155: 734.08 | AF155: 750.00 | AG155: 750.00 | AH155: 834.44 | AI155: 1031.52 | AJ155: 1001.09 | AK155: 1234.40 | AL155: 1492.22 | AM155: 1826.90 | AN155: 2046.74 | AO155: 2121.98 | AP155: 2498.90 | AQ155: 1648.37 | AR155: 2269.57 | AS155: 1786.15 | AT155: 1110.89 | AU155: 860.49 | AV155: 825.00 | AW155: 808.79 | AX155: 619.11 | AY155: 540.76 | AZ155: 462.61 | BA155: 460.00 | BB155: 460.00 | BC155: 487.83 | BD155: 514.02 | BE155: 530.00 | BF155: 545.82 | BG155: 560.00 | BH155: 560.00 | BI155: 560.00 | BJ155: 560.00 | BK155: 560.00 | BL155: 560.00 | BM155: 521.10 | BN155: 500.00
A156: =INDEX('化工产品价格总库（国内）'!A:A,ROW()-8) -> 2019-04-27 | B156: =IF(VLOOKUP($A156,'化工产品价格总库（国内）'!$A$1:$FG$66703,$A$9,0),VLOOKUP($A156,'化工产品价格总库（国内）'!$A$1:$FG$66703,$A$9,0),B157) -> 29000 | J156: 钛白粉 | K156: 锐钛型NA100南京钛白(元/吨) | L156: 12583.95 | M156: 12758.24 | N156: 12711.11 | O156: 12903.80 | P156: 13750.00 | Q156: 14258.24 | R156: 14336.67 | S156: 14517.72 | T156: 14497.83 | U156: 15895.05 | V156: 14771.11 | W156: 11498.37 | X156: 9578.26 | Y156: 9840.11 | Z156: 8940.66 | AA156: 9152.72 | AB156: 10280.98 | AC156: 12303.30 | AD156: 11770.27 | AE156: 12060.53 | AF156: 12400.00 | AG156: 12550.55 | AH156: 12417.78 | AI156: 12943.48 | AJ156: 12978.26 | AK156: 13843.96 | AL156: 14366.67 | AM156: 15247.83 | AN156: 16032.61 | AO156: 17557.14 | AP156: 18500.00 | AQ156: 18500.00 | AR156: 19115.22 | AS156: 19274.73 | AT156: 15344.44 | AU156: 11982.61 | AV156: 12002.17 | AW156: 11665.93 | AX156: 11257.78 | AY156: 12260.87 | AZ156: 11239.13 | BA156: 12615.38 | BB156: 11626.67 | BC156: 12340.22 | BD156: 14254.35 | BE156: 14137.36 | BF156: 12871.43 | BG156: 11476.09 | BH156: 12546.74 | BI156: 12820.88 | BJ156: 12266.11 | BK156: 12132.61 | BL156: 12100.00 | BM156: 12100.00 | BN156: 11700.00
A157: =INDEX('化工产品价格总库（国内）'!A:A,ROW()-8) -> 2019-04-26 | B157: =IF(VLOOKUP($A157,'化工产品价格总库（国内）'!$A$1:$FG$66703,$A$9,0),VLOOKUP($A157,'化工产品价格总库（国内）'!$A$1:$FG$66703,$A$9,0),B158) -> 29000 | J157: 钛白粉 | K157: 金红石型R-248攀钢钛业(元/吨) | L157: 14941.98 | M157: 15545.60 | N157: 15606.11 | O157: 16296.20 | P157: 16650.00 | Q157: 16941.21 | R157: 16908.33 | S157: 17135.33 | T157: 17032.61 | U157: 18270.88 | V157: 16506.11 | W157: 14011.41 | X157: 12546.20 | Y157: 11391.21 | Z157: 10090.66 | AA157: 10212.50 | AB157: 11810.33 | AC157: 13993.41 | AD157: 14032.43 | AE157: 15157.89 | AF157: 15555.43 | AG157: 15500.00 | AH157: 16177.78 | AI157: 16500.00 | AJ157: 16500.00 | AK157: 16730.77 | AL157: 17438.89 | AM157: 18836.96 | AN157: 20043.48 | AO157: 21021.98 | AP157: 21131.87 | AQ157: 18591.30 | AR157: 22330.43 | AS157: 22871.43 | AT157: 18350.00 | AU157: 16538.04 | AV157: 14778.26 | AW157: 13800.00 | AX157: 13325.56
A158: =INDEX('化工产品价格总库（国内）'!A:A,ROW()-8) -> 2019-04-25 | B158: =IF(VLOOKUP($A158,'化工产品价格总库（国内）'!$A$1:$FG$66703,$A$9,0),VLOOKUP($A158,'化工产品价格总库（国内）'!$A$1:$FG$66703,$A$9,0),B159) -> 29000 | J158: 二甲醚 | K158: 河南（元/吨） | L158: 3085.56 | M158: 3238.79 | N158: 3305.00 | O158: 4052.72 | P158: 4083.48 | Q158: 3902.27 | R158: 3977.44 | S158: 4358.59 | T158: 3448.59 | U158: 3517.80 | V158: 3807.78 | W158: 3469.24 | X158: 2571.52 | Y158: 2677.36 | Z158: 2496.81 | AA158: 2683.80 | AB158: 2993.48 | AC158: 3266.15 | AD158: 2951.76 | AE158: 3446.58 | AF158: 3545.87 | AG158: 3606.15 | AH158: 3965.56 | AI158: 4499.57 | AJ158: 3769.89 | AK158: 3526.70 | AL158: 3739.22 | AM158: 3968.04 | AN158: 4112.72 | AO158: 4281.32 | AP158: 4165.38 | AQ158: 4656.74 | AR158: 4528.26 | AS158: 4678.02 | AT158: 4723.33 | AU158: 4680.43 | AV158: 3558.37 | AW158: 3306.59 | AX158: 3878.89 | AY158: 3299.46 | AZ158: 2911.96 | BA158: 2802.39 | BB158: 3039.06 | BC158: 4735.22 | BD158: 5328.36 | BE158: 4881.32 | BF158: 4343.63 | BG158: 0.00 | BH158: 0.00 | BI158: 0.00 | BJ158: 0.00 | BK158: 0.00 | BL158: 0.00 | BM158: 0.00 | BN158: 0.00
A159: =INDEX('化工产品价格总库（国内）'!A:A,ROW()-8) -> 2019-04-24 | B159: =IF(VLOOKUP($A159,'化工产品价格总库（国内）'!$A$1:$FG$66703,$A$9,0),VLOOKUP($A159,'化工产品价格总库（国内）'!$A$1:$FG$66703,$A$9,0),B160) -> 29000 | J159: 甲醛 | K159: 华东（元/吨） | L159: 1389.51 | M159: 1515.93 | N159: 1515.56 | O159: 1762.50 | P159: 1722.28 | Q159: 1737.58 | R159: 1802.89 | S159: 1650.87 | T159: 1525.00 | U159: 1574.18 | V159: 1650.00 | W159: 1477.83 | X159: 1281.96 | Y159: 1326.92 | Z159: 1300.00 | AA159: 1360.33 | AB159: 1434.78 | AC159: 1508.24 | AD159: 1449.32 | AE159: 1496.05 | AF159: 1536.41 | AG159: 1570.88 | AH159: 1625.67 | AI159: 1747.83 | AJ159: 1572.07 | AK159: 1547.25 | AL159: 1546.67 | AM159: 1589.13 | AN159: 1580.00 | AO159: 1580.00 | AP159: 1590.99 | AQ159: 1698.91 | AR159: 1642.28 | AS159: 1582.53 | AT159: 1421.11 | AU159: 1517.93 | AV159: 1273.37 | AW159: 1259.89 | AX159: 1192.44 | AY159: 1100.00 | AZ159: 1052.17 | BA159: 1088.13 | BB159: 992.44 | BC159: 1312.39 | BD159: 1794.89 | BE159: 2101.32 | BF159: 1735.49 | BG159: 1726.09 | BH159: 1690.71 | BI159: 1888.19 | BJ159: 1958.61 | BK159: 1786.85 | BL159: 1576.68 | BM159: 1459.67 | BN159: 1456.14
A160: =INDEX('化工产品价格总库（国内）'!A:A,ROW()-8) -> 2019-04-23 | B160: =IF(VLOOKUP($A160,'化工产品价格总库（国内）'!$A$1:$FG$66703,$A$9,0),VLOOKUP($A160,'化工产品价格总库（国内）'!$A$1:$FG$66703,$A$9,0),B161) -> 29000 | J160: 醋酸乙烯 | K160: 华东（元/吨） | L160: 6386.42 | M160: 7117.58 | N160: 7248.89 | O160: 8229.35 | P160: 7803.26 | Q160: 7400.00 | R160: 7305.56 | S160: 6514.13 | T160: 6371.74 | U160: 5923.63 | V160: 5770.56 | W160: 5709.78 | X160: 5560.87 | Y160: 5975.82 | Z160: 5457.69 | AA160: 5450.00 | AB160: 6183.15 | AC160: 6842.31 | AD160: 6236.49 | AE160: 7178.95 | AF160: 7647.83 | AG160: 7675.82 | AH160: 7056.67 | AI160: 6792.39 | AJ160: 6866.30 | AK160: 6852.75 | AL160: 7037.78 | AM160: 7352.17 | AN160: 7191.30 | AO160: 7190.44 | AP160: 7338.02 | AQ160: 7867.93 | AR160: 8642.39 | AS160: 8943.96 | AT160: 7497.78 | AU160: 8194.02 | AV160: 6735.11 | AW160: 6918.79 | AX160: 6912.78 | AY160: 6738.59 | AZ160: 6383.70 | BA160: 7221.43 | BB160: 7037.22 | BC160: 7154.35 | BD160: 10342.39 | BE160: 11591.21 | BF160: 12577.47 | BG160: 14173.91 | BH160: 12547.28 | BI160: 10013.74 | BJ160: 10082.78 | BK160: 9752.72 | BL160: 9647.28 | BM160: 9639.01 | BN160: 9282.22
A161: =INDEX('化工产品价格总库（国内）'!A:A,ROW()-8) -> 2019-04-22 | B161: =IF(VLOOKUP($A161,'化工产品价格总库（国内）'!$A$1:$FG$66703,$A$9,0),VLOOKUP($A161,'化工产品价格总库（国内）'!$A$1:$FG$66703,$A$9,0),B162) -> 29000 | J161: 煤焦油 | K161: 江苏工厂（元/吨） | L161: 2869.75 | M161: 3314.29 | N161: 3400.00 | O161: 3708.26 | P161: 3411.63 | Q161: 3429.56 | R161: 3408.78 | S161: 3787.83 | T161: 2921.96 | U161: 2835.16 | V161: 2887.22 | W161: 1889.13 | X161: 1720.11 | Y161: 1707.58 | Z161: 1442.53 | AA161: 1503.48 | AB161: 1767.72 | AC161: 2087.36 | AD161: 2027.70 | AE161: 2250.66 | AF161: 2673.37 | AG161: 2786.81 | AH161: 2873.33 | AI161: 2764.67 | AJ161: 2722.28 | AK161: 2856.59 | AL161: 2897.78 | AM161: 2789.67 | AN161: 2648.37 | AO161: 2798.35 | AP161: 2797.80 | AQ161: 2616.85 | AR161: 3009.24 | AS161: 3304.95 | AT161: 3528.89 | AU161: 3435.87 | AV161: 3216.30 | AW161: 3213.74 | AX161: 2828.89 | AY161: 2636.41 | AZ161: 2296.74 | BA161: 2445.05 | BB161: 1686.67 | BC161: 2219.57 | BD161: 3421.74 | BE161: 3029.12 | BF161: 2450.55 | BG161: 2329.89 | BH161: 2217.39 | BI161: 2400.00 | BJ161: 2294.56 | BK161: 1895.87 | BL161: 2822.83 | BM161: 2733.52 | BN161: 2323.33
A162: =INDEX('化工产品价格总库（国内）'!A:A,ROW()-8) -> 2019-04-21 | B162: =IF(VLOOKUP($A162,'化工产品价格总库（国内）'!$A$1:$FG$66703,$A$9,0),VLOOKUP($A162,'化工产品价格总库（国内）'!$A$1:$FG$66703,$A$9,0),B163) -> 29000 | J162: 电池级碳酸锂 | K162: 四川99.5%min | L162: 66598.77 | M162: 76406.59 | N162: 78466.67 | O162: 80380.43 | P162: 99173.91 | Q162: 145741.76 | R162: 162466.67 | S162: 173505.43 | T162: 153592.39 | U162: 135247.25 | V162: 130633.33 | W162: 130375.00 | X162: 138937.50 | Y162: 166865.93 | Z162: 138050.55 | AA162: 70061.96 | AB162: 49491.30 | AC162: 47341.76 | AD162: 43539.19 | AE162: 40805.26 | AF162: 39186.96 | AG162: 38901.10 | AH162: 38416.67 | AI162: 40445.65 | AJ162: 42698.37 | AK162: 44000.00 | AL162: 44000.00 | AM162: 44000.00 | AN162: 44000.00 | AO162: 44265.93 | AP162: 44673.63 | AQ162: 45041.30 | AR162: 41141.85 | AS162: 35362.64 | AT162: 35000.00 | AU162: 37472.83 | AV162: 41385.87 | AW162: 43000.00 | AX162: 43038.89 | AY162: 44826.09 | AZ162: 45000.00 | BA162: 20934.07 | BB162: 0.00 | BC162: 0.00 | BD162: 0.00 | BE162: 0.00 | BF162: 0.00 | BG162: 0.00 | BH162: 0.00 | BI162: 0.00 | BJ162: 0.00 | BK162: 0.00
A163: =INDEX('化工产品价格总库（国内）'!A:A,ROW()-8) -> 2019-04-20 | B163: =IF(VLOOKUP($A163,'化工产品价格总库（国内）'!$A$1:$FG$66703,$A$9,0),VLOOKUP($A163,'化工产品价格总库（国内）'!$A$1:$FG$66703,$A$9,0),B164) -> 29000 | J163: 工业级碳酸锂 | K163: 四川99.0%min | L163: 58765.43 | M163: 66884.62 | N163: 67355.56 | O163: 70929.35 | P163: 88722.83 | Q163: 136032.97 | R163: 148650.00 | S163: 152804.35 | T163: 131543.48 | U163: 120796.70 | V163: 120288.89 | W163: 113190.22 | X163: 117956.52 | Y163: 144446.15 | Z163: 134160.44 | AA163: 68567.39 | AB163: 47491.30 | AC163: 45341.76 | AD163: 41533.78 | AE163: 38805.26 | AF163: 37156.52 | AG163: 37107.14 | AH163: 37305.56 | AI163: 37597.83 | AJ163: 39285.33 | AK163: 41000.00 | AL163: 41000.00 | AM163: 41000.00 | AN163: 41000.00 | AO163: 40296.70 | AP163: 39233.52 | AQ163: 40185.87 | AR163: 37889.13 | AS163: 34983.52 | AT163: 34927.78 | AU163: 33668.48 | AV163: 36081.52 | AW163: 37796.70 | AX163: 37116.67 | AY163: 37000.00 | AZ163: 37000.00 | BA163: 38670.33 | BB163: 38422.22 | BC163: 43315.22 | BD163: 55293.48 | BE163: 52505.49 | BF163: 7620.88 | BG163: 0.00 | BH163: 0.00 | BI163: 0.00 | BJ163: 0.00 | BK163: 0.00
A164: =INDEX('化工产品价格总库（国内）'!A:A,ROW()-8) -> 2019-04-19 | B164: =IF(VLOOKUP($A164,'化工产品价格总库（国内）'!$A$1:$FG$66703,$A$9,0),VLOOKUP($A164,'化工产品价格总库（国内）'!$A$1:$FG$66703,$A$9,0),B165) -> 29000 | J164: 炭黑 | K164: 江西黑豹N330（元/吨） | L164: 6190.12 | M164: 7259.34 | N164: 7200.00 | O164: 7382.61 | P164: 7731.52 | Q164: 8500.00 | R164: 8500.00 | S164: 7632.61 | T164: 6729.35 | U164: 6900.00 | V164: 6178.89 | W164: 4731.52 | X164: 4391.30 | Y164: 4230.77 | Z164: 4200.00 | AA164: 4656.52 | AB164: 5110.87 | AC164: 5300.00 | AD164: 5308.11 | AE164: 5997.37 | AF164: 6200.00 | AG164: 6200.00 | AH164: 6200.00 | AI164: 6569.57 | AJ164: 6600.00 | AK164: 6600.00
A165: =INDEX('化工产品价格总库（国内）'!A:A,ROW()-8) -> 2019-04-18 | B165: =IF(VLOOKUP($A165,'化工产品价格总库（国内）'!$A$1:$FG$66703,$A$9,0),VLOOKUP($A165,'化工产品价格总库（国内）'!$A$1:$FG$66703,$A$9,0),B166) -> 29000 | J165: 焦炭 | K165: 山西市场价格（元/吨） | L165: 1795.37 | M165: 1865.66 | N165: 1886.11 | O165: 2276.09 | P165: 2154.46 | Q165: 1770.05 | R165: 1856.67 | S165: 1816.85 | T165: 1791.25 | U165: 1611.92 | V165: 1600.00 | W165: 1678.59 | X165: 945.22 | Y165: 771.32 | Z165: 519.45 | AA165: 588.48 | AB165: 686.63 | AC165: 716.70 | AD165: 860.00 | AE165: 860.00 | AF165: 860.00 | AG165: 864.40 | AH165: 1048.78 | AI165: 1144.13 | AJ165: 1067.39 | AK165: 1153.78
A166: =INDEX('化工产品价格总库（国内）'!A:A,ROW()-8) -> 2019-04-17 | B166: =IF(VLOOKUP($A166,'化工产品价格总库（国内）'!$A$1:$FG$66703,$A$9,0),VLOOKUP($A166,'化工产品价格总库（国内）'!$A$1:$FG$66703,$A$9,0),B167) -> 29000 | J166: 汇率 | K166: 美元对人民币 | L166: 7.00 | M166: 6.82 | N166: 6.75 | O166: 6.92 | P166: 6.79 | Q166: 6.38 | R166: 6.36 | S166: 6.61 | T166: 6.67 | U166: 6.86 | V166: 6.89 | W166: 6.83 | X166: 6.67 | Y166: 6.51 | Z166: 6.54 | AA166: 6.39 | AB166: 6.30 | AC166: 6.20 | AD166: 6.24 | AE166: 6.15 | AF166: 6.16 | AG166: 6.23 | AH166: 6.10 | AI166: 6.09 | AJ166: 6.13 | AK166: 6.15 | AL166: 6.22 | AM166: 6.24 | AN166: 6.35 | AO166: 6.33 | AP166: 6.31 | AQ166: 6.36 | AR166: 6.42 | AS166: 6.50 | AT166: 6.58 | AU166: 6.66 | AV166: 6.77 | AW166: 6.82 | AX166: 6.83 | AY166: 6.83
A167: =INDEX('化工产品价格总库（国内）'!A:A,ROW()-8) -> 2019-04-16 | B167: =IF(VLOOKUP($A167,'化工产品价格总库（国内）'!$A$1:$FG$66703,$A$9,0),VLOOKUP($A167,'化工产品价格总库（国内）'!$A$1:$FG$66703,$A$9,0),B168) -> 29000 | J167: 无烟煤 | K167: 华中地区市场均价(元/吨) | L167: 950.00 | M167: 950.00 | N167: 950.00 | O167: 950.00 | P167: 950.00 | Q167: 950.00 | R167: 950.00 | S167: 950.00 | T167: 950.00 | U167: 950.00 | V167: 915.11 | W167: 871.52 | X167: 834.56 | Y167: 919.21 | Z167: 879.26 | AA167: 901.19 | AB167: 922.50 | AC167: 960.09 | AD167: 1002.97 | AE167: 1040.04 | AF167: 1091.41 | AG167: 1230.00 | AH167: 1230.00 | AI167: 1230.00 | AJ167: 1228.91 | AK167: 1348.13 | AL167: 1500.00 | AM167: 1500.00 | AN167: 1500.00 | AO167: 1500.00 | AP167: 1500.00 | AQ167: 1500.00 | AR167: 1500.00 | AS167: 1500.00 | AT167: 1500.00 | AU167: 1500.00 | AV167: 1500.00 | AW167: 1500.00 | AX167: 1500.00 | AY167: 1500.00 | AZ167: 1500.00 | BA167: 1500.00 | BB167: 1500.00 | BC167: 1500.00 | BD167: 1500.00 | BE167: 1500.00 | BF167: 1500.00 | BG167: 1500.00 | BH167: 1500.00 | BI167: 1500.00 | BJ167: 1500.00 | BK167: 1500.00 | BL167: 1500.00 | BM167: 1500.00 | BN167: 1500.00
A168: =INDEX('化工产品价格总库（国内）'!A:A,ROW()-8) -> 2019-04-15 | B168: =IF(VLOOKUP($A168,'化工产品价格总库（国内）'!$A$1:$FG$66703,$A$9,0),VLOOKUP($A168,'化工产品价格总库（国内）'!$A$1:$FG$66703,$A$9,0),B169) -> 29000 | J168: 动力煤 | K168: 秦皇岛市场价(元/吨) | L168: 589.95 | M168: 613.52 | N168: 565.04 | O168: 584.89 | P168: 585.65 | Q168: 584.78 | R168: 622.11 | S168: 623.64 | T168: 611.03 | U168: 606.76 | V168: 602.94 | W168: 592.07 | X168: 459.57 | Y168: 391.54 | Z168: 379.67 | AA168: 376.20 | AB168: 408.32 | AC168: 426.76 | AD168: 499.66 | AE168: 504.87 | AF168: 488.48 | AG168: 530.44 | AH168: 572.06 | AI168: 567.99 | AJ168: 561.20 | AK168: 611.98 | AL168: 628.00 | AM168: 640.00 | AN168: 633.26 | AO168: 752.19 | AP168: 774.46 | AQ168: 815.79 | AR168: 842.09 | AS168: 839.37 | AT168: 812.78 | AU168: 776.48 | AV168: 792.78 | AW168: 733.76 | AX168: 765.56 | AY168: 705.39 | AZ168: 782.08 | BA168: 641.11 | BB168: 558.11 | BC168: 552.55 | BD168: 580.92 | BE168: 604.81 | BF168: 844.65 | BG168: 812.46 | BH168: 520.61 | BI168: 426.00 | BJ168: 426.00 | BK168: 426.00 | BL168: 426.00 | BM168: 426.00 | BN168: 426.00
A169: =INDEX('化工产品价格总库（国内）'!A:A,ROW()-8) -> 2019-04-14 | B169: =IF(VLOOKUP($A169,'化工产品价格总库（国内）'!$A$1:$FG$66703,$A$9,0),VLOOKUP($A169,'化工产品价格总库（国内）'!$A$1:$FG$66703,$A$9,0),B170) -> 30500
A170: =INDEX('化工产品价格总库（国内）'!A:A,ROW()-8) -> 2019-04-13 | B170: =IF(VLOOKUP($A170,'化工产品价格总库（国内）'!$A$1:$FG$66703,$A$9,0),VLOOKUP($A170,'化工产品价格总库（国内）'!$A$1:$FG$66703,$A$9,0),B171) -> 30500
A171: =INDEX('化工产品价格总库（国内）'!A:A,ROW()-8) -> 2019-04-12 | B171: =IF(VLOOKUP($A171,'化工产品价格总库（国内）'!$A$1:$FG$66703,$A$9,0),VLOOKUP($A171,'化工产品价格总库（国内）'!$A$1:$FG$66703,$A$9,0),B172) -> 30500
A172: =INDEX('化工产品价格总库（国内）'!A:A,ROW()-8) -> 2019-04-11 | B172: =IF(VLOOKUP($A172,'化工产品价格总库（国内）'!$A$1:$FG$66703,$A$9,0),VLOOKUP($A172,'化工产品价格总库（国内）'!$A$1:$FG$66703,$A$9,0),B173) -> 30500
A173: =INDEX('化工产品价格总库（国内）'!A:A,ROW()-8) -> 2019-04-10 | B173: =IF(VLOOKUP($A173,'化工产品价格总库（国内）'!$A$1:$FG$66703,$A$9,0),VLOOKUP($A173,'化工产品价格总库（国内）'!$A$1:$FG$66703,$A$9,0),B174) -> 30500
A174: =INDEX('化工产品价格总库（国内）'!A:A,ROW()-8) -> 2019-04-09 | B174: =IF(VLOOKUP($A174,'化工产品价格总库（国内）'!$A$1:$FG$66703,$A$9,0),VLOOKUP($A174,'化工产品价格总库（国内）'!$A$1:$FG$66703,$A$9,0),B175) -> 30500
A175: =INDEX('化工产品价格总库（国内）'!A:A,ROW()-8) -> 2019-04-08 | B175: =IF(VLOOKUP($A175,'化工产品价格总库（国内）'!$A$1:$FG$66703,$A$9,0),VLOOKUP($A175,'化工产品价格总库（国内）'!$A$1:$FG$66703,$A$9,0),B176) -> 30500
A176: =INDEX('化工产品价格总库（国内）'!A:A,ROW()-8) -> 2019-04-07 | B176: =IF(VLOOKUP($A176,'化工产品价格总库（国内）'!$A$1:$FG$66703,$A$9,0),VLOOKUP($A176,'化工产品价格总库（国内）'!$A$1:$FG$66703,$A$9,0),B177) -> 30500
A177: =INDEX('化工产品价格总库（国内）'!A:A,ROW()-8) -> 2019-04-06 | B177: =IF(VLOOKUP($A177,'化工产品价格总库（国内）'!$A$1:$FG$66703,$A$9,0),VLOOKUP($A177,'化工产品价格总库（国内）'!$A$1:$FG$66703,$A$9,0),B178) -> 30500
A178: =INDEX('化工产品价格总库（国内）'!A:A,ROW()-8) -> 2019-04-05 | B178: =IF(VLOOKUP($A178,'化工产品价格总库（国内）'!$A$1:$FG$66703,$A$9,0),VLOOKUP($A178,'化工产品价格总库（国内）'!$A$1:$FG$66703,$A$9,0),B179) -> 30500
A179: =INDEX('化工产品价格总库（国内）'!A:A,ROW()-8) -> 2019-04-04 | B179: =IF(VLOOKUP($A179,'化工产品价格总库（国内）'!$A$1:$FG$66703,$A$9,0),VLOOKUP($A179,'化工产品价格总库（国内）'!$A$1:$FG$66703,$A$9,0),B180) -> 30500
A180: =INDEX('化工产品价格总库（国内）'!A:A,ROW()-8) -> 2019-04-03 | B180: =IF(VLOOKUP($A180,'化工产品价格总库（国内）'!$A$1:$FG$66703,$A$9,0),VLOOKUP($A180,'化工产品价格总库（国内）'!$A$1:$FG$66703,$A$9,0),B181) -> 30500
A181: =INDEX('化工产品价格总库（国内）'!A:A,ROW()-8) -> 2019-04-02 | B181: =IF(VLOOKUP($A181,'化工产品价格总库（国内）'!$A$1:$FG$66703,$A$9,0),VLOOKUP($A181,'化工产品价格总库（国内）'!$A$1:$FG$66703,$A$9,0),B182) -> 30500
A182: =INDEX('化工产品价格总库（国内）'!A:A,ROW()-8) -> 2019-04-01 | B182: =IF(VLOOKUP($A182,'化工产品价格总库（国内）'!$A$1:$FG$66703,$A$9,0),VLOOKUP($A182,'化工产品价格总库（国内）'!$A$1:$FG$66703,$A$9,0),B183) -> 30500
A183: =INDEX('化工产品价格总库（国内）'!A:A,ROW()-8) -> 2019-03-31 | B183: =IF(VLOOKUP($A183,'化工产品价格总库（国内）'!$A$1:$FG$66703,$A$9,0),VLOOKUP($A183,'化工产品价格总库（国内）'!$A$1:$FG$66703,$A$9,0),B184) -> 30500
A184: =INDEX('化工产品价格总库（国内）'!A:A,ROW()-8) -> 2019-03-30 | B184: =IF(VLOOKUP($A184,'化工产品价格总库（国内）'!$A$1:$FG$66703,$A$9,0),VLOOKUP($A184,'化工产品价格总库（国内）'!$A$1:$FG$66703,$A$9,0),B185) -> 30500
A185: =INDEX('化工产品价格总库（国内）'!A:A,ROW()-8) -> 2019-03-29 | B185: =IF(VLOOKUP($A185,'化工产品价格总库（国内）'!$A$1:$FG$66703,$A$9,0),VLOOKUP($A185,'化工产品价格总库（国内）'!$A$1:$FG$66703,$A$9,0),B186) -> 30500
A186: =INDEX('化工产品价格总库（国内）'!A:A,ROW()-8) -> 2019-03-28 | B186: =IF(VLOOKUP($A186,'化工产品价格总库（国内）'!$A$1:$FG$66703,$A$9,0),VLOOKUP($A186,'化工产品价格总库（国内）'!$A$1:$FG$66703,$A$9,0),B187) -> 30500
A187: =INDEX('化工产品价格总库（国内）'!A:A,ROW()-8) -> 2019-03-27 | B187: =IF(VLOOKUP($A187,'化工产品价格总库（国内）'!$A$1:$FG$66703,$A$9,0),VLOOKUP($A187,'化工产品价格总库（国内）'!$A$1:$FG$66703,$A$9,0),B188) -> 30500
A188: =INDEX('化工产品价格总库（国内）'!A:A,ROW()-8) -> 2019-03-26 | B188: =IF(VLOOKUP($A188,'化工产品价格总库（国内）'!$A$1:$FG$66703,$A$9,0),VLOOKUP($A188,'化工产品价格总库（国内）'!$A$1:$FG$66703,$A$9,0),B189) -> 30500
A189: =INDEX('化工产品价格总库（国内）'!A:A,ROW()-8) -> 2019-03-25 | B189: =IF(VLOOKUP($A189,'化工产品价格总库（国内）'!$A$1:$FG$66703,$A$9,0),VLOOKUP($A189,'化工产品价格总库（国内）'!$A$1:$FG$66703,$A$9,0),B190) -> 30500
A190: =INDEX('化工产品价格总库（国内）'!A:A,ROW()-8) -> 2019-03-24 | B190: =IF(VLOOKUP($A190,'化工产品价格总库（国内）'!$A$1:$FG$66703,$A$9,0),VLOOKUP($A190,'化工产品价格总库（国内）'!$A$1:$FG$66703,$A$9,0),B191) -> 30500
A191: =INDEX('化工产品价格总库（国内）'!A:A,ROW()-8) -> 2019-03-23 | B191: =IF(VLOOKUP($A191,'化工产品价格总库（国内）'!$A$1:$FG$66703,$A$9,0),VLOOKUP($A191,'化工产品价格总库（国内）'!$A$1:$FG$66703,$A$9,0),B192) -> 30500
A192: =INDEX('化工产品价格总库（国内）'!A:A,ROW()-8) -> 2019-03-22 | B192: =IF(VLOOKUP($A192,'化工产品价格总库（国内）'!$A$1:$FG$66703,$A$9,0),VLOOKUP($A192,'化工产品价格总库（国内）'!$A$1:$FG$66703,$A$9,0),B193) -> 30500
A193: =INDEX('化工产品价格总库（国内）'!A:A,ROW()-8) -> 2019-03-21 | B193: =IF(VLOOKUP($A193,'化工产品价格总库（国内）'!$A$1:$FG$66703,$A$9,0),VLOOKUP($A193,'化工产品价格总库（国内）'!$A$1:$FG$66703,$A$9,0),B194) -> 30500
A194: =INDEX('化工产品价格总库（国内）'!A:A,ROW()-8) -> 2019-03-20 | B194: =IF(VLOOKUP($A194,'化工产品价格总库（国内）'!$A$1:$FG$66703,$A$9,0),VLOOKUP($A194,'化工产品价格总库（国内）'!$A$1:$FG$66703,$A$9,0),B195) -> 30500
A195: =INDEX('化工产品价格总库（国内）'!A:A,ROW()-8) -> 2019-03-19 | B195: =IF(VLOOKUP($A195,'化工产品价格总库（国内）'!$A$1:$FG$66703,$A$9,0),VLOOKUP($A195,'化工产品价格总库（国内）'!$A$1:$FG$66703,$A$9,0),B196) -> 30500
A196: =INDEX('化工产品价格总库（国内）'!A:A,ROW()-8) -> 2019-03-18 | B196: =IF(VLOOKUP($A196,'化工产品价格总库（国内）'!$A$1:$FG$66703,$A$9,0),VLOOKUP($A196,'化工产品价格总库（国内）'!$A$1:$FG$66703,$A$9,0),B197) -> 30500
A197: =INDEX('化工产品价格总库（国内）'!A:A,ROW()-8) -> 2019-03-17 | B197: =IF(VLOOKUP($A197,'化工产品价格总库（国内）'!$A$1:$FG$66703,$A$9,0),VLOOKUP($A197,'化工产品价格总库（国内）'!$A$1:$FG$66703,$A$9,0),B198) -> 30500
A198: =INDEX('化工产品价格总库（国内）'!A:A,ROW()-8) -> 2019-03-16 | B198: =IF(VLOOKUP($A198,'化工产品价格总库（国内）'!$A$1:$FG$66703,$A$9,0),VLOOKUP($A198,'化工产品价格总库（国内）'!$A$1:$FG$66703,$A$9,0),B199) -> 30500
A199: =INDEX('化工产品价格总库（国内）'!A:A,ROW()-8) -> 2019-03-15 | B199: =IF(VLOOKUP($A199,'化工产品价格总库（国内）'!$A$1:$FG$66703,$A$9,0),VLOOKUP($A199,'化工产品价格总库（国内）'!$A$1:$FG$66703,$A$9,0),B200) -> 30500
A200: =INDEX('化工产品价格总库（国内）'!A:A,ROW()-8) -> 2019-03-14 | B200: =IF(VLOOKUP($A200,'化工产品价格总库（国内）'!$A$1:$FG$66703,$A$9,0),VLOOKUP($A200,'化工产品价格总库（国内）'!$A$1:$FG$66703,$A$9,0),B201) -> 30500
... 2654 more rows

Sheet 化工产品价格总库（国内）
A1: 产品 | B1: 原油 | C1: 原油 | D1: 原油 | E1: 国际汽油 | F1: 国内汽油 | G1: 国际柴油 | H1: 国内柴油 | I1: 国内航空煤油 | J1: 国际石脑油 | K1: 国内石脑油 | L1: 液化气 | M1: 乙烯 | N1: 丙烯 | O1: 丙烯 | P1: 纯苯 | Q1: 纯苯 | R1: 甲苯 | S1: 二甲苯 | T1: 苯乙烯 | U1: 苯乙烯 | V1: 天然气 | W1: 合成氨 | X1: 尿素 | Y1: 尿素 | Z1: 三聚氰胺 | AA1: 氯化铵（农湿） | AB1: 氯化钾 | AC1: 硫酸钾 | AD1: 磷矿石 | AE1: 磷矿石 | AF1: 磷酸一铵 | AG1: 磷酸二铵 | AH1: 磷酸二铵 | AI1: 硫磺 | AJ1: 硫磺 | AK1: 复合肥 | AL1: 复合肥 | AM1: 硫酸 | AN1: 磷酸（元/吨） | AO1: 磷酸（元/吨） | AP1: 黄磷 | AQ1: 五氧化二磷折纯 | AR1: 三聚磷酸钠 | AS1: 纯吡啶 | AT1: 百草枯 | AU1: 草甘膦 | AV1: 液氯 | AW1: 原盐 | AX1: 烧碱 | AY1: 烧碱 | AZ1: 电石 | BA1: PVC | BB1: PVC | BC1: PVC | BD1: 盐酸 | BE1: 轻质纯碱 | BF1: 重质纯碱 | BG1: 硝酸 | BH1: 硝酸铵（工业） | BI1: 苯胺 | BJ1: TDI | BK1: 聚合MDI | BL1: 纯MDI | BM1: 烟台万华 | BN1: 烟台万华 | BO1: BDO | BP1: DMF | BQ1: PTMEG | BR1: 己二酸 | BS1: 丁酮 | BT1: 环己酮 | BU1: 环氧乙烷 | BV1: 环氧丙烷 | BW1: 软泡聚醚 | BX1: 硬泡聚醚 | BY1: PX | BZ1: PTA | CA1: MEG | CB1: PET切片 | CC1: 氨纶40D | CD1: 己内酰胺 | CE1: 丙烯腈 | CF1: 粘胶长丝 | CG1: 粘胶短纤 | CH1: 涤纶短丝 | CI1: 涤纶POY | CJ1: 涤纶FDY | CK1: 海利得涤纶工业丝（500D/96F） | CL1: 古纤道涤纶工业丝（1000D/192F） | CM1: 海利得涤纶工业丝（1000D/192F） | CN1: 锦纶POY | CO1: 锦纶DTY | CP1: 锦纶FDY | CQ1: 腈纶短纤 | CR1: 腈纶毛条 | CS1: PA6 切片 | CT1: PA66 | CU1: 棉花 | CV1: 溶解浆 | CW1: 棉浆 | CX1: 木浆 | CY1: HDPE | CZ1: LDPE | DA1: LLDPE | DB1: VCM | DC1: EDC | DD1: PP | DE1: PS | DF1: PS | DG1: ABS | DH1: BOPP | DI1: BOPET | DJ1: CPP | DK1: 丁二烯 | DL1: 丁二烯 | DM1: 天然橡胶 | DN1: 丁苯橡胶 | DO1: 丁基橡胶 | DP1: 顺丁橡胶 | DQ1: 丁腈橡胶 | DR1: SBS干胶 | DS1: 三元乙丙橡胶 | DT1: 萤石粉-湿粉 | DU1: 无水氢氟酸 | DV1: 二氯甲烷 | DW1: 三氯乙烯 | DX1: R22 | DY1: R134a | DZ1: 氟化铝 | EA1: 冰晶石 | EB1: 甲基环硅氧烷 | EC1: 金属硅 | ED1: 丙烯酸 | EE1: 丙烯酸乙酯 | EF1: 丙烯酸丁酯 | EG1: 丙烯酸异辛酯 | EH1: 环氧氯丙烷 | EI1: 苯酚 | EJ1: 丙酮 | EK1: 双酚A | EL1: PVA | EM1: 甲醇 | EN1: 醋酸 | EO1: 醋酸酐 | EP1: 乙醇 | EQ1: 二乙二醇 | ER1: 季戊四醇 | ES1: DOP | ET1: 正丁醇 | EU1: 辛醇 | EV1: 苯酐 | EW1: 钛精矿 | EX1: 钛白粉 | EY1: 钛白粉 | EZ1: 二甲醚 | FA1: 甲醛 | FB1: 醋酸乙烯 | FC1: 煤焦油 | FD1: 电池级碳酸锂 | FE1: 工业级碳酸锂 | FF1: 炭黑 | FG1: 焦炭 | FH1: 汇率 | FI1: 无烟煤 | FJ1: 动力煤 | FK1: FD11:GN11中隐藏有价差计算公式，选中并向下填充即可 | FL1: 合成氨-无烟煤价差 | FM1: 国内尿素-无烟煤价差 | FN1: 三聚氰胺-尿素价差 | FO1: 磷酸二铵-磷矿石-液氨-硫磺价差 | FP1: 工业磷酸-黄磷价差 | FQ1: 黄磷-磷矿石-焦炭价差 | FR1: 硝酸铵-液氨价差 | FS1: PVC-电石-盐酸价差 | FT1: 轻质纯碱-原盐-动力煤价差 | FU1: PTA-PX价差 | FV1: 乙二醇-乙烯价差 | FW1: PET-PTA-MEG价差 | FX1: TDI-甲苯-硝酸价差 | FY1: 聚合MDI-苯胺-甲醛价差 | FZ1: 纯MDI-苯胺-甲醛价差 | GA1: BDO-电石-甲醛价差 | GB1: DMF-甲醇-氨气价差 | GC1: 己二酸-纯苯-硝酸价差 | GD1: 环氧乙烷-乙烯价差 | GE1: 环氧丙烷-丙烯-液氯价差 | GF1: 硬泡聚醚-环氧丙烷价差 | GG1: 氨纶-PTME-纯MDI-DMF价差 | GH1: 粘胶长丝-溶解浆价差 | GI1: 粘胶短纤-溶解浆价差 | GJ1: 涤纶短丝-PTA-乙二醇价差 | GK1: 涤纶POY-PTA-乙二醇价差 | GL1: 腈纶短纤-丙烯腈价差 | GM1: 尼龙6-己内酰胺价差 | GN1: 尼龙66-己二酸价差 | GO1: 双酚A-苯酚-丙酮价差 | GP1: PVA-醋酸乙烯价差 | GQ1: 甲基环氧硅烷-金属硅-甲醇-盐酸价差 | GR1: 金红石-钛精矿-浓硫酸价差 | GS1: 醋酸乙烯-电石-醋酸价差 | GT1: 醋酸-甲醇价差 | GU1: 季戊四醇-甲醛-烧碱价差 | GV1: 国内汽油-阿曼原油 | GW1: 国内柴油-阿曼原油 | GX1: 国内航天煤油-阿曼原油 | GY1: 乙烯-石脑油 | GZ1: PP-石脑油 | HA1: LDPE-石脑油 | HB1: HDPE-石脑油
A2: 地区 | B2: WTI（美元/桶） | C2: 布伦特（美元/桶） | D2: 阿曼（美元/桶） | E2: 新加坡（美元/桶） | F2: 出厂价（元/吨） | G2: 新加坡（美元/桶） | H2: 出厂价（元/吨） | I2: 出厂价（元/吨） | J2: 新加坡（美元/桶） | K2: 中石化出厂预算价（元/吨） | L2: 长岭炼化（元/吨） | M2: 东南亚CFR（美元/吨） | N2: FOB韩国（美元/吨） | O2: 汇丰石化（元/吨） | P2: FOB韩国（美元/吨） | Q2: 华东地区（元/吨） | R2: 华东地区（元/吨） | S2: 华东地区（元/吨） | T2: FOB韩国（美元/吨） | U2: CFR华东（美元/吨） | V2: NYMEX天然气(期货) | W2: 江苏工厂（元/吨） | X2: 波罗的海(小粒散装)（美元/吨） | Y2: 华鲁恒升(小颗粒)（元/吨） | Z2: 中原大化（元/吨） | AA2: 石家庄联碱（元/吨） | AB2: 青海盐湖95%（元/吨） | AC2: 新疆罗布泊50%粉（元/吨） | AD2: 湖北宜化（28%）（元/吨） | AE2: 摩洛哥-印度CFR(70-72BPL)合同价（美元/吨） | AF2: 四川金河粉状55%（元/吨） | AG2: 西南工厂64%褐色（元/吨） | AH2: 美国海湾（美元/吨） | AI2: CFR中国现货价（美元/吨） | AJ2: 高桥石化出厂价格（元/吨） | AK2: 江苏瑞和牌45%[CL]（元/吨） | AL2: 江苏瑞和牌45%[S]（元/吨） | AM2: 浙江嘉化98%（元/吨） | AN2: 新乡华幸工业85% | AO2: 新乡华幸食品 | AP2: 四川地区（元/吨） | AQ2: CFR印度合同价（美元/吨) | AR2: 新乡华幸工业级94%（元/吨） | AS2: 华东地区（元/吨） | AT2: 浙江永农42%水剂（元/吨） | AU2: 浙江新安化工（元/吨） | AV2: 华东地区（元/吨） | AW2: 河北出厂（元/吨） | AX2: 32%离子膜华东地区（元/吨） | AY2: 30%隔膜华东地区（元/吨） | AZ2: 华东地区（元/吨） | BA2: CFR东南亚（美元/吨） | BB2: 华东电石法（元/吨） | BC2: 华东乙烯法（元/吨） | BD2: 华东盐酸(31%)（元/吨） | BE2: 华东地区（元/吨） | BF2: 华东地区（元/吨） | BG2: 安徽淮化98%（元/吨） | BH2: 华北地区山东联合（元/吨） | BI2: 华东地区（元/吨） | BJ2: 华东（元/吨） | BK2: 华东烟台万华（元/吨） | BL2: 华东（元/吨） | BM2: 挂牌聚合MDI | BN2: 挂牌纯MDI | BO2: 华东散水（元/吨） | BP2: 华东（元/吨） | BQ2: 1800分子量华东（元/吨） | BR2: 华东（元/吨） | BS2: 华东（元/吨） | BT2: 华东（元/吨） | BU2: 上海石化（元/吨） | BV2: 华东（元/吨） | BW2: 华东散水（元/吨） | BX2: 华东（元/吨） | BY2: CFR东南亚（美元/吨） | BZ2: 华东（元/吨） | CA2: 华东（元/吨） | CB2: 华东（元/吨） | CC2: 华东（元/吨） | CD2: 华东CPL（元/吨） | CE2: 华东AN（元/吨） | CF2: 120D华东（元/吨） | CG2: 1.5D*38mm华东（元/吨） | CH2: 1.4D*38mm华东（元/吨） | CI2: 华东150D/48F（元/吨） | CJ2: 华东68D/24F（元/吨） | CK2: 江浙市场 （元/吨） | CL2: 江浙市场 （元/吨） | CM2: 江浙市场（元/吨） | CN2: 华东（元/吨） | CO2: 华东70D/24F（元/吨） | CP2: 华东70D/24F（元/吨） | CQ2: 华东（元/吨） | CR2: 华东（元/吨） | CS2: 华东地区（元/吨） | CT2: 华东1300S（元/吨） | CU2: CCIndex(3128B) | CV2: CCFEI价格指数（元/吨） | CW2: 华东（元/吨） | CX2: 国际（美元/吨） | CY2: 余姚市场5000S/扬子（元/吨） | CZ2: 余姚市场2102TN26（元/吨） | DA2: 余姚市场7042/大庆（元/吨） | DB2: CFR东南亚（美元/吨） | DC2: CFR东南亚（美元/吨） | DD2: 余姚市场J340/扬子（元/吨） | DE2: 华东地区GPPS（元/吨） | DF2: 华东地区HIPS（元/吨） | DG2: 华东地区（元/吨） | DH2: 江苏双良15U光膜出厂价（元/吨） | DI2: 浙江强盟实业BOPET普通膜出厂价（元/吨） | DJ2: 河北泰达25U复合膜出厂均价（元/吨） | DK2: 东南亚CFR（美元/吨） | DL2: 上海石化（元/吨） | DM2: 上海市场（元/吨） | DN2: 华东1502 | DO2: 进口301（元/吨） | DP2: 山东（元/吨） | DQ2: 华东地区（N41）市场均价（元/吨） | DR2: 华东地区815市场均价（元/吨） | DS2: 华东地区（4703）市场均价（元/吨） | DT2: 华东地区（元/吨） | DU2: 华东地区（元/吨） | DV2: 华东地区（元/吨） | DW2: 华东地区（元/吨） | DX2: 巨化股份（元/吨） | DY2: 浙江巨化（元/吨） | DZ2: 河南地区（元/吨） | EA2: 河南地区（元/吨） | EB2: DMC华东（元/吨） | EC2: 贵州港口均价441#（元/吨） | ED2: 华东地区市场均价（元/吨） | EE2: 浙江卫星出厂价（元/吨） | EF2: 浙江卫星出厂价（元/吨） | EG2: 浙江卫星出厂价（元/吨） | EH2: 华东地区（元/吨） | EI2: 华东地区（元/吨） | EJ2: 华东地区高端（元/吨） | EK2: 华东（元/吨） | EL2: 国内聚乙烯醇（元/吨） | EM2: 华东地区（元/吨） | EN2: 华东地区（元/吨） | EO2: 华东地区（元/吨） | EP2: 食用酒精华东地区（元/吨） | EQ2: 华东地区市场均价（元/吨） | ER2: 淄博(95%)（元/吨） | ES2: 市场均价（元/吨） | ET2: 华东地区市场均价（元/吨） | EU2: 华东地区市场均价（元/吨） | EV2: 华东地区市场均价（元/吨） | EW2: 四川攀钢（元/吨） | EX2: 锐钛型NA100南京钛白(元/吨) | EY2: 金红石型R-248攀钢钛业(元/吨) | EZ2: 河南（元/吨） | FA2: 华东（元/吨） | FB2: 华东（元/吨） | FC2: 江苏工厂（元/吨） | FD2: 四川99.5%min | FE2: 四川99.0%min | FF2: 江西黑豹N330（元/吨） | FG2: 山西市场价格（元/吨） | FH2: 美元对人民币 | FI2: 华中地区市场均价(元/吨) | FJ2: 秦皇岛市场价(元/吨) | FK2: 日期 | FL2: （元/吨） | FM2: （元/吨） | FN2: （元/吨） | FO2: （元/吨） | FP2: （元/吨） | FQ2: （元/吨） | FR2: （元/吨） | FS2: （元/吨） | FT2: （元/吨） | FU2: （元/吨） | FV2: （元/吨） | FW2: （元/吨） | FX2: （元/吨） | FY2: （元/吨） | FZ2: （元/吨） | GA2: （元/吨） | GB2: （元/吨） | GC2: （元/吨） | GD2: （元/吨） | GE2: （元/吨） | GF2: （元/吨） | GG2: （元/吨） | GH2: （元/吨） | GI2: （元/吨） | GJ2: （元/吨） | GK2: （元/吨） | GL2: （元/吨） | GM2: （元/吨） | GN2: （元/吨） | GO2: （元/吨） | GP2: （元/吨） | GQ2: （元/吨） | GR2: （元/吨） | GS2: （元/吨） | GT2: （元/吨） | GU2: （元/吨） | GV2: （元/吨） | GW2: （元/吨） | GX2: （元/吨） | GY2: （元/吨） | GZ2: （元/吨） | HA2: （元/吨） | HB2: （元/吨）
